Workbook

Sheet ReadME
A2: Data Tab | B2: Column | C2: Description
A3: Raw Data | B3: Facility ID | C3: Facility Information. Data obtained from the 2014v2 NEI with updates by western states. Facilities with total Q (NOX + SO2 + PM10) less than 1 ton per year are not included. Includes all facilities in the WRAP region, and neighboring states in the LADCO and CenSARA regions that are within 400 km of a Class I Area.
B4: SCC
B5: Facility Name
B6: Facility State
B7: CIA Name | C7: Class I Area Information
B8: CIA State
B9: d_km | C9: Distance between Facility and Class I Area in kilometers. In the development of estimates of D, sources within WRAP states were evaluated against the CIAs in both the WRAP region and neighboring states in the CenSARA and LADCO regions, as long as they were within 400 km of the facility. However, sources within neighboring states in the CenSARA and LADCO regions were only evaluated against CIAs within 400 km in the WRAP region.
B10: Q_all_tpy | C10: NOX + SO2 + PM10 emissions at specified facility in tons per year
B11: Q_NOx_tpy | C11: NOX emissions at specified facility in tons per year
B12: Q_SO2_tpy | C12: SO2 emissions at specified facility in tons per year
B13: Q_PM10_tpy | C13: PM10 emissions at specified facility in tons per year
B14: Q/d | C14: Q_all_tpy divided by d_km
B15: Q/d_NOx | C15: Q/d_NOx divided by d_km
B16: Q/d_SO2 | C16: Q/d_SO2 divided by d_km
B17: Q/d_PM10 | C17: Q/d_PM10 divided by d_km
B18: NH3_tpy | C18: NH3 emissions at specified facility in tons per year
B19: VOC_tpy | C19: VOC emissions at specified facility in tons per year
B20: AbvThresh_Q_NOX | C20: Comparison of Q_NOx_tpy to Q threshold of 25 tpy, for informational purposes only
B21: AbvThresh_Q_SO2 | C21: Comparison of Q_SO2_tpy to Q threshold of 25 tpy, for informational purposes only
B22: AbvThresh_Q_PM10 | C22: Comparison of Q_PM10_tpy to Q threshold of 25 tpy, for informational purposes only
B23: AbvThresh_Q_All | C23: Comparison of Q_all_tpy to Q threshold of 25 tpy
B24: AbvThresh_Q/d | C24: Comparison of Q/d to Q/D threshold of 10 tpy/km
B25: AbvThresh_Q/d_NOX | C25: Comparison of Q/d_NOX to Q/D threshold of 10 tpy/km, for informational purposes only
B26: AbvThresh_Q/d_SO2 | C26: Comparison of Q/d_SO2 to Q/D threshold of 10 tpy/km, for informational purposes only
B27: AbvThresh_Q/d_PM10 | C27: Comparison of Q/d_PM10 to Q/D threshold of 10 tpy/km, for informational purposes only
A28: Facility Emissions | B28: region_cd | C28: Facility Information. Data obtained from the 2014v2 NEI with updates by western states. Facilities with Q (NOX+SO2+PM10) less than 1 ton per year are not included. Includes all facilities in the WRAP region, and neighboring states in the LADCO and CenSARA regions.
B29: Facility State
B30: fac_County
B31: Fac_ID
B32: NOX_tpy | C32: NOX emissions at specified facility in tons per year
B33: PM10_tpy | C33: PM10 emissions at specified facility in tons per year
B34: SO2_tpy | C34: SO2 emissions at specified facility in tons per year
B35: Q_tpy | C35: NOX + SO2 + PM10 emissions at specified facility in tons per year
B36: NH3_tpy | C36: NH3 emissions at specified facility in tons per year
B37: VOC_tpy | C37: VOC emissions at specified facility in tons per year
B38: Fac_Name | C38: Additional facility information.
B39: scc
B40: naics
B41: longitude
B42: latitude
B43: AbvThresh_Q_NOX | C43: Comparison of Q_NOx_tpy to Q threshold of 25 tpy, for informational purposes only
B44: AbvThresh_Q_SO2 | C44: Comparison of Q_SO2_tpy to Q threshold of 25 tpy, for informational purposes only
B45: AbvThresh_Q_PM10 | C45: Comparison of Q_PM10_tpy to Q threshold of 25 tpy, for informational purposes only
B46: AbvThresh_Q_All | C46: Comparison of Q_all_tpy to Q threshold of 25 tpy
B47: Furthest Distance to CIA | C47: Indicates if the facility is within 400 km of a Class I Area or greater than 400 km from a Class I Area.
A49: State Abbreviations Key
A50: AK | B50: Alaska
A51: AZ | B51: Arizona
A52: CA | B52: California
A53: CO | B53: Colorado
A54: HI | B54: Hawaii
A55: ID | B55: Idaho
A56: KS | B56: Kansas
A57: MN | B57: Minnesota
A58: MT | B58: Montana
A59: ND | B59: North Dakota
A60: NE | B60: Nebraska
A61: NM | B61: New Mexico
A62: NV | B62: Nevada
A63: OK | B63: Oklahoma
A64: OR | B64: Oregon
A65: SD | B65: South Dakota
A66: TR | B66: Tribal Reserves
A67: TX | B67: Texas
A68: UT | B68: Utah
A69: WA | B69: Washington
A70: WY | B70: Wyoming

Sheet Q-D Summary (State)
A17: Facility State | B17: Facility Name | C17: Location of Class I Area with Maximum Q/D | D17: Class I Area State | E17: Facility ID | F17: Distance to CIA (km) | G17: Q/D Value (tpy/km) | K17: Q (tpy) | O17: Other Pollutants (tpy)
G18: NOX+SO2+PM10 | H18: NOX | I18: SO2 | J18: PM10 | K18: NOX+SO2+PM10 | L18: NOX | M18: SO2 | N18: PM10 | O18: NH3 | P18: VOC
E22: Facility State | F22: AK
E23: AbvThresh_Q/d | F23: Yes
E25: Facility ID | F25: Min of d_km | G25: Max of Q/d | H25: Max of Q/d_NOx | I25: Max of Q/d_SO2 | J25: Max of Q/d_PM10 | K25: Max of Q_all_tpy | L25: Max of Q_NOx_tpy | M25: Max of Q_SO2_tpy | N25: Max of Q_PM10_tpy | O25: Max of NH3_tpy | P25: Max of VOC_tpy
A26: =IF(E26="","",VLOOKUP(E26,'Raw Data'!A:D,4,FALSE)) -> AK | B26: =IF(E26="","",VLOOKUP(E26,'Facility Emissions'!D:K,8,FALSE)) -> Healy Power Plant | C26: =IF(F26="","",INDEX(Table1[CIA Name],MATCH(F26,Table1[d_km],0),1)) -> Denali NP and Wilderness | D26: =IF(F26="","",INDEX(Table1[CIA State],MATCH(F26,Table1[d_km],0),1)) -> AK | E26: 12662311 | F26: 5.999848595 | G26: 136.9867901 | H26: 59.25982871 | I26: 74.158538 | J26: 3.56842338 | K26: 821.9 | L26: 355.55 | M26: 444.94 | N26: 21.41 | O26: 0 | P26: 5.53
A27: =IF(E27="","",VLOOKUP(E27,'Raw Data'!A:D,4,FALSE)) -> AK | B27: =IF(E27="","",VLOOKUP(E27,'Facility Emissions'!D:K,8,FALSE)) -> Fort Wainwright (Privatized Emission Units) | C27: =IF(F27="","",INDEX(Table1[CIA Name],MATCH(F27,Table1[d_km],0),1)) -> Denali NP | D27: =IF(F27="","",INDEX(Table1[CIA State],MATCH(F27,Table1[d_km],0),1)) -> AK | E27: 12660811 | F27: 119.2150326 | G27: 15.81478408 | H27: 9.47766381 | I27: 5.492092614 | J27: 0.8450276598 | K27: 1885.36 | L27: 1129.88 | M27: 654.74 | N27: 100.74 | O27: 0.07 | P27: 6.42
A28: =IF(E28="","",VLOOKUP(E28,'Raw Data'!A:D,4,FALSE)) -> AK | B28: =IF(E28="","",VLOOKUP(E28,'Facility Emissions'!D:K,8,FALSE)) -> Swanson River Field | C28: =IF(F28="","",INDEX(Table1[CIA Name],MATCH(F28,Table1[d_km],0),1)) -> Tuxedni Wilderness | D28: =IF(F28="","",INDEX(Table1[CIA State],MATCH(F28,Table1[d_km],0),1)) -> AK | E28: 681411 | F28: 112.9533404 | G28: 15.27719317 | H28: 15.0907445 | I28: 0.001770642633 | J28: 0.1846780266 | K28: 1725.61 | L28: 1704.55 | M28: 0.2 | N28: 20.86 | O28: 0 | P28: 120.99
A29: =IF(E29="","",VLOOKUP(E29,'Raw Data'!A:D,4,FALSE)) -> AK | B29: =IF(E29="","",VLOOKUP(E29,'Facility Emissions'!D:K,8,FALSE)) -> Beluga River Power Plant | C29: =IF(F29="","",INDEX(Table1[CIA Name],MATCH(F29,Table1[d_km],0),1)) -> Tuxedni Wilderness | D29: =IF(F29="","",INDEX(Table1[CIA State],MATCH(F29,Table1[d_km],0),1)) -> AK | E29: 12661111 | F29: 141.2284698 | G29: 13.72230402 | H29: 13.18586827 | I29: 0.1431014584 | J29: 0.3933342906 | K29: 1937.98 | L29: 1862.22 | M29: 20.21 | N29: 55.55 | O29: 0 | P29: 16.82
A30: =IF(E30="","",VLOOKUP(E30,'Raw Data'!A:D,4,FALSE)) -> AK | B30: =IF(E30="","",VLOOKUP(E30,'Facility Emissions'!D:K,8,FALSE)) -> Clear Air Force Station | C30: =IF(F30="","",INDEX(Table1[CIA Name],MATCH(F30,Table1[d_km],0),1)) -> Denali NP | D30: =IF(F30="","",INDEX(Table1[CIA State],MATCH(F30,Table1[d_km],0),1)) -> AK | E30: 1134011 | F30: 35.01944559 | G30: 13.41740259 | H30: 7.254826445 | I30: 6.088331679 | J30: 0.07424446492 | K30: 469.87 | L30: 254.06 | M30: 213.21 | N30: 2.6 | O30: 0 | P30: 1.96
A31: =IF(E31="","",VLOOKUP(E31,'Raw Data'!A:D,4,FALSE)) -> AK | B31: =IF(E31="","",VLOOKUP(E31,'Facility Emissions'!D:K,8,FALSE)) -> Ted Stevens Anchorage I | C31: =IF(F31="","",INDEX(Table1[CIA Name],MATCH(F31,Table1[d_km],0),1)) -> Denali NP | D31: =IF(F31="","",INDEX(Table1[CIA State],MATCH(F31,Table1[d_km],0),1)) -> AK | E31: 10604711 | F31: 153.3843504 | G31: 12.47125064 | H31: 11.06442925 | I31: 1.11744168 | J31: 0.2893797075 | K31: 1912.894678 | L31: 1697.110293 | M31: 171.3980662 | N31: 44.38631846 | O31: 0 | P31: 296.5988679
A32: =IF(E32="","",VLOOKUP(E32,'Raw Data'!A:D,4,FALSE)) -> AK | B32: =IF(E32="","",VLOOKUP(E32,'Facility Emissions'!D:K,8,FALSE)) -> Chena Power Plant | C32: =IF(F32="","",INDEX(Table1[CIA Name],MATCH(F32,Table1[d_km],0),1)) -> Denali NP | D32: =IF(F32="","",INDEX(Table1[CIA State],MATCH(F32,Table1[d_km],0),1)) -> AK | E32: 974511 | F32: 118.5822526 | G32: 10.85432239 | H32: 5.174467396 | I32: 5.523592152 | J32: 0.1562628436 | K32: 1287.13 | L32: 613.6 | M32: 655 | N32: 18.53 | O32: 0 | P32: 2
A33: =IF(E33="","",VLOOKUP(E33,'Raw Data'!A:D,4,FALSE)) ->  | B33: =IF(E33="","",VLOOKUP(E33,'Facility Emissions'!D:K,8,FALSE)) ->  | C33: =IF(F33="","",INDEX(Table1[CIA Name],MATCH(F33,Table1[d_km],0),1)) ->  | D33: =IF(F33="","",INDEX(Table1[CIA State],MATCH(F33,Table1[d_km],0),1)) -> 
A34: =IF(E34="","",VLOOKUP(E34,'Raw Data'!A:D,4,FALSE)) ->  | B34: =IF(E34="","",VLOOKUP(E34,'Facility Emissions'!D:K,8,FALSE)) ->  | C34: =IF(F34="","",INDEX(Table1[CIA Name],MATCH(F34,Table1[d_km],0),1)) ->  | D34: =IF(F34="","",INDEX(Table1[CIA State],MATCH(F34,Table1[d_km],0),1)) -> 
A35: =IF(E35="","",VLOOKUP(E35,'Raw Data'!A:D,4,FALSE)) ->  | B35: =IF(E35="","",VLOOKUP(E35,'Facility Emissions'!D:K,8,FALSE)) ->  | C35: =IF(F35="","",INDEX(Table1[CIA Name],MATCH(F35,Table1[d_km],0),1)) ->  | D35: =IF(F35="","",INDEX(Table1[CIA State],MATCH(F35,Table1[d_km],0),1)) -> 
A36: =IF(E36="","",VLOOKUP(E36,'Raw Data'!A:D,4,FALSE)) ->  | B36: =IF(E36="","",VLOOKUP(E36,'Facility Emissions'!D:K,8,FALSE)) ->  | C36: =IF(F36="","",INDEX(Table1[CIA Name],MATCH(F36,Table1[d_km],0),1)) ->  | D36: =IF(F36="","",INDEX(Table1[CIA State],MATCH(F36,Table1[d_km],0),1)) -> 
A37: =IF(E37="","",VLOOKUP(E37,'Raw Data'!A:D,4,FALSE)) ->  | B37: =IF(E37="","",VLOOKUP(E37,'Facility Emissions'!D:K,8,FALSE)) ->  | C37: =IF(F37="","",INDEX(Table1[CIA Name],MATCH(F37,Table1[d_km],0),1)) ->  | D37: =IF(F37="","",INDEX(Table1[CIA State],MATCH(F37,Table1[d_km],0),1)) -> 
A38: =IF(E38="","",VLOOKUP(E38,'Raw Data'!A:D,4,FALSE)) ->  | B38: =IF(E38="","",VLOOKUP(E38,'Facility Emissions'!D:K,8,FALSE)) ->  | C38: =IF(F38="","",INDEX(Table1[CIA Name],MATCH(F38,Table1[d_km],0),1)) ->  | D38: =IF(F38="","",INDEX(Table1[CIA State],MATCH(F38,Table1[d_km],0),1)) -> 
A39: =IF(E39="","",VLOOKUP(E39,'Raw Data'!A:D,4,FALSE)) ->  | B39: =IF(E39="","",VLOOKUP(E39,'Facility Emissions'!D:K,8,FALSE)) ->  | C39: =IF(F39="","",INDEX(Table1[CIA Name],MATCH(F39,Table1[d_km],0),1)) ->  | D39: =IF(F39="","",INDEX(Table1[CIA State],MATCH(F39,Table1[d_km],0),1)) -> 
A40: =IF(E40="","",VLOOKUP(E40,'Raw Data'!A:D,4,FALSE)) ->  | B40: =IF(E40="","",VLOOKUP(E40,'Facility Emissions'!D:K,8,FALSE)) ->  | C40: =IF(F40="","",INDEX(Table1[CIA Name],MATCH(F40,Table1[d_km],0),1)) ->  | D40: =IF(F40="","",INDEX(Table1[CIA State],MATCH(F40,Table1[d_km],0),1)) -> 
A41: =IF(E41="","",VLOOKUP(E41,'Raw Data'!A:D,4,FALSE)) ->  | B41: =IF(E41="","",VLOOKUP(E41,'Facility Emissions'!D:K,8,FALSE)) ->  | C41: =IF(F41="","",INDEX(Table1[CIA Name],MATCH(F41,Table1[d_km],0),1)) ->  | D41: =IF(F41="","",INDEX(Table1[CIA State],MATCH(F41,Table1[d_km],0),1)) -> 
A42: =IF(E42="","",VLOOKUP(E42,'Raw Data'!A:D,4,FALSE)) ->  | B42: =IF(E42="","",VLOOKUP(E42,'Facility Emissions'!D:K,8,FALSE)) ->  | C42: =IF(F42="","",INDEX(Table1[CIA Name],MATCH(F42,Table1[d_km],0),1)) ->  | D42: =IF(F42="","",INDEX(Table1[CIA State],MATCH(F42,Table1[d_km],0),1)) -> 
A43: =IF(E43="","",VLOOKUP(E43,'Raw Data'!A:D,4,FALSE)) ->  | B43: =IF(E43="","",VLOOKUP(E43,'Facility Emissions'!D:K,8,FALSE)) ->  | C43: =IF(F43="","",INDEX(Table1[CIA Name],MATCH(F43,Table1[d_km],0),1)) ->  | D43: =IF(F43="","",INDEX(Table1[CIA State],MATCH(F43,Table1[d_km],0),1)) -> 
A44: =IF(E44="","",VLOOKUP(E44,'Raw Data'!A:D,4,FALSE)) ->  | B44: =IF(E44="","",VLOOKUP(E44,'Facility Emissions'!D:K,8,FALSE)) ->  | C44: =IF(F44="","",INDEX(Table1[CIA Name],MATCH(F44,Table1[d_km],0),1)) ->  | D44: =IF(F44="","",INDEX(Table1[CIA State],MATCH(F44,Table1[d_km],0),1)) -> 
A45: =IF(E45="","",VLOOKUP(E45,'Raw Data'!A:D,4,FALSE)) ->  | B45: =IF(E45="","",VLOOKUP(E45,'Facility Emissions'!D:K,8,FALSE)) ->  | C45: =IF(F45="","",INDEX(Table1[CIA Name],MATCH(F45,Table1[d_km],0),1)) ->  | D45: =IF(F45="","",INDEX(Table1[CIA State],MATCH(F45,Table1[d_km],0),1)) -> 
A46: =IF(E46="","",VLOOKUP(E46,'Raw Data'!A:D,4,FALSE)) ->  | B46: =IF(E46="","",VLOOKUP(E46,'Facility Emissions'!D:K,8,FALSE)) ->  | C46: =IF(F46="","",INDEX(Table1[CIA Name],MATCH(F46,Table1[d_km],0),1)) ->  | D46: =IF(F46="","",INDEX(Table1[CIA State],MATCH(F46,Table1[d_km],0),1)) -> 
A47: =IF(E47="","",VLOOKUP(E47,'Raw Data'!A:D,4,FALSE)) ->  | B47: =IF(E47="","",VLOOKUP(E47,'Facility Emissions'!D:K,8,FALSE)) ->  | C47: =IF(F47="","",INDEX(Table1[CIA Name],MATCH(F47,Table1[d_km],0),1)) ->  | D47: =IF(F47="","",INDEX(Table1[CIA State],MATCH(F47,Table1[d_km],0),1)) -> 
A48: =IF(E48="","",VLOOKUP(E48,'Raw Data'!A:D,4,FALSE)) ->  | B48: =IF(E48="","",VLOOKUP(E48,'Facility Emissions'!D:K,8,FALSE)) ->  | C48: =IF(F48="","",INDEX(Table1[CIA Name],MATCH(F48,Table1[d_km],0),1)) ->  | D48: =IF(F48="","",INDEX(Table1[CIA State],MATCH(F48,Table1[d_km],0),1)) -> 
A49: =IF(E49="","",VLOOKUP(E49,'Raw Data'!A:D,4,FALSE)) ->  | B49: =IF(E49="","",VLOOKUP(E49,'Facility Emissions'!D:K,8,FALSE)) ->  | C49: =IF(F49="","",INDEX(Table1[CIA Name],MATCH(F49,Table1[d_km],0),1)) ->  | D49: =IF(F49="","",INDEX(Table1[CIA State],MATCH(F49,Table1[d_km],0),1)) -> 
A50: =IF(E50="","",VLOOKUP(E50,'Raw Data'!A:D,4,FALSE)) ->  | B50: =IF(E50="","",VLOOKUP(E50,'Facility Emissions'!D:K,8,FALSE)) ->  | C50: =IF(F50="","",INDEX(Table1[CIA Name],MATCH(F50,Table1[d_km],0),1)) ->  | D50: =IF(F50="","",INDEX(Table1[CIA State],MATCH(F50,Table1[d_km],0),1)) -> 
A51: =IF(E51="","",VLOOKUP(E51,'Raw Data'!A:D,4,FALSE)) ->  | B51: =IF(E51="","",VLOOKUP(E51,'Facility Emissions'!D:K,8,FALSE)) ->  | C51: =IF(F51="","",INDEX(Table1[CIA Name],MATCH(F51,Table1[d_km],0),1)) ->  | D51: =IF(F51="","",INDEX(Table1[CIA State],MATCH(F51,Table1[d_km],0),1)) -> 
A52: =IF(E52="","",VLOOKUP(E52,'Raw Data'!A:D,4,FALSE)) ->  | B52: =IF(E52="","",VLOOKUP(E52,'Facility Emissions'!D:K,8,FALSE)) ->  | C52: =IF(F52="","",INDEX(Table1[CIA Name],MATCH(F52,Table1[d_km],0),1)) ->  | D52: =IF(F52="","",INDEX(Table1[CIA State],MATCH(F52,Table1[d_km],0),1)) -> 
A53: =IF(E53="","",VLOOKUP(E53,'Raw Data'!A:D,4,FALSE)) ->  | B53: =IF(E53="","",VLOOKUP(E53,'Facility Emissions'!D:K,8,FALSE)) ->  | C53: =IF(F53="","",INDEX(Table1[CIA Name],MATCH(F53,Table1[d_km],0),1)) ->  | D53: =IF(F53="","",INDEX(Table1[CIA State],MATCH(F53,Table1[d_km],0),1)) -> 
A54: =IF(E54="","",VLOOKUP(E54,'Raw Data'!A:D,4,FALSE)) ->  | B54: =IF(E54="","",VLOOKUP(E54,'Facility Emissions'!D:K,8,FALSE)) ->  | C54: =IF(F54="","",INDEX(Table1[CIA Name],MATCH(F54,Table1[d_km],0),1)) ->  | D54: =IF(F54="","",INDEX(Table1[CIA State],MATCH(F54,Table1[d_km],0),1)) -> 
A55: =IF(E55="","",VLOOKUP(E55,'Raw Data'!A:D,4,FALSE)) ->  | B55: =IF(E55="","",VLOOKUP(E55,'Facility Emissions'!D:K,8,FALSE)) ->  | C55: =IF(F55="","",INDEX(Table1[CIA Name],MATCH(F55,Table1[d_km],0),1)) ->  | D55: =IF(F55="","",INDEX(Table1[CIA State],MATCH(F55,Table1[d_km],0),1)) -> 
A56: =IF(E56="","",VLOOKUP(E56,'Raw Data'!A:D,4,FALSE)) ->  | B56: =IF(E56="","",VLOOKUP(E56,'Facility Emissions'!D:K,8,FALSE)) ->  | C56: =IF(F56="","",INDEX(Table1[CIA Name],MATCH(F56,Table1[d_km],0),1)) ->  | D56: =IF(F56="","",INDEX(Table1[CIA State],MATCH(F56,Table1[d_km],0),1)) -> 
A57: =IF(E57="","",VLOOKUP(E57,'Raw Data'!A:D,4,FALSE)) ->  | B57: =IF(E57="","",VLOOKUP(E57,'Facility Emissions'!D:K,8,FALSE)) ->  | C57: =IF(F57="","",INDEX(Table1[CIA Name],MATCH(F57,Table1[d_km],0),1)) ->  | D57: =IF(F57="","",INDEX(Table1[CIA State],MATCH(F57,Table1[d_km],0),1)) -> 
A58: =IF(E58="","",VLOOKUP(E58,'Raw Data'!A:D,4,FALSE)) ->  | B58: =IF(E58="","",VLOOKUP(E58,'Facility Emissions'!D:K,8,FALSE)) ->  | C58: =IF(F58="","",INDEX(Table1[CIA Name],MATCH(F58,Table1[d_km],0),1)) ->  | D58: =IF(F58="","",INDEX(Table1[CIA State],MATCH(F58,Table1[d_km],0),1)) -> 
A59: =IF(E59="","",VLOOKUP(E59,'Raw Data'!A:D,4,FALSE)) ->  | B59: =IF(E59="","",VLOOKUP(E59,'Facility Emissions'!D:K,8,FALSE)) ->  | C59: =IF(F59="","",INDEX(Table1[CIA Name],MATCH(F59,Table1[d_km],0),1)) ->  | D59: =IF(F59="","",INDEX(Table1[CIA State],MATCH(F59,Table1[d_km],0),1)) -> 
A60: =IF(E60="","",VLOOKUP(E60,'Raw Data'!A:D,4,FALSE)) ->  | B60: =IF(E60="","",VLOOKUP(E60,'Facility Emissions'!D:K,8,FALSE)) ->  | C60: =IF(F60="","",INDEX(Table1[CIA Name],MATCH(F60,Table1[d_km],0),1)) ->  | D60: =IF(F60="","",INDEX(Table1[CIA State],MATCH(F60,Table1[d_km],0),1)) -> 
A61: =IF(E61="","",VLOOKUP(E61,'Raw Data'!A:D,4,FALSE)) ->  | B61: =IF(E61="","",VLOOKUP(E61,'Facility Emissions'!D:K,8,FALSE)) ->  | C61: =IF(F61="","",INDEX(Table1[CIA Name],MATCH(F61,Table1[d_km],0),1)) ->  | D61: =IF(F61="","",INDEX(Table1[CIA State],MATCH(F61,Table1[d_km],0),1)) -> 
A62: =IF(E62="","",VLOOKUP(E62,'Raw Data'!A:D,4,FALSE)) ->  | B62: =IF(E62="","",VLOOKUP(E62,'Facility Emissions'!D:K,8,FALSE)) ->  | C62: =IF(F62="","",INDEX(Table1[CIA Name],MATCH(F62,Table1[d_km],0),1)) ->  | D62: =IF(F62="","",INDEX(Table1[CIA State],MATCH(F62,Table1[d_km],0),1)) -> 
A63: =IF(E63="","",VLOOKUP(E63,'Raw Data'!A:D,4,FALSE)) ->  | B63: =IF(E63="","",VLOOKUP(E63,'Facility Emissions'!D:K,8,FALSE)) ->  | C63: =IF(F63="","",INDEX(Table1[CIA Name],MATCH(F63,Table1[d_km],0),1)) ->  | D63: =IF(F63="","",INDEX(Table1[CIA State],MATCH(F63,Table1[d_km],0),1)) -> 
A64: =IF(E64="","",VLOOKUP(E64,'Raw Data'!A:D,4,FALSE)) ->  | B64: =IF(E64="","",VLOOKUP(E64,'Facility Emissions'!D:K,8,FALSE)) ->  | C64: =IF(F64="","",INDEX(Table1[CIA Name],MATCH(F64,Table1[d_km],0),1)) ->  | D64: =IF(F64="","",INDEX(Table1[CIA State],MATCH(F64,Table1[d_km],0),1)) -> 
A65: =IF(E65="","",VLOOKUP(E65,'Raw Data'!A:D,4,FALSE)) ->  | B65: =IF(E65="","",VLOOKUP(E65,'Facility Emissions'!D:K,8,FALSE)) ->  | C65: =IF(F65="","",INDEX(Table1[CIA Name],MATCH(F65,Table1[d_km],0),1)) ->  | D65: =IF(F65="","",INDEX(Table1[CIA State],MATCH(F65,Table1[d_km],0),1)) -> 
A66: =IF(E66="","",VLOOKUP(E66,'Raw Data'!A:D,4,FALSE)) ->  | B66: =IF(E66="","",VLOOKUP(E66,'Facility Emissions'!D:K,8,FALSE)) ->  | C66: =IF(F66="","",INDEX(Table1[CIA Name],MATCH(F66,Table1[d_km],0),1)) ->  | D66: =IF(F66="","",INDEX(Table1[CIA State],MATCH(F66,Table1[d_km],0),1)) -> 
A67: =IF(E67="","",VLOOKUP(E67,'Raw Data'!A:D,4,FALSE)) ->  | B67: =IF(E67="","",VLOOKUP(E67,'Facility Emissions'!D:K,8,FALSE)) ->  | C67: =IF(F67="","",INDEX(Table1[CIA Name],MATCH(F67,Table1[d_km],0),1)) ->  | D67: =IF(F67="","",INDEX(Table1[CIA State],MATCH(F67,Table1[d_km],0),1)) -> 
A68: =IF(E68="","",VLOOKUP(E68,'Raw Data'!A:D,4,FALSE)) ->  | B68: =IF(E68="","",VLOOKUP(E68,'Facility Emissions'!D:K,8,FALSE)) ->  | C68: =IF(F68="","",INDEX(Table1[CIA Name],MATCH(F68,Table1[d_km],0),1)) ->  | D68: =IF(F68="","",INDEX(Table1[CIA State],MATCH(F68,Table1[d_km],0),1)) -> 
A69: =IF(E69="","",VLOOKUP(E69,'Raw Data'!A:D,4,FALSE)) ->  | B69: =IF(E69="","",VLOOKUP(E69,'Facility Emissions'!D:K,8,FALSE)) ->  | C69: =IF(F69="","",INDEX(Table1[CIA Name],MATCH(F69,Table1[d_km],0),1)) ->  | D69: =IF(F69="","",INDEX(Table1[CIA State],MATCH(F69,Table1[d_km],0),1)) -> 
A70: =IF(E70="","",VLOOKUP(E70,'Raw Data'!A:D,4,FALSE)) ->  | B70: =IF(E70="","",VLOOKUP(E70,'Facility Emissions'!D:K,8,FALSE)) ->  | C70: =IF(F70="","",INDEX(Table1[CIA Name],MATCH(F70,Table1[d_km],0),1)) ->  | D70: =IF(F70="","",INDEX(Table1[CIA State],MATCH(F70,Table1[d_km],0),1)) -> 
A71: =IF(E71="","",VLOOKUP(E71,'Raw Data'!A:D,4,FALSE)) ->  | B71: =IF(E71="","",VLOOKUP(E71,'Facility Emissions'!D:K,8,FALSE)) ->  | C71: =IF(F71="","",INDEX(Table1[CIA Name],MATCH(F71,Table1[d_km],0),1)) ->  | D71: =IF(F71="","",INDEX(Table1[CIA State],MATCH(F71,Table1[d_km],0),1)) -> 
A72: =IF(E72="","",VLOOKUP(E72,'Raw Data'!A:D,4,FALSE)) ->  | B72: =IF(E72="","",VLOOKUP(E72,'Facility Emissions'!D:K,8,FALSE)) ->  | C72: =IF(F72="","",INDEX(Table1[CIA Name],MATCH(F72,Table1[d_km],0),1)) ->  | D72: =IF(F72="","",INDEX(Table1[CIA State],MATCH(F72,Table1[d_km],0),1)) -> 
B73: =IF(E73="","",VLOOKUP(E73,'Facility Emissions'!D:K,8,FALSE)) -> 
B74: =IF(E74="","",VLOOKUP(E74,'Facility Emissions'!D:K,8,FALSE)) -> 
B75: =IF(E75="","",VLOOKUP(E75,'Facility Emissions'!D:K,8,FALSE)) -> 
B76: =IF(E76="","",VLOOKUP(E76,'Facility Emissions'!D:K,8,FALSE)) -> 
B77: =IF(E77="","",VLOOKUP(E77,'Facility Emissions'!D:K,8,FALSE)) -> 
B78: =IF(E78="","",VLOOKUP(E78,'Facility Emissions'!D:K,8,FALSE)) -> 
B79: =IF(E79="","",VLOOKUP(E79,'Facility Emissions'!D:K,8,FALSE)) -> 
B80: =IF(E80="","",VLOOKUP(E80,'Facility Emissions'!D:K,8,FALSE)) -> 
B81: =IF(E81="","",VLOOKUP(E81,'Facility Emissions'!D:K,8,FALSE)) -> 
B82: =IF(E82="","",VLOOKUP(E82,'Facility Emissions'!D:K,8,FALSE)) -> 
B83: =IF(E83="","",VLOOKUP(E83,'Facility Emissions'!D:K,8,FALSE)) -> 
B84: =IF(E84="","",VLOOKUP(E84,'Facility Emissions'!D:K,8,FALSE)) -> 
B85: =IF(E85="","",VLOOKUP(E85,'Facility Emissions'!D:K,8,FALSE)) -> 
B86: =IF(E86="","",VLOOKUP(E86,'Facility Emissions'!D:K,8,FALSE)) -> 
B87: =IF(E87="","",VLOOKUP(E87,'Facility Emissions'!D:K,8,FALSE)) -> 
B88: =IF(E88="","",VLOOKUP(E88,'Facility Emissions'!D:K,8,FALSE)) -> 
B89: =IF(E89="","",VLOOKUP(E89,'Facility Emissions'!D:K,8,FALSE)) -> 
B90: =IF(E90="","",VLOOKUP(E90,'Facility Emissions'!D:K,8,FALSE)) -> 
B91: =IF(E91="","",VLOOKUP(E91,'Facility Emissions'!D:K,8,FALSE)) -> 
B92: =IF(E92="","",VLOOKUP(E92,'Facility Emissions'!D:K,8,FALSE)) -> 
B93: =IF(E93="","",VLOOKUP(E93,'Facility Emissions'!D:K,8,FALSE)) -> 
B94: =IF(E94="","",VLOOKUP(E94,'Facility Emissions'!D:K,8,FALSE)) -> 
B95: =IF(E95="","",VLOOKUP(E95,'Facility Emissions'!D:K,8,FALSE)) -> 
B96: =IF(E96="","",VLOOKUP(E96,'Facility Emissions'!D:K,8,FALSE)) -> 
B97: =IF(E97="","",VLOOKUP(E97,'Facility Emissions'!D:K,8,FALSE)) -> 
B98: =IF(E98="","",VLOOKUP(E98,'Facility Emissions'!D:K,8,FALSE)) -> 
B99: =IF(E99="","",VLOOKUP(E99,'Facility Emissions'!D:K,8,FALSE)) -> 
B100: =IF(E100="","",VLOOKUP(E100,'Facility Emissions'!D:K,8,FALSE)) -> 
B101: =IF(E101="","",VLOOKUP(E101,'Facility Emissions'!D:K,8,FALSE)) -> 
B102: =IF(E102="","",VLOOKUP(E102,'Facility Emissions'!D:K,8,FALSE)) -> 
B103: =IF(E103="","",VLOOKUP(E103,'Facility Emissions'!D:K,8,FALSE)) -> 
B104: =IF(E104="","",VLOOKUP(E104,'Facility Emissions'!D:K,8,FALSE)) -> 
B105: =IF(E105="","",VLOOKUP(E105,'Facility Emissions'!D:K,8,FALSE)) -> 
B106: =IF(E106="","",VLOOKUP(E106,'Facility Emissions'!D:K,8,FALSE)) -> 
B107: =IF(E107="","",VLOOKUP(E107,'Facility Emissions'!D:K,8,FALSE)) -> 
B108: =IF(E108="","",VLOOKUP(E108,'Facility Emissions'!D:K,8,FALSE)) -> 
B109: =IF(E109="","",VLOOKUP(E109,'Facility Emissions'!D:K,8,FALSE)) -> 
B110: =IF(E110="","",VLOOKUP(E110,'Facility Emissions'!D:K,8,FALSE)) -> 
B111: =IF(E111="","",VLOOKUP(E111,'Facility Emissions'!D:K,8,FALSE)) -> 
B112: =IF(E112="","",VLOOKUP(E112,'Facility Emissions'!D:K,8,FALSE)) -> 
B113: =IF(E113="","",VLOOKUP(E113,'Facility Emissions'!D:K,8,FALSE)) -> 
B114: =IF(E114="","",VLOOKUP(E114,'Facility Emissions'!D:K,8,FALSE)) -> 
B115: =IF(E115="","",VLOOKUP(E115,'Facility Emissions'!D:K,8,FALSE)) -> 
B116: =IF(E116="","",VLOOKUP(E116,'Facility Emissions'!D:K,8,FALSE)) -> 
B117: =IF(E117="","",VLOOKUP(E117,'Facility Emissions'!D:K,8,FALSE)) -> 
B118: =IF(E118="","",VLOOKUP(E118,'Facility Emissions'!D:K,8,FALSE)) -> 
B119: =IF(E119="","",VLOOKUP(E119,'Facility Emissions'!D:K,8,FALSE)) -> 
B120: =IF(E120="","",VLOOKUP(E120,'Facility Emissions'!D:K,8,FALSE)) -> 
B121: =IF(E121="","",VLOOKUP(E121,'Facility Emissions'!D:K,8,FALSE)) -> 
B122: =IF(E122="","",VLOOKUP(E122,'Facility Emissions'!D:K,8,FALSE)) -> 
B123: =IF(E123="","",VLOOKUP(E123,'Facility Emissions'!D:K,8,FALSE)) -> 
B124: =IF(E124="","",VLOOKUP(E124,'Facility Emissions'!D:K,8,FALSE)) -> 
B125: =IF(E125="","",VLOOKUP(E125,'Facility Emissions'!D:K,8,FALSE)) -> 
B126: =IF(E126="","",VLOOKUP(E126,'Facility Emissions'!D:K,8,FALSE)) -> 
B127: =IF(E127="","",VLOOKUP(E127,'Facility Emissions'!D:K,8,FALSE)) -> 
B128: =IF(E128="","",VLOOKUP(E128,'Facility Emissions'!D:K,8,FALSE)) -> 
B129: =IF(E129="","",VLOOKUP(E129,'Facility Emissions'!D:K,8,FALSE)) -> 
B130: =IF(E130="","",VLOOKUP(E130,'Facility Emissions'!D:K,8,FALSE)) -> 
B131: =IF(E131="","",VLOOKUP(E131,'Facility Emissions'!D:K,8,FALSE)) -> 
B132: =IF(E132="","",VLOOKUP(E132,'Facility Emissions'!D:K,8,FALSE)) -> 
B133: =IF(E133="","",VLOOKUP(E133,'Facility Emissions'!D:K,8,FALSE)) -> 
B134: =IF(E134="","",VLOOKUP(E134,'Facility Emissions'!D:K,8,FALSE)) -> 
B135: =IF(E135="","",VLOOKUP(E135,'Facility Emissions'!D:K,8,FALSE)) -> 
B136: =IF(E136="","",VLOOKUP(E136,'Facility Emissions'!D:K,8,FALSE)) -> 
B137: =IF(E137="","",VLOOKUP(E137,'Facility Emissions'!D:K,8,FALSE)) -> 
B138: =IF(E138="","",VLOOKUP(E138,'Facility Emissions'!D:K,8,FALSE)) -> 
B139: =IF(E139="","",VLOOKUP(E139,'Facility Emissions'!D:K,8,FALSE)) -> 
B140: =IF(E140="","",VLOOKUP(E140,'Facility Emissions'!D:K,8,FALSE)) -> 
B141: =IF(E141="","",VLOOKUP(E141,'Facility Emissions'!D:K,8,FALSE)) -> 
B142: =IF(E142="","",VLOOKUP(E142,'Facility Emissions'!D:K,8,FALSE)) -> 
B143: =IF(E143="","",VLOOKUP(E143,'Facility Emissions'!D:K,8,FALSE)) -> 
B144: =IF(E144="","",VLOOKUP(E144,'Facility Emissions'!D:K,8,FALSE)) -> 
B145: =IF(E145="","",VLOOKUP(E145,'Facility Emissions'!D:K,8,FALSE)) -> 
B146: =IF(E146="","",VLOOKUP(E146,'Facility Emissions'!D:K,8,FALSE)) -> 
B147: =IF(E147="","",VLOOKUP(E147,'Facility Emissions'!D:K,8,FALSE)) -> 
B148: =IF(E148="","",VLOOKUP(E148,'Facility Emissions'!D:K,8,FALSE)) -> 
B149: =IF(E149="","",VLOOKUP(E149,'Facility Emissions'!D:K,8,FALSE)) -> 
B150: =IF(E150="","",VLOOKUP(E150,'Facility Emissions'!D:K,8,FALSE)) -> 
B151: =IF(E151="","",VLOOKUP(E151,'Facility Emissions'!D:K,8,FALSE)) -> 
B152: =IF(E152="","",VLOOKUP(E152,'Facility Emissions'!D:K,8,FALSE)) -> 
B153: =IF(E153="","",VLOOKUP(E153,'Facility Emissions'!D:K,8,FALSE)) -> 
B154: =IF(E154="","",VLOOKUP(E154,'Facility Emissions'!D:K,8,FALSE)) -> 
B155: =IF(E155="","",VLOOKUP(E155,'Facility Emissions'!D:K,8,FALSE)) -> 
B156: =IF(E156="","",VLOOKUP(E156,'Facility Emissions'!D:K,8,FALSE)) -> 
B157: =IF(E157="","",VLOOKUP(E157,'Facility Emissions'!D:K,8,FALSE)) -> 
B158: =IF(E158="","",VLOOKUP(E158,'Facility Emissions'!D:K,8,FALSE)) -> 
B159: =IF(E159="","",VLOOKUP(E159,'Facility Emissions'!D:K,8,FALSE)) -> 
B160: =IF(E160="","",VLOOKUP(E160,'Facility Emissions'!D:K,8,FALSE)) -> 
B161: =IF(E161="","",VLOOKUP(E161,'Facility Emissions'!D:K,8,FALSE)) -> 
B162: =IF(E162="","",VLOOKUP(E162,'Facility Emissions'!D:K,8,FALSE)) -> 
B163: =IF(E163="","",VLOOKUP(E163,'Facility Emissions'!D:K,8,FALSE)) -> 
B164: =IF(E164="","",VLOOKUP(E164,'Facility Emissions'!D:K,8,FALSE)) -> 
B165: =IF(E165="","",VLOOKUP(E165,'Facility Emissions'!D:K,8,FALSE)) -> 
B166: =IF(E166="","",VLOOKUP(E166,'Facility Emissions'!D:K,8,FALSE)) -> 
B167: =IF(E167="","",VLOOKUP(E167,'Facility Emissions'!D:K,8,FALSE)) -> 
B168: =IF(E168="","",VLOOKUP(E168,'Facility Emissions'!D:K,8,FALSE)) -> 
B169: =IF(E169="","",VLOOKUP(E169,'Facility Emissions'!D:K,8,FALSE)) -> 
B170: =IF(E170="","",VLOOKUP(E170,'Facility Emissions'!D:K,8,FALSE)) -> 
B171: =IF(E171="","",VLOOKUP(E171,'Facility Emissions'!D:K,8,FALSE)) -> 
B172: =IF(E172="","",VLOOKUP(E172,'Facility Emissions'!D:K,8,FALSE)) -> 
B173: =IF(E173="","",VLOOKUP(E173,'Facility Emissions'!D:K,8,FALSE)) -> 
B174: =IF(E174="","",VLOOKUP(E174,'Facility Emissions'!D:K,8,FALSE)) -> 

Sheet Q-D Summary
A17: Facility State | B17: Facility Name | C17: Facility ID | D17: Distance to CIA (km) | E17: Q/D Value (tpy/km) | I17: Q (tpy) | M17: Other Pollutants (tpy)
E18: NOX+SO2+PM10 | F18: NOX | G18: SO2 | H18: PM10 | I18: NOX+SO2+PM10 | J18: NOX | K18: SO2 | L18: PM10 | M18: NH3 | N18: VOC
C20: Facility State | D20: (All)
C21: CIA Name | D21: Agua Tibia Wilderness
C22: CIA State | D22: (All)
C23: AbvThresh_Q/d | D23: Yes
C25: Row Labels | D25: Sum of d_km | E25: Sum of Q/d | F25: Sum of Q/d_NOx | G25: Sum of Q/d_SO2 | H25: Sum of Q/d_PM10 | I25: Sum of Q_all_tpy | J25: Sum of Q_NOx_tpy | K25: Sum of Q_SO2_tpy | L25: Sum of Q_PM10_tpy | M25: Sum of NH3_tpy | N25: Sum of VOC_tpy
A26: =IF(C26="","",VLOOKUP(C26,'Raw Data'!A:D,4,FALSE)) -> CA | B26: =IF(C26="","",VLOOKUP(C26,'Facility Emissions'!D:K,8,FALSE)) -> Magtftc Mcagcc Twentynine Palms | C26: 4921511 | D26: 133.9540853 | E26: 57.76833452 | F26: 3.512479264 | G26: 0.3579379065 | H26: 53.89791735 | I26: 7738.304408 | J26: 470.5109469 | K26: 47.94724485 | L26: 7219.846217 | M26: 1.246627043 | N26: 87.6870108
A27: =IF(C27="","",VLOOKUP(C27,'Raw Data'!A:D,4,FALSE)) -> CA | B27: =IF(C27="","",VLOOKUP(C27,'Facility Emissions'!D:K,8,FALSE)) -> Robertsons Ready Mix / Palmdal | C27: 15995211 | D27: 152.0117486 | E27: 17.40165458 | F27: 0 | G27: 0 | H27: 17.40165458 | I27: 2645.25594 | J27: 0 | K27: 0 | L27: 2645.25594 | M27: 0 | N27: 14.1054198
A28: =IF(C28="","",VLOOKUP(C28,'Raw Data'!A:D,4,FALSE)) -> CA | B28: =IF(C28="","",VLOOKUP(C28,'Facility Emissions'!D:K,8,FALSE)) -> Tetra Technologies, Inc. - Amb | C28: 15779711 | D28: 170.0911022 | E28: 12.42002487 | F28: 0.1150521676 | G28: 0.006307710905 | H28: 12.29866499 | I28: 2112.53572 | J28: 19.56935 | K28: 1.0728855 | L28: 2091.893484 | M28: 0.01635 | N28: 1.6678468
A29: =IF(C29="","",VLOOKUP(C29,'Raw Data'!A:D,4,FALSE)) -> CA | B29: =IF(C29="","",VLOOKUP(C29,'Facility Emissions'!D:K,8,FALSE)) -> Us Army National Training Ctr. | C29: 706411 | D29: 201.3959234 | E29: 11.57332968 | F29: 6.316650163 | G29: 0.1490195834 | H29: 5.107659931 | I29: 2330.821417 | J29: 1272.147592 | K29: 30.01193659 | L29: 1028.661888 | M29: 0.304742307 | N29: 128.4903066
A30: =IF(C30="","",VLOOKUP(C30,'Raw Data'!A:D,4,FALSE)) -> CA | B30: =IF(C30="","",VLOOKUP(C30,'Facility Emissions'!D:K,8,FALSE)) -> Riverside Cement Company | C30: 4785311 | D30: 130.3950353 | E30: 17.23325116 | F30: 12.41204574 | G30: 0.2117367948 | H30: 4.609468635 | I30: 2247.130394 | J30: 1618.469142 | K30: 27.60942684 | L30: 601.0518255 | M30: 0 | N30: 10.07488293
A31: =IF(C31="","",VLOOKUP(C31,'Raw Data'!A:D,4,FALSE)) -> CA | B31: =IF(C31="","",VLOOKUP(C31,'Facility Emissions'!D:K,8,FALSE)) -> Cemex - Black Mountain Quarry | C31: 4841311 | D31: 129.510248 | E31: 22.29720079 | F31: 17.99254864 | G31: 0.4841259953 | H31: 3.820526162 | I31: 2887.716004 | J31: 2330.219436 | K31: 62.6992777 | L31: 494.7972906 | M31: 13.3948042 | N31: 103.3441072
A32: =IF(C32="","",VLOOKUP(C32,'Raw Data'!A:D,4,FALSE)) -> CA | B32: =IF(C32="","",VLOOKUP(C32,'Facility Emissions'!D:K,8,FALSE)) -> Mitsubishi Cement 2015 | C32: 4921411 | D32: 110.56906 | E32: 23.69762738 | F32: 17.8942584 | G32: 2.234650956 | H32: 3.568718029 | I32: 2620.224383 | J32: 1978.55133 | K32: 247.0832556 | L32: 394.5897978 | M32: 0 | N32: 49.35703429
A33: =IF(C33="","",VLOOKUP(C33,'Raw Data'!A:D,4,FALSE)) -> CA | B33: =IF(C33="","",VLOOKUP(C33,'Facility Emissions'!D:K,8,FALSE)) -> Exxonmobil Oil Corporation | C33: 5786211 | D33: 127.7184779 | E33: 12.45254032 | F33: 6.302343117 | G33: 2.895398036 | H33: 3.254799172 | I33: 1590.419496 | J33: 804.92567 | K33: 369.79583 | L33: 415.697996 | M33: 56.03779709 | N33: 543.7017874
A34: =IF(C34="","",VLOOKUP(C34,'Raw Data'!A:D,4,FALSE)) -> CA | B34: =IF(C34="","",VLOOKUP(C34,'Facility Emissions'!D:K,8,FALSE)) -> Tesoro Refining & Marketing Co, Llc | C34: 4073511 | D34: 118.0342507 | E34: 10.9214136 | F34: 5.701310901 | G34: 2.75280165 | H34: 2.467301047 | I34: 1289.10087 | J34: 672.94996 | K34: 324.92488 | L34: 291.2260302 | M34: 220.5309512 | N34: 449.3976682
A35: =IF(C35="","",VLOOKUP(C35,'Raw Data'!A:D,4,FALSE)) -> CA | B35: =IF(C35="","",VLOOKUP(C35,'Facility Emissions'!D:K,8,FALSE)) -> Los Angeles Int Airport | C35: 2255111 | D35: 138.0263638 | E35: 45.94129711 | F35: 41.13539266 | G35: 4.050199755 | H35: 0.7557046836 | I35: 6341.110189 | J35: 5677.768674 | K35: 559.034345 | L35: 104.3071696 | M35: 0 | N35: 764.3789299
A36: =IF(C36="","",VLOOKUP(C36,'Raw Data'!A:D,4,FALSE)) -> CA | B36: =IF(C36="","",VLOOKUP(C36,'Facility Emissions'!D:K,8,FALSE)) -> San Diego Intl-Lindberg | C36: 10086111 | D36: 74.26926179 | E36: 17.57139557 | F36: 15.52863997 | G36: 1.705372148 | H36: 0.3373834615 | I36: 1305.014578 | J36: 1153.300627 | K36: 126.6567305 | L36: 25.05722063 | M36: 0 | N36: 174.3897926
A37: =IF(C37="","",VLOOKUP(C37,'Raw Data'!A:D,4,FALSE)) -> CA | B37: =IF(C37="","",VLOOKUP(C37,'Facility Emissions'!D:K,8,FALSE)) -> Av Ranchos Water - Well #4 | C37: 17239511 | D37: 115.9703755 | E37: 10.88446432 | F37: 10.8814572 | G37: 0.00289729518 | H37: 0.0001098243663 | I37: 1262.275414 | J37: 1261.926678 | K37: 0.33600041 | L37: 0.012736373 | M37: 0 | N37: 16.9029335
A38: =IF(C38="","",VLOOKUP(C38,'Raw Data'!A:D,4,FALSE)) ->  | B38: =IF(C38="","",VLOOKUP(C38,'Facility Emissions'!D:K,8,FALSE)) -> 
A39: =IF(C39="","",VLOOKUP(C39,'Raw Data'!A:D,4,FALSE)) ->  | B39: =IF(C39="","",VLOOKUP(C39,'Facility Emissions'!D:K,8,FALSE)) -> 
A40: =IF(C40="","",VLOOKUP(C40,'Raw Data'!A:D,4,FALSE)) ->  | B40: =IF(C40="","",VLOOKUP(C40,'Facility Emissions'!D:K,8,FALSE)) -> 
A41: =IF(C41="","",VLOOKUP(C41,'Raw Data'!A:D,4,FALSE)) ->  | B41: =IF(C41="","",VLOOKUP(C41,'Facility Emissions'!D:K,8,FALSE)) -> 
A42: =IF(C42="","",VLOOKUP(C42,'Raw Data'!A:D,4,FALSE)) ->  | B42: =IF(C42="","",VLOOKUP(C42,'Facility Emissions'!D:K,8,FALSE)) -> 
A43: =IF(C43="","",VLOOKUP(C43,'Raw Data'!A:D,4,FALSE)) ->  | B43: =IF(C43="","",VLOOKUP(C43,'Facility Emissions'!D:K,8,FALSE)) -> 
A44: =IF(C44="","",VLOOKUP(C44,'Raw Data'!A:D,4,FALSE)) ->  | B44: =IF(C44="","",VLOOKUP(C44,'Facility Emissions'!D:K,8,FALSE)) -> 
A45: =IF(C45="","",VLOOKUP(C45,'Raw Data'!A:D,4,FALSE)) ->  | B45: =IF(C45="","",VLOOKUP(C45,'Facility Emissions'!D:K,8,FALSE)) -> 
A46: =IF(C46="","",VLOOKUP(C46,'Raw Data'!A:D,4,FALSE)) ->  | B46: =IF(C46="","",VLOOKUP(C46,'Facility Emissions'!D:K,8,FALSE)) -> 
A47: =IF(C47="","",VLOOKUP(C47,'Raw Data'!A:D,4,FALSE)) ->  | B47: =IF(C47="","",VLOOKUP(C47,'Facility Emissions'!D:K,8,FALSE)) -> 
A48: =IF(C48="","",VLOOKUP(C48,'Raw Data'!A:D,4,FALSE)) ->  | B48: =IF(C48="","",VLOOKUP(C48,'Facility Emissions'!D:K,8,FALSE)) -> 
A49: =IF(C49="","",VLOOKUP(C49,'Raw Data'!A:D,4,FALSE)) ->  | B49: =IF(C49="","",VLOOKUP(C49,'Facility Emissions'!D:K,8,FALSE)) -> 
A50: =IF(C50="","",VLOOKUP(C50,'Raw Data'!A:D,4,FALSE)) ->  | B50: =IF(C50="","",VLOOKUP(C50,'Facility Emissions'!D:K,8,FALSE)) -> 
A51: =IF(C51="","",VLOOKUP(C51,'Raw Data'!A:D,4,FALSE)) ->  | B51: =IF(C51="","",VLOOKUP(C51,'Facility Emissions'!D:K,8,FALSE)) -> 
A52: =IF(C52="","",VLOOKUP(C52,'Raw Data'!A:D,4,FALSE)) ->  | B52: =IF(C52="","",VLOOKUP(C52,'Facility Emissions'!D:K,8,FALSE)) -> 
A53: =IF(C53="","",VLOOKUP(C53,'Raw Data'!A:D,4,FALSE)) ->  | B53: =IF(C53="","",VLOOKUP(C53,'Facility Emissions'!D:K,8,FALSE)) -> 
A54: =IF(C54="","",VLOOKUP(C54,'Raw Data'!A:D,4,FALSE)) ->  | B54: =IF(C54="","",VLOOKUP(C54,'Facility Emissions'!D:K,8,FALSE)) -> 
A55: =IF(C55="","",VLOOKUP(C55,'Raw Data'!A:D,4,FALSE)) ->  | B55: =IF(C55="","",VLOOKUP(C55,'Facility Emissions'!D:K,8,FALSE)) -> 
A56: =IF(C56="","",VLOOKUP(C56,'Raw Data'!A:D,4,FALSE)) ->  | B56: =IF(C56="","",VLOOKUP(C56,'Facility Emissions'!D:K,8,FALSE)) -> 
A57: =IF(C57="","",VLOOKUP(C57,'Raw Data'!A:D,4,FALSE)) ->  | B57: =IF(C57="","",VLOOKUP(C57,'Facility Emissions'!D:K,8,FALSE)) -> 
B58: =IF(C58="","",VLOOKUP(C58,'Facility Emissions'!D:K,8,FALSE)) -> 
B59: =IF(C59="","",VLOOKUP(C59,'Facility Emissions'!D:K,8,FALSE)) -> 
B60: =IF(C60="","",VLOOKUP(C60,'Facility Emissions'!D:K,8,FALSE)) -> 
B61: =IF(C61="","",VLOOKUP(C61,'Facility Emissions'!D:K,8,FALSE)) -> 
B62: =IF(C62="","",VLOOKUP(C62,'Facility Emissions'!D:K,8,FALSE)) -> 
B63: =IF(C63="","",VLOOKUP(C63,'Facility Emissions'!D:K,8,FALSE)) -> 
B64: =IF(C64="","",VLOOKUP(C64,'Facility Emissions'!D:K,8,FALSE)) -> 
B65: =IF(C65="","",VLOOKUP(C65,'Facility Emissions'!D:K,8,FALSE)) -> 
B66: =IF(C66="","",VLOOKUP(C66,'Facility Emissions'!D:K,8,FALSE)) -> 
B67: =IF(C67="","",VLOOKUP(C67,'Facility Emissions'!D:K,8,FALSE)) -> 
B68: =IF(C68="","",VLOOKUP(C68,'Facility Emissions'!D:K,8,FALSE)) -> 
B69: =IF(C69="","",VLOOKUP(C69,'Facility Emissions'!D:K,8,FALSE)) -> 
B70: =IF(C70="","",VLOOKUP(C70,'Facility Emissions'!D:K,8,FALSE)) -> 
B71: =IF(C71="","",VLOOKUP(C71,'Facility Emissions'!D:K,8,FALSE)) -> 
B72: =IF(C72="","",VLOOKUP(C72,'Facility Emissions'!D:K,8,FALSE)) -> 
B73: =IF(C73="","",VLOOKUP(C73,'Facility Emissions'!D:K,8,FALSE)) -> 
B74: =IF(C74="","",VLOOKUP(C74,'Facility Emissions'!D:K,8,FALSE)) -> 
B75: =IF(C75="","",VLOOKUP(C75,'Facility Emissions'!D:K,8,FALSE)) -> 
B76: =IF(C76="","",VLOOKUP(C76,'Facility Emissions'!D:K,8,FALSE)) -> 
B77: =IF(C77="","",VLOOKUP(C77,'Facility Emissions'!D:K,8,FALSE)) -> 
B78: =IF(C78="","",VLOOKUP(C78,'Facility Emissions'!D:K,8,FALSE)) -> 
B79: =IF(C79="","",VLOOKUP(C79,'Facility Emissions'!D:K,8,FALSE)) -> 
B80: =IF(C80="","",VLOOKUP(C80,'Facility Emissions'!D:K,8,FALSE)) -> 
B81: =IF(C81="","",VLOOKUP(C81,'Facility Emissions'!D:K,8,FALSE)) -> 
B82: =IF(C82="","",VLOOKUP(C82,'Facility Emissions'!D:K,8,FALSE)) -> 
B83: =IF(C83="","",VLOOKUP(C83,'Facility Emissions'!D:K,8,FALSE)) -> 
B84: =IF(C84="","",VLOOKUP(C84,'Facility Emissions'!D:K,8,FALSE)) -> 
B85: =IF(C85="","",VLOOKUP(C85,'Facility Emissions'!D:K,8,FALSE)) -> 
B86: =IF(C86="","",VLOOKUP(C86,'Facility Emissions'!D:K,8,FALSE)) -> 
B87: =IF(C87="","",VLOOKUP(C87,'Facility Emissions'!D:K,8,FALSE)) -> 
B88: =IF(C88="","",VLOOKUP(C88,'Facility Emissions'!D:K,8,FALSE)) -> 
B89: =IF(C89="","",VLOOKUP(C89,'Facility Emissions'!D:K,8,FALSE)) -> 
B90: =IF(C90="","",VLOOKUP(C90,'Facility Emissions'!D:K,8,FALSE)) -> 
B91: =IF(C91="","",VLOOKUP(C91,'Facility Emissions'!D:K,8,FALSE)) -> 
B92: =IF(C92="","",VLOOKUP(C92,'Facility Emissions'!D:K,8,FALSE)) -> 
B93: =IF(C93="","",VLOOKUP(C93,'Facility Emissions'!D:K,8,FALSE)) -> 
B94: =IF(C94="","",VLOOKUP(C94,'Facility Emissions'!D:K,8,FALSE)) -> 
B95: =IF(C95="","",VLOOKUP(C95,'Facility Emissions'!D:K,8,FALSE)) -> 
B96: =IF(C96="","",VLOOKUP(C96,'Facility Emissions'!D:K,8,FALSE)) -> 
B97: =IF(C97="","",VLOOKUP(C97,'Facility Emissions'!D:K,8,FALSE)) -> 
B98: =IF(C98="","",VLOOKUP(C98,'Facility Emissions'!D:K,8,FALSE)) -> 
B99: =IF(C99="","",VLOOKUP(C99,'Facility Emissions'!D:K,8,FALSE)) -> 
B100: =IF(C100="","",VLOOKUP(C100,'Facility Emissions'!D:K,8,FALSE)) -> 
B101: =IF(C101="","",VLOOKUP(C101,'Facility Emissions'!D:K,8,FALSE)) -> 
B102: =IF(C102="","",VLOOKUP(C102,'Facility Emissions'!D:K,8,FALSE)) -> 
B103: =IF(C103="","",VLOOKUP(C103,'Facility Emissions'!D:K,8,FALSE)) -> 
B104: =IF(C104="","",VLOOKUP(C104,'Facility Emissions'!D:K,8,FALSE)) -> 
B105: =IF(C105="","",VLOOKUP(C105,'Facility Emissions'!D:K,8,FALSE)) -> 
B106: =IF(C106="","",VLOOKUP(C106,'Facility Emissions'!D:K,8,FALSE)) -> 
B107: =IF(C107="","",VLOOKUP(C107,'Facility Emissions'!D:K,8,FALSE)) -> 
B108: =IF(C108="","",VLOOKUP(C108,'Facility Emissions'!D:K,8,FALSE)) -> 
B109: =IF(C109="","",VLOOKUP(C109,'Facility Emissions'!D:K,8,FALSE)) -> 
B110: =IF(C110="","",VLOOKUP(C110,'Facility Emissions'!D:K,8,FALSE)) -> 
B111: =IF(C111="","",VLOOKUP(C111,'Facility Emissions'!D:K,8,FALSE)) -> 
B112: =IF(C112="","",VLOOKUP(C112,'Facility Emissions'!D:K,8,FALSE)) -> 
B113: =IF(C113="","",VLOOKUP(C113,'Facility Emissions'!D:K,8,FALSE)) -> 
B114: =IF(C114="","",VLOOKUP(C114,'Facility Emissions'!D:K,8,FALSE)) -> 
B115: =IF(C115="","",VLOOKUP(C115,'Facility Emissions'!D:K,8,FALSE)) -> 
B116: =IF(C116="","",VLOOKUP(C116,'Facility Emissions'!D:K,8,FALSE)) -> 
B117: =IF(C117="","",VLOOKUP(C117,'Facility Emissions'!D:K,8,FALSE)) -> 
B118: =IF(C118="","",VLOOKUP(C118,'Facility Emissions'!D:K,8,FALSE)) -> 
B119: =IF(C119="","",VLOOKUP(C119,'Facility Emissions'!D:K,8,FALSE)) -> 
B120: =IF(C120="","",VLOOKUP(C120,'Facility Emissions'!D:K,8,FALSE)) -> 
B121: =IF(C121="","",VLOOKUP(C121,'Facility Emissions'!D:K,8,FALSE)) -> 
B122: =IF(C122="","",VLOOKUP(C122,'Facility Emissions'!D:K,8,FALSE)) -> 
B123: =IF(C123="","",VLOOKUP(C123,'Facility Emissions'!D:K,8,FALSE)) -> 
B124: =IF(C124="","",VLOOKUP(C124,'Facility Emissions'!D:K,8,FALSE)) -> 
B125: =IF(C125="","",VLOOKUP(C125,'Facility Emissions'!D:K,8,FALSE)) -> 
B126: =IF(C126="","",VLOOKUP(C126,'Facility Emissions'!D:K,8,FALSE)) -> 
B127: =IF(C127="","",VLOOKUP(C127,'Facility Emissions'!D:K,8,FALSE)) -> 
B128: =IF(C128="","",VLOOKUP(C128,'Facility Emissions'!D:K,8,FALSE)) -> 
B129: =IF(C129="","",VLOOKUP(C129,'Facility Emissions'!D:K,8,FALSE)) -> 
B130: =IF(C130="","",VLOOKUP(C130,'Facility Emissions'!D:K,8,FALSE)) -> 
B131: =IF(C131="","",VLOOKUP(C131,'Facility Emissions'!D:K,8,FALSE)) -> 
B132: =IF(C132="","",VLOOKUP(C132,'Facility Emissions'!D:K,8,FALSE)) -> 
B133: =IF(C133="","",VLOOKUP(C133,'Facility Emissions'!D:K,8,FALSE)) -> 
B134: =IF(C134="","",VLOOKUP(C134,'Facility Emissions'!D:K,8,FALSE)) -> 
B135: =IF(C135="","",VLOOKUP(C135,'Facility Emissions'!D:K,8,FALSE)) -> 
B136: =IF(C136="","",VLOOKUP(C136,'Facility Emissions'!D:K,8,FALSE)) -> 
B137: =IF(C137="","",VLOOKUP(C137,'Facility Emissions'!D:K,8,FALSE)) -> 
B138: =IF(C138="","",VLOOKUP(C138,'Facility Emissions'!D:K,8,FALSE)) -> 
B139: =IF(C139="","",VLOOKUP(C139,'Facility Emissions'!D:K,8,FALSE)) -> 
B140: =IF(C140="","",VLOOKUP(C140,'Facility Emissions'!D:K,8,FALSE)) -> 
B141: =IF(C141="","",VLOOKUP(C141,'Facility Emissions'!D:K,8,FALSE)) -> 
B142: =IF(C142="","",VLOOKUP(C142,'Facility Emissions'!D:K,8,FALSE)) -> 
B143: =IF(C143="","",VLOOKUP(C143,'Facility Emissions'!D:K,8,FALSE)) -> 
B144: =IF(C144="","",VLOOKUP(C144,'Facility Emissions'!D:K,8,FALSE)) -> 
B145: =IF(C145="","",VLOOKUP(C145,'Facility Emissions'!D:K,8,FALSE)) -> 
B146: =IF(C146="","",VLOOKUP(C146,'Facility Emissions'!D:K,8,FALSE)) -> 
B147: =IF(C147="","",VLOOKUP(C147,'Facility Emissions'!D:K,8,FALSE)) -> 
B148: =IF(C148="","",VLOOKUP(C148,'Facility Emissions'!D:K,8,FALSE)) -> 
B149: =IF(C149="","",VLOOKUP(C149,'Facility Emissions'!D:K,8,FALSE)) -> 
B150: =IF(C150="","",VLOOKUP(C150,'Facility Emissions'!D:K,8,FALSE)) -> 
B151: =IF(C151="","",VLOOKUP(C151,'Facility Emissions'!D:K,8,FALSE)) -> 
B152: =IF(C152="","",VLOOKUP(C152,'Facility Emissions'!D:K,8,FALSE)) -> 
B153: =IF(C153="","",VLOOKUP(C153,'Facility Emissions'!D:K,8,FALSE)) -> 
B154: =IF(C154="","",VLOOKUP(C154,'Facility Emissions'!D:K,8,FALSE)) -> 
B155: =IF(C155="","",VLOOKUP(C155,'Facility Emissions'!D:K,8,FALSE)) -> 
B156: =IF(C156="","",VLOOKUP(C156,'Facility Emissions'!D:K,8,FALSE)) -> 
B157: =IF(C157="","",VLOOKUP(C157,'Facility Emissions'!D:K,8,FALSE)) -> 
B158: =IF(C158="","",VLOOKUP(C158,'Facility Emissions'!D:K,8,FALSE)) -> 
B159: =IF(C159="","",VLOOKUP(C159,'Facility Emissions'!D:K,8,FALSE)) -> 
B160: =IF(C160="","",VLOOKUP(C160,'Facility Emissions'!D:K,8,FALSE)) -> 
B161: =IF(C161="","",VLOOKUP(C161,'Facility Emissions'!D:K,8,FALSE)) -> 
B162: =IF(C162="","",VLOOKUP(C162,'Facility Emissions'!D:K,8,FALSE)) -> 
B163: =IF(C163="","",VLOOKUP(C163,'Facility Emissions'!D:K,8,FALSE)) -> 
B164: =IF(C164="","",VLOOKUP(C164,'Facility Emissions'!D:K,8,FALSE)) -> 
B165: =IF(C165="","",VLOOKUP(C165,'Facility Emissions'!D:K,8,FALSE)) -> 
B166: =IF(C166="","",VLOOKUP(C166,'Facility Emissions'!D:K,8,FALSE)) -> 
B167: =IF(C167="","",VLOOKUP(C167,'Facility Emissions'!D:K,8,FALSE)) -> 
B168: =IF(C168="","",VLOOKUP(C168,'Facility Emissions'!D:K,8,FALSE)) -> 
B169: =IF(C169="","",VLOOKUP(C169,'Facility Emissions'!D:K,8,FALSE)) -> 
B170: =IF(C170="","",VLOOKUP(C170,'Facility Emissions'!D:K,8,FALSE)) -> 
B171: =IF(C171="","",VLOOKUP(C171,'Facility Emissions'!D:K,8,FALSE)) -> 
B172: =IF(C172="","",VLOOKUP(C172,'Facility Emissions'!D:K,8,FALSE)) -> 
B173: =IF(C173="","",VLOOKUP(C173,'Facility Emissions'!D:K,8,FALSE)) -> 
B174: =IF(C174="","",VLOOKUP(C174,'Facility Emissions'!D:K,8,FALSE)) -> 

Sheet Q-D CIA Selection (hidden)
B2: Order in List | C2: Class I Area Name
B3: 1 | C3: =INDEX(ListofCIA!$A$4:$A$136,B3,1) -> Agua Tibia Wilderness
B5: 1 | C5: =INDEX(ListofCIA!$E$4:$E$27,B5,1) -> AK

Sheet Captured Q-D
B1: ='Sum of Captured Q-D'!B10 -> Sum of Q/d | C1: ='Sum of Captured Q-D'!C10 -> Sum of Q/d_NOx | D1: ='Sum of Captured Q-D'!D10 -> Sum of Q/d_SO2 | E1: ='Sum of Captured Q-D'!E10 -> Sum of Q/d_PM10
A3: CIA Name | B3: Percent of Q/D Above Threshold
B4: NOX+SO2+PM10 | C4: NOX | D4: SO2 | E4: PM10
A6: Facility State | B6: (All)
A7: CIA State | B7: (All)
A8: AbvThresh_Q/d | B8: (All)
A10: Row Labels
A11: Agua Tibia Wilderness | B11: =IF(A11="","",IF($A11="Grand Total",GETPIVOTDATA(TEXT(B$1,""),'Sum of Captured Q-D'!$A$10)/GETPIVOTDATA(TEXT(B$1,""),'Sum of Q-D'!$A$10),IFERROR(GETPIVOTDATA(TEXT(B$1,""),'Sum of Captured Q-D'!$A$10,"CIA Name",$A11)/GETPIVOTDATA(TEXT(B$1,""),'Sum of Q-D'!$A$10,"CIA Name",$A11),0))) -> 0.4668885696 | C11: =IF(B11="","",IF($A11="Grand Total",GETPIVOTDATA(TEXT(C$1,""),'Sum of Captured Q-D'!$A$10)/GETPIVOTDATA(TEXT(C$1,""),'Sum of Q-D'!$A$10),IFERROR(GETPIVOTDATA(TEXT(C$1,""),'Sum of Captured Q-D'!$A$10,"CIA Name",$A11)/GETPIVOTDATA(TEXT(C$1,""),'Sum of Q-D'!$A$10,"CIA Name",$A11),0))) -> 0.4423269753 | D11: =IF(C11="","",IF($A11="Grand Total",GETPIVOTDATA(TEXT(D$1,""),'Sum of Captured Q-D'!$A$10)/GETPIVOTDATA(TEXT(D$1,""),'Sum of Q-D'!$A$10),IFERROR(GETPIVOTDATA(TEXT(D$1,""),'Sum of Captured Q-D'!$A$10,"CIA Name",$A11)/GETPIVOTDATA(TEXT(D$1,""),'Sum of Q-D'!$A$10,"CIA Name",$A11),0))) -> 0.3213610517 | E11: =IF(D11="","",IF($A11="Grand Total",GETPIVOTDATA(TEXT(E$1,""),'Sum of Captured Q-D'!$A$10)/GETPIVOTDATA(TEXT(E$1,""),'Sum of Q-D'!$A$10),IFERROR(GETPIVOTDATA(TEXT(E$1,""),'Sum of Captured Q-D'!$A$10,"CIA Name",$A11)/GETPIVOTDATA(TEXT(E$1,""),'Sum of Q-D'!$A$10,"CIA Name",$A11),0))) -> 0.5389509102
A12: Alpine Lakes Wilderness | B12: =IF(A12="","",IF($A12="Grand Total",GETPIVOTDATA(TEXT(B$1,""),'Sum of Captured Q-D'!$A$10)/GETPIVOTDATA(TEXT(B$1,""),'Sum of Q-D'!$A$10),IFERROR(GETPIVOTDATA(TEXT(B$1,""),'Sum of Captured Q-D'!$A$10,"CIA Name",$A12)/GETPIVOTDATA(TEXT(B$1,""),'Sum of Q-D'!$A$10,"CIA Name",$A12),0))) -> 0.7015632167 | C12: =IF(B12="","",IF($A12="Grand Total",GETPIVOTDATA(TEXT(C$1,""),'Sum of Captured Q-D'!$A$10)/GETPIVOTDATA(TEXT(C$1,""),'Sum of Q-D'!$A$10),IFERROR(GETPIVOTDATA(TEXT(C$1,""),'Sum of Captured Q-D'!$A$10,"CIA Name",$A12)/GETPIVOTDATA(TEXT(C$1,""),'Sum of Q-D'!$A$10,"CIA Name",$A12),0))) -> 0.630681602 | D12: =IF(C12="","",IF($A12="Grand Total",GETPIVOTDATA(TEXT(D$1,""),'Sum of Captured Q-D'!$A$10)/GETPIVOTDATA(TEXT(D$1,""),'Sum of Q-D'!$A$10),IFERROR(GETPIVOTDATA(TEXT(D$1,""),'Sum of Captured Q-D'!$A$10,"CIA Name",$A12)/GETPIVOTDATA(TEXT(D$1,""),'Sum of Q-D'!$A$10,"CIA Name",$A12),0))) -> 0.9021643645 | E12: =IF(D12="","",IF($A12="Grand Total",GETPIVOTDATA(TEXT(E$1,""),'Sum of Captured Q-D'!$A$10)/GETPIVOTDATA(TEXT(E$1,""),'Sum of Q-D'!$A$10),IFERROR(GETPIVOTDATA(TEXT(E$1,""),'Sum of Captured Q-D'!$A$10,"CIA Name",$A12)/GETPIVOTDATA(TEXT(E$1,""),'Sum of Q-D'!$A$10,"CIA Name",$A12),0))) -> 0.4576826802
A13: Anaconda Pintler Wilderness | B13: =IF(A13="","",IF($A13="Grand Total",GETPIVOTDATA(TEXT(B$1,""),'Sum of Captured Q-D'!$A$10)/GETPIVOTDATA(TEXT(B$1,""),'Sum of Q-D'!$A$10),IFERROR(GETPIVOTDATA(TEXT(B$1,""),'Sum of Captured Q-D'!$A$10,"CIA Name",$A13)/GETPIVOTDATA(TEXT(B$1,""),'Sum of Q-D'!$A$10,"CIA Name",$A13),0))) -> 0.2663154065 | C13: =IF(B13="","",IF($A13="Grand Total",GETPIVOTDATA(TEXT(C$1,""),'Sum of Captured Q-D'!$A$10)/GETPIVOTDATA(TEXT(C$1,""),'Sum of Q-D'!$A$10),IFERROR(GETPIVOTDATA(TEXT(C$1,""),'Sum of Captured Q-D'!$A$10,"CIA Name",$A13)/GETPIVOTDATA(TEXT(C$1,""),'Sum of Q-D'!$A$10,"CIA Name",$A13),0))) -> 0.312198057 | D13: =IF(C13="","",IF($A13="Grand Total",GETPIVOTDATA(TEXT(D$1,""),'Sum of Captured Q-D'!$A$10)/GETPIVOTDATA(TEXT(D$1,""),'Sum of Q-D'!$A$10),IFERROR(GETPIVOTDATA(TEXT(D$1,""),'Sum of Captured Q-D'!$A$10,"CIA Name",$A13)/GETPIVOTDATA(TEXT(D$1,""),'Sum of Q-D'!$A$10,"CIA Name",$A13),0))) -> 0.09129981837 | E13: =IF(D13="","",IF($A13="Grand Total",GETPIVOTDATA(TEXT(E$1,""),'Sum of Captured Q-D'!$A$10)/GETPIVOTDATA(TEXT(E$1,""),'Sum of Q-D'!$A$10),IFERROR(GETPIVOTDATA(TEXT(E$1,""),'Sum of Captured Q-D'!$A$10,"CIA Name",$A13)/GETPIVOTDATA(TEXT(E$1,""),'Sum of Q-D'!$A$10,"CIA Name",$A13),0))) -> 0.306710728
A14: Ansel Adams Wilderness | B14: =IF(A14="","",IF($A14="Grand Total",GETPIVOTDATA(TEXT(B$1,""),'Sum of Captured Q-D'!$A$10)/GETPIVOTDATA(TEXT(B$1,""),'Sum of Q-D'!$A$10),IFERROR(GETPIVOTDATA(TEXT(B$1,""),'Sum of Captured Q-D'!$A$10,"CIA Name",$A14)/GETPIVOTDATA(TEXT(B$1,""),'Sum of Q-D'!$A$10,"CIA Name",$A14),0))) -> 0.2292527676 | C14: =IF(B14="","",IF($A14="Grand Total",GETPIVOTDATA(TEXT(C$1,""),'Sum of Captured Q-D'!$A$10)/GETPIVOTDATA(TEXT(C$1,""),'Sum of Q-D'!$A$10),IFERROR(GETPIVOTDATA(TEXT(C$1,""),'Sum of Captured Q-D'!$A$10,"CIA Name",$A14)/GETPIVOTDATA(TEXT(C$1,""),'Sum of Q-D'!$A$10,"CIA Name",$A14),0))) -> 0.237158697 | D14: =IF(C14="","",IF($A14="Grand Total",GETPIVOTDATA(TEXT(D$1,""),'Sum of Captured Q-D'!$A$10)/GETPIVOTDATA(TEXT(D$1,""),'Sum of Q-D'!$A$10),IFERROR(GETPIVOTDATA(TEXT(D$1,""),'Sum of Captured Q-D'!$A$10,"CIA Name",$A14)/GETPIVOTDATA(TEXT(D$1,""),'Sum of Q-D'!$A$10,"CIA Name",$A14),0))) -> 0.4462942867 | E14: =IF(D14="","",IF($A14="Grand Total",GETPIVOTDATA(TEXT(E$1,""),'Sum of Captured Q-D'!$A$10)/GETPIVOTDATA(TEXT(E$1,""),'Sum of Q-D'!$A$10),IFERROR(GETPIVOTDATA(TEXT(E$1,""),'Sum of Captured Q-D'!$A$10,"CIA Name",$A14)/GETPIVOTDATA(TEXT(E$1,""),'Sum of Q-D'!$A$10,"CIA Name",$A14),0))) -> 0.04489226251
A15: Arches NP | B15: =IF(A15="","",IF($A15="Grand Total",GETPIVOTDATA(TEXT(B$1,""),'Sum of Captured Q-D'!$A$10)/GETPIVOTDATA(TEXT(B$1,""),'Sum of Q-D'!$A$10),IFERROR(GETPIVOTDATA(TEXT(B$1,""),'Sum of Captured Q-D'!$A$10,"CIA Name",$A15)/GETPIVOTDATA(TEXT(B$1,""),'Sum of Q-D'!$A$10,"CIA Name",$A15),0))) -> 0.7752784721 | C15: =IF(B15="","",IF($A15="Grand Total",GETPIVOTDATA(TEXT(C$1,""),'Sum of Captured Q-D'!$A$10)/GETPIVOTDATA(TEXT(C$1,""),'Sum of Q-D'!$A$10),IFERROR(GETPIVOTDATA(TEXT(C$1,""),'Sum of Captured Q-D'!$A$10,"CIA Name",$A15)/GETPIVOTDATA(TEXT(C$1,""),'Sum of Q-D'!$A$10,"CIA Name",$A15),0))) -> 0.7601954708 | D15: =IF(C15="","",IF($A15="Grand Total",GETPIVOTDATA(TEXT(D$1,""),'Sum of Captured Q-D'!$A$10)/GETPIVOTDATA(TEXT(D$1,""),'Sum of Q-D'!$A$10),IFERROR(GETPIVOTDATA(TEXT(D$1,""),'Sum of Captured Q-D'!$A$10,"CIA Name",$A15)/GETPIVOTDATA(TEXT(D$1,""),'Sum of Q-D'!$A$10,"CIA Name",$A15),0))) -> 0.9109676359 | E15: =IF(D15="","",IF($A15="Grand Total",GETPIVOTDATA(TEXT(E$1,""),'Sum of Captured Q-D'!$A$10)/GETPIVOTDATA(TEXT(E$1,""),'Sum of Q-D'!$A$10),IFERROR(GETPIVOTDATA(TEXT(E$1,""),'Sum of Captured Q-D'!$A$10,"CIA Name",$A15)/GETPIVOTDATA(TEXT(E$1,""),'Sum of Q-D'!$A$10,"CIA Name",$A15),0))) -> 0.517997698
A16: Badlands/Sage Creek Wilderness 1 | B16: =IF(A16="","",IF($A16="Grand Total",GETPIVOTDATA(TEXT(B$1,""),'Sum of Captured Q-D'!$A$10)/GETPIVOTDATA(TEXT(B$1,""),'Sum of Q-D'!$A$10),IFERROR(GETPIVOTDATA(TEXT(B$1,""),'Sum of Captured Q-D'!$A$10,"CIA Name",$A16)/GETPIVOTDATA(TEXT(B$1,""),'Sum of Q-D'!$A$10,"CIA Name",$A16),0))) -> 0.7965795791 | C16: =IF(B16="","",IF($A16="Grand Total",GETPIVOTDATA(TEXT(C$1,""),'Sum of Captured Q-D'!$A$10)/GETPIVOTDATA(TEXT(C$1,""),'Sum of Q-D'!$A$10),IFERROR(GETPIVOTDATA(TEXT(C$1,""),'Sum of Captured Q-D'!$A$10,"CIA Name",$A16)/GETPIVOTDATA(TEXT(C$1,""),'Sum of Q-D'!$A$10,"CIA Name",$A16),0))) -> 0.762483254 | D16: =IF(C16="","",IF($A16="Grand Total",GETPIVOTDATA(TEXT(D$1,""),'Sum of Captured Q-D'!$A$10)/GETPIVOTDATA(TEXT(D$1,""),'Sum of Q-D'!$A$10),IFERROR(GETPIVOTDATA(TEXT(D$1,""),'Sum of Captured Q-D'!$A$10,"CIA Name",$A16)/GETPIVOTDATA(TEXT(D$1,""),'Sum of Q-D'!$A$10,"CIA Name",$A16),0))) -> 0.9365180026 | E16: =IF(D16="","",IF($A16="Grand Total",GETPIVOTDATA(TEXT(E$1,""),'Sum of Captured Q-D'!$A$10)/GETPIVOTDATA(TEXT(E$1,""),'Sum of Q-D'!$A$10),IFERROR(GETPIVOTDATA(TEXT(E$1,""),'Sum of Captured Q-D'!$A$10,"CIA Name",$A16)/GETPIVOTDATA(TEXT(E$1,""),'Sum of Q-D'!$A$10,"CIA Name",$A16),0))) -> 0.4304868684
A17: Badlands/Sage Creek Wilderness 2 | B17: =IF(A17="","",IF($A17="Grand Total",GETPIVOTDATA(TEXT(B$1,""),'Sum of Captured Q-D'!$A$10)/GETPIVOTDATA(TEXT(B$1,""),'Sum of Q-D'!$A$10),IFERROR(GETPIVOTDATA(TEXT(B$1,""),'Sum of Captured Q-D'!$A$10,"CIA Name",$A17)/GETPIVOTDATA(TEXT(B$1,""),'Sum of Q-D'!$A$10,"CIA Name",$A17),0))) -> 0.7815394799 | C17: =IF(B17="","",IF($A17="Grand Total",GETPIVOTDATA(TEXT(C$1,""),'Sum of Captured Q-D'!$A$10)/GETPIVOTDATA(TEXT(C$1,""),'Sum of Q-D'!$A$10),IFERROR(GETPIVOTDATA(TEXT(C$1,""),'Sum of Captured Q-D'!$A$10,"CIA Name",$A17)/GETPIVOTDATA(TEXT(C$1,""),'Sum of Q-D'!$A$10,"CIA Name",$A17),0))) -> 0.7363134963 | D17: =IF(C17="","",IF($A17="Grand Total",GETPIVOTDATA(TEXT(D$1,""),'Sum of Captured Q-D'!$A$10)/GETPIVOTDATA(TEXT(D$1,""),'Sum of Q-D'!$A$10),IFERROR(GETPIVOTDATA(TEXT(D$1,""),'Sum of Captured Q-D'!$A$10,"CIA Name",$A17)/GETPIVOTDATA(TEXT(D$1,""),'Sum of Q-D'!$A$10,"CIA Name",$A17),0))) -> 0.9324256585 | E17: =IF(D17="","",IF($A17="Grand Total",GETPIVOTDATA(TEXT(E$1,""),'Sum of Captured Q-D'!$A$10)/GETPIVOTDATA(TEXT(E$1,""),'Sum of Q-D'!$A$10),IFERROR(GETPIVOTDATA(TEXT(E$1,""),'Sum of Captured Q-D'!$A$10,"CIA Name",$A17)/GETPIVOTDATA(TEXT(E$1,""),'Sum of Q-D'!$A$10,"CIA Name",$A17),0))) -> 0.420907326
A18: Bandelier Wilderness | B18: =IF(A18="","",IF($A18="Grand Total",GETPIVOTDATA(TEXT(B$1,""),'Sum of Captured Q-D'!$A$10)/GETPIVOTDATA(TEXT(B$1,""),'Sum of Q-D'!$A$10),IFERROR(GETPIVOTDATA(TEXT(B$1,""),'Sum of Captured Q-D'!$A$10,"CIA Name",$A18)/GETPIVOTDATA(TEXT(B$1,""),'Sum of Q-D'!$A$10,"CIA Name",$A18),0))) -> 0.7167705715 | C18: =IF(B18="","",IF($A18="Grand Total",GETPIVOTDATA(TEXT(C$1,""),'Sum of Captured Q-D'!$A$10)/GETPIVOTDATA(TEXT(C$1,""),'Sum of Q-D'!$A$10),IFERROR(GETPIVOTDATA(TEXT(C$1,""),'Sum of Captured Q-D'!$A$10,"CIA Name",$A18)/GETPIVOTDATA(TEXT(C$1,""),'Sum of Q-D'!$A$10,"CIA Name",$A18),0))) -> 0.6881158111 | D18: =IF(C18="","",IF($A18="Grand Total",GETPIVOTDATA(TEXT(D$1,""),'Sum of Captured Q-D'!$A$10)/GETPIVOTDATA(TEXT(D$1,""),'Sum of Q-D'!$A$10),IFERROR(GETPIVOTDATA(TEXT(D$1,""),'Sum of Captured Q-D'!$A$10,"CIA Name",$A18)/GETPIVOTDATA(TEXT(D$1,""),'Sum of Q-D'!$A$10,"CIA Name",$A18),0))) -> 0.9093701194 | E18: =IF(D18="","",IF($A18="Grand Total",GETPIVOTDATA(TEXT(E$1,""),'Sum of Captured Q-D'!$A$10)/GETPIVOTDATA(TEXT(E$1,""),'Sum of Q-D'!$A$10),IFERROR(GETPIVOTDATA(TEXT(E$1,""),'Sum of Captured Q-D'!$A$10,"CIA Name",$A18)/GETPIVOTDATA(TEXT(E$1,""),'Sum of Q-D'!$A$10,"CIA Name",$A18),0))) -> 0.402902238
A19: Bering Sea Wilderness | B19: =IF(A19="","",IF($A19="Grand Total",GETPIVOTDATA(TEXT(B$1,""),'Sum of Captured Q-D'!$A$10)/GETPIVOTDATA(TEXT(B$1,""),'Sum of Q-D'!$A$10),IFERROR(GETPIVOTDATA(TEXT(B$1,""),'Sum of Captured Q-D'!$A$10,"CIA Name",$A19)/GETPIVOTDATA(TEXT(B$1,""),'Sum of Q-D'!$A$10,"CIA Name",$A19),0))) -> 0 | C19: =IF(B19="","",IF($A19="Grand Total",GETPIVOTDATA(TEXT(C$1,""),'Sum of Captured Q-D'!$A$10)/GETPIVOTDATA(TEXT(C$1,""),'Sum of Q-D'!$A$10),IFERROR(GETPIVOTDATA(TEXT(C$1,""),'Sum of Captured Q-D'!$A$10,"CIA Name",$A19)/GETPIVOTDATA(TEXT(C$1,""),'Sum of Q-D'!$A$10,"CIA Name",$A19),0))) -> 0 | D19: =IF(C19="","",IF($A19="Grand Total",GETPIVOTDATA(TEXT(D$1,""),'Sum of Captured Q-D'!$A$10)/GETPIVOTDATA(TEXT(D$1,""),'Sum of Q-D'!$A$10),IFERROR(GETPIVOTDATA(TEXT(D$1,""),'Sum of Captured Q-D'!$A$10,"CIA Name",$A19)/GETPIVOTDATA(TEXT(D$1,""),'Sum of Q-D'!$A$10,"CIA Name",$A19),0))) -> 0 | E19: =IF(D19="","",IF($A19="Grand Total",GETPIVOTDATA(TEXT(E$1,""),'Sum of Captured Q-D'!$A$10)/GETPIVOTDATA(TEXT(E$1,""),'Sum of Q-D'!$A$10),IFERROR(GETPIVOTDATA(TEXT(E$1,""),'Sum of Captured Q-D'!$A$10,"CIA Name",$A19)/GETPIVOTDATA(TEXT(E$1,""),'Sum of Q-D'!$A$10,"CIA Name",$A19),0))) -> 0
A20: Big Bend NP | B20: =IF(A20="","",IF($A20="Grand Total",GETPIVOTDATA(TEXT(B$1,""),'Sum of Captured Q-D'!$A$10)/GETPIVOTDATA(TEXT(B$1,""),'Sum of Q-D'!$A$10),IFERROR(GETPIVOTDATA(TEXT(B$1,""),'Sum of Captured Q-D'!$A$10,"CIA Name",$A20)/GETPIVOTDATA(TEXT(B$1,""),'Sum of Q-D'!$A$10,"CIA Name",$A20),0))) -> 0 | C20: =IF(B20="","",IF($A20="Grand Total",GETPIVOTDATA(TEXT(C$1,""),'Sum of Captured Q-D'!$A$10)/GETPIVOTDATA(TEXT(C$1,""),'Sum of Q-D'!$A$10),IFERROR(GETPIVOTDATA(TEXT(C$1,""),'Sum of Captured Q-D'!$A$10,"CIA Name",$A20)/GETPIVOTDATA(TEXT(C$1,""),'Sum of Q-D'!$A$10,"CIA Name",$A20),0))) -> 0 | D20: =IF(C20="","",IF($A20="Grand Total",GETPIVOTDATA(TEXT(D$1,""),'Sum of Captured Q-D'!$A$10)/GETPIVOTDATA(TEXT(D$1,""),'Sum of Q-D'!$A$10),IFERROR(GETPIVOTDATA(TEXT(D$1,""),'Sum of Captured Q-D'!$A$10,"CIA Name",$A20)/GETPIVOTDATA(TEXT(D$1,""),'Sum of Q-D'!$A$10,"CIA Name",$A20),0))) -> 0 | E20: =IF(D20="","",IF($A20="Grand Total",GETPIVOTDATA(TEXT(E$1,""),'Sum of Captured Q-D'!$A$10)/GETPIVOTDATA(TEXT(E$1,""),'Sum of Q-D'!$A$10),IFERROR(GETPIVOTDATA(TEXT(E$1,""),'Sum of Captured Q-D'!$A$10,"CIA Name",$A20)/GETPIVOTDATA(TEXT(E$1,""),'Sum of Q-D'!$A$10,"CIA Name",$A20),0))) -> 0
A21: Black Canyon of the Gunnison Wilderness | B21: =IF(A21="","",IF($A21="Grand Total",GETPIVOTDATA(TEXT(B$1,""),'Sum of Captured Q-D'!$A$10)/GETPIVOTDATA(TEXT(B$1,""),'Sum of Q-D'!$A$10),IFERROR(GETPIVOTDATA(TEXT(B$1,""),'Sum of Captured Q-D'!$A$10,"CIA Name",$A21)/GETPIVOTDATA(TEXT(B$1,""),'Sum of Q-D'!$A$10,"CIA Name",$A21),0))) -> 0.6479263294 | C21: =IF(B21="","",IF($A21="Grand Total",GETPIVOTDATA(TEXT(C$1,""),'Sum of Captured Q-D'!$A$10)/GETPIVOTDATA(TEXT(C$1,""),'Sum of Q-D'!$A$10),IFERROR(GETPIVOTDATA(TEXT(C$1,""),'Sum of Captured Q-D'!$A$10,"CIA Name",$A21)/GETPIVOTDATA(TEXT(C$1,""),'Sum of Q-D'!$A$10,"CIA Name",$A21),0))) -> 0.6344447137 | D21: =IF(C21="","",IF($A21="Grand Total",GETPIVOTDATA(TEXT(D$1,""),'Sum of Captured Q-D'!$A$10)/GETPIVOTDATA(TEXT(D$1,""),'Sum of Q-D'!$A$10),IFERROR(GETPIVOTDATA(TEXT(D$1,""),'Sum of Captured Q-D'!$A$10,"CIA Name",$A21)/GETPIVOTDATA(TEXT(D$1,""),'Sum of Q-D'!$A$10,"CIA Name",$A21),0))) -> 0.8626846063 | E21: =IF(D21="","",IF($A21="Grand Total",GETPIVOTDATA(TEXT(E$1,""),'Sum of Captured Q-D'!$A$10)/GETPIVOTDATA(TEXT(E$1,""),'Sum of Q-D'!$A$10),IFERROR(GETPIVOTDATA(TEXT(E$1,""),'Sum of Captured Q-D'!$A$10,"CIA Name",$A21)/GETPIVOTDATA(TEXT(E$1,""),'Sum of Q-D'!$A$10,"CIA Name",$A21),0))) -> 0.2810413097
A22: Bob Marshall Wilderness | B22: =IF(A22="","",IF($A22="Grand Total",GETPIVOTDATA(TEXT(B$1,""),'Sum of Captured Q-D'!$A$10)/GETPIVOTDATA(TEXT(B$1,""),'Sum of Q-D'!$A$10),IFERROR(GETPIVOTDATA(TEXT(B$1,""),'Sum of Captured Q-D'!$A$10,"CIA Name",$A22)/GETPIVOTDATA(TEXT(B$1,""),'Sum of Q-D'!$A$10,"CIA Name",$A22),0))) -> 0.3240619288 | C22: =IF(B22="","",IF($A22="Grand Total",GETPIVOTDATA(TEXT(C$1,""),'Sum of Captured Q-D'!$A$10)/GETPIVOTDATA(TEXT(C$1,""),'Sum of Q-D'!$A$10),IFERROR(GETPIVOTDATA(TEXT(C$1,""),'Sum of Captured Q-D'!$A$10,"CIA Name",$A22)/GETPIVOTDATA(TEXT(C$1,""),'Sum of Q-D'!$A$10,"CIA Name",$A22),0))) -> 0.4530237409 | D22: =IF(C22="","",IF($A22="Grand Total",GETPIVOTDATA(TEXT(D$1,""),'Sum of Captured Q-D'!$A$10)/GETPIVOTDATA(TEXT(D$1,""),'Sum of Q-D'!$A$10),IFERROR(GETPIVOTDATA(TEXT(D$1,""),'Sum of Captured Q-D'!$A$10,"CIA Name",$A22)/GETPIVOTDATA(TEXT(D$1,""),'Sum of Q-D'!$A$10,"CIA Name",$A22),0))) -> 0.1641102131 | E22: =IF(D22="","",IF($A22="Grand Total",GETPIVOTDATA(TEXT(E$1,""),'Sum of Captured Q-D'!$A$10)/GETPIVOTDATA(TEXT(E$1,""),'Sum of Q-D'!$A$10),IFERROR(GETPIVOTDATA(TEXT(E$1,""),'Sum of Captured Q-D'!$A$10,"CIA Name",$A22)/GETPIVOTDATA(TEXT(E$1,""),'Sum of Q-D'!$A$10,"CIA Name",$A22),0))) -> 0.149171399
A23: Bosque del Apache (Chupadera Unit) | B23: =IF(A23="","",IF($A23="Grand Total",GETPIVOTDATA(TEXT(B$1,""),'Sum of Captured Q-D'!$A$10)/GETPIVOTDATA(TEXT(B$1,""),'Sum of Q-D'!$A$10),IFERROR(GETPIVOTDATA(TEXT(B$1,""),'Sum of Captured Q-D'!$A$10,"CIA Name",$A23)/GETPIVOTDATA(TEXT(B$1,""),'Sum of Q-D'!$A$10,"CIA Name",$A23),0))) -> 0.7091009651 | C23: =IF(B23="","",IF($A23="Grand Total",GETPIVOTDATA(TEXT(C$1,""),'Sum of Captured Q-D'!$A$10)/GETPIVOTDATA(TEXT(C$1,""),'Sum of Q-D'!$A$10),IFERROR(GETPIVOTDATA(TEXT(C$1,""),'Sum of Captured Q-D'!$A$10,"CIA Name",$A23)/GETPIVOTDATA(TEXT(C$1,""),'Sum of Q-D'!$A$10,"CIA Name",$A23),0))) -> 0.6227777258 | D23: =IF(C23="","",IF($A23="Grand Total",GETPIVOTDATA(TEXT(D$1,""),'Sum of Captured Q-D'!$A$10)/GETPIVOTDATA(TEXT(D$1,""),'Sum of Q-D'!$A$10),IFERROR(GETPIVOTDATA(TEXT(D$1,""),'Sum of Captured Q-D'!$A$10,"CIA Name",$A23)/GETPIVOTDATA(TEXT(D$1,""),'Sum of Q-D'!$A$10,"CIA Name",$A23),0))) -> 0.8829206056 | E23: =IF(D23="","",IF($A23="Grand Total",GETPIVOTDATA(TEXT(E$1,""),'Sum of Captured Q-D'!$A$10)/GETPIVOTDATA(TEXT(E$1,""),'Sum of Q-D'!$A$10),IFERROR(GETPIVOTDATA(TEXT(E$1,""),'Sum of Captured Q-D'!$A$10,"CIA Name",$A23)/GETPIVOTDATA(TEXT(E$1,""),'Sum of Q-D'!$A$10,"CIA Name",$A23),0))) -> 0.6124537182
A24: Bosque del Apache (Indian Well Unit) | B24: =IF(A24="","",IF($A24="Grand Total",GETPIVOTDATA(TEXT(B$1,""),'Sum of Captured Q-D'!$A$10)/GETPIVOTDATA(TEXT(B$1,""),'Sum of Q-D'!$A$10),IFERROR(GETPIVOTDATA(TEXT(B$1,""),'Sum of Captured Q-D'!$A$10,"CIA Name",$A24)/GETPIVOTDATA(TEXT(B$1,""),'Sum of Q-D'!$A$10,"CIA Name",$A24),0))) -> 0.7024734015 | C24: =IF(B24="","",IF($A24="Grand Total",GETPIVOTDATA(TEXT(C$1,""),'Sum of Captured Q-D'!$A$10)/GETPIVOTDATA(TEXT(C$1,""),'Sum of Q-D'!$A$10),IFERROR(GETPIVOTDATA(TEXT(C$1,""),'Sum of Captured Q-D'!$A$10,"CIA Name",$A24)/GETPIVOTDATA(TEXT(C$1,""),'Sum of Q-D'!$A$10,"CIA Name",$A24),0))) -> 0.6332284891 | D24: =IF(C24="","",IF($A24="Grand Total",GETPIVOTDATA(TEXT(D$1,""),'Sum of Captured Q-D'!$A$10)/GETPIVOTDATA(TEXT(D$1,""),'Sum of Q-D'!$A$10),IFERROR(GETPIVOTDATA(TEXT(D$1,""),'Sum of Captured Q-D'!$A$10,"CIA Name",$A24)/GETPIVOTDATA(TEXT(D$1,""),'Sum of Q-D'!$A$10,"CIA Name",$A24),0))) -> 0.8686310165 | E24: =IF(D24="","",IF($A24="Grand Total",GETPIVOTDATA(TEXT(E$1,""),'Sum of Captured Q-D'!$A$10)/GETPIVOTDATA(TEXT(E$1,""),'Sum of Q-D'!$A$10),IFERROR(GETPIVOTDATA(TEXT(E$1,""),'Sum of Captured Q-D'!$A$10,"CIA Name",$A24)/GETPIVOTDATA(TEXT(E$1,""),'Sum of Q-D'!$A$10,"CIA Name",$A24),0))) -> 0.6211773076
A25: Bosque del Apache (Little San Pascual Unit) | B25: =IF(A25="","",IF($A25="Grand Total",GETPIVOTDATA(TEXT(B$1,""),'Sum of Captured Q-D'!$A$10)/GETPIVOTDATA(TEXT(B$1,""),'Sum of Q-D'!$A$10),IFERROR(GETPIVOTDATA(TEXT(B$1,""),'Sum of Captured Q-D'!$A$10,"CIA Name",$A25)/GETPIVOTDATA(TEXT(B$1,""),'Sum of Q-D'!$A$10,"CIA Name",$A25),0))) -> 0.704023345 | C25: =IF(B25="","",IF($A25="Grand Total",GETPIVOTDATA(TEXT(C$1,""),'Sum of Captured Q-D'!$A$10)/GETPIVOTDATA(TEXT(C$1,""),'Sum of Q-D'!$A$10),IFERROR(GETPIVOTDATA(TEXT(C$1,""),'Sum of Captured Q-D'!$A$10,"CIA Name",$A25)/GETPIVOTDATA(TEXT(C$1,""),'Sum of Q-D'!$A$10,"CIA Name",$A25),0))) -> 0.6348205154 | D25: =IF(C25="","",IF($A25="Grand Total",GETPIVOTDATA(TEXT(D$1,""),'Sum of Captured Q-D'!$A$10)/GETPIVOTDATA(TEXT(D$1,""),'Sum of Q-D'!$A$10),IFERROR(GETPIVOTDATA(TEXT(D$1,""),'Sum of Captured Q-D'!$A$10,"CIA Name",$A25)/GETPIVOTDATA(TEXT(D$1,""),'Sum of Q-D'!$A$10,"CIA Name",$A25),0))) -> 0.8707941979 | E25: =IF(D25="","",IF($A25="Grand Total",GETPIVOTDATA(TEXT(E$1,""),'Sum of Captured Q-D'!$A$10)/GETPIVOTDATA(TEXT(E$1,""),'Sum of Q-D'!$A$10),IFERROR(GETPIVOTDATA(TEXT(E$1,""),'Sum of Captured Q-D'!$A$10,"CIA Name",$A25)/GETPIVOTDATA(TEXT(E$1,""),'Sum of Q-D'!$A$10,"CIA Name",$A25),0))) -> 0.6226290839
A26: Boundary Waters Canoe Area Wilderness | B26: =IF(A26="","",IF($A26="Grand Total",GETPIVOTDATA(TEXT(B$1,""),'Sum of Captured Q-D'!$A$10)/GETPIVOTDATA(TEXT(B$1,""),'Sum of Q-D'!$A$10),IFERROR(GETPIVOTDATA(TEXT(B$1,""),'Sum of Captured Q-D'!$A$10,"CIA Name",$A26)/GETPIVOTDATA(TEXT(B$1,""),'Sum of Q-D'!$A$10,"CIA Name",$A26),0))) -> 0 | C26: =IF(B26="","",IF($A26="Grand Total",GETPIVOTDATA(TEXT(C$1,""),'Sum of Captured Q-D'!$A$10)/GETPIVOTDATA(TEXT(C$1,""),'Sum of Q-D'!$A$10),IFERROR(GETPIVOTDATA(TEXT(C$1,""),'Sum of Captured Q-D'!$A$10,"CIA Name",$A26)/GETPIVOTDATA(TEXT(C$1,""),'Sum of Q-D'!$A$10,"CIA Name",$A26),0))) -> 0 | D26: =IF(C26="","",IF($A26="Grand Total",GETPIVOTDATA(TEXT(D$1,""),'Sum of Captured Q-D'!$A$10)/GETPIVOTDATA(TEXT(D$1,""),'Sum of Q-D'!$A$10),IFERROR(GETPIVOTDATA(TEXT(D$1,""),'Sum of Captured Q-D'!$A$10,"CIA Name",$A26)/GETPIVOTDATA(TEXT(D$1,""),'Sum of Q-D'!$A$10,"CIA Name",$A26),0))) -> 0 | E26: =IF(D26="","",IF($A26="Grand Total",GETPIVOTDATA(TEXT(E$1,""),'Sum of Captured Q-D'!$A$10)/GETPIVOTDATA(TEXT(E$1,""),'Sum of Q-D'!$A$10),IFERROR(GETPIVOTDATA(TEXT(E$1,""),'Sum of Captured Q-D'!$A$10,"CIA Name",$A26)/GETPIVOTDATA(TEXT(E$1,""),'Sum of Q-D'!$A$10,"CIA Name",$A26),0))) -> 0
A27: Bridger Wilderness | B27: =IF(A27="","",IF($A27="Grand Total",GETPIVOTDATA(TEXT(B$1,""),'Sum of Captured Q-D'!$A$10)/GETPIVOTDATA(TEXT(B$1,""),'Sum of Q-D'!$A$10),IFERROR(GETPIVOTDATA(TEXT(B$1,""),'Sum of Captured Q-D'!$A$10,"CIA Name",$A27)/GETPIVOTDATA(TEXT(B$1,""),'Sum of Q-D'!$A$10,"CIA Name",$A27),0))) -> 0.7092669849 | C27: =IF(B27="","",IF($A27="Grand Total",GETPIVOTDATA(TEXT(C$1,""),'Sum of Captured Q-D'!$A$10)/GETPIVOTDATA(TEXT(C$1,""),'Sum of Q-D'!$A$10),IFERROR(GETPIVOTDATA(TEXT(C$1,""),'Sum of Captured Q-D'!$A$10,"CIA Name",$A27)/GETPIVOTDATA(TEXT(C$1,""),'Sum of Q-D'!$A$10,"CIA Name",$A27),0))) -> 0.6992905372 | D27: =IF(C27="","",IF($A27="Grand Total",GETPIVOTDATA(TEXT(D$1,""),'Sum of Captured Q-D'!$A$10)/GETPIVOTDATA(TEXT(D$1,""),'Sum of Q-D'!$A$10),IFERROR(GETPIVOTDATA(TEXT(D$1,""),'Sum of Captured Q-D'!$A$10,"CIA Name",$A27)/GETPIVOTDATA(TEXT(D$1,""),'Sum of Q-D'!$A$10,"CIA Name",$A27),0))) -> 0.8469585187 | E27: =IF(D27="","",IF($A27="Grand Total",GETPIVOTDATA(TEXT(E$1,""),'Sum of Captured Q-D'!$A$10)/GETPIVOTDATA(TEXT(E$1,""),'Sum of Q-D'!$A$10),IFERROR(GETPIVOTDATA(TEXT(E$1,""),'Sum of Captured Q-D'!$A$10,"CIA Name",$A27)/GETPIVOTDATA(TEXT(E$1,""),'Sum of Q-D'!$A$10,"CIA Name",$A27),0))) -> 0.4028843257
A28: Bryce Canyon NP | B28: =IF(A28="","",IF($A28="Grand Total",GETPIVOTDATA(TEXT(B$1,""),'Sum of Captured Q-D'!$A$10)/GETPIVOTDATA(TEXT(B$1,""),'Sum of Q-D'!$A$10),IFERROR(GETPIVOTDATA(TEXT(B$1,""),'Sum of Captured Q-D'!$A$10,"CIA Name",$A28)/GETPIVOTDATA(TEXT(B$1,""),'Sum of Q-D'!$A$10,"CIA Name",$A28),0))) -> 0.8252275932 | C28: =IF(B28="","",IF($A28="Grand Total",GETPIVOTDATA(TEXT(C$1,""),'Sum of Captured Q-D'!$A$10)/GETPIVOTDATA(TEXT(C$1,""),'Sum of Q-D'!$A$10),IFERROR(GETPIVOTDATA(TEXT(C$1,""),'Sum of Captured Q-D'!$A$10,"CIA Name",$A28)/GETPIVOTDATA(TEXT(C$1,""),'Sum of Q-D'!$A$10,"CIA Name",$A28),0))) -> 0.8240279748 | D28: =IF(C28="","",IF($A28="Grand Total",GETPIVOTDATA(TEXT(D$1,""),'Sum of Captured Q-D'!$A$10)/GETPIVOTDATA(TEXT(D$1,""),'Sum of Q-D'!$A$10),IFERROR(GETPIVOTDATA(TEXT(D$1,""),'Sum of Captured Q-D'!$A$10,"CIA Name",$A28)/GETPIVOTDATA(TEXT(D$1,""),'Sum of Q-D'!$A$10,"CIA Name",$A28),0))) -> 0.8979109968 | E28: =IF(D28="","",IF($A28="Grand Total",GETPIVOTDATA(TEXT(E$1,""),'Sum of Captured Q-D'!$A$10)/GETPIVOTDATA(TEXT(E$1,""),'Sum of Q-D'!$A$10),IFERROR(GETPIVOTDATA(TEXT(E$1,""),'Sum of Captured Q-D'!$A$10,"CIA Name",$A28)/GETPIVOTDATA(TEXT(E$1,""),'Sum of Q-D'!$A$10,"CIA Name",$A28),0))) -> 0.6798961098
A29: Cabinet Mountains Wilderness | B29: =IF(A29="","",IF($A29="Grand Total",GETPIVOTDATA(TEXT(B$1,""),'Sum of Captured Q-D'!$A$10)/GETPIVOTDATA(TEXT(B$1,""),'Sum of Q-D'!$A$10),IFERROR(GETPIVOTDATA(TEXT(B$1,""),'Sum of Captured Q-D'!$A$10,"CIA Name",$A29)/GETPIVOTDATA(TEXT(B$1,""),'Sum of Q-D'!$A$10,"CIA Name",$A29),0))) -> 0.2078134416 | C29: =IF(B29="","",IF($A29="Grand Total",GETPIVOTDATA(TEXT(C$1,""),'Sum of Captured Q-D'!$A$10)/GETPIVOTDATA(TEXT(C$1,""),'Sum of Q-D'!$A$10),IFERROR(GETPIVOTDATA(TEXT(C$1,""),'Sum of Captured Q-D'!$A$10,"CIA Name",$A29)/GETPIVOTDATA(TEXT(C$1,""),'Sum of Q-D'!$A$10,"CIA Name",$A29),0))) -> 0.143545078 | D29: =IF(C29="","",IF($A29="Grand Total",GETPIVOTDATA(TEXT(D$1,""),'Sum of Captured Q-D'!$A$10)/GETPIVOTDATA(TEXT(D$1,""),'Sum of Q-D'!$A$10),IFERROR(GETPIVOTDATA(TEXT(D$1,""),'Sum of Captured Q-D'!$A$10,"CIA Name",$A29)/GETPIVOTDATA(TEXT(D$1,""),'Sum of Q-D'!$A$10,"CIA Name",$A29),0))) -> 0.6282014698 | E29: =IF(D29="","",IF($A29="Grand Total",GETPIVOTDATA(TEXT(E$1,""),'Sum of Captured Q-D'!$A$10)/GETPIVOTDATA(TEXT(E$1,""),'Sum of Q-D'!$A$10),IFERROR(GETPIVOTDATA(TEXT(E$1,""),'Sum of Captured Q-D'!$A$10,"CIA Name",$A29)/GETPIVOTDATA(TEXT(E$1,""),'Sum of Q-D'!$A$10,"CIA Name",$A29),0))) -> 0.1509131355
A30: Canyonlands NP | B30: =IF(A30="","",IF($A30="Grand Total",GETPIVOTDATA(TEXT(B$1,""),'Sum of Captured Q-D'!$A$10)/GETPIVOTDATA(TEXT(B$1,""),'Sum of Q-D'!$A$10),IFERROR(GETPIVOTDATA(TEXT(B$1,""),'Sum of Captured Q-D'!$A$10,"CIA Name",$A30)/GETPIVOTDATA(TEXT(B$1,""),'Sum of Q-D'!$A$10,"CIA Name",$A30),0))) -> 0.8221788319 | C30: =IF(B30="","",IF($A30="Grand Total",GETPIVOTDATA(TEXT(C$1,""),'Sum of Captured Q-D'!$A$10)/GETPIVOTDATA(TEXT(C$1,""),'Sum of Q-D'!$A$10),IFERROR(GETPIVOTDATA(TEXT(C$1,""),'Sum of Captured Q-D'!$A$10,"CIA Name",$A30)/GETPIVOTDATA(TEXT(C$1,""),'Sum of Q-D'!$A$10,"CIA Name",$A30),0))) -> 0.8146760111 | D30: =IF(C30="","",IF($A30="Grand Total",GETPIVOTDATA(TEXT(D$1,""),'Sum of Captured Q-D'!$A$10)/GETPIVOTDATA(TEXT(D$1,""),'Sum of Q-D'!$A$10),IFERROR(GETPIVOTDATA(TEXT(D$1,""),'Sum of Captured Q-D'!$A$10,"CIA Name",$A30)/GETPIVOTDATA(TEXT(D$1,""),'Sum of Q-D'!$A$10,"CIA Name",$A30),0))) -> 0.9312920028 | E30: =IF(D30="","",IF($A30="Grand Total",GETPIVOTDATA(TEXT(E$1,""),'Sum of Captured Q-D'!$A$10)/GETPIVOTDATA(TEXT(E$1,""),'Sum of Q-D'!$A$10),IFERROR(GETPIVOTDATA(TEXT(E$1,""),'Sum of Captured Q-D'!$A$10,"CIA Name",$A30)/GETPIVOTDATA(TEXT(E$1,""),'Sum of Q-D'!$A$10,"CIA Name",$A30),0))) -> 0.5832793566
A31: Capitol Reef NP | B31: =IF(A31="","",IF($A31="Grand Total",GETPIVOTDATA(TEXT(B$1,""),'Sum of Captured Q-D'!$A$10)/GETPIVOTDATA(TEXT(B$1,""),'Sum of Q-D'!$A$10),IFERROR(GETPIVOTDATA(TEXT(B$1,""),'Sum of Captured Q-D'!$A$10,"CIA Name",$A31)/GETPIVOTDATA(TEXT(B$1,""),'Sum of Q-D'!$A$10,"CIA Name",$A31),0))) -> 0.8487228852 | C31: =IF(B31="","",IF($A31="Grand Total",GETPIVOTDATA(TEXT(C$1,""),'Sum of Captured Q-D'!$A$10)/GETPIVOTDATA(TEXT(C$1,""),'Sum of Q-D'!$A$10),IFERROR(GETPIVOTDATA(TEXT(C$1,""),'Sum of Captured Q-D'!$A$10,"CIA Name",$A31)/GETPIVOTDATA(TEXT(C$1,""),'Sum of Q-D'!$A$10,"CIA Name",$A31),0))) -> 0.8355782556 | D31: =IF(C31="","",IF($A31="Grand Total",GETPIVOTDATA(TEXT(D$1,""),'Sum of Captured Q-D'!$A$10)/GETPIVOTDATA(TEXT(D$1,""),'Sum of Q-D'!$A$10),IFERROR(GETPIVOTDATA(TEXT(D$1,""),'Sum of Captured Q-D'!$A$10,"CIA Name",$A31)/GETPIVOTDATA(TEXT(D$1,""),'Sum of Q-D'!$A$10,"CIA Name",$A31),0))) -> 0.9249996388 | E31: =IF(D31="","",IF($A31="Grand Total",GETPIVOTDATA(TEXT(E$1,""),'Sum of Captured Q-D'!$A$10)/GETPIVOTDATA(TEXT(E$1,""),'Sum of Q-D'!$A$10),IFERROR(GETPIVOTDATA(TEXT(E$1,""),'Sum of Captured Q-D'!$A$10,"CIA Name",$A31)/GETPIVOTDATA(TEXT(E$1,""),'Sum of Q-D'!$A$10,"CIA Name",$A31),0))) -> 0.7498744464
A32: Caribou Wilderness | B32: =IF(A32="","",IF($A32="Grand Total",GETPIVOTDATA(TEXT(B$1,""),'Sum of Captured Q-D'!$A$10)/GETPIVOTDATA(TEXT(B$1,""),'Sum of Q-D'!$A$10),IFERROR(GETPIVOTDATA(TEXT(B$1,""),'Sum of Captured Q-D'!$A$10,"CIA Name",$A32)/GETPIVOTDATA(TEXT(B$1,""),'Sum of Q-D'!$A$10,"CIA Name",$A32),0))) -> 0.2549490337 | C32: =IF(B32="","",IF($A32="Grand Total",GETPIVOTDATA(TEXT(C$1,""),'Sum of Captured Q-D'!$A$10)/GETPIVOTDATA(TEXT(C$1,""),'Sum of Q-D'!$A$10),IFERROR(GETPIVOTDATA(TEXT(C$1,""),'Sum of Captured Q-D'!$A$10,"CIA Name",$A32)/GETPIVOTDATA(TEXT(C$1,""),'Sum of Q-D'!$A$10,"CIA Name",$A32),0))) -> 0.2229730815 | D32: =IF(C32="","",IF($A32="Grand Total",GETPIVOTDATA(TEXT(D$1,""),'Sum of Captured Q-D'!$A$10)/GETPIVOTDATA(TEXT(D$1,""),'Sum of Q-D'!$A$10),IFERROR(GETPIVOTDATA(TEXT(D$1,""),'Sum of Captured Q-D'!$A$10,"CIA Name",$A32)/GETPIVOTDATA(TEXT(D$1,""),'Sum of Q-D'!$A$10,"CIA Name",$A32),0))) -> 0.5132598009 | E32: =IF(D32="","",IF($A32="Grand Total",GETPIVOTDATA(TEXT(E$1,""),'Sum of Captured Q-D'!$A$10)/GETPIVOTDATA(TEXT(E$1,""),'Sum of Q-D'!$A$10),IFERROR(GETPIVOTDATA(TEXT(E$1,""),'Sum of Captured Q-D'!$A$10,"CIA Name",$A32)/GETPIVOTDATA(TEXT(E$1,""),'Sum of Q-D'!$A$10,"CIA Name",$A32),0))) -> 0.119254381
A33: Carlsbad Caverns NP | B33: =IF(A33="","",IF($A33="Grand Total",GETPIVOTDATA(TEXT(B$1,""),'Sum of Captured Q-D'!$A$10)/GETPIVOTDATA(TEXT(B$1,""),'Sum of Q-D'!$A$10),IFERROR(GETPIVOTDATA(TEXT(B$1,""),'Sum of Captured Q-D'!$A$10,"CIA Name",$A33)/GETPIVOTDATA(TEXT(B$1,""),'Sum of Q-D'!$A$10,"CIA Name",$A33),0))) -> 0.4427460769 | C33: =IF(B33="","",IF($A33="Grand Total",GETPIVOTDATA(TEXT(C$1,""),'Sum of Captured Q-D'!$A$10)/GETPIVOTDATA(TEXT(C$1,""),'Sum of Q-D'!$A$10),IFERROR(GETPIVOTDATA(TEXT(C$1,""),'Sum of Captured Q-D'!$A$10,"CIA Name",$A33)/GETPIVOTDATA(TEXT(C$1,""),'Sum of Q-D'!$A$10,"CIA Name",$A33),0))) -> 0.3520856761 | D33: =IF(C33="","",IF($A33="Grand Total",GETPIVOTDATA(TEXT(D$1,""),'Sum of Captured Q-D'!$A$10)/GETPIVOTDATA(TEXT(D$1,""),'Sum of Q-D'!$A$10),IFERROR(GETPIVOTDATA(TEXT(D$1,""),'Sum of Captured Q-D'!$A$10,"CIA Name",$A33)/GETPIVOTDATA(TEXT(D$1,""),'Sum of Q-D'!$A$10,"CIA Name",$A33),0))) -> 0.6831965347 | E33: =IF(D33="","",IF($A33="Grand Total",GETPIVOTDATA(TEXT(E$1,""),'Sum of Captured Q-D'!$A$10)/GETPIVOTDATA(TEXT(E$1,""),'Sum of Q-D'!$A$10),IFERROR(GETPIVOTDATA(TEXT(E$1,""),'Sum of Captured Q-D'!$A$10,"CIA Name",$A33)/GETPIVOTDATA(TEXT(E$1,""),'Sum of Q-D'!$A$10,"CIA Name",$A33),0))) -> 0.1372185082
A34: Chiricahua NM Wilderness-Designated Wilderness | B34: =IF(A34="","",IF($A34="Grand Total",GETPIVOTDATA(TEXT(B$1,""),'Sum of Captured Q-D'!$A$10)/GETPIVOTDATA(TEXT(B$1,""),'Sum of Q-D'!$A$10),IFERROR(GETPIVOTDATA(TEXT(B$1,""),'Sum of Captured Q-D'!$A$10,"CIA Name",$A34)/GETPIVOTDATA(TEXT(B$1,""),'Sum of Q-D'!$A$10,"CIA Name",$A34),0))) -> 0.8319252073 | C34: =IF(B34="","",IF($A34="Grand Total",GETPIVOTDATA(TEXT(C$1,""),'Sum of Captured Q-D'!$A$10)/GETPIVOTDATA(TEXT(C$1,""),'Sum of Q-D'!$A$10),IFERROR(GETPIVOTDATA(TEXT(C$1,""),'Sum of Captured Q-D'!$A$10,"CIA Name",$A34)/GETPIVOTDATA(TEXT(C$1,""),'Sum of Q-D'!$A$10,"CIA Name",$A34),0))) -> 0.736154673 | D34: =IF(C34="","",IF($A34="Grand Total",GETPIVOTDATA(TEXT(D$1,""),'Sum of Captured Q-D'!$A$10)/GETPIVOTDATA(TEXT(D$1,""),'Sum of Q-D'!$A$10),IFERROR(GETPIVOTDATA(TEXT(D$1,""),'Sum of Captured Q-D'!$A$10,"CIA Name",$A34)/GETPIVOTDATA(TEXT(D$1,""),'Sum of Q-D'!$A$10,"CIA Name",$A34),0))) -> 0.9777463186 | E34: =IF(D34="","",IF($A34="Grand Total",GETPIVOTDATA(TEXT(E$1,""),'Sum of Captured Q-D'!$A$10)/GETPIVOTDATA(TEXT(E$1,""),'Sum of Q-D'!$A$10),IFERROR(GETPIVOTDATA(TEXT(E$1,""),'Sum of Captured Q-D'!$A$10,"CIA Name",$A34)/GETPIVOTDATA(TEXT(E$1,""),'Sum of Q-D'!$A$10,"CIA Name",$A34),0))) -> 0.686168508
A35: Chiricahua NM Wilderness-Not Studied | B35: =IF(A35="","",IF($A35="Grand Total",GETPIVOTDATA(TEXT(B$1,""),'Sum of Captured Q-D'!$A$10)/GETPIVOTDATA(TEXT(B$1,""),'Sum of Q-D'!$A$10),IFERROR(GETPIVOTDATA(TEXT(B$1,""),'Sum of Captured Q-D'!$A$10,"CIA Name",$A35)/GETPIVOTDATA(TEXT(B$1,""),'Sum of Q-D'!$A$10,"CIA Name",$A35),0))) -> 0.8383119438 | C35: =IF(B35="","",IF($A35="Grand Total",GETPIVOTDATA(TEXT(C$1,""),'Sum of Captured Q-D'!$A$10)/GETPIVOTDATA(TEXT(C$1,""),'Sum of Q-D'!$A$10),IFERROR(GETPIVOTDATA(TEXT(C$1,""),'Sum of Captured Q-D'!$A$10,"CIA Name",$A35)/GETPIVOTDATA(TEXT(C$1,""),'Sum of Q-D'!$A$10,"CIA Name",$A35),0))) -> 0.7462426934 | D35: =IF(C35="","",IF($A35="Grand Total",GETPIVOTDATA(TEXT(D$1,""),'Sum of Captured Q-D'!$A$10)/GETPIVOTDATA(TEXT(D$1,""),'Sum of Q-D'!$A$10),IFERROR(GETPIVOTDATA(TEXT(D$1,""),'Sum of Captured Q-D'!$A$10,"CIA Name",$A35)/GETPIVOTDATA(TEXT(D$1,""),'Sum of Q-D'!$A$10,"CIA Name",$A35),0))) -> 0.9778528541 | E35: =IF(D35="","",IF($A35="Grand Total",GETPIVOTDATA(TEXT(E$1,""),'Sum of Captured Q-D'!$A$10)/GETPIVOTDATA(TEXT(E$1,""),'Sum of Q-D'!$A$10),IFERROR(GETPIVOTDATA(TEXT(E$1,""),'Sum of Captured Q-D'!$A$10,"CIA Name",$A35)/GETPIVOTDATA(TEXT(E$1,""),'Sum of Q-D'!$A$10,"CIA Name",$A35),0))) -> 0.6912825201
A36: Chiricahua Wilderness | B36: =IF(A36="","",IF($A36="Grand Total",GETPIVOTDATA(TEXT(B$1,""),'Sum of Captured Q-D'!$A$10)/GETPIVOTDATA(TEXT(B$1,""),'Sum of Q-D'!$A$10),IFERROR(GETPIVOTDATA(TEXT(B$1,""),'Sum of Captured Q-D'!$A$10,"CIA Name",$A36)/GETPIVOTDATA(TEXT(B$1,""),'Sum of Q-D'!$A$10,"CIA Name",$A36),0))) -> 0.8516275679 | C36: =IF(B36="","",IF($A36="Grand Total",GETPIVOTDATA(TEXT(C$1,""),'Sum of Captured Q-D'!$A$10)/GETPIVOTDATA(TEXT(C$1,""),'Sum of Q-D'!$A$10),IFERROR(GETPIVOTDATA(TEXT(C$1,""),'Sum of Captured Q-D'!$A$10,"CIA Name",$A36)/GETPIVOTDATA(TEXT(C$1,""),'Sum of Q-D'!$A$10,"CIA Name",$A36),0))) -> 0.7681060821 | D36: =IF(C36="","",IF($A36="Grand Total",GETPIVOTDATA(TEXT(D$1,""),'Sum of Captured Q-D'!$A$10)/GETPIVOTDATA(TEXT(D$1,""),'Sum of Q-D'!$A$10),IFERROR(GETPIVOTDATA(TEXT(D$1,""),'Sum of Captured Q-D'!$A$10,"CIA Name",$A36)/GETPIVOTDATA(TEXT(D$1,""),'Sum of Q-D'!$A$10,"CIA Name",$A36),0))) -> 0.9842541769 | E36: =IF(D36="","",IF($A36="Grand Total",GETPIVOTDATA(TEXT(E$1,""),'Sum of Captured Q-D'!$A$10)/GETPIVOTDATA(TEXT(E$1,""),'Sum of Q-D'!$A$10),IFERROR(GETPIVOTDATA(TEXT(E$1,""),'Sum of Captured Q-D'!$A$10,"CIA Name",$A36)/GETPIVOTDATA(TEXT(E$1,""),'Sum of Q-D'!$A$10,"CIA Name",$A36),0))) -> 0.6844509356
A37: Crater Lake NP | B37: =IF(A37="","",IF($A37="Grand Total",GETPIVOTDATA(TEXT(B$1,""),'Sum of Captured Q-D'!$A$10)/GETPIVOTDATA(TEXT(B$1,""),'Sum of Q-D'!$A$10),IFERROR(GETPIVOTDATA(TEXT(B$1,""),'Sum of Captured Q-D'!$A$10,"CIA Name",$A37)/GETPIVOTDATA(TEXT(B$1,""),'Sum of Q-D'!$A$10,"CIA Name",$A37),0))) -> 0.2483481217 | C37: =IF(B37="","",IF($A37="Grand Total",GETPIVOTDATA(TEXT(C$1,""),'Sum of Captured Q-D'!$A$10)/GETPIVOTDATA(TEXT(C$1,""),'Sum of Q-D'!$A$10),IFERROR(GETPIVOTDATA(TEXT(C$1,""),'Sum of Captured Q-D'!$A$10,"CIA Name",$A37)/GETPIVOTDATA(TEXT(C$1,""),'Sum of Q-D'!$A$10,"CIA Name",$A37),0))) -> 0.1758797956 | D37: =IF(C37="","",IF($A37="Grand Total",GETPIVOTDATA(TEXT(D$1,""),'Sum of Captured Q-D'!$A$10)/GETPIVOTDATA(TEXT(D$1,""),'Sum of Q-D'!$A$10),IFERROR(GETPIVOTDATA(TEXT(D$1,""),'Sum of Captured Q-D'!$A$10,"CIA Name",$A37)/GETPIVOTDATA(TEXT(D$1,""),'Sum of Q-D'!$A$10,"CIA Name",$A37),0))) -> 0.6415211412 | E37: =IF(D37="","",IF($A37="Grand Total",GETPIVOTDATA(TEXT(E$1,""),'Sum of Captured Q-D'!$A$10)/GETPIVOTDATA(TEXT(E$1,""),'Sum of Q-D'!$A$10),IFERROR(GETPIVOTDATA(TEXT(E$1,""),'Sum of Captured Q-D'!$A$10,"CIA Name",$A37)/GETPIVOTDATA(TEXT(E$1,""),'Sum of Q-D'!$A$10,"CIA Name",$A37),0))) -> 0.1465622342
A38: Craters of the Moon Wilderness | B38: =IF(A38="","",IF($A38="Grand Total",GETPIVOTDATA(TEXT(B$1,""),'Sum of Captured Q-D'!$A$10)/GETPIVOTDATA(TEXT(B$1,""),'Sum of Q-D'!$A$10),IFERROR(GETPIVOTDATA(TEXT(B$1,""),'Sum of Captured Q-D'!$A$10,"CIA Name",$A38)/GETPIVOTDATA(TEXT(B$1,""),'Sum of Q-D'!$A$10,"CIA Name",$A38),0))) -> 0.5929204215 | C38: =IF(B38="","",IF($A38="Grand Total",GETPIVOTDATA(TEXT(C$1,""),'Sum of Captured Q-D'!$A$10)/GETPIVOTDATA(TEXT(C$1,""),'Sum of Q-D'!$A$10),IFERROR(GETPIVOTDATA(TEXT(C$1,""),'Sum of Captured Q-D'!$A$10,"CIA Name",$A38)/GETPIVOTDATA(TEXT(C$1,""),'Sum of Q-D'!$A$10,"CIA Name",$A38),0))) -> 0.5228047345 | D38: =IF(C38="","",IF($A38="Grand Total",GETPIVOTDATA(TEXT(D$1,""),'Sum of Captured Q-D'!$A$10)/GETPIVOTDATA(TEXT(D$1,""),'Sum of Q-D'!$A$10),IFERROR(GETPIVOTDATA(TEXT(D$1,""),'Sum of Captured Q-D'!$A$10,"CIA Name",$A38)/GETPIVOTDATA(TEXT(D$1,""),'Sum of Q-D'!$A$10,"CIA Name",$A38),0))) -> 0.785750515 | E38: =IF(D38="","",IF($A38="Grand Total",GETPIVOTDATA(TEXT(E$1,""),'Sum of Captured Q-D'!$A$10)/GETPIVOTDATA(TEXT(E$1,""),'Sum of Q-D'!$A$10),IFERROR(GETPIVOTDATA(TEXT(E$1,""),'Sum of Captured Q-D'!$A$10,"CIA Name",$A38)/GETPIVOTDATA(TEXT(E$1,""),'Sum of Q-D'!$A$10,"CIA Name",$A38),0))) -> 0.4385123233
A39: Cucamonga Wilderness | B39: =IF(A39="","",IF($A39="Grand Total",GETPIVOTDATA(TEXT(B$1,""),'Sum of Captured Q-D'!$A$10)/GETPIVOTDATA(TEXT(B$1,""),'Sum of Q-D'!$A$10),IFERROR(GETPIVOTDATA(TEXT(B$1,""),'Sum of Captured Q-D'!$A$10,"CIA Name",$A39)/GETPIVOTDATA(TEXT(B$1,""),'Sum of Q-D'!$A$10,"CIA Name",$A39),0))) -> 0.6207281593 | C39: =IF(B39="","",IF($A39="Grand Total",GETPIVOTDATA(TEXT(C$1,""),'Sum of Captured Q-D'!$A$10)/GETPIVOTDATA(TEXT(C$1,""),'Sum of Q-D'!$A$10),IFERROR(GETPIVOTDATA(TEXT(C$1,""),'Sum of Captured Q-D'!$A$10,"CIA Name",$A39)/GETPIVOTDATA(TEXT(C$1,""),'Sum of Q-D'!$A$10,"CIA Name",$A39),0))) -> 0.6402766613 | D39: =IF(C39="","",IF($A39="Grand Total",GETPIVOTDATA(TEXT(D$1,""),'Sum of Captured Q-D'!$A$10)/GETPIVOTDATA(TEXT(D$1,""),'Sum of Q-D'!$A$10),IFERROR(GETPIVOTDATA(TEXT(D$1,""),'Sum of Captured Q-D'!$A$10,"CIA Name",$A39)/GETPIVOTDATA(TEXT(D$1,""),'Sum of Q-D'!$A$10,"CIA Name",$A39),0))) -> 0.5780992995 | E39: =IF(D39="","",IF($A39="Grand Total",GETPIVOTDATA(TEXT(E$1,""),'Sum of Captured Q-D'!$A$10)/GETPIVOTDATA(TEXT(E$1,""),'Sum of Q-D'!$A$10),IFERROR(GETPIVOTDATA(TEXT(E$1,""),'Sum of Captured Q-D'!$A$10,"CIA Name",$A39)/GETPIVOTDATA(TEXT(E$1,""),'Sum of Q-D'!$A$10,"CIA Name",$A39),0))) -> 0.5962814869
A40: Denali NP | B40: =IF(A40="","",IF($A40="Grand Total",GETPIVOTDATA(TEXT(B$1,""),'Sum of Captured Q-D'!$A$10)/GETPIVOTDATA(TEXT(B$1,""),'Sum of Q-D'!$A$10),IFERROR(GETPIVOTDATA(TEXT(B$1,""),'Sum of Captured Q-D'!$A$10,"CIA Name",$A40)/GETPIVOTDATA(TEXT(B$1,""),'Sum of Q-D'!$A$10,"CIA Name",$A40),0))) -> 0.717737276 | C40: =IF(B40="","",IF($A40="Grand Total",GETPIVOTDATA(TEXT(C$1,""),'Sum of Captured Q-D'!$A$10)/GETPIVOTDATA(TEXT(C$1,""),'Sum of Q-D'!$A$10),IFERROR(GETPIVOTDATA(TEXT(C$1,""),'Sum of Captured Q-D'!$A$10,"CIA Name",$A40)/GETPIVOTDATA(TEXT(C$1,""),'Sum of Q-D'!$A$10,"CIA Name",$A40),0))) -> 0.6186630114 | D40: =IF(C40="","",IF($A40="Grand Total",GETPIVOTDATA(TEXT(D$1,""),'Sum of Captured Q-D'!$A$10)/GETPIVOTDATA(TEXT(D$1,""),'Sum of Q-D'!$A$10),IFERROR(GETPIVOTDATA(TEXT(D$1,""),'Sum of Captured Q-D'!$A$10,"CIA Name",$A40)/GETPIVOTDATA(TEXT(D$1,""),'Sum of Q-D'!$A$10,"CIA Name",$A40),0))) -> 0.896681597 | E40: =IF(D40="","",IF($A40="Grand Total",GETPIVOTDATA(TEXT(E$1,""),'Sum of Captured Q-D'!$A$10)/GETPIVOTDATA(TEXT(E$1,""),'Sum of Q-D'!$A$10),IFERROR(GETPIVOTDATA(TEXT(E$1,""),'Sum of Captured Q-D'!$A$10,"CIA Name",$A40)/GETPIVOTDATA(TEXT(E$1,""),'Sum of Q-D'!$A$10,"CIA Name",$A40),0))) -> 0.5527408626
A41: Denali NP and Wilderness | B41: =IF(A41="","",IF($A41="Grand Total",GETPIVOTDATA(TEXT(B$1,""),'Sum of Captured Q-D'!$A$10)/GETPIVOTDATA(TEXT(B$1,""),'Sum of Q-D'!$A$10),IFERROR(GETPIVOTDATA(TEXT(B$1,""),'Sum of Captured Q-D'!$A$10,"CIA Name",$A41)/GETPIVOTDATA(TEXT(B$1,""),'Sum of Q-D'!$A$10,"CIA Name",$A41),0))) -> 0.627645228 | C41: =IF(B41="","",IF($A41="Grand Total",GETPIVOTDATA(TEXT(C$1,""),'Sum of Captured Q-D'!$A$10)/GETPIVOTDATA(TEXT(C$1,""),'Sum of Q-D'!$A$10),IFERROR(GETPIVOTDATA(TEXT(C$1,""),'Sum of Captured Q-D'!$A$10,"CIA Name",$A41)/GETPIVOTDATA(TEXT(C$1,""),'Sum of Q-D'!$A$10,"CIA Name",$A41),0))) -> 0.5169023568 | D41: =IF(C41="","",IF($A41="Grand Total",GETPIVOTDATA(TEXT(D$1,""),'Sum of Captured Q-D'!$A$10)/GETPIVOTDATA(TEXT(D$1,""),'Sum of Q-D'!$A$10),IFERROR(GETPIVOTDATA(TEXT(D$1,""),'Sum of Captured Q-D'!$A$10,"CIA Name",$A41)/GETPIVOTDATA(TEXT(D$1,""),'Sum of Q-D'!$A$10,"CIA Name",$A41),0))) -> 0.8058892079 | E41: =IF(D41="","",IF($A41="Grand Total",GETPIVOTDATA(TEXT(E$1,""),'Sum of Captured Q-D'!$A$10)/GETPIVOTDATA(TEXT(E$1,""),'Sum of Q-D'!$A$10),IFERROR(GETPIVOTDATA(TEXT(E$1,""),'Sum of Captured Q-D'!$A$10,"CIA Name",$A41)/GETPIVOTDATA(TEXT(E$1,""),'Sum of Q-D'!$A$10,"CIA Name",$A41),0))) -> 0.5331624226
A42: Desolation Wilderness | B42: =IF(A42="","",IF($A42="Grand Total",GETPIVOTDATA(TEXT(B$1,""),'Sum of Captured Q-D'!$A$10)/GETPIVOTDATA(TEXT(B$1,""),'Sum of Q-D'!$A$10),IFERROR(GETPIVOTDATA(TEXT(B$1,""),'Sum of Captured Q-D'!$A$10,"CIA Name",$A42)/GETPIVOTDATA(TEXT(B$1,""),'Sum of Q-D'!$A$10,"CIA Name",$A42),0))) -> 0.3075832728 | C42: =IF(B42="","",IF($A42="Grand Total",GETPIVOTDATA(TEXT(C$1,""),'Sum of Captured Q-D'!$A$10)/GETPIVOTDATA(TEXT(C$1,""),'Sum of Q-D'!$A$10),IFERROR(GETPIVOTDATA(TEXT(C$1,""),'Sum of Captured Q-D'!$A$10,"CIA Name",$A42)/GETPIVOTDATA(TEXT(C$1,""),'Sum of Q-D'!$A$10,"CIA Name",$A42),0))) -> 0.3022307922 | D42: =IF(C42="","",IF($A42="Grand Total",GETPIVOTDATA(TEXT(D$1,""),'Sum of Captured Q-D'!$A$10)/GETPIVOTDATA(TEXT(D$1,""),'Sum of Q-D'!$A$10),IFERROR(GETPIVOTDATA(TEXT(D$1,""),'Sum of Captured Q-D'!$A$10,"CIA Name",$A42)/GETPIVOTDATA(TEXT(D$1,""),'Sum of Q-D'!$A$10,"CIA Name",$A42),0))) -> 0.556230679 | E42: =IF(D42="","",IF($A42="Grand Total",GETPIVOTDATA(TEXT(E$1,""),'Sum of Captured Q-D'!$A$10)/GETPIVOTDATA(TEXT(E$1,""),'Sum of Q-D'!$A$10),IFERROR(GETPIVOTDATA(TEXT(E$1,""),'Sum of Captured Q-D'!$A$10,"CIA Name",$A42)/GETPIVOTDATA(TEXT(E$1,""),'Sum of Q-D'!$A$10,"CIA Name",$A42),0))) -> 0.1051889727
A43: Diamond Peak Wilderness | B43: =IF(A43="","",IF($A43="Grand Total",GETPIVOTDATA(TEXT(B$1,""),'Sum of Captured Q-D'!$A$10)/GETPIVOTDATA(TEXT(B$1,""),'Sum of Q-D'!$A$10),IFERROR(GETPIVOTDATA(TEXT(B$1,""),'Sum of Captured Q-D'!$A$10,"CIA Name",$A43)/GETPIVOTDATA(TEXT(B$1,""),'Sum of Q-D'!$A$10,"CIA Name",$A43),0))) -> 0.3630922932 | C43: =IF(B43="","",IF($A43="Grand Total",GETPIVOTDATA(TEXT(C$1,""),'Sum of Captured Q-D'!$A$10)/GETPIVOTDATA(TEXT(C$1,""),'Sum of Q-D'!$A$10),IFERROR(GETPIVOTDATA(TEXT(C$1,""),'Sum of Captured Q-D'!$A$10,"CIA Name",$A43)/GETPIVOTDATA(TEXT(C$1,""),'Sum of Q-D'!$A$10,"CIA Name",$A43),0))) -> 0.3221432163 | D43: =IF(C43="","",IF($A43="Grand Total",GETPIVOTDATA(TEXT(D$1,""),'Sum of Captured Q-D'!$A$10)/GETPIVOTDATA(TEXT(D$1,""),'Sum of Q-D'!$A$10),IFERROR(GETPIVOTDATA(TEXT(D$1,""),'Sum of Captured Q-D'!$A$10,"CIA Name",$A43)/GETPIVOTDATA(TEXT(D$1,""),'Sum of Q-D'!$A$10,"CIA Name",$A43),0))) -> 0.696919785 | E43: =IF(D43="","",IF($A43="Grand Total",GETPIVOTDATA(TEXT(E$1,""),'Sum of Captured Q-D'!$A$10)/GETPIVOTDATA(TEXT(E$1,""),'Sum of Q-D'!$A$10),IFERROR(GETPIVOTDATA(TEXT(E$1,""),'Sum of Captured Q-D'!$A$10,"CIA Name",$A43)/GETPIVOTDATA(TEXT(E$1,""),'Sum of Q-D'!$A$10,"CIA Name",$A43),0))) -> 0.1720958003
A44: Domeland Wilderness | B44: =IF(A44="","",IF($A44="Grand Total",GETPIVOTDATA(TEXT(B$1,""),'Sum of Captured Q-D'!$A$10)/GETPIVOTDATA(TEXT(B$1,""),'Sum of Q-D'!$A$10),IFERROR(GETPIVOTDATA(TEXT(B$1,""),'Sum of Captured Q-D'!$A$10,"CIA Name",$A44)/GETPIVOTDATA(TEXT(B$1,""),'Sum of Q-D'!$A$10,"CIA Name",$A44),0))) -> 0.3955614099 | C44: =IF(B44="","",IF($A44="Grand Total",GETPIVOTDATA(TEXT(C$1,""),'Sum of Captured Q-D'!$A$10)/GETPIVOTDATA(TEXT(C$1,""),'Sum of Q-D'!$A$10),IFERROR(GETPIVOTDATA(TEXT(C$1,""),'Sum of Captured Q-D'!$A$10,"CIA Name",$A44)/GETPIVOTDATA(TEXT(C$1,""),'Sum of Q-D'!$A$10,"CIA Name",$A44),0))) -> 0.4053827369 | D44: =IF(C44="","",IF($A44="Grand Total",GETPIVOTDATA(TEXT(D$1,""),'Sum of Captured Q-D'!$A$10)/GETPIVOTDATA(TEXT(D$1,""),'Sum of Q-D'!$A$10),IFERROR(GETPIVOTDATA(TEXT(D$1,""),'Sum of Captured Q-D'!$A$10,"CIA Name",$A44)/GETPIVOTDATA(TEXT(D$1,""),'Sum of Q-D'!$A$10,"CIA Name",$A44),0))) -> 0.288738377 | E44: =IF(D44="","",IF($A44="Grand Total",GETPIVOTDATA(TEXT(E$1,""),'Sum of Captured Q-D'!$A$10)/GETPIVOTDATA(TEXT(E$1,""),'Sum of Q-D'!$A$10),IFERROR(GETPIVOTDATA(TEXT(E$1,""),'Sum of Captured Q-D'!$A$10,"CIA Name",$A44)/GETPIVOTDATA(TEXT(E$1,""),'Sum of Q-D'!$A$10,"CIA Name",$A44),0))) -> 0.4122997424
A45: Eagle Cap Wilderness | B45: =IF(A45="","",IF($A45="Grand Total",GETPIVOTDATA(TEXT(B$1,""),'Sum of Captured Q-D'!$A$10)/GETPIVOTDATA(TEXT(B$1,""),'Sum of Q-D'!$A$10),IFERROR(GETPIVOTDATA(TEXT(B$1,""),'Sum of Captured Q-D'!$A$10,"CIA Name",$A45)/GETPIVOTDATA(TEXT(B$1,""),'Sum of Q-D'!$A$10,"CIA Name",$A45),0))) -> 0.6562787481 | C45: =IF(B45="","",IF($A45="Grand Total",GETPIVOTDATA(TEXT(C$1,""),'Sum of Captured Q-D'!$A$10)/GETPIVOTDATA(TEXT(C$1,""),'Sum of Q-D'!$A$10),IFERROR(GETPIVOTDATA(TEXT(C$1,""),'Sum of Captured Q-D'!$A$10,"CIA Name",$A45)/GETPIVOTDATA(TEXT(C$1,""),'Sum of Q-D'!$A$10,"CIA Name",$A45),0))) -> 0.5947568627 | D45: =IF(C45="","",IF($A45="Grand Total",GETPIVOTDATA(TEXT(D$1,""),'Sum of Captured Q-D'!$A$10)/GETPIVOTDATA(TEXT(D$1,""),'Sum of Q-D'!$A$10),IFERROR(GETPIVOTDATA(TEXT(D$1,""),'Sum of Captured Q-D'!$A$10,"CIA Name",$A45)/GETPIVOTDATA(TEXT(D$1,""),'Sum of Q-D'!$A$10,"CIA Name",$A45),0))) -> 0.8759002029 | E45: =IF(D45="","",IF($A45="Grand Total",GETPIVOTDATA(TEXT(E$1,""),'Sum of Captured Q-D'!$A$10)/GETPIVOTDATA(TEXT(E$1,""),'Sum of Q-D'!$A$10),IFERROR(GETPIVOTDATA(TEXT(E$1,""),'Sum of Captured Q-D'!$A$10,"CIA Name",$A45)/GETPIVOTDATA(TEXT(E$1,""),'Sum of Q-D'!$A$10,"CIA Name",$A45),0))) -> 0.4177737269
A46: Eagles Nest Wilderness | B46: =IF(A46="","",IF($A46="Grand Total",GETPIVOTDATA(TEXT(B$1,""),'Sum of Captured Q-D'!$A$10)/GETPIVOTDATA(TEXT(B$1,""),'Sum of Q-D'!$A$10),IFERROR(GETPIVOTDATA(TEXT(B$1,""),'Sum of Captured Q-D'!$A$10,"CIA Name",$A46)/GETPIVOTDATA(TEXT(B$1,""),'Sum of Q-D'!$A$10,"CIA Name",$A46),0))) -> 0.6866340162 | C46: =IF(B46="","",IF($A46="Grand Total",GETPIVOTDATA(TEXT(C$1,""),'Sum of Captured Q-D'!$A$10)/GETPIVOTDATA(TEXT(C$1,""),'Sum of Q-D'!$A$10),IFERROR(GETPIVOTDATA(TEXT(C$1,""),'Sum of Captured Q-D'!$A$10,"CIA Name",$A46)/GETPIVOTDATA(TEXT(C$1,""),'Sum of Q-D'!$A$10,"CIA Name",$A46),0))) -> 0.6748550724 | D46: =IF(C46="","",IF($A46="Grand Total",GETPIVOTDATA(TEXT(D$1,""),'Sum of Captured Q-D'!$A$10)/GETPIVOTDATA(TEXT(D$1,""),'Sum of Q-D'!$A$10),IFERROR(GETPIVOTDATA(TEXT(D$1,""),'Sum of Captured Q-D'!$A$10,"CIA Name",$A46)/GETPIVOTDATA(TEXT(D$1,""),'Sum of Q-D'!$A$10,"CIA Name",$A46),0))) -> 0.8661651261 | E46: =IF(D46="","",IF($A46="Grand Total",GETPIVOTDATA(TEXT(E$1,""),'Sum of Captured Q-D'!$A$10)/GETPIVOTDATA(TEXT(E$1,""),'Sum of Q-D'!$A$10),IFERROR(GETPIVOTDATA(TEXT(E$1,""),'Sum of Captured Q-D'!$A$10,"CIA Name",$A46)/GETPIVOTDATA(TEXT(E$1,""),'Sum of Q-D'!$A$10,"CIA Name",$A46),0))) -> 0.3345865002
A47: Emigrant Wilderness | B47: =IF(A47="","",IF($A47="Grand Total",GETPIVOTDATA(TEXT(B$1,""),'Sum of Captured Q-D'!$A$10)/GETPIVOTDATA(TEXT(B$1,""),'Sum of Q-D'!$A$10),IFERROR(GETPIVOTDATA(TEXT(B$1,""),'Sum of Captured Q-D'!$A$10,"CIA Name",$A47)/GETPIVOTDATA(TEXT(B$1,""),'Sum of Q-D'!$A$10,"CIA Name",$A47),0))) -> 0.2903378174 | C47: =IF(B47="","",IF($A47="Grand Total",GETPIVOTDATA(TEXT(C$1,""),'Sum of Captured Q-D'!$A$10)/GETPIVOTDATA(TEXT(C$1,""),'Sum of Q-D'!$A$10),IFERROR(GETPIVOTDATA(TEXT(C$1,""),'Sum of Captured Q-D'!$A$10,"CIA Name",$A47)/GETPIVOTDATA(TEXT(C$1,""),'Sum of Q-D'!$A$10,"CIA Name",$A47),0))) -> 0.2909251983 | D47: =IF(C47="","",IF($A47="Grand Total",GETPIVOTDATA(TEXT(D$1,""),'Sum of Captured Q-D'!$A$10)/GETPIVOTDATA(TEXT(D$1,""),'Sum of Q-D'!$A$10),IFERROR(GETPIVOTDATA(TEXT(D$1,""),'Sum of Captured Q-D'!$A$10,"CIA Name",$A47)/GETPIVOTDATA(TEXT(D$1,""),'Sum of Q-D'!$A$10,"CIA Name",$A47),0))) -> 0.5174081303 | E47: =IF(D47="","",IF($A47="Grand Total",GETPIVOTDATA(TEXT(E$1,""),'Sum of Captured Q-D'!$A$10)/GETPIVOTDATA(TEXT(E$1,""),'Sum of Q-D'!$A$10),IFERROR(GETPIVOTDATA(TEXT(E$1,""),'Sum of Captured Q-D'!$A$10,"CIA Name",$A47)/GETPIVOTDATA(TEXT(E$1,""),'Sum of Q-D'!$A$10,"CIA Name",$A47),0))) -> 0.09201703144
A48: Fitzpatrick Wilderness | B48: =IF(A48="","",IF($A48="Grand Total",GETPIVOTDATA(TEXT(B$1,""),'Sum of Captured Q-D'!$A$10)/GETPIVOTDATA(TEXT(B$1,""),'Sum of Q-D'!$A$10),IFERROR(GETPIVOTDATA(TEXT(B$1,""),'Sum of Captured Q-D'!$A$10,"CIA Name",$A48)/GETPIVOTDATA(TEXT(B$1,""),'Sum of Q-D'!$A$10,"CIA Name",$A48),0))) -> 0.6897040907 | C48: =IF(B48="","",IF($A48="Grand Total",GETPIVOTDATA(TEXT(C$1,""),'Sum of Captured Q-D'!$A$10)/GETPIVOTDATA(TEXT(C$1,""),'Sum of Q-D'!$A$10),IFERROR(GETPIVOTDATA(TEXT(C$1,""),'Sum of Captured Q-D'!$A$10,"CIA Name",$A48)/GETPIVOTDATA(TEXT(C$1,""),'Sum of Q-D'!$A$10,"CIA Name",$A48),0))) -> 0.697970732 | D48: =IF(C48="","",IF($A48="Grand Total",GETPIVOTDATA(TEXT(D$1,""),'Sum of Captured Q-D'!$A$10)/GETPIVOTDATA(TEXT(D$1,""),'Sum of Q-D'!$A$10),IFERROR(GETPIVOTDATA(TEXT(D$1,""),'Sum of Captured Q-D'!$A$10,"CIA Name",$A48)/GETPIVOTDATA(TEXT(D$1,""),'Sum of Q-D'!$A$10,"CIA Name",$A48),0))) -> 0.79887866 | E48: =IF(D48="","",IF($A48="Grand Total",GETPIVOTDATA(TEXT(E$1,""),'Sum of Captured Q-D'!$A$10)/GETPIVOTDATA(TEXT(E$1,""),'Sum of Q-D'!$A$10),IFERROR(GETPIVOTDATA(TEXT(E$1,""),'Sum of Captured Q-D'!$A$10,"CIA Name",$A48)/GETPIVOTDATA(TEXT(E$1,""),'Sum of Q-D'!$A$10,"CIA Name",$A48),0))) -> 0.3909860066
A49: Flat Tops Wilderness | B49: =IF(A49="","",IF($A49="Grand Total",GETPIVOTDATA(TEXT(B$1,""),'Sum of Captured Q-D'!$A$10)/GETPIVOTDATA(TEXT(B$1,""),'Sum of Q-D'!$A$10),IFERROR(GETPIVOTDATA(TEXT(B$1,""),'Sum of Captured Q-D'!$A$10,"CIA Name",$A49)/GETPIVOTDATA(TEXT(B$1,""),'Sum of Q-D'!$A$10,"CIA Name",$A49),0))) -> 0.7140544488 | C49: =IF(B49="","",IF($A49="Grand Total",GETPIVOTDATA(TEXT(C$1,""),'Sum of Captured Q-D'!$A$10)/GETPIVOTDATA(TEXT(C$1,""),'Sum of Q-D'!$A$10),IFERROR(GETPIVOTDATA(TEXT(C$1,""),'Sum of Captured Q-D'!$A$10,"CIA Name",$A49)/GETPIVOTDATA(TEXT(C$1,""),'Sum of Q-D'!$A$10,"CIA Name",$A49),0))) -> 0.6966247791 | D49: =IF(C49="","",IF($A49="Grand Total",GETPIVOTDATA(TEXT(D$1,""),'Sum of Captured Q-D'!$A$10)/GETPIVOTDATA(TEXT(D$1,""),'Sum of Q-D'!$A$10),IFERROR(GETPIVOTDATA(TEXT(D$1,""),'Sum of Captured Q-D'!$A$10,"CIA Name",$A49)/GETPIVOTDATA(TEXT(D$1,""),'Sum of Q-D'!$A$10,"CIA Name",$A49),0))) -> 0.8703392328 | E49: =IF(D49="","",IF($A49="Grand Total",GETPIVOTDATA(TEXT(E$1,""),'Sum of Captured Q-D'!$A$10)/GETPIVOTDATA(TEXT(E$1,""),'Sum of Q-D'!$A$10),IFERROR(GETPIVOTDATA(TEXT(E$1,""),'Sum of Captured Q-D'!$A$10,"CIA Name",$A49)/GETPIVOTDATA(TEXT(E$1,""),'Sum of Q-D'!$A$10,"CIA Name",$A49),0))) -> 0.4277066651
A50: Galiuro Wilderness | B50: =IF(A50="","",IF($A50="Grand Total",GETPIVOTDATA(TEXT(B$1,""),'Sum of Captured Q-D'!$A$10)/GETPIVOTDATA(TEXT(B$1,""),'Sum of Q-D'!$A$10),IFERROR(GETPIVOTDATA(TEXT(B$1,""),'Sum of Captured Q-D'!$A$10,"CIA Name",$A50)/GETPIVOTDATA(TEXT(B$1,""),'Sum of Q-D'!$A$10,"CIA Name",$A50),0))) -> 0.8825525164 | C50: =IF(B50="","",IF($A50="Grand Total",GETPIVOTDATA(TEXT(C$1,""),'Sum of Captured Q-D'!$A$10)/GETPIVOTDATA(TEXT(C$1,""),'Sum of Q-D'!$A$10),IFERROR(GETPIVOTDATA(TEXT(C$1,""),'Sum of Captured Q-D'!$A$10,"CIA Name",$A50)/GETPIVOTDATA(TEXT(C$1,""),'Sum of Q-D'!$A$10,"CIA Name",$A50),0))) -> 0.7390123762 | D50: =IF(C50="","",IF($A50="Grand Total",GETPIVOTDATA(TEXT(D$1,""),'Sum of Captured Q-D'!$A$10)/GETPIVOTDATA(TEXT(D$1,""),'Sum of Q-D'!$A$10),IFERROR(GETPIVOTDATA(TEXT(D$1,""),'Sum of Captured Q-D'!$A$10,"CIA Name",$A50)/GETPIVOTDATA(TEXT(D$1,""),'Sum of Q-D'!$A$10,"CIA Name",$A50),0))) -> 0.9894750229 | E50: =IF(D50="","",IF($A50="Grand Total",GETPIVOTDATA(TEXT(E$1,""),'Sum of Captured Q-D'!$A$10)/GETPIVOTDATA(TEXT(E$1,""),'Sum of Q-D'!$A$10),IFERROR(GETPIVOTDATA(TEXT(E$1,""),'Sum of Captured Q-D'!$A$10,"CIA Name",$A50)/GETPIVOTDATA(TEXT(E$1,""),'Sum of Q-D'!$A$10,"CIA Name",$A50),0))) -> 0.7875017675
A51: Gates of the Mountains Wilderness | B51: =IF(A51="","",IF($A51="Grand Total",GETPIVOTDATA(TEXT(B$1,""),'Sum of Captured Q-D'!$A$10)/GETPIVOTDATA(TEXT(B$1,""),'Sum of Q-D'!$A$10),IFERROR(GETPIVOTDATA(TEXT(B$1,""),'Sum of Captured Q-D'!$A$10,"CIA Name",$A51)/GETPIVOTDATA(TEXT(B$1,""),'Sum of Q-D'!$A$10,"CIA Name",$A51),0))) -> 0.4684248261 | C51: =IF(B51="","",IF($A51="Grand Total",GETPIVOTDATA(TEXT(C$1,""),'Sum of Captured Q-D'!$A$10)/GETPIVOTDATA(TEXT(C$1,""),'Sum of Q-D'!$A$10),IFERROR(GETPIVOTDATA(TEXT(C$1,""),'Sum of Captured Q-D'!$A$10,"CIA Name",$A51)/GETPIVOTDATA(TEXT(C$1,""),'Sum of Q-D'!$A$10,"CIA Name",$A51),0))) -> 0.6091804496 | D51: =IF(C51="","",IF($A51="Grand Total",GETPIVOTDATA(TEXT(D$1,""),'Sum of Captured Q-D'!$A$10)/GETPIVOTDATA(TEXT(D$1,""),'Sum of Q-D'!$A$10),IFERROR(GETPIVOTDATA(TEXT(D$1,""),'Sum of Captured Q-D'!$A$10,"CIA Name",$A51)/GETPIVOTDATA(TEXT(D$1,""),'Sum of Q-D'!$A$10,"CIA Name",$A51),0))) -> 0.3491502271 | E51: =IF(D51="","",IF($A51="Grand Total",GETPIVOTDATA(TEXT(E$1,""),'Sum of Captured Q-D'!$A$10)/GETPIVOTDATA(TEXT(E$1,""),'Sum of Q-D'!$A$10),IFERROR(GETPIVOTDATA(TEXT(E$1,""),'Sum of Captured Q-D'!$A$10,"CIA Name",$A51)/GETPIVOTDATA(TEXT(E$1,""),'Sum of Q-D'!$A$10,"CIA Name",$A51),0))) -> 0.1769361537
A52: Gearhart Mountain Wilderness | B52: =IF(A52="","",IF($A52="Grand Total",GETPIVOTDATA(TEXT(B$1,""),'Sum of Captured Q-D'!$A$10)/GETPIVOTDATA(TEXT(B$1,""),'Sum of Q-D'!$A$10),IFERROR(GETPIVOTDATA(TEXT(B$1,""),'Sum of Captured Q-D'!$A$10,"CIA Name",$A52)/GETPIVOTDATA(TEXT(B$1,""),'Sum of Q-D'!$A$10,"CIA Name",$A52),0))) -> 0.3428047802 | C52: =IF(B52="","",IF($A52="Grand Total",GETPIVOTDATA(TEXT(C$1,""),'Sum of Captured Q-D'!$A$10)/GETPIVOTDATA(TEXT(C$1,""),'Sum of Q-D'!$A$10),IFERROR(GETPIVOTDATA(TEXT(C$1,""),'Sum of Captured Q-D'!$A$10,"CIA Name",$A52)/GETPIVOTDATA(TEXT(C$1,""),'Sum of Q-D'!$A$10,"CIA Name",$A52),0))) -> 0.204515078 | D52: =IF(C52="","",IF($A52="Grand Total",GETPIVOTDATA(TEXT(D$1,""),'Sum of Captured Q-D'!$A$10)/GETPIVOTDATA(TEXT(D$1,""),'Sum of Q-D'!$A$10),IFERROR(GETPIVOTDATA(TEXT(D$1,""),'Sum of Captured Q-D'!$A$10,"CIA Name",$A52)/GETPIVOTDATA(TEXT(D$1,""),'Sum of Q-D'!$A$10,"CIA Name",$A52),0))) -> 0.7738457158 | E52: =IF(D52="","",IF($A52="Grand Total",GETPIVOTDATA(TEXT(E$1,""),'Sum of Captured Q-D'!$A$10)/GETPIVOTDATA(TEXT(E$1,""),'Sum of Q-D'!$A$10),IFERROR(GETPIVOTDATA(TEXT(E$1,""),'Sum of Captured Q-D'!$A$10,"CIA Name",$A52)/GETPIVOTDATA(TEXT(E$1,""),'Sum of Q-D'!$A$10,"CIA Name",$A52),0))) -> 0.0848741012
A53: Gila Wilderness | B53: =IF(A53="","",IF($A53="Grand Total",GETPIVOTDATA(TEXT(B$1,""),'Sum of Captured Q-D'!$A$10)/GETPIVOTDATA(TEXT(B$1,""),'Sum of Q-D'!$A$10),IFERROR(GETPIVOTDATA(TEXT(B$1,""),'Sum of Captured Q-D'!$A$10,"CIA Name",$A53)/GETPIVOTDATA(TEXT(B$1,""),'Sum of Q-D'!$A$10,"CIA Name",$A53),0))) -> 0.8073096201 | C53: =IF(B53="","",IF($A53="Grand Total",GETPIVOTDATA(TEXT(C$1,""),'Sum of Captured Q-D'!$A$10)/GETPIVOTDATA(TEXT(C$1,""),'Sum of Q-D'!$A$10),IFERROR(GETPIVOTDATA(TEXT(C$1,""),'Sum of Captured Q-D'!$A$10,"CIA Name",$A53)/GETPIVOTDATA(TEXT(C$1,""),'Sum of Q-D'!$A$10,"CIA Name",$A53),0))) -> 0.7146199594 | D53: =IF(C53="","",IF($A53="Grand Total",GETPIVOTDATA(TEXT(D$1,""),'Sum of Captured Q-D'!$A$10)/GETPIVOTDATA(TEXT(D$1,""),'Sum of Q-D'!$A$10),IFERROR(GETPIVOTDATA(TEXT(D$1,""),'Sum of Captured Q-D'!$A$10,"CIA Name",$A53)/GETPIVOTDATA(TEXT(D$1,""),'Sum of Q-D'!$A$10,"CIA Name",$A53),0))) -> 0.9623689474 | E53: =IF(D53="","",IF($A53="Grand Total",GETPIVOTDATA(TEXT(E$1,""),'Sum of Captured Q-D'!$A$10)/GETPIVOTDATA(TEXT(E$1,""),'Sum of Q-D'!$A$10),IFERROR(GETPIVOTDATA(TEXT(E$1,""),'Sum of Captured Q-D'!$A$10,"CIA Name",$A53)/GETPIVOTDATA(TEXT(E$1,""),'Sum of Q-D'!$A$10,"CIA Name",$A53),0))) -> 0.7968581568
A54: Glacier NP | B54: =IF(A54="","",IF($A54="Grand Total",GETPIVOTDATA(TEXT(B$1,""),'Sum of Captured Q-D'!$A$10)/GETPIVOTDATA(TEXT(B$1,""),'Sum of Q-D'!$A$10),IFERROR(GETPIVOTDATA(TEXT(B$1,""),'Sum of Captured Q-D'!$A$10,"CIA Name",$A54)/GETPIVOTDATA(TEXT(B$1,""),'Sum of Q-D'!$A$10,"CIA Name",$A54),0))) -> 0.6050954226 | C54: =IF(B54="","",IF($A54="Grand Total",GETPIVOTDATA(TEXT(C$1,""),'Sum of Captured Q-D'!$A$10)/GETPIVOTDATA(TEXT(C$1,""),'Sum of Q-D'!$A$10),IFERROR(GETPIVOTDATA(TEXT(C$1,""),'Sum of Captured Q-D'!$A$10,"CIA Name",$A54)/GETPIVOTDATA(TEXT(C$1,""),'Sum of Q-D'!$A$10,"CIA Name",$A54),0))) -> 0.6578321794 | D54: =IF(C54="","",IF($A54="Grand Total",GETPIVOTDATA(TEXT(D$1,""),'Sum of Captured Q-D'!$A$10)/GETPIVOTDATA(TEXT(D$1,""),'Sum of Q-D'!$A$10),IFERROR(GETPIVOTDATA(TEXT(D$1,""),'Sum of Captured Q-D'!$A$10,"CIA Name",$A54)/GETPIVOTDATA(TEXT(D$1,""),'Sum of Q-D'!$A$10,"CIA Name",$A54),0))) -> 0.2262850972 | E54: =IF(D54="","",IF($A54="Grand Total",GETPIVOTDATA(TEXT(E$1,""),'Sum of Captured Q-D'!$A$10)/GETPIVOTDATA(TEXT(E$1,""),'Sum of Q-D'!$A$10),IFERROR(GETPIVOTDATA(TEXT(E$1,""),'Sum of Captured Q-D'!$A$10,"CIA Name",$A54)/GETPIVOTDATA(TEXT(E$1,""),'Sum of Q-D'!$A$10,"CIA Name",$A54),0))) -> 0.5219028522
A55: Glacier Peak Wilderness | B55: =IF(A55="","",IF($A55="Grand Total",GETPIVOTDATA(TEXT(B$1,""),'Sum of Captured Q-D'!$A$10)/GETPIVOTDATA(TEXT(B$1,""),'Sum of Q-D'!$A$10),IFERROR(GETPIVOTDATA(TEXT(B$1,""),'Sum of Captured Q-D'!$A$10,"CIA Name",$A55)/GETPIVOTDATA(TEXT(B$1,""),'Sum of Q-D'!$A$10,"CIA Name",$A55),0))) -> 0.6831497371 | C55: =IF(B55="","",IF($A55="Grand Total",GETPIVOTDATA(TEXT(C$1,""),'Sum of Captured Q-D'!$A$10)/GETPIVOTDATA(TEXT(C$1,""),'Sum of Q-D'!$A$10),IFERROR(GETPIVOTDATA(TEXT(C$1,""),'Sum of Captured Q-D'!$A$10,"CIA Name",$A55)/GETPIVOTDATA(TEXT(C$1,""),'Sum of Q-D'!$A$10,"CIA Name",$A55),0))) -> 0.6059532205 | D55: =IF(C55="","",IF($A55="Grand Total",GETPIVOTDATA(TEXT(D$1,""),'Sum of Captured Q-D'!$A$10)/GETPIVOTDATA(TEXT(D$1,""),'Sum of Q-D'!$A$10),IFERROR(GETPIVOTDATA(TEXT(D$1,""),'Sum of Captured Q-D'!$A$10,"CIA Name",$A55)/GETPIVOTDATA(TEXT(D$1,""),'Sum of Q-D'!$A$10,"CIA Name",$A55),0))) -> 0.8882994642 | E55: =IF(D55="","",IF($A55="Grand Total",GETPIVOTDATA(TEXT(E$1,""),'Sum of Captured Q-D'!$A$10)/GETPIVOTDATA(TEXT(E$1,""),'Sum of Q-D'!$A$10),IFERROR(GETPIVOTDATA(TEXT(E$1,""),'Sum of Captured Q-D'!$A$10,"CIA Name",$A55)/GETPIVOTDATA(TEXT(E$1,""),'Sum of Q-D'!$A$10,"CIA Name",$A55),0))) -> 0.4261326071
A56: Goat Rocks Wilderness | B56: =IF(A56="","",IF($A56="Grand Total",GETPIVOTDATA(TEXT(B$1,""),'Sum of Captured Q-D'!$A$10)/GETPIVOTDATA(TEXT(B$1,""),'Sum of Q-D'!$A$10),IFERROR(GETPIVOTDATA(TEXT(B$1,""),'Sum of Captured Q-D'!$A$10,"CIA Name",$A56)/GETPIVOTDATA(TEXT(B$1,""),'Sum of Q-D'!$A$10,"CIA Name",$A56),0))) -> 0.6681049575 | C56: =IF(B56="","",IF($A56="Grand Total",GETPIVOTDATA(TEXT(C$1,""),'Sum of Captured Q-D'!$A$10)/GETPIVOTDATA(TEXT(C$1,""),'Sum of Q-D'!$A$10),IFERROR(GETPIVOTDATA(TEXT(C$1,""),'Sum of Captured Q-D'!$A$10,"CIA Name",$A56)/GETPIVOTDATA(TEXT(C$1,""),'Sum of Q-D'!$A$10,"CIA Name",$A56),0))) -> 0.6189720388 | D56: =IF(C56="","",IF($A56="Grand Total",GETPIVOTDATA(TEXT(D$1,""),'Sum of Captured Q-D'!$A$10)/GETPIVOTDATA(TEXT(D$1,""),'Sum of Q-D'!$A$10),IFERROR(GETPIVOTDATA(TEXT(D$1,""),'Sum of Captured Q-D'!$A$10,"CIA Name",$A56)/GETPIVOTDATA(TEXT(D$1,""),'Sum of Q-D'!$A$10,"CIA Name",$A56),0))) -> 0.8832275809 | E56: =IF(D56="","",IF($A56="Grand Total",GETPIVOTDATA(TEXT(E$1,""),'Sum of Captured Q-D'!$A$10)/GETPIVOTDATA(TEXT(E$1,""),'Sum of Q-D'!$A$10),IFERROR(GETPIVOTDATA(TEXT(E$1,""),'Sum of Captured Q-D'!$A$10,"CIA Name",$A56)/GETPIVOTDATA(TEXT(E$1,""),'Sum of Q-D'!$A$10,"CIA Name",$A56),0))) -> 0.3780525614
A57: Grand Canyon NP | B57: =IF(A57="","",IF($A57="Grand Total",GETPIVOTDATA(TEXT(B$1,""),'Sum of Captured Q-D'!$A$10)/GETPIVOTDATA(TEXT(B$1,""),'Sum of Q-D'!$A$10),IFERROR(GETPIVOTDATA(TEXT(B$1,""),'Sum of Captured Q-D'!$A$10,"CIA Name",$A57)/GETPIVOTDATA(TEXT(B$1,""),'Sum of Q-D'!$A$10,"CIA Name",$A57),0))) -> 0.8958036027 | C57: =IF(B57="","",IF($A57="Grand Total",GETPIVOTDATA(TEXT(C$1,""),'Sum of Captured Q-D'!$A$10)/GETPIVOTDATA(TEXT(C$1,""),'Sum of Q-D'!$A$10),IFERROR(GETPIVOTDATA(TEXT(C$1,""),'Sum of Captured Q-D'!$A$10,"CIA Name",$A57)/GETPIVOTDATA(TEXT(C$1,""),'Sum of Q-D'!$A$10,"CIA Name",$A57),0))) -> 0.892956836 | D57: =IF(C57="","",IF($A57="Grand Total",GETPIVOTDATA(TEXT(D$1,""),'Sum of Captured Q-D'!$A$10)/GETPIVOTDATA(TEXT(D$1,""),'Sum of Q-D'!$A$10),IFERROR(GETPIVOTDATA(TEXT(D$1,""),'Sum of Captured Q-D'!$A$10,"CIA Name",$A57)/GETPIVOTDATA(TEXT(D$1,""),'Sum of Q-D'!$A$10,"CIA Name",$A57),0))) -> 0.9648186909 | E57: =IF(D57="","",IF($A57="Grand Total",GETPIVOTDATA(TEXT(E$1,""),'Sum of Captured Q-D'!$A$10)/GETPIVOTDATA(TEXT(E$1,""),'Sum of Q-D'!$A$10),IFERROR(GETPIVOTDATA(TEXT(E$1,""),'Sum of Captured Q-D'!$A$10,"CIA Name",$A57)/GETPIVOTDATA(TEXT(E$1,""),'Sum of Q-D'!$A$10,"CIA Name",$A57),0))) -> 0.7998056885
A58: Grand Teton NP | B58: =IF(A58="","",IF($A58="Grand Total",GETPIVOTDATA(TEXT(B$1,""),'Sum of Captured Q-D'!$A$10)/GETPIVOTDATA(TEXT(B$1,""),'Sum of Q-D'!$A$10),IFERROR(GETPIVOTDATA(TEXT(B$1,""),'Sum of Captured Q-D'!$A$10,"CIA Name",$A58)/GETPIVOTDATA(TEXT(B$1,""),'Sum of Q-D'!$A$10,"CIA Name",$A58),0))) -> 0.6772581452 | C58: =IF(B58="","",IF($A58="Grand Total",GETPIVOTDATA(TEXT(C$1,""),'Sum of Captured Q-D'!$A$10)/GETPIVOTDATA(TEXT(C$1,""),'Sum of Q-D'!$A$10),IFERROR(GETPIVOTDATA(TEXT(C$1,""),'Sum of Captured Q-D'!$A$10,"CIA Name",$A58)/GETPIVOTDATA(TEXT(C$1,""),'Sum of Q-D'!$A$10,"CIA Name",$A58),0))) -> 0.7098536963 | D58: =IF(C58="","",IF($A58="Grand Total",GETPIVOTDATA(TEXT(D$1,""),'Sum of Captured Q-D'!$A$10)/GETPIVOTDATA(TEXT(D$1,""),'Sum of Q-D'!$A$10),IFERROR(GETPIVOTDATA(TEXT(D$1,""),'Sum of Captured Q-D'!$A$10,"CIA Name",$A58)/GETPIVOTDATA(TEXT(D$1,""),'Sum of Q-D'!$A$10,"CIA Name",$A58),0))) -> 0.7416139352 | E58: =IF(D58="","",IF($A58="Grand Total",GETPIVOTDATA(TEXT(E$1,""),'Sum of Captured Q-D'!$A$10)/GETPIVOTDATA(TEXT(E$1,""),'Sum of Q-D'!$A$10),IFERROR(GETPIVOTDATA(TEXT(E$1,""),'Sum of Captured Q-D'!$A$10,"CIA Name",$A58)/GETPIVOTDATA(TEXT(E$1,""),'Sum of Q-D'!$A$10,"CIA Name",$A58),0))) -> 0.3835623363
A59: Great Sand Dunes Wilderness-nps | B59: =IF(A59="","",IF($A59="Grand Total",GETPIVOTDATA(TEXT(B$1,""),'Sum of Captured Q-D'!$A$10)/GETPIVOTDATA(TEXT(B$1,""),'Sum of Q-D'!$A$10),IFERROR(GETPIVOTDATA(TEXT(B$1,""),'Sum of Captured Q-D'!$A$10,"CIA Name",$A59)/GETPIVOTDATA(TEXT(B$1,""),'Sum of Q-D'!$A$10,"CIA Name",$A59),0))) -> 0.5528031493 | C59: =IF(B59="","",IF($A59="Grand Total",GETPIVOTDATA(TEXT(C$1,""),'Sum of Captured Q-D'!$A$10)/GETPIVOTDATA(TEXT(C$1,""),'Sum of Q-D'!$A$10),IFERROR(GETPIVOTDATA(TEXT(C$1,""),'Sum of Captured Q-D'!$A$10,"CIA Name",$A59)/GETPIVOTDATA(TEXT(C$1,""),'Sum of Q-D'!$A$10,"CIA Name",$A59),0))) -> 0.5175815762 | D59: =IF(C59="","",IF($A59="Grand Total",GETPIVOTDATA(TEXT(D$1,""),'Sum of Captured Q-D'!$A$10)/GETPIVOTDATA(TEXT(D$1,""),'Sum of Q-D'!$A$10),IFERROR(GETPIVOTDATA(TEXT(D$1,""),'Sum of Captured Q-D'!$A$10,"CIA Name",$A59)/GETPIVOTDATA(TEXT(D$1,""),'Sum of Q-D'!$A$10,"CIA Name",$A59),0))) -> 0.8083052306 | E59: =IF(D59="","",IF($A59="Grand Total",GETPIVOTDATA(TEXT(E$1,""),'Sum of Captured Q-D'!$A$10)/GETPIVOTDATA(TEXT(E$1,""),'Sum of Q-D'!$A$10),IFERROR(GETPIVOTDATA(TEXT(E$1,""),'Sum of Captured Q-D'!$A$10,"CIA Name",$A59)/GETPIVOTDATA(TEXT(E$1,""),'Sum of Q-D'!$A$10,"CIA Name",$A59),0))) -> 0.1902221918
A60: Guadalupe Mountains NP | B60: =IF(A60="","",IF($A60="Grand Total",GETPIVOTDATA(TEXT(B$1,""),'Sum of Captured Q-D'!$A$10)/GETPIVOTDATA(TEXT(B$1,""),'Sum of Q-D'!$A$10),IFERROR(GETPIVOTDATA(TEXT(B$1,""),'Sum of Captured Q-D'!$A$10,"CIA Name",$A60)/GETPIVOTDATA(TEXT(B$1,""),'Sum of Q-D'!$A$10,"CIA Name",$A60),0))) -> 0.1439853358 | C60: =IF(B60="","",IF($A60="Grand Total",GETPIVOTDATA(TEXT(C$1,""),'Sum of Captured Q-D'!$A$10)/GETPIVOTDATA(TEXT(C$1,""),'Sum of Q-D'!$A$10),IFERROR(GETPIVOTDATA(TEXT(C$1,""),'Sum of Captured Q-D'!$A$10,"CIA Name",$A60)/GETPIVOTDATA(TEXT(C$1,""),'Sum of Q-D'!$A$10,"CIA Name",$A60),0))) -> 0.08946467554 | D60: =IF(C60="","",IF($A60="Grand Total",GETPIVOTDATA(TEXT(D$1,""),'Sum of Captured Q-D'!$A$10)/GETPIVOTDATA(TEXT(D$1,""),'Sum of Q-D'!$A$10),IFERROR(GETPIVOTDATA(TEXT(D$1,""),'Sum of Captured Q-D'!$A$10,"CIA Name",$A60)/GETPIVOTDATA(TEXT(D$1,""),'Sum of Q-D'!$A$10,"CIA Name",$A60),0))) -> 0.2938539487 | E60: =IF(D60="","",IF($A60="Grand Total",GETPIVOTDATA(TEXT(E$1,""),'Sum of Captured Q-D'!$A$10)/GETPIVOTDATA(TEXT(E$1,""),'Sum of Q-D'!$A$10),IFERROR(GETPIVOTDATA(TEXT(E$1,""),'Sum of Captured Q-D'!$A$10,"CIA Name",$A60)/GETPIVOTDATA(TEXT(E$1,""),'Sum of Q-D'!$A$10,"CIA Name",$A60),0))) -> 0.02024969185
A61: Haleakala NP: big island | B61: =IF(A61="","",IF($A61="Grand Total",GETPIVOTDATA(TEXT(B$1,""),'Sum of Captured Q-D'!$A$10)/GETPIVOTDATA(TEXT(B$1,""),'Sum of Q-D'!$A$10),IFERROR(GETPIVOTDATA(TEXT(B$1,""),'Sum of Captured Q-D'!$A$10,"CIA Name",$A61)/GETPIVOTDATA(TEXT(B$1,""),'Sum of Q-D'!$A$10,"CIA Name",$A61),0))) -> 0.9053272001 | C61: =IF(B61="","",IF($A61="Grand Total",GETPIVOTDATA(TEXT(C$1,""),'Sum of Captured Q-D'!$A$10)/GETPIVOTDATA(TEXT(C$1,""),'Sum of Q-D'!$A$10),IFERROR(GETPIVOTDATA(TEXT(C$1,""),'Sum of Captured Q-D'!$A$10,"CIA Name",$A61)/GETPIVOTDATA(TEXT(C$1,""),'Sum of Q-D'!$A$10,"CIA Name",$A61),0))) -> 0.8768567917 | D61: =IF(C61="","",IF($A61="Grand Total",GETPIVOTDATA(TEXT(D$1,""),'Sum of Captured Q-D'!$A$10)/GETPIVOTDATA(TEXT(D$1,""),'Sum of Q-D'!$A$10),IFERROR(GETPIVOTDATA(TEXT(D$1,""),'Sum of Captured Q-D'!$A$10,"CIA Name",$A61)/GETPIVOTDATA(TEXT(D$1,""),'Sum of Q-D'!$A$10,"CIA Name",$A61),0))) -> 0.9497408441 | E61: =IF(D61="","",IF($A61="Grand Total",GETPIVOTDATA(TEXT(E$1,""),'Sum of Captured Q-D'!$A$10)/GETPIVOTDATA(TEXT(E$1,""),'Sum of Q-D'!$A$10),IFERROR(GETPIVOTDATA(TEXT(E$1,""),'Sum of Captured Q-D'!$A$10,"CIA Name",$A61)/GETPIVOTDATA(TEXT(E$1,""),'Sum of Q-D'!$A$10,"CIA Name",$A61),0))) -> 0.8837898867
A62: Haleakala NP: small island | B62: =IF(A62="","",IF($A62="Grand Total",GETPIVOTDATA(TEXT(B$1,""),'Sum of Captured Q-D'!$A$10)/GETPIVOTDATA(TEXT(B$1,""),'Sum of Q-D'!$A$10),IFERROR(GETPIVOTDATA(TEXT(B$1,""),'Sum of Captured Q-D'!$A$10,"CIA Name",$A62)/GETPIVOTDATA(TEXT(B$1,""),'Sum of Q-D'!$A$10,"CIA Name",$A62),0))) -> 0.8770167832 | C62: =IF(B62="","",IF($A62="Grand Total",GETPIVOTDATA(TEXT(C$1,""),'Sum of Captured Q-D'!$A$10)/GETPIVOTDATA(TEXT(C$1,""),'Sum of Q-D'!$A$10),IFERROR(GETPIVOTDATA(TEXT(C$1,""),'Sum of Captured Q-D'!$A$10,"CIA Name",$A62)/GETPIVOTDATA(TEXT(C$1,""),'Sum of Q-D'!$A$10,"CIA Name",$A62),0))) -> 0.8395364226 | D62: =IF(C62="","",IF($A62="Grand Total",GETPIVOTDATA(TEXT(D$1,""),'Sum of Captured Q-D'!$A$10)/GETPIVOTDATA(TEXT(D$1,""),'Sum of Q-D'!$A$10),IFERROR(GETPIVOTDATA(TEXT(D$1,""),'Sum of Captured Q-D'!$A$10,"CIA Name",$A62)/GETPIVOTDATA(TEXT(D$1,""),'Sum of Q-D'!$A$10,"CIA Name",$A62),0))) -> 0.9335799085 | E62: =IF(D62="","",IF($A62="Grand Total",GETPIVOTDATA(TEXT(E$1,""),'Sum of Captured Q-D'!$A$10)/GETPIVOTDATA(TEXT(E$1,""),'Sum of Q-D'!$A$10),IFERROR(GETPIVOTDATA(TEXT(E$1,""),'Sum of Captured Q-D'!$A$10,"CIA Name",$A62)/GETPIVOTDATA(TEXT(E$1,""),'Sum of Q-D'!$A$10,"CIA Name",$A62),0))) -> 0.8453888519
A63: Hawaii Volcanoes National Park | B63: =IF(A63="","",IF($A63="Grand Total",GETPIVOTDATA(TEXT(B$1,""),'Sum of Captured Q-D'!$A$10)/GETPIVOTDATA(TEXT(B$1,""),'Sum of Q-D'!$A$10),IFERROR(GETPIVOTDATA(TEXT(B$1,""),'Sum of Captured Q-D'!$A$10,"CIA Name",$A63)/GETPIVOTDATA(TEXT(B$1,""),'Sum of Q-D'!$A$10,"CIA Name",$A63),0))) -> 0.7910459596 | C63: =IF(B63="","",IF($A63="Grand Total",GETPIVOTDATA(TEXT(C$1,""),'Sum of Captured Q-D'!$A$10)/GETPIVOTDATA(TEXT(C$1,""),'Sum of Q-D'!$A$10),IFERROR(GETPIVOTDATA(TEXT(C$1,""),'Sum of Captured Q-D'!$A$10,"CIA Name",$A63)/GETPIVOTDATA(TEXT(C$1,""),'Sum of Q-D'!$A$10,"CIA Name",$A63),0))) -> 0.6486117675 | D63: =IF(C63="","",IF($A63="Grand Total",GETPIVOTDATA(TEXT(D$1,""),'Sum of Captured Q-D'!$A$10)/GETPIVOTDATA(TEXT(D$1,""),'Sum of Q-D'!$A$10),IFERROR(GETPIVOTDATA(TEXT(D$1,""),'Sum of Captured Q-D'!$A$10,"CIA Name",$A63)/GETPIVOTDATA(TEXT(D$1,""),'Sum of Q-D'!$A$10,"CIA Name",$A63),0))) -> 0.93780519 | E63: =IF(D63="","",IF($A63="Grand Total",GETPIVOTDATA(TEXT(E$1,""),'Sum of Captured Q-D'!$A$10)/GETPIVOTDATA(TEXT(E$1,""),'Sum of Q-D'!$A$10),IFERROR(GETPIVOTDATA(TEXT(E$1,""),'Sum of Captured Q-D'!$A$10,"CIA Name",$A63)/GETPIVOTDATA(TEXT(E$1,""),'Sum of Q-D'!$A$10,"CIA Name",$A63),0))) -> 0.6149073253
A64: Hawaii Volcanoes National Park: Olaa Tract | B64: =IF(A64="","",IF($A64="Grand Total",GETPIVOTDATA(TEXT(B$1,""),'Sum of Captured Q-D'!$A$10)/GETPIVOTDATA(TEXT(B$1,""),'Sum of Q-D'!$A$10),IFERROR(GETPIVOTDATA(TEXT(B$1,""),'Sum of Captured Q-D'!$A$10,"CIA Name",$A64)/GETPIVOTDATA(TEXT(B$1,""),'Sum of Q-D'!$A$10,"CIA Name",$A64),0))) -> 0.793254922 | C64: =IF(B64="","",IF($A64="Grand Total",GETPIVOTDATA(TEXT(C$1,""),'Sum of Captured Q-D'!$A$10)/GETPIVOTDATA(TEXT(C$1,""),'Sum of Q-D'!$A$10),IFERROR(GETPIVOTDATA(TEXT(C$1,""),'Sum of Captured Q-D'!$A$10,"CIA Name",$A64)/GETPIVOTDATA(TEXT(C$1,""),'Sum of Q-D'!$A$10,"CIA Name",$A64),0))) -> 0.6599433857 | D64: =IF(C64="","",IF($A64="Grand Total",GETPIVOTDATA(TEXT(D$1,""),'Sum of Captured Q-D'!$A$10)/GETPIVOTDATA(TEXT(D$1,""),'Sum of Q-D'!$A$10),IFERROR(GETPIVOTDATA(TEXT(D$1,""),'Sum of Captured Q-D'!$A$10,"CIA Name",$A64)/GETPIVOTDATA(TEXT(D$1,""),'Sum of Q-D'!$A$10,"CIA Name",$A64),0))) -> 0.9128786387 | E64: =IF(D64="","",IF($A64="Grand Total",GETPIVOTDATA(TEXT(E$1,""),'Sum of Captured Q-D'!$A$10)/GETPIVOTDATA(TEXT(E$1,""),'Sum of Q-D'!$A$10),IFERROR(GETPIVOTDATA(TEXT(E$1,""),'Sum of Captured Q-D'!$A$10,"CIA Name",$A64)/GETPIVOTDATA(TEXT(E$1,""),'Sum of Q-D'!$A$10,"CIA Name",$A64),0))) -> 0.621616646
A65: Hells Canyon Wilderness | B65: =IF(A65="","",IF($A65="Grand Total",GETPIVOTDATA(TEXT(B$1,""),'Sum of Captured Q-D'!$A$10)/GETPIVOTDATA(TEXT(B$1,""),'Sum of Q-D'!$A$10),IFERROR(GETPIVOTDATA(TEXT(B$1,""),'Sum of Captured Q-D'!$A$10,"CIA Name",$A65)/GETPIVOTDATA(TEXT(B$1,""),'Sum of Q-D'!$A$10,"CIA Name",$A65),0))) -> 0.5373660916 | C65: =IF(B65="","",IF($A65="Grand Total",GETPIVOTDATA(TEXT(C$1,""),'Sum of Captured Q-D'!$A$10)/GETPIVOTDATA(TEXT(C$1,""),'Sum of Q-D'!$A$10),IFERROR(GETPIVOTDATA(TEXT(C$1,""),'Sum of Captured Q-D'!$A$10,"CIA Name",$A65)/GETPIVOTDATA(TEXT(C$1,""),'Sum of Q-D'!$A$10,"CIA Name",$A65),0))) -> 0.4601828952 | D65: =IF(C65="","",IF($A65="Grand Total",GETPIVOTDATA(TEXT(D$1,""),'Sum of Captured Q-D'!$A$10)/GETPIVOTDATA(TEXT(D$1,""),'Sum of Q-D'!$A$10),IFERROR(GETPIVOTDATA(TEXT(D$1,""),'Sum of Captured Q-D'!$A$10,"CIA Name",$A65)/GETPIVOTDATA(TEXT(D$1,""),'Sum of Q-D'!$A$10,"CIA Name",$A65),0))) -> 0.833635623 | E65: =IF(D65="","",IF($A65="Grand Total",GETPIVOTDATA(TEXT(E$1,""),'Sum of Captured Q-D'!$A$10)/GETPIVOTDATA(TEXT(E$1,""),'Sum of Q-D'!$A$10),IFERROR(GETPIVOTDATA(TEXT(E$1,""),'Sum of Captured Q-D'!$A$10,"CIA Name",$A65)/GETPIVOTDATA(TEXT(E$1,""),'Sum of Q-D'!$A$10,"CIA Name",$A65),0))) -> 0.2851471496
A66: Hoover Wilderness | B66: =IF(A66="","",IF($A66="Grand Total",GETPIVOTDATA(TEXT(B$1,""),'Sum of Captured Q-D'!$A$10)/GETPIVOTDATA(TEXT(B$1,""),'Sum of Q-D'!$A$10),IFERROR(GETPIVOTDATA(TEXT(B$1,""),'Sum of Captured Q-D'!$A$10,"CIA Name",$A66)/GETPIVOTDATA(TEXT(B$1,""),'Sum of Q-D'!$A$10,"CIA Name",$A66),0))) -> 0.2277613935 | C66: =IF(B66="","",IF($A66="Grand Total",GETPIVOTDATA(TEXT(C$1,""),'Sum of Captured Q-D'!$A$10)/GETPIVOTDATA(TEXT(C$1,""),'Sum of Q-D'!$A$10),IFERROR(GETPIVOTDATA(TEXT(C$1,""),'Sum of Captured Q-D'!$A$10,"CIA Name",$A66)/GETPIVOTDATA(TEXT(C$1,""),'Sum of Q-D'!$A$10,"CIA Name",$A66),0))) -> 0.220107787 | D66: =IF(C66="","",IF($A66="Grand Total",GETPIVOTDATA(TEXT(D$1,""),'Sum of Captured Q-D'!$A$10)/GETPIVOTDATA(TEXT(D$1,""),'Sum of Q-D'!$A$10),IFERROR(GETPIVOTDATA(TEXT(D$1,""),'Sum of Captured Q-D'!$A$10,"CIA Name",$A66)/GETPIVOTDATA(TEXT(D$1,""),'Sum of Q-D'!$A$10,"CIA Name",$A66),0))) -> 0.4775109722 | E66: =IF(D66="","",IF($A66="Grand Total",GETPIVOTDATA(TEXT(E$1,""),'Sum of Captured Q-D'!$A$10)/GETPIVOTDATA(TEXT(E$1,""),'Sum of Q-D'!$A$10),IFERROR(GETPIVOTDATA(TEXT(E$1,""),'Sum of Captured Q-D'!$A$10,"CIA Name",$A66)/GETPIVOTDATA(TEXT(E$1,""),'Sum of Q-D'!$A$10,"CIA Name",$A66),0))) -> 0.04784674138
A67: Jarbridge Wilderness | B67: =IF(A67="","",IF($A67="Grand Total",GETPIVOTDATA(TEXT(B$1,""),'Sum of Captured Q-D'!$A$10)/GETPIVOTDATA(TEXT(B$1,""),'Sum of Q-D'!$A$10),IFERROR(GETPIVOTDATA(TEXT(B$1,""),'Sum of Captured Q-D'!$A$10,"CIA Name",$A67)/GETPIVOTDATA(TEXT(B$1,""),'Sum of Q-D'!$A$10,"CIA Name",$A67),0))) -> 0.6809280549 | C67: =IF(B67="","",IF($A67="Grand Total",GETPIVOTDATA(TEXT(C$1,""),'Sum of Captured Q-D'!$A$10)/GETPIVOTDATA(TEXT(C$1,""),'Sum of Q-D'!$A$10),IFERROR(GETPIVOTDATA(TEXT(C$1,""),'Sum of Captured Q-D'!$A$10,"CIA Name",$A67)/GETPIVOTDATA(TEXT(C$1,""),'Sum of Q-D'!$A$10,"CIA Name",$A67),0))) -> 0.6764804868 | D67: =IF(C67="","",IF($A67="Grand Total",GETPIVOTDATA(TEXT(D$1,""),'Sum of Captured Q-D'!$A$10)/GETPIVOTDATA(TEXT(D$1,""),'Sum of Q-D'!$A$10),IFERROR(GETPIVOTDATA(TEXT(D$1,""),'Sum of Captured Q-D'!$A$10,"CIA Name",$A67)/GETPIVOTDATA(TEXT(D$1,""),'Sum of Q-D'!$A$10,"CIA Name",$A67),0))) -> 0.8279359888 | E67: =IF(D67="","",IF($A67="Grand Total",GETPIVOTDATA(TEXT(E$1,""),'Sum of Captured Q-D'!$A$10)/GETPIVOTDATA(TEXT(E$1,""),'Sum of Q-D'!$A$10),IFERROR(GETPIVOTDATA(TEXT(E$1,""),'Sum of Captured Q-D'!$A$10,"CIA Name",$A67)/GETPIVOTDATA(TEXT(E$1,""),'Sum of Q-D'!$A$10,"CIA Name",$A67),0))) -> 0.3605762546
A68: John Muir Wilderness | B68: =IF(A68="","",IF($A68="Grand Total",GETPIVOTDATA(TEXT(B$1,""),'Sum of Captured Q-D'!$A$10)/GETPIVOTDATA(TEXT(B$1,""),'Sum of Q-D'!$A$10),IFERROR(GETPIVOTDATA(TEXT(B$1,""),'Sum of Captured Q-D'!$A$10,"CIA Name",$A68)/GETPIVOTDATA(TEXT(B$1,""),'Sum of Q-D'!$A$10,"CIA Name",$A68),0))) -> 0.3854507038 | C68: =IF(B68="","",IF($A68="Grand Total",GETPIVOTDATA(TEXT(C$1,""),'Sum of Captured Q-D'!$A$10)/GETPIVOTDATA(TEXT(C$1,""),'Sum of Q-D'!$A$10),IFERROR(GETPIVOTDATA(TEXT(C$1,""),'Sum of Captured Q-D'!$A$10,"CIA Name",$A68)/GETPIVOTDATA(TEXT(C$1,""),'Sum of Q-D'!$A$10,"CIA Name",$A68),0))) -> 0.3963667822 | D68: =IF(C68="","",IF($A68="Grand Total",GETPIVOTDATA(TEXT(D$1,""),'Sum of Captured Q-D'!$A$10)/GETPIVOTDATA(TEXT(D$1,""),'Sum of Q-D'!$A$10),IFERROR(GETPIVOTDATA(TEXT(D$1,""),'Sum of Captured Q-D'!$A$10,"CIA Name",$A68)/GETPIVOTDATA(TEXT(D$1,""),'Sum of Q-D'!$A$10,"CIA Name",$A68),0))) -> 0.4635673069 | E68: =IF(D68="","",IF($A68="Grand Total",GETPIVOTDATA(TEXT(E$1,""),'Sum of Captured Q-D'!$A$10)/GETPIVOTDATA(TEXT(E$1,""),'Sum of Q-D'!$A$10),IFERROR(GETPIVOTDATA(TEXT(E$1,""),'Sum of Captured Q-D'!$A$10,"CIA Name",$A68)/GETPIVOTDATA(TEXT(E$1,""),'Sum of Q-D'!$A$10,"CIA Name",$A68),0))) -> 0.3247649742
A69: Joshua Tree Wilderness | B69: =IF(A69="","",IF($A69="Grand Total",GETPIVOTDATA(TEXT(B$1,""),'Sum of Captured Q-D'!$A$10)/GETPIVOTDATA(TEXT(B$1,""),'Sum of Q-D'!$A$10),IFERROR(GETPIVOTDATA(TEXT(B$1,""),'Sum of Captured Q-D'!$A$10,"CIA Name",$A69)/GETPIVOTDATA(TEXT(B$1,""),'Sum of Q-D'!$A$10,"CIA Name",$A69),0))) -> 0.6791589708 | C69: =IF(B69="","",IF($A69="Grand Total",GETPIVOTDATA(TEXT(C$1,""),'Sum of Captured Q-D'!$A$10)/GETPIVOTDATA(TEXT(C$1,""),'Sum of Q-D'!$A$10),IFERROR(GETPIVOTDATA(TEXT(C$1,""),'Sum of Captured Q-D'!$A$10,"CIA Name",$A69)/GETPIVOTDATA(TEXT(C$1,""),'Sum of Q-D'!$A$10,"CIA Name",$A69),0))) -> 0.4961558056 | D69: =IF(C69="","",IF($A69="Grand Total",GETPIVOTDATA(TEXT(D$1,""),'Sum of Captured Q-D'!$A$10)/GETPIVOTDATA(TEXT(D$1,""),'Sum of Q-D'!$A$10),IFERROR(GETPIVOTDATA(TEXT(D$1,""),'Sum of Captured Q-D'!$A$10,"CIA Name",$A69)/GETPIVOTDATA(TEXT(D$1,""),'Sum of Q-D'!$A$10,"CIA Name",$A69),0))) -> 0.4882396575 | E69: =IF(D69="","",IF($A69="Grand Total",GETPIVOTDATA(TEXT(E$1,""),'Sum of Captured Q-D'!$A$10)/GETPIVOTDATA(TEXT(E$1,""),'Sum of Q-D'!$A$10),IFERROR(GETPIVOTDATA(TEXT(E$1,""),'Sum of Captured Q-D'!$A$10,"CIA Name",$A69)/GETPIVOTDATA(TEXT(E$1,""),'Sum of Q-D'!$A$10,"CIA Name",$A69),0))) -> 0.8400961206
A70: Kaiser Wilderness | B70: =IF(A70="","",IF($A70="Grand Total",GETPIVOTDATA(TEXT(B$1,""),'Sum of Captured Q-D'!$A$10)/GETPIVOTDATA(TEXT(B$1,""),'Sum of Q-D'!$A$10),IFERROR(GETPIVOTDATA(TEXT(B$1,""),'Sum of Captured Q-D'!$A$10,"CIA Name",$A70)/GETPIVOTDATA(TEXT(B$1,""),'Sum of Q-D'!$A$10,"CIA Name",$A70),0))) -> 0.141336067 | C70: =IF(B70="","",IF($A70="Grand Total",GETPIVOTDATA(TEXT(C$1,""),'Sum of Captured Q-D'!$A$10)/GETPIVOTDATA(TEXT(C$1,""),'Sum of Q-D'!$A$10),IFERROR(GETPIVOTDATA(TEXT(C$1,""),'Sum of Captured Q-D'!$A$10,"CIA Name",$A70)/GETPIVOTDATA(TEXT(C$1,""),'Sum of Q-D'!$A$10,"CIA Name",$A70),0))) -> 0.1770110484 | D70: =IF(C70="","",IF($A70="Grand Total",GETPIVOTDATA(TEXT(D$1,""),'Sum of Captured Q-D'!$A$10)/GETPIVOTDATA(TEXT(D$1,""),'Sum of Q-D'!$A$10),IFERROR(GETPIVOTDATA(TEXT(D$1,""),'Sum of Captured Q-D'!$A$10,"CIA Name",$A70)/GETPIVOTDATA(TEXT(D$1,""),'Sum of Q-D'!$A$10,"CIA Name",$A70),0))) -> 0.2044925396 | E70: =IF(D70="","",IF($A70="Grand Total",GETPIVOTDATA(TEXT(E$1,""),'Sum of Captured Q-D'!$A$10)/GETPIVOTDATA(TEXT(E$1,""),'Sum of Q-D'!$A$10),IFERROR(GETPIVOTDATA(TEXT(E$1,""),'Sum of Captured Q-D'!$A$10,"CIA Name",$A70)/GETPIVOTDATA(TEXT(E$1,""),'Sum of Q-D'!$A$10,"CIA Name",$A70),0))) -> 0.02820341774
A71: Kalmiopsis Wilderness | B71: =IF(A71="","",IF($A71="Grand Total",GETPIVOTDATA(TEXT(B$1,""),'Sum of Captured Q-D'!$A$10)/GETPIVOTDATA(TEXT(B$1,""),'Sum of Q-D'!$A$10),IFERROR(GETPIVOTDATA(TEXT(B$1,""),'Sum of Captured Q-D'!$A$10,"CIA Name",$A71)/GETPIVOTDATA(TEXT(B$1,""),'Sum of Q-D'!$A$10,"CIA Name",$A71),0))) -> 0.1478080391 | C71: =IF(B71="","",IF($A71="Grand Total",GETPIVOTDATA(TEXT(C$1,""),'Sum of Captured Q-D'!$A$10)/GETPIVOTDATA(TEXT(C$1,""),'Sum of Q-D'!$A$10),IFERROR(GETPIVOTDATA(TEXT(C$1,""),'Sum of Captured Q-D'!$A$10,"CIA Name",$A71)/GETPIVOTDATA(TEXT(C$1,""),'Sum of Q-D'!$A$10,"CIA Name",$A71),0))) -> 0.1575028054 | D71: =IF(C71="","",IF($A71="Grand Total",GETPIVOTDATA(TEXT(D$1,""),'Sum of Captured Q-D'!$A$10)/GETPIVOTDATA(TEXT(D$1,""),'Sum of Q-D'!$A$10),IFERROR(GETPIVOTDATA(TEXT(D$1,""),'Sum of Captured Q-D'!$A$10,"CIA Name",$A71)/GETPIVOTDATA(TEXT(D$1,""),'Sum of Q-D'!$A$10,"CIA Name",$A71),0))) -> 0.1115313774 | E71: =IF(D71="","",IF($A71="Grand Total",GETPIVOTDATA(TEXT(E$1,""),'Sum of Captured Q-D'!$A$10)/GETPIVOTDATA(TEXT(E$1,""),'Sum of Q-D'!$A$10),IFERROR(GETPIVOTDATA(TEXT(E$1,""),'Sum of Captured Q-D'!$A$10,"CIA Name",$A71)/GETPIVOTDATA(TEXT(E$1,""),'Sum of Q-D'!$A$10,"CIA Name",$A71),0))) -> 0.1365580082
A72: Kings Canyon NP | B72: =IF(A72="","",IF($A72="Grand Total",GETPIVOTDATA(TEXT(B$1,""),'Sum of Captured Q-D'!$A$10)/GETPIVOTDATA(TEXT(B$1,""),'Sum of Q-D'!$A$10),IFERROR(GETPIVOTDATA(TEXT(B$1,""),'Sum of Captured Q-D'!$A$10,"CIA Name",$A72)/GETPIVOTDATA(TEXT(B$1,""),'Sum of Q-D'!$A$10,"CIA Name",$A72),0))) -> 0.2759223938 | C72: =IF(B72="","",IF($A72="Grand Total",GETPIVOTDATA(TEXT(C$1,""),'Sum of Captured Q-D'!$A$10)/GETPIVOTDATA(TEXT(C$1,""),'Sum of Q-D'!$A$10),IFERROR(GETPIVOTDATA(TEXT(C$1,""),'Sum of Captured Q-D'!$A$10,"CIA Name",$A72)/GETPIVOTDATA(TEXT(C$1,""),'Sum of Q-D'!$A$10,"CIA Name",$A72),0))) -> 0.2824182242 | D72: =IF(C72="","",IF($A72="Grand Total",GETPIVOTDATA(TEXT(D$1,""),'Sum of Captured Q-D'!$A$10)/GETPIVOTDATA(TEXT(D$1,""),'Sum of Q-D'!$A$10),IFERROR(GETPIVOTDATA(TEXT(D$1,""),'Sum of Captured Q-D'!$A$10,"CIA Name",$A72)/GETPIVOTDATA(TEXT(D$1,""),'Sum of Q-D'!$A$10,"CIA Name",$A72),0))) -> 0.2256970839 | E72: =IF(D72="","",IF($A72="Grand Total",GETPIVOTDATA(TEXT(E$1,""),'Sum of Captured Q-D'!$A$10)/GETPIVOTDATA(TEXT(E$1,""),'Sum of Q-D'!$A$10),IFERROR(GETPIVOTDATA(TEXT(E$1,""),'Sum of Captured Q-D'!$A$10,"CIA Name",$A72)/GETPIVOTDATA(TEXT(E$1,""),'Sum of Q-D'!$A$10,"CIA Name",$A72),0))) -> 0.2861556718
A73: La Garita Wilderness | B73: =IF(A73="","",IF($A73="Grand Total",GETPIVOTDATA(TEXT(B$1,""),'Sum of Captured Q-D'!$A$10)/GETPIVOTDATA(TEXT(B$1,""),'Sum of Q-D'!$A$10),IFERROR(GETPIVOTDATA(TEXT(B$1,""),'Sum of Captured Q-D'!$A$10,"CIA Name",$A73)/GETPIVOTDATA(TEXT(B$1,""),'Sum of Q-D'!$A$10,"CIA Name",$A73),0))) -> 0.6649490489 | C73: =IF(B73="","",IF($A73="Grand Total",GETPIVOTDATA(TEXT(C$1,""),'Sum of Captured Q-D'!$A$10)/GETPIVOTDATA(TEXT(C$1,""),'Sum of Q-D'!$A$10),IFERROR(GETPIVOTDATA(TEXT(C$1,""),'Sum of Captured Q-D'!$A$10,"CIA Name",$A73)/GETPIVOTDATA(TEXT(C$1,""),'Sum of Q-D'!$A$10,"CIA Name",$A73),0))) -> 0.6482039585 | D73: =IF(C73="","",IF($A73="Grand Total",GETPIVOTDATA(TEXT(D$1,""),'Sum of Captured Q-D'!$A$10)/GETPIVOTDATA(TEXT(D$1,""),'Sum of Q-D'!$A$10),IFERROR(GETPIVOTDATA(TEXT(D$1,""),'Sum of Captured Q-D'!$A$10,"CIA Name",$A73)/GETPIVOTDATA(TEXT(D$1,""),'Sum of Q-D'!$A$10,"CIA Name",$A73),0))) -> 0.8733932771 | E73: =IF(D73="","",IF($A73="Grand Total",GETPIVOTDATA(TEXT(E$1,""),'Sum of Captured Q-D'!$A$10)/GETPIVOTDATA(TEXT(E$1,""),'Sum of Q-D'!$A$10),IFERROR(GETPIVOTDATA(TEXT(E$1,""),'Sum of Captured Q-D'!$A$10,"CIA Name",$A73)/GETPIVOTDATA(TEXT(E$1,""),'Sum of Q-D'!$A$10,"CIA Name",$A73),0))) -> 0.2971969599
A74: Lassen Volcanic NP | B74: =IF(A74="","",IF($A74="Grand Total",GETPIVOTDATA(TEXT(B$1,""),'Sum of Captured Q-D'!$A$10)/GETPIVOTDATA(TEXT(B$1,""),'Sum of Q-D'!$A$10),IFERROR(GETPIVOTDATA(TEXT(B$1,""),'Sum of Captured Q-D'!$A$10,"CIA Name",$A74)/GETPIVOTDATA(TEXT(B$1,""),'Sum of Q-D'!$A$10,"CIA Name",$A74),0))) -> 0.2793461671 | C74: =IF(B74="","",IF($A74="Grand Total",GETPIVOTDATA(TEXT(C$1,""),'Sum of Captured Q-D'!$A$10)/GETPIVOTDATA(TEXT(C$1,""),'Sum of Q-D'!$A$10),IFERROR(GETPIVOTDATA(TEXT(C$1,""),'Sum of Captured Q-D'!$A$10,"CIA Name",$A74)/GETPIVOTDATA(TEXT(C$1,""),'Sum of Q-D'!$A$10,"CIA Name",$A74),0))) -> 0.2620263186 | D74: =IF(C74="","",IF($A74="Grand Total",GETPIVOTDATA(TEXT(D$1,""),'Sum of Captured Q-D'!$A$10)/GETPIVOTDATA(TEXT(D$1,""),'Sum of Q-D'!$A$10),IFERROR(GETPIVOTDATA(TEXT(D$1,""),'Sum of Captured Q-D'!$A$10,"CIA Name",$A74)/GETPIVOTDATA(TEXT(D$1,""),'Sum of Q-D'!$A$10,"CIA Name",$A74),0))) -> 0.5094264739 | E74: =IF(D74="","",IF($A74="Grand Total",GETPIVOTDATA(TEXT(E$1,""),'Sum of Captured Q-D'!$A$10)/GETPIVOTDATA(TEXT(E$1,""),'Sum of Q-D'!$A$10),IFERROR(GETPIVOTDATA(TEXT(E$1,""),'Sum of Captured Q-D'!$A$10,"CIA Name",$A74)/GETPIVOTDATA(TEXT(E$1,""),'Sum of Q-D'!$A$10,"CIA Name",$A74),0))) -> 0.1376078036
A75: Lava Beds/Black Lava Flow Wilderness | B75: =IF(A75="","",IF($A75="Grand Total",GETPIVOTDATA(TEXT(B$1,""),'Sum of Captured Q-D'!$A$10)/GETPIVOTDATA(TEXT(B$1,""),'Sum of Q-D'!$A$10),IFERROR(GETPIVOTDATA(TEXT(B$1,""),'Sum of Captured Q-D'!$A$10,"CIA Name",$A75)/GETPIVOTDATA(TEXT(B$1,""),'Sum of Q-D'!$A$10,"CIA Name",$A75),0))) -> 0.2068899095 | C75: =IF(B75="","",IF($A75="Grand Total",GETPIVOTDATA(TEXT(C$1,""),'Sum of Captured Q-D'!$A$10)/GETPIVOTDATA(TEXT(C$1,""),'Sum of Q-D'!$A$10),IFERROR(GETPIVOTDATA(TEXT(C$1,""),'Sum of Captured Q-D'!$A$10,"CIA Name",$A75)/GETPIVOTDATA(TEXT(C$1,""),'Sum of Q-D'!$A$10,"CIA Name",$A75),0))) -> 0.1257632776 | D75: =IF(C75="","",IF($A75="Grand Total",GETPIVOTDATA(TEXT(D$1,""),'Sum of Captured Q-D'!$A$10)/GETPIVOTDATA(TEXT(D$1,""),'Sum of Q-D'!$A$10),IFERROR(GETPIVOTDATA(TEXT(D$1,""),'Sum of Captured Q-D'!$A$10,"CIA Name",$A75)/GETPIVOTDATA(TEXT(D$1,""),'Sum of Q-D'!$A$10,"CIA Name",$A75),0))) -> 0.7549412999 | E75: =IF(D75="","",IF($A75="Grand Total",GETPIVOTDATA(TEXT(E$1,""),'Sum of Captured Q-D'!$A$10)/GETPIVOTDATA(TEXT(E$1,""),'Sum of Q-D'!$A$10),IFERROR(GETPIVOTDATA(TEXT(E$1,""),'Sum of Captured Q-D'!$A$10,"CIA Name",$A75)/GETPIVOTDATA(TEXT(E$1,""),'Sum of Q-D'!$A$10,"CIA Name",$A75),0))) -> 0.02773057095
A76: Lava Beds/Schonchin Wilderness | B76: =IF(A76="","",IF($A76="Grand Total",GETPIVOTDATA(TEXT(B$1,""),'Sum of Captured Q-D'!$A$10)/GETPIVOTDATA(TEXT(B$1,""),'Sum of Q-D'!$A$10),IFERROR(GETPIVOTDATA(TEXT(B$1,""),'Sum of Captured Q-D'!$A$10,"CIA Name",$A76)/GETPIVOTDATA(TEXT(B$1,""),'Sum of Q-D'!$A$10,"CIA Name",$A76),0))) -> 0.2100805271 | C76: =IF(B76="","",IF($A76="Grand Total",GETPIVOTDATA(TEXT(C$1,""),'Sum of Captured Q-D'!$A$10)/GETPIVOTDATA(TEXT(C$1,""),'Sum of Q-D'!$A$10),IFERROR(GETPIVOTDATA(TEXT(C$1,""),'Sum of Captured Q-D'!$A$10,"CIA Name",$A76)/GETPIVOTDATA(TEXT(C$1,""),'Sum of Q-D'!$A$10,"CIA Name",$A76),0))) -> 0.1279479098 | D76: =IF(C76="","",IF($A76="Grand Total",GETPIVOTDATA(TEXT(D$1,""),'Sum of Captured Q-D'!$A$10)/GETPIVOTDATA(TEXT(D$1,""),'Sum of Q-D'!$A$10),IFERROR(GETPIVOTDATA(TEXT(D$1,""),'Sum of Captured Q-D'!$A$10,"CIA Name",$A76)/GETPIVOTDATA(TEXT(D$1,""),'Sum of Q-D'!$A$10,"CIA Name",$A76),0))) -> 0.7584501203 | E76: =IF(D76="","",IF($A76="Grand Total",GETPIVOTDATA(TEXT(E$1,""),'Sum of Captured Q-D'!$A$10)/GETPIVOTDATA(TEXT(E$1,""),'Sum of Q-D'!$A$10),IFERROR(GETPIVOTDATA(TEXT(E$1,""),'Sum of Captured Q-D'!$A$10,"CIA Name",$A76)/GETPIVOTDATA(TEXT(E$1,""),'Sum of Q-D'!$A$10,"CIA Name",$A76),0))) -> 0.02823509768
A77: Lostwood Wilderness | B77: =IF(A77="","",IF($A77="Grand Total",GETPIVOTDATA(TEXT(B$1,""),'Sum of Captured Q-D'!$A$10)/GETPIVOTDATA(TEXT(B$1,""),'Sum of Q-D'!$A$10),IFERROR(GETPIVOTDATA(TEXT(B$1,""),'Sum of Captured Q-D'!$A$10,"CIA Name",$A77)/GETPIVOTDATA(TEXT(B$1,""),'Sum of Q-D'!$A$10,"CIA Name",$A77),0))) -> 0.9426992263 | C77: =IF(B77="","",IF($A77="Grand Total",GETPIVOTDATA(TEXT(C$1,""),'Sum of Captured Q-D'!$A$10)/GETPIVOTDATA(TEXT(C$1,""),'Sum of Q-D'!$A$10),IFERROR(GETPIVOTDATA(TEXT(C$1,""),'Sum of Captured Q-D'!$A$10,"CIA Name",$A77)/GETPIVOTDATA(TEXT(C$1,""),'Sum of Q-D'!$A$10,"CIA Name",$A77),0))) -> 0.9241731659 | D77: =IF(C77="","",IF($A77="Grand Total",GETPIVOTDATA(TEXT(D$1,""),'Sum of Captured Q-D'!$A$10)/GETPIVOTDATA(TEXT(D$1,""),'Sum of Q-D'!$A$10),IFERROR(GETPIVOTDATA(TEXT(D$1,""),'Sum of Captured Q-D'!$A$10,"CIA Name",$A77)/GETPIVOTDATA(TEXT(D$1,""),'Sum of Q-D'!$A$10,"CIA Name",$A77),0))) -> 0.9707344633 | E77: =IF(D77="","",IF($A77="Grand Total",GETPIVOTDATA(TEXT(E$1,""),'Sum of Captured Q-D'!$A$10)/GETPIVOTDATA(TEXT(E$1,""),'Sum of Q-D'!$A$10),IFERROR(GETPIVOTDATA(TEXT(E$1,""),'Sum of Captured Q-D'!$A$10,"CIA Name",$A77)/GETPIVOTDATA(TEXT(E$1,""),'Sum of Q-D'!$A$10,"CIA Name",$A77),0))) -> 0.8413370583
A78: Marble Mountain Wilderness | B78: =IF(A78="","",IF($A78="Grand Total",GETPIVOTDATA(TEXT(B$1,""),'Sum of Captured Q-D'!$A$10)/GETPIVOTDATA(TEXT(B$1,""),'Sum of Q-D'!$A$10),IFERROR(GETPIVOTDATA(TEXT(B$1,""),'Sum of Captured Q-D'!$A$10,"CIA Name",$A78)/GETPIVOTDATA(TEXT(B$1,""),'Sum of Q-D'!$A$10,"CIA Name",$A78),0))) -> 0.06428788235 | C78: =IF(B78="","",IF($A78="Grand Total",GETPIVOTDATA(TEXT(C$1,""),'Sum of Captured Q-D'!$A$10)/GETPIVOTDATA(TEXT(C$1,""),'Sum of Q-D'!$A$10),IFERROR(GETPIVOTDATA(TEXT(C$1,""),'Sum of Captured Q-D'!$A$10,"CIA Name",$A78)/GETPIVOTDATA(TEXT(C$1,""),'Sum of Q-D'!$A$10,"CIA Name",$A78),0))) -> 0.07039561758 | D78: =IF(C78="","",IF($A78="Grand Total",GETPIVOTDATA(TEXT(D$1,""),'Sum of Captured Q-D'!$A$10)/GETPIVOTDATA(TEXT(D$1,""),'Sum of Q-D'!$A$10),IFERROR(GETPIVOTDATA(TEXT(D$1,""),'Sum of Captured Q-D'!$A$10,"CIA Name",$A78)/GETPIVOTDATA(TEXT(D$1,""),'Sum of Q-D'!$A$10,"CIA Name",$A78),0))) -> 0.02537373665 | E78: =IF(D78="","",IF($A78="Grand Total",GETPIVOTDATA(TEXT(E$1,""),'Sum of Captured Q-D'!$A$10)/GETPIVOTDATA(TEXT(E$1,""),'Sum of Q-D'!$A$10),IFERROR(GETPIVOTDATA(TEXT(E$1,""),'Sum of Captured Q-D'!$A$10,"CIA Name",$A78)/GETPIVOTDATA(TEXT(E$1,""),'Sum of Q-D'!$A$10,"CIA Name",$A78),0))) -> 0.0683216474
A79: Maroon Bells-Snowmass Wilderness | B79: =IF(A79="","",IF($A79="Grand Total",GETPIVOTDATA(TEXT(B$1,""),'Sum of Captured Q-D'!$A$10)/GETPIVOTDATA(TEXT(B$1,""),'Sum of Q-D'!$A$10),IFERROR(GETPIVOTDATA(TEXT(B$1,""),'Sum of Captured Q-D'!$A$10,"CIA Name",$A79)/GETPIVOTDATA(TEXT(B$1,""),'Sum of Q-D'!$A$10,"CIA Name",$A79),0))) -> 0.6340816271 | C79: =IF(B79="","",IF($A79="Grand Total",GETPIVOTDATA(TEXT(C$1,""),'Sum of Captured Q-D'!$A$10)/GETPIVOTDATA(TEXT(C$1,""),'Sum of Q-D'!$A$10),IFERROR(GETPIVOTDATA(TEXT(C$1,""),'Sum of Captured Q-D'!$A$10,"CIA Name",$A79)/GETPIVOTDATA(TEXT(C$1,""),'Sum of Q-D'!$A$10,"CIA Name",$A79),0))) -> 0.6061825306 | D79: =IF(C79="","",IF($A79="Grand Total",GETPIVOTDATA(TEXT(D$1,""),'Sum of Captured Q-D'!$A$10)/GETPIVOTDATA(TEXT(D$1,""),'Sum of Q-D'!$A$10),IFERROR(GETPIVOTDATA(TEXT(D$1,""),'Sum of Captured Q-D'!$A$10,"CIA Name",$A79)/GETPIVOTDATA(TEXT(D$1,""),'Sum of Q-D'!$A$10,"CIA Name",$A79),0))) -> 0.8772360627 | E79: =IF(D79="","",IF($A79="Grand Total",GETPIVOTDATA(TEXT(E$1,""),'Sum of Captured Q-D'!$A$10)/GETPIVOTDATA(TEXT(E$1,""),'Sum of Q-D'!$A$10),IFERROR(GETPIVOTDATA(TEXT(E$1,""),'Sum of Captured Q-D'!$A$10,"CIA Name",$A79)/GETPIVOTDATA(TEXT(E$1,""),'Sum of Q-D'!$A$10,"CIA Name",$A79),0))) -> 0.2325569883
A80: Mazatzal Wilderness | B80: =IF(A80="","",IF($A80="Grand Total",GETPIVOTDATA(TEXT(B$1,""),'Sum of Captured Q-D'!$A$10)/GETPIVOTDATA(TEXT(B$1,""),'Sum of Q-D'!$A$10),IFERROR(GETPIVOTDATA(TEXT(B$1,""),'Sum of Captured Q-D'!$A$10,"CIA Name",$A80)/GETPIVOTDATA(TEXT(B$1,""),'Sum of Q-D'!$A$10,"CIA Name",$A80),0))) -> 0.8404905919 | C80: =IF(B80="","",IF($A80="Grand Total",GETPIVOTDATA(TEXT(C$1,""),'Sum of Captured Q-D'!$A$10)/GETPIVOTDATA(TEXT(C$1,""),'Sum of Q-D'!$A$10),IFERROR(GETPIVOTDATA(TEXT(C$1,""),'Sum of Captured Q-D'!$A$10,"CIA Name",$A80)/GETPIVOTDATA(TEXT(C$1,""),'Sum of Q-D'!$A$10,"CIA Name",$A80),0))) -> 0.7953756771 | D80: =IF(C80="","",IF($A80="Grand Total",GETPIVOTDATA(TEXT(D$1,""),'Sum of Captured Q-D'!$A$10)/GETPIVOTDATA(TEXT(D$1,""),'Sum of Q-D'!$A$10),IFERROR(GETPIVOTDATA(TEXT(D$1,""),'Sum of Captured Q-D'!$A$10,"CIA Name",$A80)/GETPIVOTDATA(TEXT(D$1,""),'Sum of Q-D'!$A$10,"CIA Name",$A80),0))) -> 0.9812309084 | E80: =IF(D80="","",IF($A80="Grand Total",GETPIVOTDATA(TEXT(E$1,""),'Sum of Captured Q-D'!$A$10)/GETPIVOTDATA(TEXT(E$1,""),'Sum of Q-D'!$A$10),IFERROR(GETPIVOTDATA(TEXT(E$1,""),'Sum of Captured Q-D'!$A$10,"CIA Name",$A80)/GETPIVOTDATA(TEXT(E$1,""),'Sum of Q-D'!$A$10,"CIA Name",$A80),0))) -> 0.629516067
A81: Medicine Lake Wilderness | B81: =IF(A81="","",IF($A81="Grand Total",GETPIVOTDATA(TEXT(B$1,""),'Sum of Captured Q-D'!$A$10)/GETPIVOTDATA(TEXT(B$1,""),'Sum of Q-D'!$A$10),IFERROR(GETPIVOTDATA(TEXT(B$1,""),'Sum of Captured Q-D'!$A$10,"CIA Name",$A81)/GETPIVOTDATA(TEXT(B$1,""),'Sum of Q-D'!$A$10,"CIA Name",$A81),0))) -> 0.8919384655 | C81: =IF(B81="","",IF($A81="Grand Total",GETPIVOTDATA(TEXT(C$1,""),'Sum of Captured Q-D'!$A$10)/GETPIVOTDATA(TEXT(C$1,""),'Sum of Q-D'!$A$10),IFERROR(GETPIVOTDATA(TEXT(C$1,""),'Sum of Captured Q-D'!$A$10,"CIA Name",$A81)/GETPIVOTDATA(TEXT(C$1,""),'Sum of Q-D'!$A$10,"CIA Name",$A81),0))) -> 0.8695567104 | D81: =IF(C81="","",IF($A81="Grand Total",GETPIVOTDATA(TEXT(D$1,""),'Sum of Captured Q-D'!$A$10)/GETPIVOTDATA(TEXT(D$1,""),'Sum of Q-D'!$A$10),IFERROR(GETPIVOTDATA(TEXT(D$1,""),'Sum of Captured Q-D'!$A$10,"CIA Name",$A81)/GETPIVOTDATA(TEXT(D$1,""),'Sum of Q-D'!$A$10,"CIA Name",$A81),0))) -> 0.9535985401 | E81: =IF(D81="","",IF($A81="Grand Total",GETPIVOTDATA(TEXT(E$1,""),'Sum of Captured Q-D'!$A$10)/GETPIVOTDATA(TEXT(E$1,""),'Sum of Q-D'!$A$10),IFERROR(GETPIVOTDATA(TEXT(E$1,""),'Sum of Captured Q-D'!$A$10,"CIA Name",$A81)/GETPIVOTDATA(TEXT(E$1,""),'Sum of Q-D'!$A$10,"CIA Name",$A81),0))) -> 0.6394016796
A82: Mesa Verde NP | B82: =IF(A82="","",IF($A82="Grand Total",GETPIVOTDATA(TEXT(B$1,""),'Sum of Captured Q-D'!$A$10)/GETPIVOTDATA(TEXT(B$1,""),'Sum of Q-D'!$A$10),IFERROR(GETPIVOTDATA(TEXT(B$1,""),'Sum of Captured Q-D'!$A$10,"CIA Name",$A82)/GETPIVOTDATA(TEXT(B$1,""),'Sum of Q-D'!$A$10,"CIA Name",$A82),0))) -> 0.8371895584 | C82: =IF(B82="","",IF($A82="Grand Total",GETPIVOTDATA(TEXT(C$1,""),'Sum of Captured Q-D'!$A$10)/GETPIVOTDATA(TEXT(C$1,""),'Sum of Q-D'!$A$10),IFERROR(GETPIVOTDATA(TEXT(C$1,""),'Sum of Captured Q-D'!$A$10,"CIA Name",$A82)/GETPIVOTDATA(TEXT(C$1,""),'Sum of Q-D'!$A$10,"CIA Name",$A82),0))) -> 0.8263508758 | D82: =IF(C82="","",IF($A82="Grand Total",GETPIVOTDATA(TEXT(D$1,""),'Sum of Captured Q-D'!$A$10)/GETPIVOTDATA(TEXT(D$1,""),'Sum of Q-D'!$A$10),IFERROR(GETPIVOTDATA(TEXT(D$1,""),'Sum of Captured Q-D'!$A$10,"CIA Name",$A82)/GETPIVOTDATA(TEXT(D$1,""),'Sum of Q-D'!$A$10,"CIA Name",$A82),0))) -> 0.9402955973 | E82: =IF(D82="","",IF($A82="Grand Total",GETPIVOTDATA(TEXT(E$1,""),'Sum of Captured Q-D'!$A$10)/GETPIVOTDATA(TEXT(E$1,""),'Sum of Q-D'!$A$10),IFERROR(GETPIVOTDATA(TEXT(E$1,""),'Sum of Captured Q-D'!$A$10,"CIA Name",$A82)/GETPIVOTDATA(TEXT(E$1,""),'Sum of Q-D'!$A$10,"CIA Name",$A82),0))) -> 0.6414257177
A83: Mission Mountains Wilderness | B83: =IF(A83="","",IF($A83="Grand Total",GETPIVOTDATA(TEXT(B$1,""),'Sum of Captured Q-D'!$A$10)/GETPIVOTDATA(TEXT(B$1,""),'Sum of Q-D'!$A$10),IFERROR(GETPIVOTDATA(TEXT(B$1,""),'Sum of Captured Q-D'!$A$10,"CIA Name",$A83)/GETPIVOTDATA(TEXT(B$1,""),'Sum of Q-D'!$A$10,"CIA Name",$A83),0))) -> 0.4846917169 | C83: =IF(B83="","",IF($A83="Grand Total",GETPIVOTDATA(TEXT(C$1,""),'Sum of Captured Q-D'!$A$10)/GETPIVOTDATA(TEXT(C$1,""),'Sum of Q-D'!$A$10),IFERROR(GETPIVOTDATA(TEXT(C$1,""),'Sum of Captured Q-D'!$A$10,"CIA Name",$A83)/GETPIVOTDATA(TEXT(C$1,""),'Sum of Q-D'!$A$10,"CIA Name",$A83),0))) -> 0.5600094645 | D83: =IF(C83="","",IF($A83="Grand Total",GETPIVOTDATA(TEXT(D$1,""),'Sum of Captured Q-D'!$A$10)/GETPIVOTDATA(TEXT(D$1,""),'Sum of Q-D'!$A$10),IFERROR(GETPIVOTDATA(TEXT(D$1,""),'Sum of Captured Q-D'!$A$10,"CIA Name",$A83)/GETPIVOTDATA(TEXT(D$1,""),'Sum of Q-D'!$A$10,"CIA Name",$A83),0))) -> 0.4603258986 | E83: =IF(D83="","",IF($A83="Grand Total",GETPIVOTDATA(TEXT(E$1,""),'Sum of Captured Q-D'!$A$10)/GETPIVOTDATA(TEXT(E$1,""),'Sum of Q-D'!$A$10),IFERROR(GETPIVOTDATA(TEXT(E$1,""),'Sum of Captured Q-D'!$A$10,"CIA Name",$A83)/GETPIVOTDATA(TEXT(E$1,""),'Sum of Q-D'!$A$10,"CIA Name",$A83),0))) -> 0.3466459946
A84: Mokelumne Wilderness | B84: =IF(A84="","",IF($A84="Grand Total",GETPIVOTDATA(TEXT(B$1,""),'Sum of Captured Q-D'!$A$10)/GETPIVOTDATA(TEXT(B$1,""),'Sum of Q-D'!$A$10),IFERROR(GETPIVOTDATA(TEXT(B$1,""),'Sum of Captured Q-D'!$A$10,"CIA Name",$A84)/GETPIVOTDATA(TEXT(B$1,""),'Sum of Q-D'!$A$10,"CIA Name",$A84),0))) -> 0.3831744716 | C84: =IF(B84="","",IF($A84="Grand Total",GETPIVOTDATA(TEXT(C$1,""),'Sum of Captured Q-D'!$A$10)/GETPIVOTDATA(TEXT(C$1,""),'Sum of Q-D'!$A$10),IFERROR(GETPIVOTDATA(TEXT(C$1,""),'Sum of Captured Q-D'!$A$10,"CIA Name",$A84)/GETPIVOTDATA(TEXT(C$1,""),'Sum of Q-D'!$A$10,"CIA Name",$A84),0))) -> 0.398625493 | D84: =IF(C84="","",IF($A84="Grand Total",GETPIVOTDATA(TEXT(D$1,""),'Sum of Captured Q-D'!$A$10)/GETPIVOTDATA(TEXT(D$1,""),'Sum of Q-D'!$A$10),IFERROR(GETPIVOTDATA(TEXT(D$1,""),'Sum of Captured Q-D'!$A$10,"CIA Name",$A84)/GETPIVOTDATA(TEXT(D$1,""),'Sum of Q-D'!$A$10,"CIA Name",$A84),0))) -> 0.5344395983 | E84: =IF(D84="","",IF($A84="Grand Total",GETPIVOTDATA(TEXT(E$1,""),'Sum of Captured Q-D'!$A$10)/GETPIVOTDATA(TEXT(E$1,""),'Sum of Q-D'!$A$10),IFERROR(GETPIVOTDATA(TEXT(E$1,""),'Sum of Captured Q-D'!$A$10,"CIA Name",$A84)/GETPIVOTDATA(TEXT(E$1,""),'Sum of Q-D'!$A$10,"CIA Name",$A84),0))) -> 0.2159920679
A85: Mount Adams Wilderness | B85: =IF(A85="","",IF($A85="Grand Total",GETPIVOTDATA(TEXT(B$1,""),'Sum of Captured Q-D'!$A$10)/GETPIVOTDATA(TEXT(B$1,""),'Sum of Q-D'!$A$10),IFERROR(GETPIVOTDATA(TEXT(B$1,""),'Sum of Captured Q-D'!$A$10,"CIA Name",$A85)/GETPIVOTDATA(TEXT(B$1,""),'Sum of Q-D'!$A$10,"CIA Name",$A85),0))) -> 0.6004332452 | C85: =IF(B85="","",IF($A85="Grand Total",GETPIVOTDATA(TEXT(C$1,""),'Sum of Captured Q-D'!$A$10)/GETPIVOTDATA(TEXT(C$1,""),'Sum of Q-D'!$A$10),IFERROR(GETPIVOTDATA(TEXT(C$1,""),'Sum of Captured Q-D'!$A$10,"CIA Name",$A85)/GETPIVOTDATA(TEXT(C$1,""),'Sum of Q-D'!$A$10,"CIA Name",$A85),0))) -> 0.5316465546 | D85: =IF(C85="","",IF($A85="Grand Total",GETPIVOTDATA(TEXT(D$1,""),'Sum of Captured Q-D'!$A$10)/GETPIVOTDATA(TEXT(D$1,""),'Sum of Q-D'!$A$10),IFERROR(GETPIVOTDATA(TEXT(D$1,""),'Sum of Captured Q-D'!$A$10,"CIA Name",$A85)/GETPIVOTDATA(TEXT(D$1,""),'Sum of Q-D'!$A$10,"CIA Name",$A85),0))) -> 0.8491098123 | E85: =IF(D85="","",IF($A85="Grand Total",GETPIVOTDATA(TEXT(E$1,""),'Sum of Captured Q-D'!$A$10)/GETPIVOTDATA(TEXT(E$1,""),'Sum of Q-D'!$A$10),IFERROR(GETPIVOTDATA(TEXT(E$1,""),'Sum of Captured Q-D'!$A$10,"CIA Name",$A85)/GETPIVOTDATA(TEXT(E$1,""),'Sum of Q-D'!$A$10,"CIA Name",$A85),0))) -> 0.3456633254
A86: Mount Baldy Wilderness | B86: =IF(A86="","",IF($A86="Grand Total",GETPIVOTDATA(TEXT(B$1,""),'Sum of Captured Q-D'!$A$10)/GETPIVOTDATA(TEXT(B$1,""),'Sum of Q-D'!$A$10),IFERROR(GETPIVOTDATA(TEXT(B$1,""),'Sum of Captured Q-D'!$A$10,"CIA Name",$A86)/GETPIVOTDATA(TEXT(B$1,""),'Sum of Q-D'!$A$10,"CIA Name",$A86),0))) -> 0.8721224714 | C86: =IF(B86="","",IF($A86="Grand Total",GETPIVOTDATA(TEXT(C$1,""),'Sum of Captured Q-D'!$A$10)/GETPIVOTDATA(TEXT(C$1,""),'Sum of Q-D'!$A$10),IFERROR(GETPIVOTDATA(TEXT(C$1,""),'Sum of Captured Q-D'!$A$10,"CIA Name",$A86)/GETPIVOTDATA(TEXT(C$1,""),'Sum of Q-D'!$A$10,"CIA Name",$A86),0))) -> 0.8245023187 | D86: =IF(C86="","",IF($A86="Grand Total",GETPIVOTDATA(TEXT(D$1,""),'Sum of Captured Q-D'!$A$10)/GETPIVOTDATA(TEXT(D$1,""),'Sum of Q-D'!$A$10),IFERROR(GETPIVOTDATA(TEXT(D$1,""),'Sum of Captured Q-D'!$A$10,"CIA Name",$A86)/GETPIVOTDATA(TEXT(D$1,""),'Sum of Q-D'!$A$10,"CIA Name",$A86),0))) -> 0.9761833183 | E86: =IF(D86="","",IF($A86="Grand Total",GETPIVOTDATA(TEXT(E$1,""),'Sum of Captured Q-D'!$A$10)/GETPIVOTDATA(TEXT(E$1,""),'Sum of Q-D'!$A$10),IFERROR(GETPIVOTDATA(TEXT(E$1,""),'Sum of Captured Q-D'!$A$10,"CIA Name",$A86)/GETPIVOTDATA(TEXT(E$1,""),'Sum of Q-D'!$A$10,"CIA Name",$A86),0))) -> 0.7930209269
A87: Mount Hood Wilderness | B87: =IF(A87="","",IF($A87="Grand Total",GETPIVOTDATA(TEXT(B$1,""),'Sum of Captured Q-D'!$A$10)/GETPIVOTDATA(TEXT(B$1,""),'Sum of Q-D'!$A$10),IFERROR(GETPIVOTDATA(TEXT(B$1,""),'Sum of Captured Q-D'!$A$10,"CIA Name",$A87)/GETPIVOTDATA(TEXT(B$1,""),'Sum of Q-D'!$A$10,"CIA Name",$A87),0))) -> 0.5895819891 | C87: =IF(B87="","",IF($A87="Grand Total",GETPIVOTDATA(TEXT(C$1,""),'Sum of Captured Q-D'!$A$10)/GETPIVOTDATA(TEXT(C$1,""),'Sum of Q-D'!$A$10),IFERROR(GETPIVOTDATA(TEXT(C$1,""),'Sum of Captured Q-D'!$A$10,"CIA Name",$A87)/GETPIVOTDATA(TEXT(C$1,""),'Sum of Q-D'!$A$10,"CIA Name",$A87),0))) -> 0.5217583585 | D87: =IF(C87="","",IF($A87="Grand Total",GETPIVOTDATA(TEXT(D$1,""),'Sum of Captured Q-D'!$A$10)/GETPIVOTDATA(TEXT(D$1,""),'Sum of Q-D'!$A$10),IFERROR(GETPIVOTDATA(TEXT(D$1,""),'Sum of Captured Q-D'!$A$10,"CIA Name",$A87)/GETPIVOTDATA(TEXT(D$1,""),'Sum of Q-D'!$A$10,"CIA Name",$A87),0))) -> 0.8609335889 | E87: =IF(D87="","",IF($A87="Grand Total",GETPIVOTDATA(TEXT(E$1,""),'Sum of Captured Q-D'!$A$10)/GETPIVOTDATA(TEXT(E$1,""),'Sum of Q-D'!$A$10),IFERROR(GETPIVOTDATA(TEXT(E$1,""),'Sum of Captured Q-D'!$A$10,"CIA Name",$A87)/GETPIVOTDATA(TEXT(E$1,""),'Sum of Q-D'!$A$10,"CIA Name",$A87),0))) -> 0.3622961735
A88: Mount Jefferson Wilderness | B88: =IF(A88="","",IF($A88="Grand Total",GETPIVOTDATA(TEXT(B$1,""),'Sum of Captured Q-D'!$A$10)/GETPIVOTDATA(TEXT(B$1,""),'Sum of Q-D'!$A$10),IFERROR(GETPIVOTDATA(TEXT(B$1,""),'Sum of Captured Q-D'!$A$10,"CIA Name",$A88)/GETPIVOTDATA(TEXT(B$1,""),'Sum of Q-D'!$A$10,"CIA Name",$A88),0))) -> 0.4788715056 | C88: =IF(B88="","",IF($A88="Grand Total",GETPIVOTDATA(TEXT(C$1,""),'Sum of Captured Q-D'!$A$10)/GETPIVOTDATA(TEXT(C$1,""),'Sum of Q-D'!$A$10),IFERROR(GETPIVOTDATA(TEXT(C$1,""),'Sum of Captured Q-D'!$A$10,"CIA Name",$A88)/GETPIVOTDATA(TEXT(C$1,""),'Sum of Q-D'!$A$10,"CIA Name",$A88),0))) -> 0.3990639181 | D88: =IF(C88="","",IF($A88="Grand Total",GETPIVOTDATA(TEXT(D$1,""),'Sum of Captured Q-D'!$A$10)/GETPIVOTDATA(TEXT(D$1,""),'Sum of Q-D'!$A$10),IFERROR(GETPIVOTDATA(TEXT(D$1,""),'Sum of Captured Q-D'!$A$10,"CIA Name",$A88)/GETPIVOTDATA(TEXT(D$1,""),'Sum of Q-D'!$A$10,"CIA Name",$A88),0))) -> 0.8322298646 | E88: =IF(D88="","",IF($A88="Grand Total",GETPIVOTDATA(TEXT(E$1,""),'Sum of Captured Q-D'!$A$10)/GETPIVOTDATA(TEXT(E$1,""),'Sum of Q-D'!$A$10),IFERROR(GETPIVOTDATA(TEXT(E$1,""),'Sum of Captured Q-D'!$A$10,"CIA Name",$A88)/GETPIVOTDATA(TEXT(E$1,""),'Sum of Q-D'!$A$10,"CIA Name",$A88),0))) -> 0.2531090903
A89: Mount Rainier NP | B89: =IF(A89="","",IF($A89="Grand Total",GETPIVOTDATA(TEXT(B$1,""),'Sum of Captured Q-D'!$A$10)/GETPIVOTDATA(TEXT(B$1,""),'Sum of Q-D'!$A$10),IFERROR(GETPIVOTDATA(TEXT(B$1,""),'Sum of Captured Q-D'!$A$10,"CIA Name",$A89)/GETPIVOTDATA(TEXT(B$1,""),'Sum of Q-D'!$A$10,"CIA Name",$A89),0))) -> 0.7132095623 | C89: =IF(B89="","",IF($A89="Grand Total",GETPIVOTDATA(TEXT(C$1,""),'Sum of Captured Q-D'!$A$10)/GETPIVOTDATA(TEXT(C$1,""),'Sum of Q-D'!$A$10),IFERROR(GETPIVOTDATA(TEXT(C$1,""),'Sum of Captured Q-D'!$A$10,"CIA Name",$A89)/GETPIVOTDATA(TEXT(C$1,""),'Sum of Q-D'!$A$10,"CIA Name",$A89),0))) -> 0.6870680834 | D89: =IF(C89="","",IF($A89="Grand Total",GETPIVOTDATA(TEXT(D$1,""),'Sum of Captured Q-D'!$A$10)/GETPIVOTDATA(TEXT(D$1,""),'Sum of Q-D'!$A$10),IFERROR(GETPIVOTDATA(TEXT(D$1,""),'Sum of Captured Q-D'!$A$10,"CIA Name",$A89)/GETPIVOTDATA(TEXT(D$1,""),'Sum of Q-D'!$A$10,"CIA Name",$A89),0))) -> 0.8919850315 | E89: =IF(D89="","",IF($A89="Grand Total",GETPIVOTDATA(TEXT(E$1,""),'Sum of Captured Q-D'!$A$10)/GETPIVOTDATA(TEXT(E$1,""),'Sum of Q-D'!$A$10),IFERROR(GETPIVOTDATA(TEXT(E$1,""),'Sum of Captured Q-D'!$A$10,"CIA Name",$A89)/GETPIVOTDATA(TEXT(E$1,""),'Sum of Q-D'!$A$10,"CIA Name",$A89),0))) -> 0.4114989269
A90: Mount Washington Wilderness | B90: =IF(A90="","",IF($A90="Grand Total",GETPIVOTDATA(TEXT(B$1,""),'Sum of Captured Q-D'!$A$10)/GETPIVOTDATA(TEXT(B$1,""),'Sum of Q-D'!$A$10),IFERROR(GETPIVOTDATA(TEXT(B$1,""),'Sum of Captured Q-D'!$A$10,"CIA Name",$A90)/GETPIVOTDATA(TEXT(B$1,""),'Sum of Q-D'!$A$10,"CIA Name",$A90),0))) -> 0.4094910667 | C90: =IF(B90="","",IF($A90="Grand Total",GETPIVOTDATA(TEXT(C$1,""),'Sum of Captured Q-D'!$A$10)/GETPIVOTDATA(TEXT(C$1,""),'Sum of Q-D'!$A$10),IFERROR(GETPIVOTDATA(TEXT(C$1,""),'Sum of Captured Q-D'!$A$10,"CIA Name",$A90)/GETPIVOTDATA(TEXT(C$1,""),'Sum of Q-D'!$A$10,"CIA Name",$A90),0))) -> 0.3564276308 | D90: =IF(C90="","",IF($A90="Grand Total",GETPIVOTDATA(TEXT(D$1,""),'Sum of Captured Q-D'!$A$10)/GETPIVOTDATA(TEXT(D$1,""),'Sum of Q-D'!$A$10),IFERROR(GETPIVOTDATA(TEXT(D$1,""),'Sum of Captured Q-D'!$A$10,"CIA Name",$A90)/GETPIVOTDATA(TEXT(D$1,""),'Sum of Q-D'!$A$10,"CIA Name",$A90),0))) -> 0.6697721149 | E90: =IF(D90="","",IF($A90="Grand Total",GETPIVOTDATA(TEXT(E$1,""),'Sum of Captured Q-D'!$A$10)/GETPIVOTDATA(TEXT(E$1,""),'Sum of Q-D'!$A$10),IFERROR(GETPIVOTDATA(TEXT(E$1,""),'Sum of Captured Q-D'!$A$10,"CIA Name",$A90)/GETPIVOTDATA(TEXT(E$1,""),'Sum of Q-D'!$A$10,"CIA Name",$A90),0))) -> 0.2415335485
A91: Mount Zirkel Wilderness | B91: =IF(A91="","",IF($A91="Grand Total",GETPIVOTDATA(TEXT(B$1,""),'Sum of Captured Q-D'!$A$10)/GETPIVOTDATA(TEXT(B$1,""),'Sum of Q-D'!$A$10),IFERROR(GETPIVOTDATA(TEXT(B$1,""),'Sum of Captured Q-D'!$A$10,"CIA Name",$A91)/GETPIVOTDATA(TEXT(B$1,""),'Sum of Q-D'!$A$10,"CIA Name",$A91),0))) -> 0.7330362734 | C91: =IF(B91="","",IF($A91="Grand Total",GETPIVOTDATA(TEXT(C$1,""),'Sum of Captured Q-D'!$A$10)/GETPIVOTDATA(TEXT(C$1,""),'Sum of Q-D'!$A$10),IFERROR(GETPIVOTDATA(TEXT(C$1,""),'Sum of Captured Q-D'!$A$10,"CIA Name",$A91)/GETPIVOTDATA(TEXT(C$1,""),'Sum of Q-D'!$A$10,"CIA Name",$A91),0))) -> 0.7323144898 | D91: =IF(C91="","",IF($A91="Grand Total",GETPIVOTDATA(TEXT(D$1,""),'Sum of Captured Q-D'!$A$10)/GETPIVOTDATA(TEXT(D$1,""),'Sum of Q-D'!$A$10),IFERROR(GETPIVOTDATA(TEXT(D$1,""),'Sum of Captured Q-D'!$A$10,"CIA Name",$A91)/GETPIVOTDATA(TEXT(D$1,""),'Sum of Q-D'!$A$10,"CIA Name",$A91),0))) -> 0.8960382084 | E91: =IF(D91="","",IF($A91="Grand Total",GETPIVOTDATA(TEXT(E$1,""),'Sum of Captured Q-D'!$A$10)/GETPIVOTDATA(TEXT(E$1,""),'Sum of Q-D'!$A$10),IFERROR(GETPIVOTDATA(TEXT(E$1,""),'Sum of Captured Q-D'!$A$10,"CIA Name",$A91)/GETPIVOTDATA(TEXT(E$1,""),'Sum of Q-D'!$A$10,"CIA Name",$A91),0))) -> 0.3113925849
A92: Mountain Lakes Wilderness | B92: =IF(A92="","",IF($A92="Grand Total",GETPIVOTDATA(TEXT(B$1,""),'Sum of Captured Q-D'!$A$10)/GETPIVOTDATA(TEXT(B$1,""),'Sum of Q-D'!$A$10),IFERROR(GETPIVOTDATA(TEXT(B$1,""),'Sum of Captured Q-D'!$A$10,"CIA Name",$A92)/GETPIVOTDATA(TEXT(B$1,""),'Sum of Q-D'!$A$10,"CIA Name",$A92),0))) -> 0.08404186513 | C92: =IF(B92="","",IF($A92="Grand Total",GETPIVOTDATA(TEXT(C$1,""),'Sum of Captured Q-D'!$A$10)/GETPIVOTDATA(TEXT(C$1,""),'Sum of Q-D'!$A$10),IFERROR(GETPIVOTDATA(TEXT(C$1,""),'Sum of Captured Q-D'!$A$10,"CIA Name",$A92)/GETPIVOTDATA(TEXT(C$1,""),'Sum of Q-D'!$A$10,"CIA Name",$A92),0))) -> 0.08598447144 | D92: =IF(C92="","",IF($A92="Grand Total",GETPIVOTDATA(TEXT(D$1,""),'Sum of Captured Q-D'!$A$10)/GETPIVOTDATA(TEXT(D$1,""),'Sum of Q-D'!$A$10),IFERROR(GETPIVOTDATA(TEXT(D$1,""),'Sum of Captured Q-D'!$A$10,"CIA Name",$A92)/GETPIVOTDATA(TEXT(D$1,""),'Sum of Q-D'!$A$10,"CIA Name",$A92),0))) -> 0.06546506089 | E92: =IF(D92="","",IF($A92="Grand Total",GETPIVOTDATA(TEXT(E$1,""),'Sum of Captured Q-D'!$A$10)/GETPIVOTDATA(TEXT(E$1,""),'Sum of Q-D'!$A$10),IFERROR(GETPIVOTDATA(TEXT(E$1,""),'Sum of Captured Q-D'!$A$10,"CIA Name",$A92)/GETPIVOTDATA(TEXT(E$1,""),'Sum of Q-D'!$A$10,"CIA Name",$A92),0))) -> 0.08375234712
A93: North Absaroka Wilderness | B93: =IF(A93="","",IF($A93="Grand Total",GETPIVOTDATA(TEXT(B$1,""),'Sum of Captured Q-D'!$A$10)/GETPIVOTDATA(TEXT(B$1,""),'Sum of Q-D'!$A$10),IFERROR(GETPIVOTDATA(TEXT(B$1,""),'Sum of Captured Q-D'!$A$10,"CIA Name",$A93)/GETPIVOTDATA(TEXT(B$1,""),'Sum of Q-D'!$A$10,"CIA Name",$A93),0))) -> 0.6537008232 | C93: =IF(B93="","",IF($A93="Grand Total",GETPIVOTDATA(TEXT(C$1,""),'Sum of Captured Q-D'!$A$10)/GETPIVOTDATA(TEXT(C$1,""),'Sum of Q-D'!$A$10),IFERROR(GETPIVOTDATA(TEXT(C$1,""),'Sum of Captured Q-D'!$A$10,"CIA Name",$A93)/GETPIVOTDATA(TEXT(C$1,""),'Sum of Q-D'!$A$10,"CIA Name",$A93),0))) -> 0.6571608074 | D93: =IF(C93="","",IF($A93="Grand Total",GETPIVOTDATA(TEXT(D$1,""),'Sum of Captured Q-D'!$A$10)/GETPIVOTDATA(TEXT(D$1,""),'Sum of Q-D'!$A$10),IFERROR(GETPIVOTDATA(TEXT(D$1,""),'Sum of Captured Q-D'!$A$10,"CIA Name",$A93)/GETPIVOTDATA(TEXT(D$1,""),'Sum of Q-D'!$A$10,"CIA Name",$A93),0))) -> 0.8187418553 | E93: =IF(D93="","",IF($A93="Grand Total",GETPIVOTDATA(TEXT(E$1,""),'Sum of Captured Q-D'!$A$10)/GETPIVOTDATA(TEXT(E$1,""),'Sum of Q-D'!$A$10),IFERROR(GETPIVOTDATA(TEXT(E$1,""),'Sum of Captured Q-D'!$A$10,"CIA Name",$A93)/GETPIVOTDATA(TEXT(E$1,""),'Sum of Q-D'!$A$10,"CIA Name",$A93),0))) -> 0.30252738
A94: North Cascades NP | B94: =IF(A94="","",IF($A94="Grand Total",GETPIVOTDATA(TEXT(B$1,""),'Sum of Captured Q-D'!$A$10)/GETPIVOTDATA(TEXT(B$1,""),'Sum of Q-D'!$A$10),IFERROR(GETPIVOTDATA(TEXT(B$1,""),'Sum of Captured Q-D'!$A$10,"CIA Name",$A94)/GETPIVOTDATA(TEXT(B$1,""),'Sum of Q-D'!$A$10,"CIA Name",$A94),0))) -> 0.6649562774 | C94: =IF(B94="","",IF($A94="Grand Total",GETPIVOTDATA(TEXT(C$1,""),'Sum of Captured Q-D'!$A$10)/GETPIVOTDATA(TEXT(C$1,""),'Sum of Q-D'!$A$10),IFERROR(GETPIVOTDATA(TEXT(C$1,""),'Sum of Captured Q-D'!$A$10,"CIA Name",$A94)/GETPIVOTDATA(TEXT(C$1,""),'Sum of Q-D'!$A$10,"CIA Name",$A94),0))) -> 0.5661276959 | D94: =IF(C94="","",IF($A94="Grand Total",GETPIVOTDATA(TEXT(D$1,""),'Sum of Captured Q-D'!$A$10)/GETPIVOTDATA(TEXT(D$1,""),'Sum of Q-D'!$A$10),IFERROR(GETPIVOTDATA(TEXT(D$1,""),'Sum of Captured Q-D'!$A$10,"CIA Name",$A94)/GETPIVOTDATA(TEXT(D$1,""),'Sum of Q-D'!$A$10,"CIA Name",$A94),0))) -> 0.8797500291 | E94: =IF(D94="","",IF($A94="Grand Total",GETPIVOTDATA(TEXT(E$1,""),'Sum of Captured Q-D'!$A$10)/GETPIVOTDATA(TEXT(E$1,""),'Sum of Q-D'!$A$10),IFERROR(GETPIVOTDATA(TEXT(E$1,""),'Sum of Captured Q-D'!$A$10,"CIA Name",$A94)/GETPIVOTDATA(TEXT(E$1,""),'Sum of Q-D'!$A$10,"CIA Name",$A94),0))) -> 0.4440092583
A95: Olympic NP | B95: =IF(A95="","",IF($A95="Grand Total",GETPIVOTDATA(TEXT(B$1,""),'Sum of Captured Q-D'!$A$10)/GETPIVOTDATA(TEXT(B$1,""),'Sum of Q-D'!$A$10),IFERROR(GETPIVOTDATA(TEXT(B$1,""),'Sum of Captured Q-D'!$A$10,"CIA Name",$A95)/GETPIVOTDATA(TEXT(B$1,""),'Sum of Q-D'!$A$10,"CIA Name",$A95),0))) -> 0.7734603751 | C95: =IF(B95="","",IF($A95="Grand Total",GETPIVOTDATA(TEXT(C$1,""),'Sum of Captured Q-D'!$A$10)/GETPIVOTDATA(TEXT(C$1,""),'Sum of Q-D'!$A$10),IFERROR(GETPIVOTDATA(TEXT(C$1,""),'Sum of Captured Q-D'!$A$10,"CIA Name",$A95)/GETPIVOTDATA(TEXT(C$1,""),'Sum of Q-D'!$A$10,"CIA Name",$A95),0))) -> 0.7328050093 | D95: =IF(C95="","",IF($A95="Grand Total",GETPIVOTDATA(TEXT(D$1,""),'Sum of Captured Q-D'!$A$10)/GETPIVOTDATA(TEXT(D$1,""),'Sum of Q-D'!$A$10),IFERROR(GETPIVOTDATA(TEXT(D$1,""),'Sum of Captured Q-D'!$A$10,"CIA Name",$A95)/GETPIVOTDATA(TEXT(D$1,""),'Sum of Q-D'!$A$10,"CIA Name",$A95),0))) -> 0.9180059112 | E95: =IF(D95="","",IF($A95="Grand Total",GETPIVOTDATA(TEXT(E$1,""),'Sum of Captured Q-D'!$A$10)/GETPIVOTDATA(TEXT(E$1,""),'Sum of Q-D'!$A$10),IFERROR(GETPIVOTDATA(TEXT(E$1,""),'Sum of Captured Q-D'!$A$10,"CIA Name",$A95)/GETPIVOTDATA(TEXT(E$1,""),'Sum of Q-D'!$A$10,"CIA Name",$A95),0))) -> 0.6135289652
A96: Pasayten Wilderness | B96: =IF(A96="","",IF($A96="Grand Total",GETPIVOTDATA(TEXT(B$1,""),'Sum of Captured Q-D'!$A$10)/GETPIVOTDATA(TEXT(B$1,""),'Sum of Q-D'!$A$10),IFERROR(GETPIVOTDATA(TEXT(B$1,""),'Sum of Captured Q-D'!$A$10,"CIA Name",$A96)/GETPIVOTDATA(TEXT(B$1,""),'Sum of Q-D'!$A$10,"CIA Name",$A96),0))) -> 0.6170456016 | C96: =IF(B96="","",IF($A96="Grand Total",GETPIVOTDATA(TEXT(C$1,""),'Sum of Captured Q-D'!$A$10)/GETPIVOTDATA(TEXT(C$1,""),'Sum of Q-D'!$A$10),IFERROR(GETPIVOTDATA(TEXT(C$1,""),'Sum of Captured Q-D'!$A$10,"CIA Name",$A96)/GETPIVOTDATA(TEXT(C$1,""),'Sum of Q-D'!$A$10,"CIA Name",$A96),0))) -> 0.5044075319 | D96: =IF(C96="","",IF($A96="Grand Total",GETPIVOTDATA(TEXT(D$1,""),'Sum of Captured Q-D'!$A$10)/GETPIVOTDATA(TEXT(D$1,""),'Sum of Q-D'!$A$10),IFERROR(GETPIVOTDATA(TEXT(D$1,""),'Sum of Captured Q-D'!$A$10,"CIA Name",$A96)/GETPIVOTDATA(TEXT(D$1,""),'Sum of Q-D'!$A$10,"CIA Name",$A96),0))) -> 0.8732331885 | E96: =IF(D96="","",IF($A96="Grand Total",GETPIVOTDATA(TEXT(E$1,""),'Sum of Captured Q-D'!$A$10)/GETPIVOTDATA(TEXT(E$1,""),'Sum of Q-D'!$A$10),IFERROR(GETPIVOTDATA(TEXT(E$1,""),'Sum of Captured Q-D'!$A$10,"CIA Name",$A96)/GETPIVOTDATA(TEXT(E$1,""),'Sum of Q-D'!$A$10,"CIA Name",$A96),0))) -> 0.3763047237
A97: Pecos Wilderness | B97: =IF(A97="","",IF($A97="Grand Total",GETPIVOTDATA(TEXT(B$1,""),'Sum of Captured Q-D'!$A$10)/GETPIVOTDATA(TEXT(B$1,""),'Sum of Q-D'!$A$10),IFERROR(GETPIVOTDATA(TEXT(B$1,""),'Sum of Captured Q-D'!$A$10,"CIA Name",$A97)/GETPIVOTDATA(TEXT(B$1,""),'Sum of Q-D'!$A$10,"CIA Name",$A97),0))) -> 0.6506760104 | C97: =IF(B97="","",IF($A97="Grand Total",GETPIVOTDATA(TEXT(C$1,""),'Sum of Captured Q-D'!$A$10)/GETPIVOTDATA(TEXT(C$1,""),'Sum of Q-D'!$A$10),IFERROR(GETPIVOTDATA(TEXT(C$1,""),'Sum of Captured Q-D'!$A$10,"CIA Name",$A97)/GETPIVOTDATA(TEXT(C$1,""),'Sum of Q-D'!$A$10,"CIA Name",$A97),0))) -> 0.5718392373 | D97: =IF(C97="","",IF($A97="Grand Total",GETPIVOTDATA(TEXT(D$1,""),'Sum of Captured Q-D'!$A$10)/GETPIVOTDATA(TEXT(D$1,""),'Sum of Q-D'!$A$10),IFERROR(GETPIVOTDATA(TEXT(D$1,""),'Sum of Captured Q-D'!$A$10,"CIA Name",$A97)/GETPIVOTDATA(TEXT(D$1,""),'Sum of Q-D'!$A$10,"CIA Name",$A97),0))) -> 0.8489337973 | E97: =IF(D97="","",IF($A97="Grand Total",GETPIVOTDATA(TEXT(E$1,""),'Sum of Captured Q-D'!$A$10)/GETPIVOTDATA(TEXT(E$1,""),'Sum of Q-D'!$A$10),IFERROR(GETPIVOTDATA(TEXT(E$1,""),'Sum of Captured Q-D'!$A$10,"CIA Name",$A97)/GETPIVOTDATA(TEXT(E$1,""),'Sum of Q-D'!$A$10,"CIA Name",$A97),0))) -> 0.4343921028
A98: Petrified Forest NP | B98: =IF(A98="","",IF($A98="Grand Total",GETPIVOTDATA(TEXT(B$1,""),'Sum of Captured Q-D'!$A$10)/GETPIVOTDATA(TEXT(B$1,""),'Sum of Q-D'!$A$10),IFERROR(GETPIVOTDATA(TEXT(B$1,""),'Sum of Captured Q-D'!$A$10,"CIA Name",$A98)/GETPIVOTDATA(TEXT(B$1,""),'Sum of Q-D'!$A$10,"CIA Name",$A98),0))) -> 0.8995320031 | C98: =IF(B98="","",IF($A98="Grand Total",GETPIVOTDATA(TEXT(C$1,""),'Sum of Captured Q-D'!$A$10)/GETPIVOTDATA(TEXT(C$1,""),'Sum of Q-D'!$A$10),IFERROR(GETPIVOTDATA(TEXT(C$1,""),'Sum of Captured Q-D'!$A$10,"CIA Name",$A98)/GETPIVOTDATA(TEXT(C$1,""),'Sum of Q-D'!$A$10,"CIA Name",$A98),0))) -> 0.8861687423 | D98: =IF(C98="","",IF($A98="Grand Total",GETPIVOTDATA(TEXT(D$1,""),'Sum of Captured Q-D'!$A$10)/GETPIVOTDATA(TEXT(D$1,""),'Sum of Q-D'!$A$10),IFERROR(GETPIVOTDATA(TEXT(D$1,""),'Sum of Captured Q-D'!$A$10,"CIA Name",$A98)/GETPIVOTDATA(TEXT(D$1,""),'Sum of Q-D'!$A$10,"CIA Name",$A98),0))) -> 0.9738780231 | E98: =IF(D98="","",IF($A98="Grand Total",GETPIVOTDATA(TEXT(E$1,""),'Sum of Captured Q-D'!$A$10)/GETPIVOTDATA(TEXT(E$1,""),'Sum of Q-D'!$A$10),IFERROR(GETPIVOTDATA(TEXT(E$1,""),'Sum of Captured Q-D'!$A$10,"CIA Name",$A98)/GETPIVOTDATA(TEXT(E$1,""),'Sum of Q-D'!$A$10,"CIA Name",$A98),0))) -> 0.7611508351
A99: Pine Mountain Wilderness | B99: =IF(A99="","",IF($A99="Grand Total",GETPIVOTDATA(TEXT(B$1,""),'Sum of Captured Q-D'!$A$10)/GETPIVOTDATA(TEXT(B$1,""),'Sum of Q-D'!$A$10),IFERROR(GETPIVOTDATA(TEXT(B$1,""),'Sum of Captured Q-D'!$A$10,"CIA Name",$A99)/GETPIVOTDATA(TEXT(B$1,""),'Sum of Q-D'!$A$10,"CIA Name",$A99),0))) -> 0.8055253746 | C99: =IF(B99="","",IF($A99="Grand Total",GETPIVOTDATA(TEXT(C$1,""),'Sum of Captured Q-D'!$A$10)/GETPIVOTDATA(TEXT(C$1,""),'Sum of Q-D'!$A$10),IFERROR(GETPIVOTDATA(TEXT(C$1,""),'Sum of Captured Q-D'!$A$10,"CIA Name",$A99)/GETPIVOTDATA(TEXT(C$1,""),'Sum of Q-D'!$A$10,"CIA Name",$A99),0))) -> 0.7686180479 | D99: =IF(C99="","",IF($A99="Grand Total",GETPIVOTDATA(TEXT(D$1,""),'Sum of Captured Q-D'!$A$10)/GETPIVOTDATA(TEXT(D$1,""),'Sum of Q-D'!$A$10),IFERROR(GETPIVOTDATA(TEXT(D$1,""),'Sum of Captured Q-D'!$A$10,"CIA Name",$A99)/GETPIVOTDATA(TEXT(D$1,""),'Sum of Q-D'!$A$10,"CIA Name",$A99),0))) -> 0.9708567711 | E99: =IF(D99="","",IF($A99="Grand Total",GETPIVOTDATA(TEXT(E$1,""),'Sum of Captured Q-D'!$A$10)/GETPIVOTDATA(TEXT(E$1,""),'Sum of Q-D'!$A$10),IFERROR(GETPIVOTDATA(TEXT(E$1,""),'Sum of Captured Q-D'!$A$10,"CIA Name",$A99)/GETPIVOTDATA(TEXT(E$1,""),'Sum of Q-D'!$A$10,"CIA Name",$A99),0))) -> 0.5511388769
A100: Pinnacles Wilderness | B100: =IF(A100="","",IF($A100="Grand Total",GETPIVOTDATA(TEXT(B$1,""),'Sum of Captured Q-D'!$A$10)/GETPIVOTDATA(TEXT(B$1,""),'Sum of Q-D'!$A$10),IFERROR(GETPIVOTDATA(TEXT(B$1,""),'Sum of Captured Q-D'!$A$10,"CIA Name",$A100)/GETPIVOTDATA(TEXT(B$1,""),'Sum of Q-D'!$A$10,"CIA Name",$A100),0))) -> 0.2408581324 | C100: =IF(B100="","",IF($A100="Grand Total",GETPIVOTDATA(TEXT(C$1,""),'Sum of Captured Q-D'!$A$10)/GETPIVOTDATA(TEXT(C$1,""),'Sum of Q-D'!$A$10),IFERROR(GETPIVOTDATA(TEXT(C$1,""),'Sum of Captured Q-D'!$A$10,"CIA Name",$A100)/GETPIVOTDATA(TEXT(C$1,""),'Sum of Q-D'!$A$10,"CIA Name",$A100),0))) -> 0.2927144074 | D100: =IF(C100="","",IF($A100="Grand Total",GETPIVOTDATA(TEXT(D$1,""),'Sum of Captured Q-D'!$A$10)/GETPIVOTDATA(TEXT(D$1,""),'Sum of Q-D'!$A$10),IFERROR(GETPIVOTDATA(TEXT(D$1,""),'Sum of Captured Q-D'!$A$10,"CIA Name",$A100)/GETPIVOTDATA(TEXT(D$1,""),'Sum of Q-D'!$A$10,"CIA Name",$A100),0))) -> 0.3286219741 | E100: =IF(D100="","",IF($A100="Grand Total",GETPIVOTDATA(TEXT(E$1,""),'Sum of Captured Q-D'!$A$10)/GETPIVOTDATA(TEXT(E$1,""),'Sum of Q-D'!$A$10),IFERROR(GETPIVOTDATA(TEXT(E$1,""),'Sum of Captured Q-D'!$A$10,"CIA Name",$A100)/GETPIVOTDATA(TEXT(E$1,""),'Sum of Q-D'!$A$10,"CIA Name",$A100),0))) -> 0.05935848727
A101: Point Reyes NS/Phillip Burton Wilderness 1 | B101: =IF(A101="","",IF($A101="Grand Total",GETPIVOTDATA(TEXT(B$1,""),'Sum of Captured Q-D'!$A$10)/GETPIVOTDATA(TEXT(B$1,""),'Sum of Q-D'!$A$10),IFERROR(GETPIVOTDATA(TEXT(B$1,""),'Sum of Captured Q-D'!$A$10,"CIA Name",$A101)/GETPIVOTDATA(TEXT(B$1,""),'Sum of Q-D'!$A$10,"CIA Name",$A101),0))) -> 0.6164388785 | C101: =IF(B101="","",IF($A101="Grand Total",GETPIVOTDATA(TEXT(C$1,""),'Sum of Captured Q-D'!$A$10)/GETPIVOTDATA(TEXT(C$1,""),'Sum of Q-D'!$A$10),IFERROR(GETPIVOTDATA(TEXT(C$1,""),'Sum of Captured Q-D'!$A$10,"CIA Name",$A101)/GETPIVOTDATA(TEXT(C$1,""),'Sum of Q-D'!$A$10,"CIA Name",$A101),0))) -> 0.6312093991 | D101: =IF(C101="","",IF($A101="Grand Total",GETPIVOTDATA(TEXT(D$1,""),'Sum of Captured Q-D'!$A$10)/GETPIVOTDATA(TEXT(D$1,""),'Sum of Q-D'!$A$10),IFERROR(GETPIVOTDATA(TEXT(D$1,""),'Sum of Captured Q-D'!$A$10,"CIA Name",$A101)/GETPIVOTDATA(TEXT(D$1,""),'Sum of Q-D'!$A$10,"CIA Name",$A101),0))) -> 0.7629542939 | E101: =IF(D101="","",IF($A101="Grand Total",GETPIVOTDATA(TEXT(E$1,""),'Sum of Captured Q-D'!$A$10)/GETPIVOTDATA(TEXT(E$1,""),'Sum of Q-D'!$A$10),IFERROR(GETPIVOTDATA(TEXT(E$1,""),'Sum of Captured Q-D'!$A$10,"CIA Name",$A101)/GETPIVOTDATA(TEXT(E$1,""),'Sum of Q-D'!$A$10,"CIA Name",$A101),0))) -> 0.4159006264
A102: Point Reyes NS/Phillip Burton Wilderness 2 | B102: =IF(A102="","",IF($A102="Grand Total",GETPIVOTDATA(TEXT(B$1,""),'Sum of Captured Q-D'!$A$10)/GETPIVOTDATA(TEXT(B$1,""),'Sum of Q-D'!$A$10),IFERROR(GETPIVOTDATA(TEXT(B$1,""),'Sum of Captured Q-D'!$A$10,"CIA Name",$A102)/GETPIVOTDATA(TEXT(B$1,""),'Sum of Q-D'!$A$10,"CIA Name",$A102),0))) -> 0.5904417598 | C102: =IF(B102="","",IF($A102="Grand Total",GETPIVOTDATA(TEXT(C$1,""),'Sum of Captured Q-D'!$A$10)/GETPIVOTDATA(TEXT(C$1,""),'Sum of Q-D'!$A$10),IFERROR(GETPIVOTDATA(TEXT(C$1,""),'Sum of Captured Q-D'!$A$10,"CIA Name",$A102)/GETPIVOTDATA(TEXT(C$1,""),'Sum of Q-D'!$A$10,"CIA Name",$A102),0))) -> 0.6007180007 | D102: =IF(C102="","",IF($A102="Grand Total",GETPIVOTDATA(TEXT(D$1,""),'Sum of Captured Q-D'!$A$10)/GETPIVOTDATA(TEXT(D$1,""),'Sum of Q-D'!$A$10),IFERROR(GETPIVOTDATA(TEXT(D$1,""),'Sum of Captured Q-D'!$A$10,"CIA Name",$A102)/GETPIVOTDATA(TEXT(D$1,""),'Sum of Q-D'!$A$10,"CIA Name",$A102),0))) -> 0.7579084864 | E102: =IF(D102="","",IF($A102="Grand Total",GETPIVOTDATA(TEXT(E$1,""),'Sum of Captured Q-D'!$A$10)/GETPIVOTDATA(TEXT(E$1,""),'Sum of Q-D'!$A$10),IFERROR(GETPIVOTDATA(TEXT(E$1,""),'Sum of Captured Q-D'!$A$10,"CIA Name",$A102)/GETPIVOTDATA(TEXT(E$1,""),'Sum of Q-D'!$A$10,"CIA Name",$A102),0))) -> 0.3912410312
A103: Point Reyes NS/Phillip Burton Wilderness 3 | B103: =IF(A103="","",IF($A103="Grand Total",GETPIVOTDATA(TEXT(B$1,""),'Sum of Captured Q-D'!$A$10)/GETPIVOTDATA(TEXT(B$1,""),'Sum of Q-D'!$A$10),IFERROR(GETPIVOTDATA(TEXT(B$1,""),'Sum of Captured Q-D'!$A$10,"CIA Name",$A103)/GETPIVOTDATA(TEXT(B$1,""),'Sum of Q-D'!$A$10,"CIA Name",$A103),0))) -> 0.5714552237 | C103: =IF(B103="","",IF($A103="Grand Total",GETPIVOTDATA(TEXT(C$1,""),'Sum of Captured Q-D'!$A$10)/GETPIVOTDATA(TEXT(C$1,""),'Sum of Q-D'!$A$10),IFERROR(GETPIVOTDATA(TEXT(C$1,""),'Sum of Captured Q-D'!$A$10,"CIA Name",$A103)/GETPIVOTDATA(TEXT(C$1,""),'Sum of Q-D'!$A$10,"CIA Name",$A103),0))) -> 0.5857247224 | D103: =IF(C103="","",IF($A103="Grand Total",GETPIVOTDATA(TEXT(D$1,""),'Sum of Captured Q-D'!$A$10)/GETPIVOTDATA(TEXT(D$1,""),'Sum of Q-D'!$A$10),IFERROR(GETPIVOTDATA(TEXT(D$1,""),'Sum of Captured Q-D'!$A$10,"CIA Name",$A103)/GETPIVOTDATA(TEXT(D$1,""),'Sum of Q-D'!$A$10,"CIA Name",$A103),0))) -> 0.7479437996 | E103: =IF(D103="","",IF($A103="Grand Total",GETPIVOTDATA(TEXT(E$1,""),'Sum of Captured Q-D'!$A$10)/GETPIVOTDATA(TEXT(E$1,""),'Sum of Q-D'!$A$10),IFERROR(GETPIVOTDATA(TEXT(E$1,""),'Sum of Captured Q-D'!$A$10,"CIA Name",$A103)/GETPIVOTDATA(TEXT(E$1,""),'Sum of Q-D'!$A$10,"CIA Name",$A103),0))) -> 0.3606773339
A104: Rawah Wilderness | B104: =IF(A104="","",IF($A104="Grand Total",GETPIVOTDATA(TEXT(B$1,""),'Sum of Captured Q-D'!$A$10)/GETPIVOTDATA(TEXT(B$1,""),'Sum of Q-D'!$A$10),IFERROR(GETPIVOTDATA(TEXT(B$1,""),'Sum of Captured Q-D'!$A$10,"CIA Name",$A104)/GETPIVOTDATA(TEXT(B$1,""),'Sum of Q-D'!$A$10,"CIA Name",$A104),0))) -> 0.6857867165 | C104: =IF(B104="","",IF($A104="Grand Total",GETPIVOTDATA(TEXT(C$1,""),'Sum of Captured Q-D'!$A$10)/GETPIVOTDATA(TEXT(C$1,""),'Sum of Q-D'!$A$10),IFERROR(GETPIVOTDATA(TEXT(C$1,""),'Sum of Captured Q-D'!$A$10,"CIA Name",$A104)/GETPIVOTDATA(TEXT(C$1,""),'Sum of Q-D'!$A$10,"CIA Name",$A104),0))) -> 0.6700134368 | D104: =IF(C104="","",IF($A104="Grand Total",GETPIVOTDATA(TEXT(D$1,""),'Sum of Captured Q-D'!$A$10)/GETPIVOTDATA(TEXT(D$1,""),'Sum of Q-D'!$A$10),IFERROR(GETPIVOTDATA(TEXT(D$1,""),'Sum of Captured Q-D'!$A$10,"CIA Name",$A104)/GETPIVOTDATA(TEXT(D$1,""),'Sum of Q-D'!$A$10,"CIA Name",$A104),0))) -> 0.880217311 | E104: =IF(D104="","",IF($A104="Grand Total",GETPIVOTDATA(TEXT(E$1,""),'Sum of Captured Q-D'!$A$10)/GETPIVOTDATA(TEXT(E$1,""),'Sum of Q-D'!$A$10),IFERROR(GETPIVOTDATA(TEXT(E$1,""),'Sum of Captured Q-D'!$A$10,"CIA Name",$A104)/GETPIVOTDATA(TEXT(E$1,""),'Sum of Q-D'!$A$10,"CIA Name",$A104),0))) -> 0.3307297212
A105: Red Rock Lakes Wilderness | B105: =IF(A105="","",IF($A105="Grand Total",GETPIVOTDATA(TEXT(B$1,""),'Sum of Captured Q-D'!$A$10)/GETPIVOTDATA(TEXT(B$1,""),'Sum of Q-D'!$A$10),IFERROR(GETPIVOTDATA(TEXT(B$1,""),'Sum of Captured Q-D'!$A$10,"CIA Name",$A105)/GETPIVOTDATA(TEXT(B$1,""),'Sum of Q-D'!$A$10,"CIA Name",$A105),0))) -> 0.5144484373 | C105: =IF(B105="","",IF($A105="Grand Total",GETPIVOTDATA(TEXT(C$1,""),'Sum of Captured Q-D'!$A$10)/GETPIVOTDATA(TEXT(C$1,""),'Sum of Q-D'!$A$10),IFERROR(GETPIVOTDATA(TEXT(C$1,""),'Sum of Captured Q-D'!$A$10,"CIA Name",$A105)/GETPIVOTDATA(TEXT(C$1,""),'Sum of Q-D'!$A$10,"CIA Name",$A105),0))) -> 0.5787633026 | D105: =IF(C105="","",IF($A105="Grand Total",GETPIVOTDATA(TEXT(D$1,""),'Sum of Captured Q-D'!$A$10)/GETPIVOTDATA(TEXT(D$1,""),'Sum of Q-D'!$A$10),IFERROR(GETPIVOTDATA(TEXT(D$1,""),'Sum of Captured Q-D'!$A$10,"CIA Name",$A105)/GETPIVOTDATA(TEXT(D$1,""),'Sum of Q-D'!$A$10,"CIA Name",$A105),0))) -> 0.5580681229 | E105: =IF(D105="","",IF($A105="Grand Total",GETPIVOTDATA(TEXT(E$1,""),'Sum of Captured Q-D'!$A$10)/GETPIVOTDATA(TEXT(E$1,""),'Sum of Q-D'!$A$10),IFERROR(GETPIVOTDATA(TEXT(E$1,""),'Sum of Captured Q-D'!$A$10,"CIA Name",$A105)/GETPIVOTDATA(TEXT(E$1,""),'Sum of Q-D'!$A$10,"CIA Name",$A105),0))) -> 0.2443803056
A106: Redwood NP | B106: =IF(A106="","",IF($A106="Grand Total",GETPIVOTDATA(TEXT(B$1,""),'Sum of Captured Q-D'!$A$10)/GETPIVOTDATA(TEXT(B$1,""),'Sum of Q-D'!$A$10),IFERROR(GETPIVOTDATA(TEXT(B$1,""),'Sum of Captured Q-D'!$A$10,"CIA Name",$A106)/GETPIVOTDATA(TEXT(B$1,""),'Sum of Q-D'!$A$10,"CIA Name",$A106),0))) -> 0.1263009904 | C106: =IF(B106="","",IF($A106="Grand Total",GETPIVOTDATA(TEXT(C$1,""),'Sum of Captured Q-D'!$A$10)/GETPIVOTDATA(TEXT(C$1,""),'Sum of Q-D'!$A$10),IFERROR(GETPIVOTDATA(TEXT(C$1,""),'Sum of Captured Q-D'!$A$10,"CIA Name",$A106)/GETPIVOTDATA(TEXT(C$1,""),'Sum of Q-D'!$A$10,"CIA Name",$A106),0))) -> 0.1599117188 | D106: =IF(C106="","",IF($A106="Grand Total",GETPIVOTDATA(TEXT(D$1,""),'Sum of Captured Q-D'!$A$10)/GETPIVOTDATA(TEXT(D$1,""),'Sum of Q-D'!$A$10),IFERROR(GETPIVOTDATA(TEXT(D$1,""),'Sum of Captured Q-D'!$A$10,"CIA Name",$A106)/GETPIVOTDATA(TEXT(D$1,""),'Sum of Q-D'!$A$10,"CIA Name",$A106),0))) -> 0.06462921728 | E106: =IF(D106="","",IF($A106="Grand Total",GETPIVOTDATA(TEXT(E$1,""),'Sum of Captured Q-D'!$A$10)/GETPIVOTDATA(TEXT(E$1,""),'Sum of Q-D'!$A$10),IFERROR(GETPIVOTDATA(TEXT(E$1,""),'Sum of Captured Q-D'!$A$10,"CIA Name",$A106)/GETPIVOTDATA(TEXT(E$1,""),'Sum of Q-D'!$A$10,"CIA Name",$A106),0))) -> 0.08220430796
A107: Rocky Mountain NP | B107: =IF(A107="","",IF($A107="Grand Total",GETPIVOTDATA(TEXT(B$1,""),'Sum of Captured Q-D'!$A$10)/GETPIVOTDATA(TEXT(B$1,""),'Sum of Q-D'!$A$10),IFERROR(GETPIVOTDATA(TEXT(B$1,""),'Sum of Captured Q-D'!$A$10,"CIA Name",$A107)/GETPIVOTDATA(TEXT(B$1,""),'Sum of Q-D'!$A$10,"CIA Name",$A107),0))) -> 0.6729610609 | C107: =IF(B107="","",IF($A107="Grand Total",GETPIVOTDATA(TEXT(C$1,""),'Sum of Captured Q-D'!$A$10)/GETPIVOTDATA(TEXT(C$1,""),'Sum of Q-D'!$A$10),IFERROR(GETPIVOTDATA(TEXT(C$1,""),'Sum of Captured Q-D'!$A$10,"CIA Name",$A107)/GETPIVOTDATA(TEXT(C$1,""),'Sum of Q-D'!$A$10,"CIA Name",$A107),0))) -> 0.6503788334 | D107: =IF(C107="","",IF($A107="Grand Total",GETPIVOTDATA(TEXT(D$1,""),'Sum of Captured Q-D'!$A$10)/GETPIVOTDATA(TEXT(D$1,""),'Sum of Q-D'!$A$10),IFERROR(GETPIVOTDATA(TEXT(D$1,""),'Sum of Captured Q-D'!$A$10,"CIA Name",$A107)/GETPIVOTDATA(TEXT(D$1,""),'Sum of Q-D'!$A$10,"CIA Name",$A107),0))) -> 0.8827507833 | E107: =IF(D107="","",IF($A107="Grand Total",GETPIVOTDATA(TEXT(E$1,""),'Sum of Captured Q-D'!$A$10)/GETPIVOTDATA(TEXT(E$1,""),'Sum of Q-D'!$A$10),IFERROR(GETPIVOTDATA(TEXT(E$1,""),'Sum of Captured Q-D'!$A$10,"CIA Name",$A107)/GETPIVOTDATA(TEXT(E$1,""),'Sum of Q-D'!$A$10,"CIA Name",$A107),0))) -> 0.2888994202
A108: Saguaro Wilderness | B108: =IF(A108="","",IF($A108="Grand Total",GETPIVOTDATA(TEXT(B$1,""),'Sum of Captured Q-D'!$A$10)/GETPIVOTDATA(TEXT(B$1,""),'Sum of Q-D'!$A$10),IFERROR(GETPIVOTDATA(TEXT(B$1,""),'Sum of Captured Q-D'!$A$10,"CIA Name",$A108)/GETPIVOTDATA(TEXT(B$1,""),'Sum of Q-D'!$A$10,"CIA Name",$A108),0))) -> 0.8998275068 | C108: =IF(B108="","",IF($A108="Grand Total",GETPIVOTDATA(TEXT(C$1,""),'Sum of Captured Q-D'!$A$10)/GETPIVOTDATA(TEXT(C$1,""),'Sum of Q-D'!$A$10),IFERROR(GETPIVOTDATA(TEXT(C$1,""),'Sum of Captured Q-D'!$A$10,"CIA Name",$A108)/GETPIVOTDATA(TEXT(C$1,""),'Sum of Q-D'!$A$10,"CIA Name",$A108),0))) -> 0.8645794678 | D108: =IF(C108="","",IF($A108="Grand Total",GETPIVOTDATA(TEXT(D$1,""),'Sum of Captured Q-D'!$A$10)/GETPIVOTDATA(TEXT(D$1,""),'Sum of Q-D'!$A$10),IFERROR(GETPIVOTDATA(TEXT(D$1,""),'Sum of Captured Q-D'!$A$10,"CIA Name",$A108)/GETPIVOTDATA(TEXT(D$1,""),'Sum of Q-D'!$A$10,"CIA Name",$A108),0))) -> 0.9909742861 | E108: =IF(D108="","",IF($A108="Grand Total",GETPIVOTDATA(TEXT(E$1,""),'Sum of Captured Q-D'!$A$10)/GETPIVOTDATA(TEXT(E$1,""),'Sum of Q-D'!$A$10),IFERROR(GETPIVOTDATA(TEXT(E$1,""),'Sum of Captured Q-D'!$A$10,"CIA Name",$A108)/GETPIVOTDATA(TEXT(E$1,""),'Sum of Q-D'!$A$10,"CIA Name",$A108),0))) -> 0.7473203696
A109: Salt Creek Wilderness | B109: =IF(A109="","",IF($A109="Grand Total",GETPIVOTDATA(TEXT(B$1,""),'Sum of Captured Q-D'!$A$10)/GETPIVOTDATA(TEXT(B$1,""),'Sum of Q-D'!$A$10),IFERROR(GETPIVOTDATA(TEXT(B$1,""),'Sum of Captured Q-D'!$A$10,"CIA Name",$A109)/GETPIVOTDATA(TEXT(B$1,""),'Sum of Q-D'!$A$10,"CIA Name",$A109),0))) -> 0.492954932 | C109: =IF(B109="","",IF($A109="Grand Total",GETPIVOTDATA(TEXT(C$1,""),'Sum of Captured Q-D'!$A$10)/GETPIVOTDATA(TEXT(C$1,""),'Sum of Q-D'!$A$10),IFERROR(GETPIVOTDATA(TEXT(C$1,""),'Sum of Captured Q-D'!$A$10,"CIA Name",$A109)/GETPIVOTDATA(TEXT(C$1,""),'Sum of Q-D'!$A$10,"CIA Name",$A109),0))) -> 0.3398551742 | D109: =IF(C109="","",IF($A109="Grand Total",GETPIVOTDATA(TEXT(D$1,""),'Sum of Captured Q-D'!$A$10)/GETPIVOTDATA(TEXT(D$1,""),'Sum of Q-D'!$A$10),IFERROR(GETPIVOTDATA(TEXT(D$1,""),'Sum of Captured Q-D'!$A$10,"CIA Name",$A109)/GETPIVOTDATA(TEXT(D$1,""),'Sum of Q-D'!$A$10,"CIA Name",$A109),0))) -> 0.7466929419 | E109: =IF(D109="","",IF($A109="Grand Total",GETPIVOTDATA(TEXT(E$1,""),'Sum of Captured Q-D'!$A$10)/GETPIVOTDATA(TEXT(E$1,""),'Sum of Q-D'!$A$10),IFERROR(GETPIVOTDATA(TEXT(E$1,""),'Sum of Captured Q-D'!$A$10,"CIA Name",$A109)/GETPIVOTDATA(TEXT(E$1,""),'Sum of Q-D'!$A$10,"CIA Name",$A109),0))) -> 0.1863443874
A110: San Gabriel Wilderness | B110: =IF(A110="","",IF($A110="Grand Total",GETPIVOTDATA(TEXT(B$1,""),'Sum of Captured Q-D'!$A$10)/GETPIVOTDATA(TEXT(B$1,""),'Sum of Q-D'!$A$10),IFERROR(GETPIVOTDATA(TEXT(B$1,""),'Sum of Captured Q-D'!$A$10,"CIA Name",$A110)/GETPIVOTDATA(TEXT(B$1,""),'Sum of Q-D'!$A$10,"CIA Name",$A110),0))) -> 0.6138351837 | C110: =IF(B110="","",IF($A110="Grand Total",GETPIVOTDATA(TEXT(C$1,""),'Sum of Captured Q-D'!$A$10)/GETPIVOTDATA(TEXT(C$1,""),'Sum of Q-D'!$A$10),IFERROR(GETPIVOTDATA(TEXT(C$1,""),'Sum of Captured Q-D'!$A$10,"CIA Name",$A110)/GETPIVOTDATA(TEXT(C$1,""),'Sum of Q-D'!$A$10,"CIA Name",$A110),0))) -> 0.6160352561 | D110: =IF(C110="","",IF($A110="Grand Total",GETPIVOTDATA(TEXT(D$1,""),'Sum of Captured Q-D'!$A$10)/GETPIVOTDATA(TEXT(D$1,""),'Sum of Q-D'!$A$10),IFERROR(GETPIVOTDATA(TEXT(D$1,""),'Sum of Captured Q-D'!$A$10,"CIA Name",$A110)/GETPIVOTDATA(TEXT(D$1,""),'Sum of Q-D'!$A$10,"CIA Name",$A110),0))) -> 0.6394561522 | E110: =IF(D110="","",IF($A110="Grand Total",GETPIVOTDATA(TEXT(E$1,""),'Sum of Captured Q-D'!$A$10)/GETPIVOTDATA(TEXT(E$1,""),'Sum of Q-D'!$A$10),IFERROR(GETPIVOTDATA(TEXT(E$1,""),'Sum of Captured Q-D'!$A$10,"CIA Name",$A110)/GETPIVOTDATA(TEXT(E$1,""),'Sum of Q-D'!$A$10,"CIA Name",$A110),0))) -> 0.6028614008
A111: San Gorgonio Wilderness | B111: =IF(A111="","",IF($A111="Grand Total",GETPIVOTDATA(TEXT(B$1,""),'Sum of Captured Q-D'!$A$10)/GETPIVOTDATA(TEXT(B$1,""),'Sum of Q-D'!$A$10),IFERROR(GETPIVOTDATA(TEXT(B$1,""),'Sum of Captured Q-D'!$A$10,"CIA Name",$A111)/GETPIVOTDATA(TEXT(B$1,""),'Sum of Q-D'!$A$10,"CIA Name",$A111),0))) -> 0.610546141 | C111: =IF(B111="","",IF($A111="Grand Total",GETPIVOTDATA(TEXT(C$1,""),'Sum of Captured Q-D'!$A$10)/GETPIVOTDATA(TEXT(C$1,""),'Sum of Q-D'!$A$10),IFERROR(GETPIVOTDATA(TEXT(C$1,""),'Sum of Captured Q-D'!$A$10,"CIA Name",$A111)/GETPIVOTDATA(TEXT(C$1,""),'Sum of Q-D'!$A$10,"CIA Name",$A111),0))) -> 0.5902197791 | D111: =IF(C111="","",IF($A111="Grand Total",GETPIVOTDATA(TEXT(D$1,""),'Sum of Captured Q-D'!$A$10)/GETPIVOTDATA(TEXT(D$1,""),'Sum of Q-D'!$A$10),IFERROR(GETPIVOTDATA(TEXT(D$1,""),'Sum of Captured Q-D'!$A$10,"CIA Name",$A111)/GETPIVOTDATA(TEXT(D$1,""),'Sum of Q-D'!$A$10,"CIA Name",$A111),0))) -> 0.5152784817 | E111: =IF(D111="","",IF($A111="Grand Total",GETPIVOTDATA(TEXT(E$1,""),'Sum of Captured Q-D'!$A$10)/GETPIVOTDATA(TEXT(E$1,""),'Sum of Q-D'!$A$10),IFERROR(GETPIVOTDATA(TEXT(E$1,""),'Sum of Captured Q-D'!$A$10,"CIA Name",$A111)/GETPIVOTDATA(TEXT(E$1,""),'Sum of Q-D'!$A$10,"CIA Name",$A111),0))) -> 0.662745286
A112: San Jacinto Wilderness | B112: =IF(A112="","",IF($A112="Grand Total",GETPIVOTDATA(TEXT(B$1,""),'Sum of Captured Q-D'!$A$10)/GETPIVOTDATA(TEXT(B$1,""),'Sum of Q-D'!$A$10),IFERROR(GETPIVOTDATA(TEXT(B$1,""),'Sum of Captured Q-D'!$A$10,"CIA Name",$A112)/GETPIVOTDATA(TEXT(B$1,""),'Sum of Q-D'!$A$10,"CIA Name",$A112),0))) -> 0.5420178922 | C112: =IF(B112="","",IF($A112="Grand Total",GETPIVOTDATA(TEXT(C$1,""),'Sum of Captured Q-D'!$A$10)/GETPIVOTDATA(TEXT(C$1,""),'Sum of Q-D'!$A$10),IFERROR(GETPIVOTDATA(TEXT(C$1,""),'Sum of Captured Q-D'!$A$10,"CIA Name",$A112)/GETPIVOTDATA(TEXT(C$1,""),'Sum of Q-D'!$A$10,"CIA Name",$A112),0))) -> 0.5040832279 | D112: =IF(C112="","",IF($A112="Grand Total",GETPIVOTDATA(TEXT(D$1,""),'Sum of Captured Q-D'!$A$10)/GETPIVOTDATA(TEXT(D$1,""),'Sum of Q-D'!$A$10),IFERROR(GETPIVOTDATA(TEXT(D$1,""),'Sum of Captured Q-D'!$A$10,"CIA Name",$A112)/GETPIVOTDATA(TEXT(D$1,""),'Sum of Q-D'!$A$10,"CIA Name",$A112),0))) -> 0.4523464865 | E112: =IF(D112="","",IF($A112="Grand Total",GETPIVOTDATA(TEXT(E$1,""),'Sum of Captured Q-D'!$A$10)/GETPIVOTDATA(TEXT(E$1,""),'Sum of Q-D'!$A$10),IFERROR(GETPIVOTDATA(TEXT(E$1,""),'Sum of Captured Q-D'!$A$10,"CIA Name",$A112)/GETPIVOTDATA(TEXT(E$1,""),'Sum of Q-D'!$A$10,"CIA Name",$A112),0))) -> 0.6174317129
A113: San Pedro Parks Wilderness | B113: =IF(A113="","",IF($A113="Grand Total",GETPIVOTDATA(TEXT(B$1,""),'Sum of Captured Q-D'!$A$10)/GETPIVOTDATA(TEXT(B$1,""),'Sum of Q-D'!$A$10),IFERROR(GETPIVOTDATA(TEXT(B$1,""),'Sum of Captured Q-D'!$A$10,"CIA Name",$A113)/GETPIVOTDATA(TEXT(B$1,""),'Sum of Q-D'!$A$10,"CIA Name",$A113),0))) -> 0.7004975211 | C113: =IF(B113="","",IF($A113="Grand Total",GETPIVOTDATA(TEXT(C$1,""),'Sum of Captured Q-D'!$A$10)/GETPIVOTDATA(TEXT(C$1,""),'Sum of Q-D'!$A$10),IFERROR(GETPIVOTDATA(TEXT(C$1,""),'Sum of Captured Q-D'!$A$10,"CIA Name",$A113)/GETPIVOTDATA(TEXT(C$1,""),'Sum of Q-D'!$A$10,"CIA Name",$A113),0))) -> 0.6794984403 | D113: =IF(C113="","",IF($A113="Grand Total",GETPIVOTDATA(TEXT(D$1,""),'Sum of Captured Q-D'!$A$10)/GETPIVOTDATA(TEXT(D$1,""),'Sum of Q-D'!$A$10),IFERROR(GETPIVOTDATA(TEXT(D$1,""),'Sum of Captured Q-D'!$A$10,"CIA Name",$A113)/GETPIVOTDATA(TEXT(D$1,""),'Sum of Q-D'!$A$10,"CIA Name",$A113),0))) -> 0.9200960889 | E113: =IF(D113="","",IF($A113="Grand Total",GETPIVOTDATA(TEXT(E$1,""),'Sum of Captured Q-D'!$A$10)/GETPIVOTDATA(TEXT(E$1,""),'Sum of Q-D'!$A$10),IFERROR(GETPIVOTDATA(TEXT(E$1,""),'Sum of Captured Q-D'!$A$10,"CIA Name",$A113)/GETPIVOTDATA(TEXT(E$1,""),'Sum of Q-D'!$A$10,"CIA Name",$A113),0))) -> 0.3925816908
A114: San Rafael Wilderness | B114: =IF(A114="","",IF($A114="Grand Total",GETPIVOTDATA(TEXT(B$1,""),'Sum of Captured Q-D'!$A$10)/GETPIVOTDATA(TEXT(B$1,""),'Sum of Q-D'!$A$10),IFERROR(GETPIVOTDATA(TEXT(B$1,""),'Sum of Captured Q-D'!$A$10,"CIA Name",$A114)/GETPIVOTDATA(TEXT(B$1,""),'Sum of Q-D'!$A$10,"CIA Name",$A114),0))) -> 0.2738861113 | C114: =IF(B114="","",IF($A114="Grand Total",GETPIVOTDATA(TEXT(C$1,""),'Sum of Captured Q-D'!$A$10)/GETPIVOTDATA(TEXT(C$1,""),'Sum of Q-D'!$A$10),IFERROR(GETPIVOTDATA(TEXT(C$1,""),'Sum of Captured Q-D'!$A$10,"CIA Name",$A114)/GETPIVOTDATA(TEXT(C$1,""),'Sum of Q-D'!$A$10,"CIA Name",$A114),0))) -> 0.2711561804 | D114: =IF(C114="","",IF($A114="Grand Total",GETPIVOTDATA(TEXT(D$1,""),'Sum of Captured Q-D'!$A$10)/GETPIVOTDATA(TEXT(D$1,""),'Sum of Q-D'!$A$10),IFERROR(GETPIVOTDATA(TEXT(D$1,""),'Sum of Captured Q-D'!$A$10,"CIA Name",$A114)/GETPIVOTDATA(TEXT(D$1,""),'Sum of Q-D'!$A$10,"CIA Name",$A114),0))) -> 0.1661731822 | E114: =IF(D114="","",IF($A114="Grand Total",GETPIVOTDATA(TEXT(E$1,""),'Sum of Captured Q-D'!$A$10)/GETPIVOTDATA(TEXT(E$1,""),'Sum of Q-D'!$A$10),IFERROR(GETPIVOTDATA(TEXT(E$1,""),'Sum of Captured Q-D'!$A$10,"CIA Name",$A114)/GETPIVOTDATA(TEXT(E$1,""),'Sum of Q-D'!$A$10,"CIA Name",$A114),0))) -> 0.3271163066
A115: Sawtooth Wilderness | B115: =IF(A115="","",IF($A115="Grand Total",GETPIVOTDATA(TEXT(B$1,""),'Sum of Captured Q-D'!$A$10)/GETPIVOTDATA(TEXT(B$1,""),'Sum of Q-D'!$A$10),IFERROR(GETPIVOTDATA(TEXT(B$1,""),'Sum of Captured Q-D'!$A$10,"CIA Name",$A115)/GETPIVOTDATA(TEXT(B$1,""),'Sum of Q-D'!$A$10,"CIA Name",$A115),0))) -> 0.4429441708 | C115: =IF(B115="","",IF($A115="Grand Total",GETPIVOTDATA(TEXT(C$1,""),'Sum of Captured Q-D'!$A$10)/GETPIVOTDATA(TEXT(C$1,""),'Sum of Q-D'!$A$10),IFERROR(GETPIVOTDATA(TEXT(C$1,""),'Sum of Captured Q-D'!$A$10,"CIA Name",$A115)/GETPIVOTDATA(TEXT(C$1,""),'Sum of Q-D'!$A$10,"CIA Name",$A115),0))) -> 0.3439425693 | D115: =IF(C115="","",IF($A115="Grand Total",GETPIVOTDATA(TEXT(D$1,""),'Sum of Captured Q-D'!$A$10)/GETPIVOTDATA(TEXT(D$1,""),'Sum of Q-D'!$A$10),IFERROR(GETPIVOTDATA(TEXT(D$1,""),'Sum of Captured Q-D'!$A$10,"CIA Name",$A115)/GETPIVOTDATA(TEXT(D$1,""),'Sum of Q-D'!$A$10,"CIA Name",$A115),0))) -> 0.7741766405 | E115: =IF(D115="","",IF($A115="Grand Total",GETPIVOTDATA(TEXT(E$1,""),'Sum of Captured Q-D'!$A$10)/GETPIVOTDATA(TEXT(E$1,""),'Sum of Q-D'!$A$10),IFERROR(GETPIVOTDATA(TEXT(E$1,""),'Sum of Captured Q-D'!$A$10,"CIA Name",$A115)/GETPIVOTDATA(TEXT(E$1,""),'Sum of Q-D'!$A$10,"CIA Name",$A115),0))) -> 0.1764623906
A116: Scapegoat Wilderness | B116: =IF(A116="","",IF($A116="Grand Total",GETPIVOTDATA(TEXT(B$1,""),'Sum of Captured Q-D'!$A$10)/GETPIVOTDATA(TEXT(B$1,""),'Sum of Q-D'!$A$10),IFERROR(GETPIVOTDATA(TEXT(B$1,""),'Sum of Captured Q-D'!$A$10,"CIA Name",$A116)/GETPIVOTDATA(TEXT(B$1,""),'Sum of Q-D'!$A$10,"CIA Name",$A116),0))) -> 0.3380852537 | C116: =IF(B116="","",IF($A116="Grand Total",GETPIVOTDATA(TEXT(C$1,""),'Sum of Captured Q-D'!$A$10)/GETPIVOTDATA(TEXT(C$1,""),'Sum of Q-D'!$A$10),IFERROR(GETPIVOTDATA(TEXT(C$1,""),'Sum of Captured Q-D'!$A$10,"CIA Name",$A116)/GETPIVOTDATA(TEXT(C$1,""),'Sum of Q-D'!$A$10,"CIA Name",$A116),0))) -> 0.4734028367 | D116: =IF(C116="","",IF($A116="Grand Total",GETPIVOTDATA(TEXT(D$1,""),'Sum of Captured Q-D'!$A$10)/GETPIVOTDATA(TEXT(D$1,""),'Sum of Q-D'!$A$10),IFERROR(GETPIVOTDATA(TEXT(D$1,""),'Sum of Captured Q-D'!$A$10,"CIA Name",$A116)/GETPIVOTDATA(TEXT(D$1,""),'Sum of Q-D'!$A$10,"CIA Name",$A116),0))) -> 0.1757911293 | E116: =IF(D116="","",IF($A116="Grand Total",GETPIVOTDATA(TEXT(E$1,""),'Sum of Captured Q-D'!$A$10)/GETPIVOTDATA(TEXT(E$1,""),'Sum of Q-D'!$A$10),IFERROR(GETPIVOTDATA(TEXT(E$1,""),'Sum of Captured Q-D'!$A$10,"CIA Name",$A116)/GETPIVOTDATA(TEXT(E$1,""),'Sum of Q-D'!$A$10,"CIA Name",$A116),0))) -> 0.1403707408
A117: Selway-Bitterroot Wilderness | B117: =IF(A117="","",IF($A117="Grand Total",GETPIVOTDATA(TEXT(B$1,""),'Sum of Captured Q-D'!$A$10)/GETPIVOTDATA(TEXT(B$1,""),'Sum of Q-D'!$A$10),IFERROR(GETPIVOTDATA(TEXT(B$1,""),'Sum of Captured Q-D'!$A$10,"CIA Name",$A117)/GETPIVOTDATA(TEXT(B$1,""),'Sum of Q-D'!$A$10,"CIA Name",$A117),0))) -> 0.4775923162 | C117: =IF(B117="","",IF($A117="Grand Total",GETPIVOTDATA(TEXT(C$1,""),'Sum of Captured Q-D'!$A$10)/GETPIVOTDATA(TEXT(C$1,""),'Sum of Q-D'!$A$10),IFERROR(GETPIVOTDATA(TEXT(C$1,""),'Sum of Captured Q-D'!$A$10,"CIA Name",$A117)/GETPIVOTDATA(TEXT(C$1,""),'Sum of Q-D'!$A$10,"CIA Name",$A117),0))) -> 0.4835516704 | D117: =IF(C117="","",IF($A117="Grand Total",GETPIVOTDATA(TEXT(D$1,""),'Sum of Captured Q-D'!$A$10)/GETPIVOTDATA(TEXT(D$1,""),'Sum of Q-D'!$A$10),IFERROR(GETPIVOTDATA(TEXT(D$1,""),'Sum of Captured Q-D'!$A$10,"CIA Name",$A117)/GETPIVOTDATA(TEXT(D$1,""),'Sum of Q-D'!$A$10,"CIA Name",$A117),0))) -> 0.6083693237 | E117: =IF(D117="","",IF($A117="Grand Total",GETPIVOTDATA(TEXT(E$1,""),'Sum of Captured Q-D'!$A$10)/GETPIVOTDATA(TEXT(E$1,""),'Sum of Q-D'!$A$10),IFERROR(GETPIVOTDATA(TEXT(E$1,""),'Sum of Captured Q-D'!$A$10,"CIA Name",$A117)/GETPIVOTDATA(TEXT(E$1,""),'Sum of Q-D'!$A$10,"CIA Name",$A117),0))) -> 0.3398155692
A118: Sequoia NP | B118: =IF(A118="","",IF($A118="Grand Total",GETPIVOTDATA(TEXT(B$1,""),'Sum of Captured Q-D'!$A$10)/GETPIVOTDATA(TEXT(B$1,""),'Sum of Q-D'!$A$10),IFERROR(GETPIVOTDATA(TEXT(B$1,""),'Sum of Captured Q-D'!$A$10,"CIA Name",$A118)/GETPIVOTDATA(TEXT(B$1,""),'Sum of Q-D'!$A$10,"CIA Name",$A118),0))) -> 0.3295356288 | C118: =IF(B118="","",IF($A118="Grand Total",GETPIVOTDATA(TEXT(C$1,""),'Sum of Captured Q-D'!$A$10)/GETPIVOTDATA(TEXT(C$1,""),'Sum of Q-D'!$A$10),IFERROR(GETPIVOTDATA(TEXT(C$1,""),'Sum of Captured Q-D'!$A$10,"CIA Name",$A118)/GETPIVOTDATA(TEXT(C$1,""),'Sum of Q-D'!$A$10,"CIA Name",$A118),0))) -> 0.3456811057 | D118: =IF(C118="","",IF($A118="Grand Total",GETPIVOTDATA(TEXT(D$1,""),'Sum of Captured Q-D'!$A$10)/GETPIVOTDATA(TEXT(D$1,""),'Sum of Q-D'!$A$10),IFERROR(GETPIVOTDATA(TEXT(D$1,""),'Sum of Captured Q-D'!$A$10,"CIA Name",$A118)/GETPIVOTDATA(TEXT(D$1,""),'Sum of Q-D'!$A$10,"CIA Name",$A118),0))) -> 0.2448101092 | E118: =IF(D118="","",IF($A118="Grand Total",GETPIVOTDATA(TEXT(E$1,""),'Sum of Captured Q-D'!$A$10)/GETPIVOTDATA(TEXT(E$1,""),'Sum of Q-D'!$A$10),IFERROR(GETPIVOTDATA(TEXT(E$1,""),'Sum of Captured Q-D'!$A$10,"CIA Name",$A118)/GETPIVOTDATA(TEXT(E$1,""),'Sum of Q-D'!$A$10,"CIA Name",$A118),0))) -> 0.3368651957
A119: Sierra Ancha Wilderness | B119: =IF(A119="","",IF($A119="Grand Total",GETPIVOTDATA(TEXT(B$1,""),'Sum of Captured Q-D'!$A$10)/GETPIVOTDATA(TEXT(B$1,""),'Sum of Q-D'!$A$10),IFERROR(GETPIVOTDATA(TEXT(B$1,""),'Sum of Captured Q-D'!$A$10,"CIA Name",$A119)/GETPIVOTDATA(TEXT(B$1,""),'Sum of Q-D'!$A$10,"CIA Name",$A119),0))) -> 0.9056225203 | C119: =IF(B119="","",IF($A119="Grand Total",GETPIVOTDATA(TEXT(C$1,""),'Sum of Captured Q-D'!$A$10)/GETPIVOTDATA(TEXT(C$1,""),'Sum of Q-D'!$A$10),IFERROR(GETPIVOTDATA(TEXT(C$1,""),'Sum of Captured Q-D'!$A$10,"CIA Name",$A119)/GETPIVOTDATA(TEXT(C$1,""),'Sum of Q-D'!$A$10,"CIA Name",$A119),0))) -> 0.8455937865 | D119: =IF(C119="","",IF($A119="Grand Total",GETPIVOTDATA(TEXT(D$1,""),'Sum of Captured Q-D'!$A$10)/GETPIVOTDATA(TEXT(D$1,""),'Sum of Q-D'!$A$10),IFERROR(GETPIVOTDATA(TEXT(D$1,""),'Sum of Captured Q-D'!$A$10,"CIA Name",$A119)/GETPIVOTDATA(TEXT(D$1,""),'Sum of Q-D'!$A$10,"CIA Name",$A119),0))) -> 0.9928356945 | E119: =IF(D119="","",IF($A119="Grand Total",GETPIVOTDATA(TEXT(E$1,""),'Sum of Captured Q-D'!$A$10)/GETPIVOTDATA(TEXT(E$1,""),'Sum of Q-D'!$A$10),IFERROR(GETPIVOTDATA(TEXT(E$1,""),'Sum of Captured Q-D'!$A$10,"CIA Name",$A119)/GETPIVOTDATA(TEXT(E$1,""),'Sum of Q-D'!$A$10,"CIA Name",$A119),0))) -> 0.7789295862
A120: Simeonof Wilderness | B120: =IF(A120="","",IF($A120="Grand Total",GETPIVOTDATA(TEXT(B$1,""),'Sum of Captured Q-D'!$A$10)/GETPIVOTDATA(TEXT(B$1,""),'Sum of Q-D'!$A$10),IFERROR(GETPIVOTDATA(TEXT(B$1,""),'Sum of Captured Q-D'!$A$10,"CIA Name",$A120)/GETPIVOTDATA(TEXT(B$1,""),'Sum of Q-D'!$A$10,"CIA Name",$A120),0))) -> 0 | C120: =IF(B120="","",IF($A120="Grand Total",GETPIVOTDATA(TEXT(C$1,""),'Sum of Captured Q-D'!$A$10)/GETPIVOTDATA(TEXT(C$1,""),'Sum of Q-D'!$A$10),IFERROR(GETPIVOTDATA(TEXT(C$1,""),'Sum of Captured Q-D'!$A$10,"CIA Name",$A120)/GETPIVOTDATA(TEXT(C$1,""),'Sum of Q-D'!$A$10,"CIA Name",$A120),0))) -> 0 | D120: =IF(C120="","",IF($A120="Grand Total",GETPIVOTDATA(TEXT(D$1,""),'Sum of Captured Q-D'!$A$10)/GETPIVOTDATA(TEXT(D$1,""),'Sum of Q-D'!$A$10),IFERROR(GETPIVOTDATA(TEXT(D$1,""),'Sum of Captured Q-D'!$A$10,"CIA Name",$A120)/GETPIVOTDATA(TEXT(D$1,""),'Sum of Q-D'!$A$10,"CIA Name",$A120),0))) -> 0 | E120: =IF(D120="","",IF($A120="Grand Total",GETPIVOTDATA(TEXT(E$1,""),'Sum of Captured Q-D'!$A$10)/GETPIVOTDATA(TEXT(E$1,""),'Sum of Q-D'!$A$10),IFERROR(GETPIVOTDATA(TEXT(E$1,""),'Sum of Captured Q-D'!$A$10,"CIA Name",$A120)/GETPIVOTDATA(TEXT(E$1,""),'Sum of Q-D'!$A$10,"CIA Name",$A120),0))) -> 0
A121: South Warner Wilderness | B121: =IF(A121="","",IF($A121="Grand Total",GETPIVOTDATA(TEXT(B$1,""),'Sum of Captured Q-D'!$A$10)/GETPIVOTDATA(TEXT(B$1,""),'Sum of Q-D'!$A$10),IFERROR(GETPIVOTDATA(TEXT(B$1,""),'Sum of Captured Q-D'!$A$10,"CIA Name",$A121)/GETPIVOTDATA(TEXT(B$1,""),'Sum of Q-D'!$A$10,"CIA Name",$A121),0))) -> 0.2491284053 | C121: =IF(B121="","",IF($A121="Grand Total",GETPIVOTDATA(TEXT(C$1,""),'Sum of Captured Q-D'!$A$10)/GETPIVOTDATA(TEXT(C$1,""),'Sum of Q-D'!$A$10),IFERROR(GETPIVOTDATA(TEXT(C$1,""),'Sum of Captured Q-D'!$A$10,"CIA Name",$A121)/GETPIVOTDATA(TEXT(C$1,""),'Sum of Q-D'!$A$10,"CIA Name",$A121),0))) -> 0.1700238461 | D121: =IF(C121="","",IF($A121="Grand Total",GETPIVOTDATA(TEXT(D$1,""),'Sum of Captured Q-D'!$A$10)/GETPIVOTDATA(TEXT(D$1,""),'Sum of Q-D'!$A$10),IFERROR(GETPIVOTDATA(TEXT(D$1,""),'Sum of Captured Q-D'!$A$10,"CIA Name",$A121)/GETPIVOTDATA(TEXT(D$1,""),'Sum of Q-D'!$A$10,"CIA Name",$A121),0))) -> 0.5723612307 | E121: =IF(D121="","",IF($A121="Grand Total",GETPIVOTDATA(TEXT(E$1,""),'Sum of Captured Q-D'!$A$10)/GETPIVOTDATA(TEXT(E$1,""),'Sum of Q-D'!$A$10),IFERROR(GETPIVOTDATA(TEXT(E$1,""),'Sum of Captured Q-D'!$A$10,"CIA Name",$A121)/GETPIVOTDATA(TEXT(E$1,""),'Sum of Q-D'!$A$10,"CIA Name",$A121),0))) -> 0.03879663244
A122: Strawberry Mountain Wilderness | B122: =IF(A122="","",IF($A122="Grand Total",GETPIVOTDATA(TEXT(B$1,""),'Sum of Captured Q-D'!$A$10)/GETPIVOTDATA(TEXT(B$1,""),'Sum of Q-D'!$A$10),IFERROR(GETPIVOTDATA(TEXT(B$1,""),'Sum of Captured Q-D'!$A$10,"CIA Name",$A122)/GETPIVOTDATA(TEXT(B$1,""),'Sum of Q-D'!$A$10,"CIA Name",$A122),0))) -> 0.5480310686 | C122: =IF(B122="","",IF($A122="Grand Total",GETPIVOTDATA(TEXT(C$1,""),'Sum of Captured Q-D'!$A$10)/GETPIVOTDATA(TEXT(C$1,""),'Sum of Q-D'!$A$10),IFERROR(GETPIVOTDATA(TEXT(C$1,""),'Sum of Captured Q-D'!$A$10,"CIA Name",$A122)/GETPIVOTDATA(TEXT(C$1,""),'Sum of Q-D'!$A$10,"CIA Name",$A122),0))) -> 0.3849515551 | D122: =IF(C122="","",IF($A122="Grand Total",GETPIVOTDATA(TEXT(D$1,""),'Sum of Captured Q-D'!$A$10)/GETPIVOTDATA(TEXT(D$1,""),'Sum of Q-D'!$A$10),IFERROR(GETPIVOTDATA(TEXT(D$1,""),'Sum of Captured Q-D'!$A$10,"CIA Name",$A122)/GETPIVOTDATA(TEXT(D$1,""),'Sum of Q-D'!$A$10,"CIA Name",$A122),0))) -> 0.8666301846 | E122: =IF(D122="","",IF($A122="Grand Total",GETPIVOTDATA(TEXT(E$1,""),'Sum of Captured Q-D'!$A$10)/GETPIVOTDATA(TEXT(E$1,""),'Sum of Q-D'!$A$10),IFERROR(GETPIVOTDATA(TEXT(E$1,""),'Sum of Captured Q-D'!$A$10,"CIA Name",$A122)/GETPIVOTDATA(TEXT(E$1,""),'Sum of Q-D'!$A$10,"CIA Name",$A122),0))) -> 0.2700434846
A123: Superstition Wilderness | B123: =IF(A123="","",IF($A123="Grand Total",GETPIVOTDATA(TEXT(B$1,""),'Sum of Captured Q-D'!$A$10)/GETPIVOTDATA(TEXT(B$1,""),'Sum of Q-D'!$A$10),IFERROR(GETPIVOTDATA(TEXT(B$1,""),'Sum of Captured Q-D'!$A$10,"CIA Name",$A123)/GETPIVOTDATA(TEXT(B$1,""),'Sum of Q-D'!$A$10,"CIA Name",$A123),0))) -> 0.8778699798 | C123: =IF(B123="","",IF($A123="Grand Total",GETPIVOTDATA(TEXT(C$1,""),'Sum of Captured Q-D'!$A$10)/GETPIVOTDATA(TEXT(C$1,""),'Sum of Q-D'!$A$10),IFERROR(GETPIVOTDATA(TEXT(C$1,""),'Sum of Captured Q-D'!$A$10,"CIA Name",$A123)/GETPIVOTDATA(TEXT(C$1,""),'Sum of Q-D'!$A$10,"CIA Name",$A123),0))) -> 0.73360538 | D123: =IF(C123="","",IF($A123="Grand Total",GETPIVOTDATA(TEXT(D$1,""),'Sum of Captured Q-D'!$A$10)/GETPIVOTDATA(TEXT(D$1,""),'Sum of Q-D'!$A$10),IFERROR(GETPIVOTDATA(TEXT(D$1,""),'Sum of Captured Q-D'!$A$10,"CIA Name",$A123)/GETPIVOTDATA(TEXT(D$1,""),'Sum of Q-D'!$A$10,"CIA Name",$A123),0))) -> 0.9889910527 | E123: =IF(D123="","",IF($A123="Grand Total",GETPIVOTDATA(TEXT(E$1,""),'Sum of Captured Q-D'!$A$10)/GETPIVOTDATA(TEXT(E$1,""),'Sum of Q-D'!$A$10),IFERROR(GETPIVOTDATA(TEXT(E$1,""),'Sum of Captured Q-D'!$A$10,"CIA Name",$A123)/GETPIVOTDATA(TEXT(E$1,""),'Sum of Q-D'!$A$10,"CIA Name",$A123),0))) -> 0.7224883205
A124: Sycamore Canyon Wilderness | B124: =IF(A124="","",IF($A124="Grand Total",GETPIVOTDATA(TEXT(B$1,""),'Sum of Captured Q-D'!$A$10)/GETPIVOTDATA(TEXT(B$1,""),'Sum of Q-D'!$A$10),IFERROR(GETPIVOTDATA(TEXT(B$1,""),'Sum of Captured Q-D'!$A$10,"CIA Name",$A124)/GETPIVOTDATA(TEXT(B$1,""),'Sum of Q-D'!$A$10,"CIA Name",$A124),0))) -> 0.8260357789 | C124: =IF(B124="","",IF($A124="Grand Total",GETPIVOTDATA(TEXT(C$1,""),'Sum of Captured Q-D'!$A$10)/GETPIVOTDATA(TEXT(C$1,""),'Sum of Q-D'!$A$10),IFERROR(GETPIVOTDATA(TEXT(C$1,""),'Sum of Captured Q-D'!$A$10,"CIA Name",$A124)/GETPIVOTDATA(TEXT(C$1,""),'Sum of Q-D'!$A$10,"CIA Name",$A124),0))) -> 0.811004013 | D124: =IF(C124="","",IF($A124="Grand Total",GETPIVOTDATA(TEXT(D$1,""),'Sum of Captured Q-D'!$A$10)/GETPIVOTDATA(TEXT(D$1,""),'Sum of Q-D'!$A$10),IFERROR(GETPIVOTDATA(TEXT(D$1,""),'Sum of Captured Q-D'!$A$10,"CIA Name",$A124)/GETPIVOTDATA(TEXT(D$1,""),'Sum of Q-D'!$A$10,"CIA Name",$A124),0))) -> 0.9544118736 | E124: =IF(D124="","",IF($A124="Grand Total",GETPIVOTDATA(TEXT(E$1,""),'Sum of Captured Q-D'!$A$10)/GETPIVOTDATA(TEXT(E$1,""),'Sum of Q-D'!$A$10),IFERROR(GETPIVOTDATA(TEXT(E$1,""),'Sum of Captured Q-D'!$A$10,"CIA Name",$A124)/GETPIVOTDATA(TEXT(E$1,""),'Sum of Q-D'!$A$10,"CIA Name",$A124),0))) -> 0.6405800717
A125: Teton Wilderness | B125: =IF(A125="","",IF($A125="Grand Total",GETPIVOTDATA(TEXT(B$1,""),'Sum of Captured Q-D'!$A$10)/GETPIVOTDATA(TEXT(B$1,""),'Sum of Q-D'!$A$10),IFERROR(GETPIVOTDATA(TEXT(B$1,""),'Sum of Captured Q-D'!$A$10,"CIA Name",$A125)/GETPIVOTDATA(TEXT(B$1,""),'Sum of Q-D'!$A$10,"CIA Name",$A125),0))) -> 0.6125698932 | C125: =IF(B125="","",IF($A125="Grand Total",GETPIVOTDATA(TEXT(C$1,""),'Sum of Captured Q-D'!$A$10)/GETPIVOTDATA(TEXT(C$1,""),'Sum of Q-D'!$A$10),IFERROR(GETPIVOTDATA(TEXT(C$1,""),'Sum of Captured Q-D'!$A$10,"CIA Name",$A125)/GETPIVOTDATA(TEXT(C$1,""),'Sum of Q-D'!$A$10,"CIA Name",$A125),0))) -> 0.6255407658 | D125: =IF(C125="","",IF($A125="Grand Total",GETPIVOTDATA(TEXT(D$1,""),'Sum of Captured Q-D'!$A$10)/GETPIVOTDATA(TEXT(D$1,""),'Sum of Q-D'!$A$10),IFERROR(GETPIVOTDATA(TEXT(D$1,""),'Sum of Captured Q-D'!$A$10,"CIA Name",$A125)/GETPIVOTDATA(TEXT(D$1,""),'Sum of Q-D'!$A$10,"CIA Name",$A125),0))) -> 0.7305618396 | E125: =IF(D125="","",IF($A125="Grand Total",GETPIVOTDATA(TEXT(E$1,""),'Sum of Captured Q-D'!$A$10)/GETPIVOTDATA(TEXT(E$1,""),'Sum of Q-D'!$A$10),IFERROR(GETPIVOTDATA(TEXT(E$1,""),'Sum of Captured Q-D'!$A$10,"CIA Name",$A125)/GETPIVOTDATA(TEXT(E$1,""),'Sum of Q-D'!$A$10,"CIA Name",$A125),0))) -> 0.3329657892
A126: Theodore Roosevelt NP | B126: =IF(A126="","",IF($A126="Grand Total",GETPIVOTDATA(TEXT(B$1,""),'Sum of Captured Q-D'!$A$10)/GETPIVOTDATA(TEXT(B$1,""),'Sum of Q-D'!$A$10),IFERROR(GETPIVOTDATA(TEXT(B$1,""),'Sum of Captured Q-D'!$A$10,"CIA Name",$A126)/GETPIVOTDATA(TEXT(B$1,""),'Sum of Q-D'!$A$10,"CIA Name",$A126),0))) -> 0.8628957426 | C126: =IF(B126="","",IF($A126="Grand Total",GETPIVOTDATA(TEXT(C$1,""),'Sum of Captured Q-D'!$A$10)/GETPIVOTDATA(TEXT(C$1,""),'Sum of Q-D'!$A$10),IFERROR(GETPIVOTDATA(TEXT(C$1,""),'Sum of Captured Q-D'!$A$10,"CIA Name",$A126)/GETPIVOTDATA(TEXT(C$1,""),'Sum of Q-D'!$A$10,"CIA Name",$A126),0))) -> 0.8482224986 | D126: =IF(C126="","",IF($A126="Grand Total",GETPIVOTDATA(TEXT(D$1,""),'Sum of Captured Q-D'!$A$10)/GETPIVOTDATA(TEXT(D$1,""),'Sum of Q-D'!$A$10),IFERROR(GETPIVOTDATA(TEXT(D$1,""),'Sum of Captured Q-D'!$A$10,"CIA Name",$A126)/GETPIVOTDATA(TEXT(D$1,""),'Sum of Q-D'!$A$10,"CIA Name",$A126),0))) -> 0.9320368309 | E126: =IF(D126="","",IF($A126="Grand Total",GETPIVOTDATA(TEXT(E$1,""),'Sum of Captured Q-D'!$A$10)/GETPIVOTDATA(TEXT(E$1,""),'Sum of Q-D'!$A$10),IFERROR(GETPIVOTDATA(TEXT(E$1,""),'Sum of Captured Q-D'!$A$10,"CIA Name",$A126)/GETPIVOTDATA(TEXT(E$1,""),'Sum of Q-D'!$A$10,"CIA Name",$A126),0))) -> 0.5635778958
A127: Thousand Lakes Wilderness | B127: =IF(A127="","",IF($A127="Grand Total",GETPIVOTDATA(TEXT(B$1,""),'Sum of Captured Q-D'!$A$10)/GETPIVOTDATA(TEXT(B$1,""),'Sum of Q-D'!$A$10),IFERROR(GETPIVOTDATA(TEXT(B$1,""),'Sum of Captured Q-D'!$A$10,"CIA Name",$A127)/GETPIVOTDATA(TEXT(B$1,""),'Sum of Q-D'!$A$10,"CIA Name",$A127),0))) -> 0.2838673172 | C127: =IF(B127="","",IF($A127="Grand Total",GETPIVOTDATA(TEXT(C$1,""),'Sum of Captured Q-D'!$A$10)/GETPIVOTDATA(TEXT(C$1,""),'Sum of Q-D'!$A$10),IFERROR(GETPIVOTDATA(TEXT(C$1,""),'Sum of Captured Q-D'!$A$10,"CIA Name",$A127)/GETPIVOTDATA(TEXT(C$1,""),'Sum of Q-D'!$A$10,"CIA Name",$A127),0))) -> 0.2741995972 | D127: =IF(C127="","",IF($A127="Grand Total",GETPIVOTDATA(TEXT(D$1,""),'Sum of Captured Q-D'!$A$10)/GETPIVOTDATA(TEXT(D$1,""),'Sum of Q-D'!$A$10),IFERROR(GETPIVOTDATA(TEXT(D$1,""),'Sum of Captured Q-D'!$A$10,"CIA Name",$A127)/GETPIVOTDATA(TEXT(D$1,""),'Sum of Q-D'!$A$10,"CIA Name",$A127),0))) -> 0.5261728598 | E127: =IF(D127="","",IF($A127="Grand Total",GETPIVOTDATA(TEXT(E$1,""),'Sum of Captured Q-D'!$A$10)/GETPIVOTDATA(TEXT(E$1,""),'Sum of Q-D'!$A$10),IFERROR(GETPIVOTDATA(TEXT(E$1,""),'Sum of Captured Q-D'!$A$10,"CIA Name",$A127)/GETPIVOTDATA(TEXT(E$1,""),'Sum of Q-D'!$A$10,"CIA Name",$A127),0))) -> 0.1079841673
A128: Three Sisters Wilderness | B128: =IF(A128="","",IF($A128="Grand Total",GETPIVOTDATA(TEXT(B$1,""),'Sum of Captured Q-D'!$A$10)/GETPIVOTDATA(TEXT(B$1,""),'Sum of Q-D'!$A$10),IFERROR(GETPIVOTDATA(TEXT(B$1,""),'Sum of Captured Q-D'!$A$10,"CIA Name",$A128)/GETPIVOTDATA(TEXT(B$1,""),'Sum of Q-D'!$A$10,"CIA Name",$A128),0))) -> 0.3995255085 | C128: =IF(B128="","",IF($A128="Grand Total",GETPIVOTDATA(TEXT(C$1,""),'Sum of Captured Q-D'!$A$10)/GETPIVOTDATA(TEXT(C$1,""),'Sum of Q-D'!$A$10),IFERROR(GETPIVOTDATA(TEXT(C$1,""),'Sum of Captured Q-D'!$A$10,"CIA Name",$A128)/GETPIVOTDATA(TEXT(C$1,""),'Sum of Q-D'!$A$10,"CIA Name",$A128),0))) -> 0.3639069474 | D128: =IF(C128="","",IF($A128="Grand Total",GETPIVOTDATA(TEXT(D$1,""),'Sum of Captured Q-D'!$A$10)/GETPIVOTDATA(TEXT(D$1,""),'Sum of Q-D'!$A$10),IFERROR(GETPIVOTDATA(TEXT(D$1,""),'Sum of Captured Q-D'!$A$10,"CIA Name",$A128)/GETPIVOTDATA(TEXT(D$1,""),'Sum of Q-D'!$A$10,"CIA Name",$A128),0))) -> 0.6410265002 | E128: =IF(D128="","",IF($A128="Grand Total",GETPIVOTDATA(TEXT(E$1,""),'Sum of Captured Q-D'!$A$10)/GETPIVOTDATA(TEXT(E$1,""),'Sum of Q-D'!$A$10),IFERROR(GETPIVOTDATA(TEXT(E$1,""),'Sum of Captured Q-D'!$A$10,"CIA Name",$A128)/GETPIVOTDATA(TEXT(E$1,""),'Sum of Q-D'!$A$10,"CIA Name",$A128),0))) -> 0.2286428861
A129: Tuxedni Wilderness | B129: =IF(A129="","",IF($A129="Grand Total",GETPIVOTDATA(TEXT(B$1,""),'Sum of Captured Q-D'!$A$10)/GETPIVOTDATA(TEXT(B$1,""),'Sum of Q-D'!$A$10),IFERROR(GETPIVOTDATA(TEXT(B$1,""),'Sum of Captured Q-D'!$A$10,"CIA Name",$A129)/GETPIVOTDATA(TEXT(B$1,""),'Sum of Q-D'!$A$10,"CIA Name",$A129),0))) -> 0.3694473366 | C129: =IF(B129="","",IF($A129="Grand Total",GETPIVOTDATA(TEXT(C$1,""),'Sum of Captured Q-D'!$A$10)/GETPIVOTDATA(TEXT(C$1,""),'Sum of Q-D'!$A$10),IFERROR(GETPIVOTDATA(TEXT(C$1,""),'Sum of Captured Q-D'!$A$10,"CIA Name",$A129)/GETPIVOTDATA(TEXT(C$1,""),'Sum of Q-D'!$A$10,"CIA Name",$A129),0))) -> 0.4009990392 | D129: =IF(C129="","",IF($A129="Grand Total",GETPIVOTDATA(TEXT(D$1,""),'Sum of Captured Q-D'!$A$10)/GETPIVOTDATA(TEXT(D$1,""),'Sum of Q-D'!$A$10),IFERROR(GETPIVOTDATA(TEXT(D$1,""),'Sum of Captured Q-D'!$A$10,"CIA Name",$A129)/GETPIVOTDATA(TEXT(D$1,""),'Sum of Q-D'!$A$10,"CIA Name",$A129),0))) -> 0.1153298765 | E129: =IF(D129="","",IF($A129="Grand Total",GETPIVOTDATA(TEXT(E$1,""),'Sum of Captured Q-D'!$A$10)/GETPIVOTDATA(TEXT(E$1,""),'Sum of Q-D'!$A$10),IFERROR(GETPIVOTDATA(TEXT(E$1,""),'Sum of Captured Q-D'!$A$10,"CIA Name",$A129)/GETPIVOTDATA(TEXT(E$1,""),'Sum of Q-D'!$A$10,"CIA Name",$A129),0))) -> 0.2203791148
A130: UL Bend Wilderness | B130: =IF(A130="","",IF($A130="Grand Total",GETPIVOTDATA(TEXT(B$1,""),'Sum of Captured Q-D'!$A$10)/GETPIVOTDATA(TEXT(B$1,""),'Sum of Q-D'!$A$10),IFERROR(GETPIVOTDATA(TEXT(B$1,""),'Sum of Captured Q-D'!$A$10,"CIA Name",$A130)/GETPIVOTDATA(TEXT(B$1,""),'Sum of Q-D'!$A$10,"CIA Name",$A130),0))) -> 0.5491527134 | C130: =IF(B130="","",IF($A130="Grand Total",GETPIVOTDATA(TEXT(C$1,""),'Sum of Captured Q-D'!$A$10)/GETPIVOTDATA(TEXT(C$1,""),'Sum of Q-D'!$A$10),IFERROR(GETPIVOTDATA(TEXT(C$1,""),'Sum of Captured Q-D'!$A$10,"CIA Name",$A130)/GETPIVOTDATA(TEXT(C$1,""),'Sum of Q-D'!$A$10,"CIA Name",$A130),0))) -> 0.5691505741 | D130: =IF(C130="","",IF($A130="Grand Total",GETPIVOTDATA(TEXT(D$1,""),'Sum of Captured Q-D'!$A$10)/GETPIVOTDATA(TEXT(D$1,""),'Sum of Q-D'!$A$10),IFERROR(GETPIVOTDATA(TEXT(D$1,""),'Sum of Captured Q-D'!$A$10,"CIA Name",$A130)/GETPIVOTDATA(TEXT(D$1,""),'Sum of Q-D'!$A$10,"CIA Name",$A130),0))) -> 0.6829795962 | E130: =IF(D130="","",IF($A130="Grand Total",GETPIVOTDATA(TEXT(E$1,""),'Sum of Captured Q-D'!$A$10)/GETPIVOTDATA(TEXT(E$1,""),'Sum of Q-D'!$A$10),IFERROR(GETPIVOTDATA(TEXT(E$1,""),'Sum of Captured Q-D'!$A$10,"CIA Name",$A130)/GETPIVOTDATA(TEXT(E$1,""),'Sum of Q-D'!$A$10,"CIA Name",$A130),0))) -> 0.2124813628
A131: Ventana Wilderness | B131: =IF(A131="","",IF($A131="Grand Total",GETPIVOTDATA(TEXT(B$1,""),'Sum of Captured Q-D'!$A$10)/GETPIVOTDATA(TEXT(B$1,""),'Sum of Q-D'!$A$10),IFERROR(GETPIVOTDATA(TEXT(B$1,""),'Sum of Captured Q-D'!$A$10,"CIA Name",$A131)/GETPIVOTDATA(TEXT(B$1,""),'Sum of Q-D'!$A$10,"CIA Name",$A131),0))) -> 0.2482225671 | C131: =IF(B131="","",IF($A131="Grand Total",GETPIVOTDATA(TEXT(C$1,""),'Sum of Captured Q-D'!$A$10)/GETPIVOTDATA(TEXT(C$1,""),'Sum of Q-D'!$A$10),IFERROR(GETPIVOTDATA(TEXT(C$1,""),'Sum of Captured Q-D'!$A$10,"CIA Name",$A131)/GETPIVOTDATA(TEXT(C$1,""),'Sum of Q-D'!$A$10,"CIA Name",$A131),0))) -> 0.3004081495 | D131: =IF(C131="","",IF($A131="Grand Total",GETPIVOTDATA(TEXT(D$1,""),'Sum of Captured Q-D'!$A$10)/GETPIVOTDATA(TEXT(D$1,""),'Sum of Q-D'!$A$10),IFERROR(GETPIVOTDATA(TEXT(D$1,""),'Sum of Captured Q-D'!$A$10,"CIA Name",$A131)/GETPIVOTDATA(TEXT(D$1,""),'Sum of Q-D'!$A$10,"CIA Name",$A131),0))) -> 0.3370898747 | E131: =IF(D131="","",IF($A131="Grand Total",GETPIVOTDATA(TEXT(E$1,""),'Sum of Captured Q-D'!$A$10)/GETPIVOTDATA(TEXT(E$1,""),'Sum of Q-D'!$A$10),IFERROR(GETPIVOTDATA(TEXT(E$1,""),'Sum of Captured Q-D'!$A$10,"CIA Name",$A131)/GETPIVOTDATA(TEXT(E$1,""),'Sum of Q-D'!$A$10,"CIA Name",$A131),0))) -> 0.05999074945
A132: Voyageurs NP | B132: =IF(A132="","",IF($A132="Grand Total",GETPIVOTDATA(TEXT(B$1,""),'Sum of Captured Q-D'!$A$10)/GETPIVOTDATA(TEXT(B$1,""),'Sum of Q-D'!$A$10),IFERROR(GETPIVOTDATA(TEXT(B$1,""),'Sum of Captured Q-D'!$A$10,"CIA Name",$A132)/GETPIVOTDATA(TEXT(B$1,""),'Sum of Q-D'!$A$10,"CIA Name",$A132),0))) -> 0 | C132: =IF(B132="","",IF($A132="Grand Total",GETPIVOTDATA(TEXT(C$1,""),'Sum of Captured Q-D'!$A$10)/GETPIVOTDATA(TEXT(C$1,""),'Sum of Q-D'!$A$10),IFERROR(GETPIVOTDATA(TEXT(C$1,""),'Sum of Captured Q-D'!$A$10,"CIA Name",$A132)/GETPIVOTDATA(TEXT(C$1,""),'Sum of Q-D'!$A$10,"CIA Name",$A132),0))) -> 0 | D132: =IF(C132="","",IF($A132="Grand Total",GETPIVOTDATA(TEXT(D$1,""),'Sum of Captured Q-D'!$A$10)/GETPIVOTDATA(TEXT(D$1,""),'Sum of Q-D'!$A$10),IFERROR(GETPIVOTDATA(TEXT(D$1,""),'Sum of Captured Q-D'!$A$10,"CIA Name",$A132)/GETPIVOTDATA(TEXT(D$1,""),'Sum of Q-D'!$A$10,"CIA Name",$A132),0))) -> 0 | E132: =IF(D132="","",IF($A132="Grand Total",GETPIVOTDATA(TEXT(E$1,""),'Sum of Captured Q-D'!$A$10)/GETPIVOTDATA(TEXT(E$1,""),'Sum of Q-D'!$A$10),IFERROR(GETPIVOTDATA(TEXT(E$1,""),'Sum of Captured Q-D'!$A$10,"CIA Name",$A132)/GETPIVOTDATA(TEXT(E$1,""),'Sum of Q-D'!$A$10,"CIA Name",$A132),0))) -> 0
A133: Washakie Wilderness | B133: =IF(A133="","",IF($A133="Grand Total",GETPIVOTDATA(TEXT(B$1,""),'Sum of Captured Q-D'!$A$10)/GETPIVOTDATA(TEXT(B$1,""),'Sum of Q-D'!$A$10),IFERROR(GETPIVOTDATA(TEXT(B$1,""),'Sum of Captured Q-D'!$A$10,"CIA Name",$A133)/GETPIVOTDATA(TEXT(B$1,""),'Sum of Q-D'!$A$10,"CIA Name",$A133),0))) -> 0.667925645 | C133: =IF(B133="","",IF($A133="Grand Total",GETPIVOTDATA(TEXT(C$1,""),'Sum of Captured Q-D'!$A$10)/GETPIVOTDATA(TEXT(C$1,""),'Sum of Q-D'!$A$10),IFERROR(GETPIVOTDATA(TEXT(C$1,""),'Sum of Captured Q-D'!$A$10,"CIA Name",$A133)/GETPIVOTDATA(TEXT(C$1,""),'Sum of Q-D'!$A$10,"CIA Name",$A133),0))) -> 0.6833936627 | D133: =IF(C133="","",IF($A133="Grand Total",GETPIVOTDATA(TEXT(D$1,""),'Sum of Captured Q-D'!$A$10)/GETPIVOTDATA(TEXT(D$1,""),'Sum of Q-D'!$A$10),IFERROR(GETPIVOTDATA(TEXT(D$1,""),'Sum of Captured Q-D'!$A$10,"CIA Name",$A133)/GETPIVOTDATA(TEXT(D$1,""),'Sum of Q-D'!$A$10,"CIA Name",$A133),0))) -> 0.7889955779 | E133: =IF(D133="","",IF($A133="Grand Total",GETPIVOTDATA(TEXT(E$1,""),'Sum of Captured Q-D'!$A$10)/GETPIVOTDATA(TEXT(E$1,""),'Sum of Q-D'!$A$10),IFERROR(GETPIVOTDATA(TEXT(E$1,""),'Sum of Captured Q-D'!$A$10,"CIA Name",$A133)/GETPIVOTDATA(TEXT(E$1,""),'Sum of Q-D'!$A$10,"CIA Name",$A133),0))) -> 0.3410925947
A134: Weminuche Wilderness | B134: =IF(A134="","",IF($A134="Grand Total",GETPIVOTDATA(TEXT(B$1,""),'Sum of Captured Q-D'!$A$10)/GETPIVOTDATA(TEXT(B$1,""),'Sum of Q-D'!$A$10),IFERROR(GETPIVOTDATA(TEXT(B$1,""),'Sum of Captured Q-D'!$A$10,"CIA Name",$A134)/GETPIVOTDATA(TEXT(B$1,""),'Sum of Q-D'!$A$10,"CIA Name",$A134),0))) -> 0.6963593936 | C134: =IF(B134="","",IF($A134="Grand Total",GETPIVOTDATA(TEXT(C$1,""),'Sum of Captured Q-D'!$A$10)/GETPIVOTDATA(TEXT(C$1,""),'Sum of Q-D'!$A$10),IFERROR(GETPIVOTDATA(TEXT(C$1,""),'Sum of Captured Q-D'!$A$10,"CIA Name",$A134)/GETPIVOTDATA(TEXT(C$1,""),'Sum of Q-D'!$A$10,"CIA Name",$A134),0))) -> 0.6691751877 | D134: =IF(C134="","",IF($A134="Grand Total",GETPIVOTDATA(TEXT(D$1,""),'Sum of Captured Q-D'!$A$10)/GETPIVOTDATA(TEXT(D$1,""),'Sum of Q-D'!$A$10),IFERROR(GETPIVOTDATA(TEXT(D$1,""),'Sum of Captured Q-D'!$A$10,"CIA Name",$A134)/GETPIVOTDATA(TEXT(D$1,""),'Sum of Q-D'!$A$10,"CIA Name",$A134),0))) -> 0.9055359951 | E134: =IF(D134="","",IF($A134="Grand Total",GETPIVOTDATA(TEXT(E$1,""),'Sum of Captured Q-D'!$A$10)/GETPIVOTDATA(TEXT(E$1,""),'Sum of Q-D'!$A$10),IFERROR(GETPIVOTDATA(TEXT(E$1,""),'Sum of Captured Q-D'!$A$10,"CIA Name",$A134)/GETPIVOTDATA(TEXT(E$1,""),'Sum of Q-D'!$A$10,"CIA Name",$A134),0))) -> 0.4043802718
A135: West Elk Wilderness | B135: =IF(A135="","",IF($A135="Grand Total",GETPIVOTDATA(TEXT(B$1,""),'Sum of Captured Q-D'!$A$10)/GETPIVOTDATA(TEXT(B$1,""),'Sum of Q-D'!$A$10),IFERROR(GETPIVOTDATA(TEXT(B$1,""),'Sum of Captured Q-D'!$A$10,"CIA Name",$A135)/GETPIVOTDATA(TEXT(B$1,""),'Sum of Q-D'!$A$10,"CIA Name",$A135),0))) -> 0.6385388859 | C135: =IF(B135="","",IF($A135="Grand Total",GETPIVOTDATA(TEXT(C$1,""),'Sum of Captured Q-D'!$A$10)/GETPIVOTDATA(TEXT(C$1,""),'Sum of Q-D'!$A$10),IFERROR(GETPIVOTDATA(TEXT(C$1,""),'Sum of Captured Q-D'!$A$10,"CIA Name",$A135)/GETPIVOTDATA(TEXT(C$1,""),'Sum of Q-D'!$A$10,"CIA Name",$A135),0))) -> 0.6163663163 | D135: =IF(C135="","",IF($A135="Grand Total",GETPIVOTDATA(TEXT(D$1,""),'Sum of Captured Q-D'!$A$10)/GETPIVOTDATA(TEXT(D$1,""),'Sum of Q-D'!$A$10),IFERROR(GETPIVOTDATA(TEXT(D$1,""),'Sum of Captured Q-D'!$A$10,"CIA Name",$A135)/GETPIVOTDATA(TEXT(D$1,""),'Sum of Q-D'!$A$10,"CIA Name",$A135),0))) -> 0.8560315423 | E135: =IF(D135="","",IF($A135="Grand Total",GETPIVOTDATA(TEXT(E$1,""),'Sum of Captured Q-D'!$A$10)/GETPIVOTDATA(TEXT(E$1,""),'Sum of Q-D'!$A$10),IFERROR(GETPIVOTDATA(TEXT(E$1,""),'Sum of Captured Q-D'!$A$10,"CIA Name",$A135)/GETPIVOTDATA(TEXT(E$1,""),'Sum of Q-D'!$A$10,"CIA Name",$A135),0))) -> 0.3230543646
A136: Wheeler Peak Wilderness | B136: =IF(A136="","",IF($A136="Grand Total",GETPIVOTDATA(TEXT(B$1,""),'Sum of Captured Q-D'!$A$10)/GETPIVOTDATA(TEXT(B$1,""),'Sum of Q-D'!$A$10),IFERROR(GETPIVOTDATA(TEXT(B$1,""),'Sum of Captured Q-D'!$A$10,"CIA Name",$A136)/GETPIVOTDATA(TEXT(B$1,""),'Sum of Q-D'!$A$10,"CIA Name",$A136),0))) -> 0.5387166025 | C136: =IF(B136="","",IF($A136="Grand Total",GETPIVOTDATA(TEXT(C$1,""),'Sum of Captured Q-D'!$A$10)/GETPIVOTDATA(TEXT(C$1,""),'Sum of Q-D'!$A$10),IFERROR(GETPIVOTDATA(TEXT(C$1,""),'Sum of Captured Q-D'!$A$10,"CIA Name",$A136)/GETPIVOTDATA(TEXT(C$1,""),'Sum of Q-D'!$A$10,"CIA Name",$A136),0))) -> 0.450914175 | D136: =IF(C136="","",IF($A136="Grand Total",GETPIVOTDATA(TEXT(D$1,""),'Sum of Captured Q-D'!$A$10)/GETPIVOTDATA(TEXT(D$1,""),'Sum of Q-D'!$A$10),IFERROR(GETPIVOTDATA(TEXT(D$1,""),'Sum of Captured Q-D'!$A$10,"CIA Name",$A136)/GETPIVOTDATA(TEXT(D$1,""),'Sum of Q-D'!$A$10,"CIA Name",$A136),0))) -> 0.8070901765 | E136: =IF(D136="","",IF($A136="Grand Total",GETPIVOTDATA(TEXT(E$1,""),'Sum of Captured Q-D'!$A$10)/GETPIVOTDATA(TEXT(E$1,""),'Sum of Q-D'!$A$10),IFERROR(GETPIVOTDATA(TEXT(E$1,""),'Sum of Captured Q-D'!$A$10,"CIA Name",$A136)/GETPIVOTDATA(TEXT(E$1,""),'Sum of Q-D'!$A$10,"CIA Name",$A136),0))) -> 0.235446061
A137: White Mountain Wilderness | B137: =IF(A137="","",IF($A137="Grand Total",GETPIVOTDATA(TEXT(B$1,""),'Sum of Captured Q-D'!$A$10)/GETPIVOTDATA(TEXT(B$1,""),'Sum of Q-D'!$A$10),IFERROR(GETPIVOTDATA(TEXT(B$1,""),'Sum of Captured Q-D'!$A$10,"CIA Name",$A137)/GETPIVOTDATA(TEXT(B$1,""),'Sum of Q-D'!$A$10,"CIA Name",$A137),0))) -> 0.382828371 | C137: =IF(B137="","",IF($A137="Grand Total",GETPIVOTDATA(TEXT(C$1,""),'Sum of Captured Q-D'!$A$10)/GETPIVOTDATA(TEXT(C$1,""),'Sum of Q-D'!$A$10),IFERROR(GETPIVOTDATA(TEXT(C$1,""),'Sum of Captured Q-D'!$A$10,"CIA Name",$A137)/GETPIVOTDATA(TEXT(C$1,""),'Sum of Q-D'!$A$10,"CIA Name",$A137),0))) -> 0.2778110442 | D137: =IF(C137="","",IF($A137="Grand Total",GETPIVOTDATA(TEXT(D$1,""),'Sum of Captured Q-D'!$A$10)/GETPIVOTDATA(TEXT(D$1,""),'Sum of Q-D'!$A$10),IFERROR(GETPIVOTDATA(TEXT(D$1,""),'Sum of Captured Q-D'!$A$10,"CIA Name",$A137)/GETPIVOTDATA(TEXT(D$1,""),'Sum of Q-D'!$A$10,"CIA Name",$A137),0))) -> 0.6294909087 | E137: =IF(D137="","",IF($A137="Grand Total",GETPIVOTDATA(TEXT(E$1,""),'Sum of Captured Q-D'!$A$10)/GETPIVOTDATA(TEXT(E$1,""),'Sum of Q-D'!$A$10),IFERROR(GETPIVOTDATA(TEXT(E$1,""),'Sum of Captured Q-D'!$A$10,"CIA Name",$A137)/GETPIVOTDATA(TEXT(E$1,""),'Sum of Q-D'!$A$10,"CIA Name",$A137),0))) -> 0.2992500865
A138: Wichita Mountains (Charons Garden Unit) | B138: =IF(A138="","",IF($A138="Grand Total",GETPIVOTDATA(TEXT(B$1,""),'Sum of Captured Q-D'!$A$10)/GETPIVOTDATA(TEXT(B$1,""),'Sum of Q-D'!$A$10),IFERROR(GETPIVOTDATA(TEXT(B$1,""),'Sum of Captured Q-D'!$A$10,"CIA Name",$A138)/GETPIVOTDATA(TEXT(B$1,""),'Sum of Q-D'!$A$10,"CIA Name",$A138),0))) -> 0 | C138: =IF(B138="","",IF($A138="Grand Total",GETPIVOTDATA(TEXT(C$1,""),'Sum of Captured Q-D'!$A$10)/GETPIVOTDATA(TEXT(C$1,""),'Sum of Q-D'!$A$10),IFERROR(GETPIVOTDATA(TEXT(C$1,""),'Sum of Captured Q-D'!$A$10,"CIA Name",$A138)/GETPIVOTDATA(TEXT(C$1,""),'Sum of Q-D'!$A$10,"CIA Name",$A138),0))) -> 0 | D138: =IF(C138="","",IF($A138="Grand Total",GETPIVOTDATA(TEXT(D$1,""),'Sum of Captured Q-D'!$A$10)/GETPIVOTDATA(TEXT(D$1,""),'Sum of Q-D'!$A$10),IFERROR(GETPIVOTDATA(TEXT(D$1,""),'Sum of Captured Q-D'!$A$10,"CIA Name",$A138)/GETPIVOTDATA(TEXT(D$1,""),'Sum of Q-D'!$A$10,"CIA Name",$A138),0))) -> 0 | E138: =IF(D138="","",IF($A138="Grand Total",GETPIVOTDATA(TEXT(E$1,""),'Sum of Captured Q-D'!$A$10)/GETPIVOTDATA(TEXT(E$1,""),'Sum of Q-D'!$A$10),IFERROR(GETPIVOTDATA(TEXT(E$1,""),'Sum of Captured Q-D'!$A$10,"CIA Name",$A138)/GETPIVOTDATA(TEXT(E$1,""),'Sum of Q-D'!$A$10,"CIA Name",$A138),0))) -> 0
A139: Wind Cave National Park | B139: =IF(A139="","",IF($A139="Grand Total",GETPIVOTDATA(TEXT(B$1,""),'Sum of Captured Q-D'!$A$10)/GETPIVOTDATA(TEXT(B$1,""),'Sum of Q-D'!$A$10),IFERROR(GETPIVOTDATA(TEXT(B$1,""),'Sum of Captured Q-D'!$A$10,"CIA Name",$A139)/GETPIVOTDATA(TEXT(B$1,""),'Sum of Q-D'!$A$10,"CIA Name",$A139),0))) -> 0.6906168028 | C139: =IF(B139="","",IF($A139="Grand Total",GETPIVOTDATA(TEXT(C$1,""),'Sum of Captured Q-D'!$A$10)/GETPIVOTDATA(TEXT(C$1,""),'Sum of Q-D'!$A$10),IFERROR(GETPIVOTDATA(TEXT(C$1,""),'Sum of Captured Q-D'!$A$10,"CIA Name",$A139)/GETPIVOTDATA(TEXT(C$1,""),'Sum of Q-D'!$A$10,"CIA Name",$A139),0))) -> 0.6323429404 | D139: =IF(C139="","",IF($A139="Grand Total",GETPIVOTDATA(TEXT(D$1,""),'Sum of Captured Q-D'!$A$10)/GETPIVOTDATA(TEXT(D$1,""),'Sum of Q-D'!$A$10),IFERROR(GETPIVOTDATA(TEXT(D$1,""),'Sum of Captured Q-D'!$A$10,"CIA Name",$A139)/GETPIVOTDATA(TEXT(D$1,""),'Sum of Q-D'!$A$10,"CIA Name",$A139),0))) -> 0.8454873932 | E139: =IF(D139="","",IF($A139="Grand Total",GETPIVOTDATA(TEXT(E$1,""),'Sum of Captured Q-D'!$A$10)/GETPIVOTDATA(TEXT(E$1,""),'Sum of Q-D'!$A$10),IFERROR(GETPIVOTDATA(TEXT(E$1,""),'Sum of Captured Q-D'!$A$10,"CIA Name",$A139)/GETPIVOTDATA(TEXT(E$1,""),'Sum of Q-D'!$A$10,"CIA Name",$A139),0))) -> 0.5262670412
A140: Yellowstone NP | B140: =IF(A140="","",IF($A140="Grand Total",GETPIVOTDATA(TEXT(B$1,""),'Sum of Captured Q-D'!$A$10)/GETPIVOTDATA(TEXT(B$1,""),'Sum of Q-D'!$A$10),IFERROR(GETPIVOTDATA(TEXT(B$1,""),'Sum of Captured Q-D'!$A$10,"CIA Name",$A140)/GETPIVOTDATA(TEXT(B$1,""),'Sum of Q-D'!$A$10,"CIA Name",$A140),0))) -> 0.6173268543 | C140: =IF(B140="","",IF($A140="Grand Total",GETPIVOTDATA(TEXT(C$1,""),'Sum of Captured Q-D'!$A$10)/GETPIVOTDATA(TEXT(C$1,""),'Sum of Q-D'!$A$10),IFERROR(GETPIVOTDATA(TEXT(C$1,""),'Sum of Captured Q-D'!$A$10,"CIA Name",$A140)/GETPIVOTDATA(TEXT(C$1,""),'Sum of Q-D'!$A$10,"CIA Name",$A140),0))) -> 0.6435034054 | D140: =IF(C140="","",IF($A140="Grand Total",GETPIVOTDATA(TEXT(D$1,""),'Sum of Captured Q-D'!$A$10)/GETPIVOTDATA(TEXT(D$1,""),'Sum of Q-D'!$A$10),IFERROR(GETPIVOTDATA(TEXT(D$1,""),'Sum of Captured Q-D'!$A$10,"CIA Name",$A140)/GETPIVOTDATA(TEXT(D$1,""),'Sum of Q-D'!$A$10,"CIA Name",$A140),0))) -> 0.7486168294 | E140: =IF(D140="","",IF($A140="Grand Total",GETPIVOTDATA(TEXT(E$1,""),'Sum of Captured Q-D'!$A$10)/GETPIVOTDATA(TEXT(E$1,""),'Sum of Q-D'!$A$10),IFERROR(GETPIVOTDATA(TEXT(E$1,""),'Sum of Captured Q-D'!$A$10,"CIA Name",$A140)/GETPIVOTDATA(TEXT(E$1,""),'Sum of Q-D'!$A$10,"CIA Name",$A140),0))) -> 0.2903569422
A141: Yolla Bolly-Middle Eel Wilderness | B141: =IF(A141="","",IF($A141="Grand Total",GETPIVOTDATA(TEXT(B$1,""),'Sum of Captured Q-D'!$A$10)/GETPIVOTDATA(TEXT(B$1,""),'Sum of Q-D'!$A$10),IFERROR(GETPIVOTDATA(TEXT(B$1,""),'Sum of Captured Q-D'!$A$10,"CIA Name",$A141)/GETPIVOTDATA(TEXT(B$1,""),'Sum of Q-D'!$A$10,"CIA Name",$A141),0))) -> 0.1951911874 | C141: =IF(B141="","",IF($A141="Grand Total",GETPIVOTDATA(TEXT(C$1,""),'Sum of Captured Q-D'!$A$10)/GETPIVOTDATA(TEXT(C$1,""),'Sum of Q-D'!$A$10),IFERROR(GETPIVOTDATA(TEXT(C$1,""),'Sum of Captured Q-D'!$A$10,"CIA Name",$A141)/GETPIVOTDATA(TEXT(C$1,""),'Sum of Q-D'!$A$10,"CIA Name",$A141),0))) -> 0.2240558359 | D141: =IF(C141="","",IF($A141="Grand Total",GETPIVOTDATA(TEXT(D$1,""),'Sum of Captured Q-D'!$A$10)/GETPIVOTDATA(TEXT(D$1,""),'Sum of Q-D'!$A$10),IFERROR(GETPIVOTDATA(TEXT(D$1,""),'Sum of Captured Q-D'!$A$10,"CIA Name",$A141)/GETPIVOTDATA(TEXT(D$1,""),'Sum of Q-D'!$A$10,"CIA Name",$A141),0))) -> 0.2793225974 | E141: =IF(D141="","",IF($A141="Grand Total",GETPIVOTDATA(TEXT(E$1,""),'Sum of Captured Q-D'!$A$10)/GETPIVOTDATA(TEXT(E$1,""),'Sum of Q-D'!$A$10),IFERROR(GETPIVOTDATA(TEXT(E$1,""),'Sum of Captured Q-D'!$A$10,"CIA Name",$A141)/GETPIVOTDATA(TEXT(E$1,""),'Sum of Q-D'!$A$10,"CIA Name",$A141),0))) -> 0.07359825696
A142: Yosemite NP | B142: =IF(A142="","",IF($A142="Grand Total",GETPIVOTDATA(TEXT(B$1,""),'Sum of Captured Q-D'!$A$10)/GETPIVOTDATA(TEXT(B$1,""),'Sum of Q-D'!$A$10),IFERROR(GETPIVOTDATA(TEXT(B$1,""),'Sum of Captured Q-D'!$A$10,"CIA Name",$A142)/GETPIVOTDATA(TEXT(B$1,""),'Sum of Q-D'!$A$10,"CIA Name",$A142),0))) -> 0.2212801218 | C142: =IF(B142="","",IF($A142="Grand Total",GETPIVOTDATA(TEXT(C$1,""),'Sum of Captured Q-D'!$A$10)/GETPIVOTDATA(TEXT(C$1,""),'Sum of Q-D'!$A$10),IFERROR(GETPIVOTDATA(TEXT(C$1,""),'Sum of Captured Q-D'!$A$10,"CIA Name",$A142)/GETPIVOTDATA(TEXT(C$1,""),'Sum of Q-D'!$A$10,"CIA Name",$A142),0))) -> 0.2139593054 | D142: =IF(C142="","",IF($A142="Grand Total",GETPIVOTDATA(TEXT(D$1,""),'Sum of Captured Q-D'!$A$10)/GETPIVOTDATA(TEXT(D$1,""),'Sum of Q-D'!$A$10),IFERROR(GETPIVOTDATA(TEXT(D$1,""),'Sum of Captured Q-D'!$A$10,"CIA Name",$A142)/GETPIVOTDATA(TEXT(D$1,""),'Sum of Q-D'!$A$10,"CIA Name",$A142),0))) -> 0.4763111248 | E142: =IF(D142="","",IF($A142="Grand Total",GETPIVOTDATA(TEXT(E$1,""),'Sum of Captured Q-D'!$A$10)/GETPIVOTDATA(TEXT(E$1,""),'Sum of Q-D'!$A$10),IFERROR(GETPIVOTDATA(TEXT(E$1,""),'Sum of Captured Q-D'!$A$10,"CIA Name",$A142)/GETPIVOTDATA(TEXT(E$1,""),'Sum of Q-D'!$A$10,"CIA Name",$A142),0))) -> 0.05538213948
A143: Zion NP | B143: =IF(A143="","",IF($A143="Grand Total",GETPIVOTDATA(TEXT(B$1,""),'Sum of Captured Q-D'!$A$10)/GETPIVOTDATA(TEXT(B$1,""),'Sum of Q-D'!$A$10),IFERROR(GETPIVOTDATA(TEXT(B$1,""),'Sum of Captured Q-D'!$A$10,"CIA Name",$A143)/GETPIVOTDATA(TEXT(B$1,""),'Sum of Q-D'!$A$10,"CIA Name",$A143),0))) -> 0.8313638303 | C143: =IF(B143="","",IF($A143="Grand Total",GETPIVOTDATA(TEXT(C$1,""),'Sum of Captured Q-D'!$A$10)/GETPIVOTDATA(TEXT(C$1,""),'Sum of Q-D'!$A$10),IFERROR(GETPIVOTDATA(TEXT(C$1,""),'Sum of Captured Q-D'!$A$10,"CIA Name",$A143)/GETPIVOTDATA(TEXT(C$1,""),'Sum of Q-D'!$A$10,"CIA Name",$A143),0))) -> 0.8534877242 | D143: =IF(C143="","",IF($A143="Grand Total",GETPIVOTDATA(TEXT(D$1,""),'Sum of Captured Q-D'!$A$10)/GETPIVOTDATA(TEXT(D$1,""),'Sum of Q-D'!$A$10),IFERROR(GETPIVOTDATA(TEXT(D$1,""),'Sum of Captured Q-D'!$A$10,"CIA Name",$A143)/GETPIVOTDATA(TEXT(D$1,""),'Sum of Q-D'!$A$10,"CIA Name",$A143),0))) -> 0.8986951645 | E143: =IF(D143="","",IF($A143="Grand Total",GETPIVOTDATA(TEXT(E$1,""),'Sum of Captured Q-D'!$A$10)/GETPIVOTDATA(TEXT(E$1,""),'Sum of Q-D'!$A$10),IFERROR(GETPIVOTDATA(TEXT(E$1,""),'Sum of Captured Q-D'!$A$10,"CIA Name",$A143)/GETPIVOTDATA(TEXT(E$1,""),'Sum of Q-D'!$A$10,"CIA Name",$A143),0))) -> 0.5783120024
A144: Grand Total | B144: =IF(A144="","",IF($A144="Grand Total",GETPIVOTDATA(TEXT(B$1,""),'Sum of Captured Q-D'!$A$10)/GETPIVOTDATA(TEXT(B$1,""),'Sum of Q-D'!$A$10),IFERROR(GETPIVOTDATA(TEXT(B$1,""),'Sum of Captured Q-D'!$A$10,"CIA Name",$A144)/GETPIVOTDATA(TEXT(B$1,""),'Sum of Q-D'!$A$10,"CIA Name",$A144),0))) -> 0.6712625524 | C144: =IF(B144="","",IF($A144="Grand Total",GETPIVOTDATA(TEXT(C$1,""),'Sum of Captured Q-D'!$A$10)/GETPIVOTDATA(TEXT(C$1,""),'Sum of Q-D'!$A$10),IFERROR(GETPIVOTDATA(TEXT(C$1,""),'Sum of Captured Q-D'!$A$10,"CIA Name",$A144)/GETPIVOTDATA(TEXT(C$1,""),'Sum of Q-D'!$A$10,"CIA Name",$A144),0))) -> 0.6414631063 | D144: =IF(C144="","",IF($A144="Grand Total",GETPIVOTDATA(TEXT(D$1,""),'Sum of Captured Q-D'!$A$10)/GETPIVOTDATA(TEXT(D$1,""),'Sum of Q-D'!$A$10),IFERROR(GETPIVOTDATA(TEXT(D$1,""),'Sum of Captured Q-D'!$A$10,"CIA Name",$A144)/GETPIVOTDATA(TEXT(D$1,""),'Sum of Q-D'!$A$10,"CIA Name",$A144),0))) -> 0.8502979365 | E144: =IF(D144="","",IF($A144="Grand Total",GETPIVOTDATA(TEXT(E$1,""),'Sum of Captured Q-D'!$A$10)/GETPIVOTDATA(TEXT(E$1,""),'Sum of Q-D'!$A$10),IFERROR(GETPIVOTDATA(TEXT(E$1,""),'Sum of Captured Q-D'!$A$10,"CIA Name",$A144)/GETPIVOTDATA(TEXT(E$1,""),'Sum of Q-D'!$A$10,"CIA Name",$A144),0))) -> 0.4467121563

Sheet Captured Q
B1: ='Sum of Captured Q'!B10 -> Sum of Q_tpy | C1: ='Sum of Captured Q'!C10 -> Sum of NOX_tpy | D1: ='Sum of Captured Q'!D10 -> Sum of SO2_tpy | E1: ='Sum of Captured Q'!E10 -> Sum of PM10_tpy
A3: Facility State | B3: Percent of Q Above Threshold
B4: NOX+SO2+PM10 | C4: NOX | D4: SO2 | E4: PM10
A7: AbvThresh_Q_All | B7: (All)
A8: Furthest Distance to CIA | B8: Within400km
A10: Row Labels
A11: AK | B11: =IF(A11="","",IF($A11="Grand Total",GETPIVOTDATA(TEXT(B$1,""),'Sum of Captured Q'!$A$10)/GETPIVOTDATA(TEXT(B$1,""),'Sum of Q'!$A$10),IFERROR(GETPIVOTDATA(TEXT(B$1,""),'Sum of Captured Q'!$A$10,"Facility State",$A11)/GETPIVOTDATA(TEXT(B$1,""),'Sum of Q'!$A$10,"Facility State",$A11),0))) -> 0.9866131665 | C11: =IF(B11="","",IF($A11="Grand Total",GETPIVOTDATA(TEXT(C$1,""),'Sum of Captured Q'!$A$10)/GETPIVOTDATA(TEXT(C$1,""),'Sum of Q'!$A$10),IFERROR(GETPIVOTDATA(TEXT(C$1,""),'Sum of Captured Q'!$A$10,"Facility State",$A11)/GETPIVOTDATA(TEXT(C$1,""),'Sum of Q'!$A$10,"Facility State",$A11),0))) -> 0.9884316787 | D11: =IF(C11="","",IF($A11="Grand Total",GETPIVOTDATA(TEXT(D$1,""),'Sum of Captured Q'!$A$10)/GETPIVOTDATA(TEXT(D$1,""),'Sum of Q'!$A$10),IFERROR(GETPIVOTDATA(TEXT(D$1,""),'Sum of Captured Q'!$A$10,"Facility State",$A11)/GETPIVOTDATA(TEXT(D$1,""),'Sum of Q'!$A$10,"Facility State",$A11),0))) -> 0.9932003573 | E11: =IF(D11="","",IF($A11="Grand Total",GETPIVOTDATA(TEXT(E$1,""),'Sum of Captured Q'!$A$10)/GETPIVOTDATA(TEXT(E$1,""),'Sum of Q'!$A$10),IFERROR(GETPIVOTDATA(TEXT(E$1,""),'Sum of Captured Q'!$A$10,"Facility State",$A11)/GETPIVOTDATA(TEXT(E$1,""),'Sum of Q'!$A$10,"Facility State",$A11),0))) -> 0.9267066406
A12: AZ | B12: =IF(A12="","",IF($A12="Grand Total",GETPIVOTDATA(TEXT(B$1,""),'Sum of Captured Q'!$A$10)/GETPIVOTDATA(TEXT(B$1,""),'Sum of Q'!$A$10),IFERROR(GETPIVOTDATA(TEXT(B$1,""),'Sum of Captured Q'!$A$10,"Facility State",$A12)/GETPIVOTDATA(TEXT(B$1,""),'Sum of Q'!$A$10,"Facility State",$A12),0))) -> 0.9939954553 | C12: =IF(B12="","",IF($A12="Grand Total",GETPIVOTDATA(TEXT(C$1,""),'Sum of Captured Q'!$A$10)/GETPIVOTDATA(TEXT(C$1,""),'Sum of Q'!$A$10),IFERROR(GETPIVOTDATA(TEXT(C$1,""),'Sum of Captured Q'!$A$10,"Facility State",$A12)/GETPIVOTDATA(TEXT(C$1,""),'Sum of Q'!$A$10,"Facility State",$A12),0))) -> 0.9917368877 | D12: =IF(C12="","",IF($A12="Grand Total",GETPIVOTDATA(TEXT(D$1,""),'Sum of Captured Q'!$A$10)/GETPIVOTDATA(TEXT(D$1,""),'Sum of Q'!$A$10),IFERROR(GETPIVOTDATA(TEXT(D$1,""),'Sum of Captured Q'!$A$10,"Facility State",$A12)/GETPIVOTDATA(TEXT(D$1,""),'Sum of Q'!$A$10,"Facility State",$A12),0))) -> 0.9992471208 | E12: =IF(D12="","",IF($A12="Grand Total",GETPIVOTDATA(TEXT(E$1,""),'Sum of Captured Q'!$A$10)/GETPIVOTDATA(TEXT(E$1,""),'Sum of Q'!$A$10),IFERROR(GETPIVOTDATA(TEXT(E$1,""),'Sum of Captured Q'!$A$10,"Facility State",$A12)/GETPIVOTDATA(TEXT(E$1,""),'Sum of Q'!$A$10,"Facility State",$A12),0))) -> 0.982091711
A13: CA | B13: =IF(A13="","",IF($A13="Grand Total",GETPIVOTDATA(TEXT(B$1,""),'Sum of Captured Q'!$A$10)/GETPIVOTDATA(TEXT(B$1,""),'Sum of Q'!$A$10),IFERROR(GETPIVOTDATA(TEXT(B$1,""),'Sum of Captured Q'!$A$10,"Facility State",$A13)/GETPIVOTDATA(TEXT(B$1,""),'Sum of Q'!$A$10,"Facility State",$A13),0))) -> 0.8809413681 | C13: =IF(B13="","",IF($A13="Grand Total",GETPIVOTDATA(TEXT(C$1,""),'Sum of Captured Q'!$A$10)/GETPIVOTDATA(TEXT(C$1,""),'Sum of Q'!$A$10),IFERROR(GETPIVOTDATA(TEXT(C$1,""),'Sum of Captured Q'!$A$10,"Facility State",$A13)/GETPIVOTDATA(TEXT(C$1,""),'Sum of Q'!$A$10,"Facility State",$A13),0))) -> 0.8943838844 | D13: =IF(C13="","",IF($A13="Grand Total",GETPIVOTDATA(TEXT(D$1,""),'Sum of Captured Q'!$A$10)/GETPIVOTDATA(TEXT(D$1,""),'Sum of Q'!$A$10),IFERROR(GETPIVOTDATA(TEXT(D$1,""),'Sum of Captured Q'!$A$10,"Facility State",$A13)/GETPIVOTDATA(TEXT(D$1,""),'Sum of Q'!$A$10,"Facility State",$A13),0))) -> 0.9320066404 | E13: =IF(D13="","",IF($A13="Grand Total",GETPIVOTDATA(TEXT(E$1,""),'Sum of Captured Q'!$A$10)/GETPIVOTDATA(TEXT(E$1,""),'Sum of Q'!$A$10),IFERROR(GETPIVOTDATA(TEXT(E$1,""),'Sum of Captured Q'!$A$10,"Facility State",$A13)/GETPIVOTDATA(TEXT(E$1,""),'Sum of Q'!$A$10,"Facility State",$A13),0))) -> 0.8381681951
A14: CO | B14: =IF(A14="","",IF($A14="Grand Total",GETPIVOTDATA(TEXT(B$1,""),'Sum of Captured Q'!$A$10)/GETPIVOTDATA(TEXT(B$1,""),'Sum of Q'!$A$10),IFERROR(GETPIVOTDATA(TEXT(B$1,""),'Sum of Captured Q'!$A$10,"Facility State",$A14)/GETPIVOTDATA(TEXT(B$1,""),'Sum of Q'!$A$10,"Facility State",$A14),0))) -> 0.8985058681 | C14: =IF(B14="","",IF($A14="Grand Total",GETPIVOTDATA(TEXT(C$1,""),'Sum of Captured Q'!$A$10)/GETPIVOTDATA(TEXT(C$1,""),'Sum of Q'!$A$10),IFERROR(GETPIVOTDATA(TEXT(C$1,""),'Sum of Captured Q'!$A$10,"Facility State",$A14)/GETPIVOTDATA(TEXT(C$1,""),'Sum of Q'!$A$10,"Facility State",$A14),0))) -> 0.8921898842 | D14: =IF(C14="","",IF($A14="Grand Total",GETPIVOTDATA(TEXT(D$1,""),'Sum of Captured Q'!$A$10)/GETPIVOTDATA(TEXT(D$1,""),'Sum of Q'!$A$10),IFERROR(GETPIVOTDATA(TEXT(D$1,""),'Sum of Captured Q'!$A$10,"Facility State",$A14)/GETPIVOTDATA(TEXT(D$1,""),'Sum of Q'!$A$10,"Facility State",$A14),0))) -> 0.9910115401 | E14: =IF(D14="","",IF($A14="Grand Total",GETPIVOTDATA(TEXT(E$1,""),'Sum of Captured Q'!$A$10)/GETPIVOTDATA(TEXT(E$1,""),'Sum of Q'!$A$10),IFERROR(GETPIVOTDATA(TEXT(E$1,""),'Sum of Captured Q'!$A$10,"Facility State",$A14)/GETPIVOTDATA(TEXT(E$1,""),'Sum of Q'!$A$10,"Facility State",$A14),0))) -> 0.7272992518
A15: HI | B15: =IF(A15="","",IF($A15="Grand Total",GETPIVOTDATA(TEXT(B$1,""),'Sum of Captured Q'!$A$10)/GETPIVOTDATA(TEXT(B$1,""),'Sum of Q'!$A$10),IFERROR(GETPIVOTDATA(TEXT(B$1,""),'Sum of Captured Q'!$A$10,"Facility State",$A15)/GETPIVOTDATA(TEXT(B$1,""),'Sum of Q'!$A$10,"Facility State",$A15),0))) -> 0.9974488119 | C15: =IF(B15="","",IF($A15="Grand Total",GETPIVOTDATA(TEXT(C$1,""),'Sum of Captured Q'!$A$10)/GETPIVOTDATA(TEXT(C$1,""),'Sum of Q'!$A$10),IFERROR(GETPIVOTDATA(TEXT(C$1,""),'Sum of Captured Q'!$A$10,"Facility State",$A15)/GETPIVOTDATA(TEXT(C$1,""),'Sum of Q'!$A$10,"Facility State",$A15),0))) -> 0.9965512257 | D15: =IF(C15="","",IF($A15="Grand Total",GETPIVOTDATA(TEXT(D$1,""),'Sum of Captured Q'!$A$10)/GETPIVOTDATA(TEXT(D$1,""),'Sum of Q'!$A$10),IFERROR(GETPIVOTDATA(TEXT(D$1,""),'Sum of Captured Q'!$A$10,"Facility State",$A15)/GETPIVOTDATA(TEXT(D$1,""),'Sum of Q'!$A$10,"Facility State",$A15),0))) -> 0.9991962711 | E15: =IF(D15="","",IF($A15="Grand Total",GETPIVOTDATA(TEXT(E$1,""),'Sum of Captured Q'!$A$10)/GETPIVOTDATA(TEXT(E$1,""),'Sum of Q'!$A$10),IFERROR(GETPIVOTDATA(TEXT(E$1,""),'Sum of Captured Q'!$A$10,"Facility State",$A15)/GETPIVOTDATA(TEXT(E$1,""),'Sum of Q'!$A$10,"Facility State",$A15),0))) -> 0.9933180167
A16: ID | B16: =IF(A16="","",IF($A16="Grand Total",GETPIVOTDATA(TEXT(B$1,""),'Sum of Captured Q'!$A$10)/GETPIVOTDATA(TEXT(B$1,""),'Sum of Q'!$A$10),IFERROR(GETPIVOTDATA(TEXT(B$1,""),'Sum of Captured Q'!$A$10,"Facility State",$A16)/GETPIVOTDATA(TEXT(B$1,""),'Sum of Q'!$A$10,"Facility State",$A16),0))) -> 0.9786056761 | C16: =IF(B16="","",IF($A16="Grand Total",GETPIVOTDATA(TEXT(C$1,""),'Sum of Captured Q'!$A$10)/GETPIVOTDATA(TEXT(C$1,""),'Sum of Q'!$A$10),IFERROR(GETPIVOTDATA(TEXT(C$1,""),'Sum of Captured Q'!$A$10,"Facility State",$A16)/GETPIVOTDATA(TEXT(C$1,""),'Sum of Q'!$A$10,"Facility State",$A16),0))) -> 0.9730982529 | D16: =IF(C16="","",IF($A16="Grand Total",GETPIVOTDATA(TEXT(D$1,""),'Sum of Captured Q'!$A$10)/GETPIVOTDATA(TEXT(D$1,""),'Sum of Q'!$A$10),IFERROR(GETPIVOTDATA(TEXT(D$1,""),'Sum of Captured Q'!$A$10,"Facility State",$A16)/GETPIVOTDATA(TEXT(D$1,""),'Sum of Q'!$A$10,"Facility State",$A16),0))) -> 0.9941552848 | E16: =IF(D16="","",IF($A16="Grand Total",GETPIVOTDATA(TEXT(E$1,""),'Sum of Captured Q'!$A$10)/GETPIVOTDATA(TEXT(E$1,""),'Sum of Q'!$A$10),IFERROR(GETPIVOTDATA(TEXT(E$1,""),'Sum of Captured Q'!$A$10,"Facility State",$A16)/GETPIVOTDATA(TEXT(E$1,""),'Sum of Q'!$A$10,"Facility State",$A16),0))) -> 0.9692897203
A17: KS | B17: =IF(A17="","",IF($A17="Grand Total",GETPIVOTDATA(TEXT(B$1,""),'Sum of Captured Q'!$A$10)/GETPIVOTDATA(TEXT(B$1,""),'Sum of Q'!$A$10),IFERROR(GETPIVOTDATA(TEXT(B$1,""),'Sum of Captured Q'!$A$10,"Facility State",$A17)/GETPIVOTDATA(TEXT(B$1,""),'Sum of Q'!$A$10,"Facility State",$A17),0))) -> 0.9714109269 | C17: =IF(B17="","",IF($A17="Grand Total",GETPIVOTDATA(TEXT(C$1,""),'Sum of Captured Q'!$A$10)/GETPIVOTDATA(TEXT(C$1,""),'Sum of Q'!$A$10),IFERROR(GETPIVOTDATA(TEXT(C$1,""),'Sum of Captured Q'!$A$10,"Facility State",$A17)/GETPIVOTDATA(TEXT(C$1,""),'Sum of Q'!$A$10,"Facility State",$A17),0))) -> 0.9648114121 | D17: =IF(C17="","",IF($A17="Grand Total",GETPIVOTDATA(TEXT(D$1,""),'Sum of Captured Q'!$A$10)/GETPIVOTDATA(TEXT(D$1,""),'Sum of Q'!$A$10),IFERROR(GETPIVOTDATA(TEXT(D$1,""),'Sum of Captured Q'!$A$10,"Facility State",$A17)/GETPIVOTDATA(TEXT(D$1,""),'Sum of Q'!$A$10,"Facility State",$A17),0))) -> 0.9991997714 | E17: =IF(D17="","",IF($A17="Grand Total",GETPIVOTDATA(TEXT(E$1,""),'Sum of Captured Q'!$A$10)/GETPIVOTDATA(TEXT(E$1,""),'Sum of Q'!$A$10),IFERROR(GETPIVOTDATA(TEXT(E$1,""),'Sum of Captured Q'!$A$10,"Facility State",$A17)/GETPIVOTDATA(TEXT(E$1,""),'Sum of Q'!$A$10,"Facility State",$A17),0))) -> 0.9385369957
A18: MN | B18: =IF(A18="","",IF($A18="Grand Total",GETPIVOTDATA(TEXT(B$1,""),'Sum of Captured Q'!$A$10)/GETPIVOTDATA(TEXT(B$1,""),'Sum of Q'!$A$10),IFERROR(GETPIVOTDATA(TEXT(B$1,""),'Sum of Captured Q'!$A$10,"Facility State",$A18)/GETPIVOTDATA(TEXT(B$1,""),'Sum of Q'!$A$10,"Facility State",$A18),0))) -> 0.5869126014 | C18: =IF(B18="","",IF($A18="Grand Total",GETPIVOTDATA(TEXT(C$1,""),'Sum of Captured Q'!$A$10)/GETPIVOTDATA(TEXT(C$1,""),'Sum of Q'!$A$10),IFERROR(GETPIVOTDATA(TEXT(C$1,""),'Sum of Captured Q'!$A$10,"Facility State",$A18)/GETPIVOTDATA(TEXT(C$1,""),'Sum of Q'!$A$10,"Facility State",$A18),0))) -> 0.5870569033 | D18: =IF(C18="","",IF($A18="Grand Total",GETPIVOTDATA(TEXT(D$1,""),'Sum of Captured Q'!$A$10)/GETPIVOTDATA(TEXT(D$1,""),'Sum of Q'!$A$10),IFERROR(GETPIVOTDATA(TEXT(D$1,""),'Sum of Captured Q'!$A$10,"Facility State",$A18)/GETPIVOTDATA(TEXT(D$1,""),'Sum of Q'!$A$10,"Facility State",$A18),0))) -> 0.2976034752 | E18: =IF(D18="","",IF($A18="Grand Total",GETPIVOTDATA(TEXT(E$1,""),'Sum of Captured Q'!$A$10)/GETPIVOTDATA(TEXT(E$1,""),'Sum of Q'!$A$10),IFERROR(GETPIVOTDATA(TEXT(E$1,""),'Sum of Captured Q'!$A$10,"Facility State",$A18)/GETPIVOTDATA(TEXT(E$1,""),'Sum of Q'!$A$10,"Facility State",$A18),0))) -> 0.5931946493
A19: MT | B19: =IF(A19="","",IF($A19="Grand Total",GETPIVOTDATA(TEXT(B$1,""),'Sum of Captured Q'!$A$10)/GETPIVOTDATA(TEXT(B$1,""),'Sum of Q'!$A$10),IFERROR(GETPIVOTDATA(TEXT(B$1,""),'Sum of Captured Q'!$A$10,"Facility State",$A19)/GETPIVOTDATA(TEXT(B$1,""),'Sum of Q'!$A$10,"Facility State",$A19),0))) -> 0.9820882717 | C19: =IF(B19="","",IF($A19="Grand Total",GETPIVOTDATA(TEXT(C$1,""),'Sum of Captured Q'!$A$10)/GETPIVOTDATA(TEXT(C$1,""),'Sum of Q'!$A$10),IFERROR(GETPIVOTDATA(TEXT(C$1,""),'Sum of Captured Q'!$A$10,"Facility State",$A19)/GETPIVOTDATA(TEXT(C$1,""),'Sum of Q'!$A$10,"Facility State",$A19),0))) -> 0.9769410152 | D19: =IF(C19="","",IF($A19="Grand Total",GETPIVOTDATA(TEXT(D$1,""),'Sum of Captured Q'!$A$10)/GETPIVOTDATA(TEXT(D$1,""),'Sum of Q'!$A$10),IFERROR(GETPIVOTDATA(TEXT(D$1,""),'Sum of Captured Q'!$A$10,"Facility State",$A19)/GETPIVOTDATA(TEXT(D$1,""),'Sum of Q'!$A$10,"Facility State",$A19),0))) -> 0.99783011 | E19: =IF(D19="","",IF($A19="Grand Total",GETPIVOTDATA(TEXT(E$1,""),'Sum of Captured Q'!$A$10)/GETPIVOTDATA(TEXT(E$1,""),'Sum of Q'!$A$10),IFERROR(GETPIVOTDATA(TEXT(E$1,""),'Sum of Captured Q'!$A$10,"Facility State",$A19)/GETPIVOTDATA(TEXT(E$1,""),'Sum of Q'!$A$10,"Facility State",$A19),0))) -> 0.9694588956
A20: ND | B20: =IF(A20="","",IF($A20="Grand Total",GETPIVOTDATA(TEXT(B$1,""),'Sum of Captured Q'!$A$10)/GETPIVOTDATA(TEXT(B$1,""),'Sum of Q'!$A$10),IFERROR(GETPIVOTDATA(TEXT(B$1,""),'Sum of Captured Q'!$A$10,"Facility State",$A20)/GETPIVOTDATA(TEXT(B$1,""),'Sum of Q'!$A$10,"Facility State",$A20),0))) -> 0.9989656997 | C20: =IF(B20="","",IF($A20="Grand Total",GETPIVOTDATA(TEXT(C$1,""),'Sum of Captured Q'!$A$10)/GETPIVOTDATA(TEXT(C$1,""),'Sum of Q'!$A$10),IFERROR(GETPIVOTDATA(TEXT(C$1,""),'Sum of Captured Q'!$A$10,"Facility State",$A20)/GETPIVOTDATA(TEXT(C$1,""),'Sum of Q'!$A$10,"Facility State",$A20),0))) -> 0.9984640656 | D20: =IF(C20="","",IF($A20="Grand Total",GETPIVOTDATA(TEXT(D$1,""),'Sum of Captured Q'!$A$10)/GETPIVOTDATA(TEXT(D$1,""),'Sum of Q'!$A$10),IFERROR(GETPIVOTDATA(TEXT(D$1,""),'Sum of Captured Q'!$A$10,"Facility State",$A20)/GETPIVOTDATA(TEXT(D$1,""),'Sum of Q'!$A$10,"Facility State",$A20),0))) -> 0.999858326 | E20: =IF(D20="","",IF($A20="Grand Total",GETPIVOTDATA(TEXT(E$1,""),'Sum of Captured Q'!$A$10)/GETPIVOTDATA(TEXT(E$1,""),'Sum of Q'!$A$10),IFERROR(GETPIVOTDATA(TEXT(E$1,""),'Sum of Captured Q'!$A$10,"Facility State",$A20)/GETPIVOTDATA(TEXT(E$1,""),'Sum of Q'!$A$10,"Facility State",$A20),0))) -> 0.9954908298
A21: NE | B21: =IF(A21="","",IF($A21="Grand Total",GETPIVOTDATA(TEXT(B$1,""),'Sum of Captured Q'!$A$10)/GETPIVOTDATA(TEXT(B$1,""),'Sum of Q'!$A$10),IFERROR(GETPIVOTDATA(TEXT(B$1,""),'Sum of Captured Q'!$A$10,"Facility State",$A21)/GETPIVOTDATA(TEXT(B$1,""),'Sum of Q'!$A$10,"Facility State",$A21),0))) -> 0.9909835758 | C21: =IF(B21="","",IF($A21="Grand Total",GETPIVOTDATA(TEXT(C$1,""),'Sum of Captured Q'!$A$10)/GETPIVOTDATA(TEXT(C$1,""),'Sum of Q'!$A$10),IFERROR(GETPIVOTDATA(TEXT(C$1,""),'Sum of Captured Q'!$A$10,"Facility State",$A21)/GETPIVOTDATA(TEXT(C$1,""),'Sum of Q'!$A$10,"Facility State",$A21),0))) -> 0.9862115537 | D21: =IF(C21="","",IF($A21="Grand Total",GETPIVOTDATA(TEXT(D$1,""),'Sum of Captured Q'!$A$10)/GETPIVOTDATA(TEXT(D$1,""),'Sum of Q'!$A$10),IFERROR(GETPIVOTDATA(TEXT(D$1,""),'Sum of Captured Q'!$A$10,"Facility State",$A21)/GETPIVOTDATA(TEXT(D$1,""),'Sum of Q'!$A$10,"Facility State",$A21),0))) -> 0.9996509025 | E21: =IF(D21="","",IF($A21="Grand Total",GETPIVOTDATA(TEXT(E$1,""),'Sum of Captured Q'!$A$10)/GETPIVOTDATA(TEXT(E$1,""),'Sum of Q'!$A$10),IFERROR(GETPIVOTDATA(TEXT(E$1,""),'Sum of Captured Q'!$A$10,"Facility State",$A21)/GETPIVOTDATA(TEXT(E$1,""),'Sum of Q'!$A$10,"Facility State",$A21),0))) -> 0.7925413275
A22: NM | B22: =IF(A22="","",IF($A22="Grand Total",GETPIVOTDATA(TEXT(B$1,""),'Sum of Captured Q'!$A$10)/GETPIVOTDATA(TEXT(B$1,""),'Sum of Q'!$A$10),IFERROR(GETPIVOTDATA(TEXT(B$1,""),'Sum of Captured Q'!$A$10,"Facility State",$A22)/GETPIVOTDATA(TEXT(B$1,""),'Sum of Q'!$A$10,"Facility State",$A22),0))) -> 0.9886989446 | C22: =IF(B22="","",IF($A22="Grand Total",GETPIVOTDATA(TEXT(C$1,""),'Sum of Captured Q'!$A$10)/GETPIVOTDATA(TEXT(C$1,""),'Sum of Q'!$A$10),IFERROR(GETPIVOTDATA(TEXT(C$1,""),'Sum of Captured Q'!$A$10,"Facility State",$A22)/GETPIVOTDATA(TEXT(C$1,""),'Sum of Q'!$A$10,"Facility State",$A22),0))) -> 0.9892954537 | D22: =IF(C22="","",IF($A22="Grand Total",GETPIVOTDATA(TEXT(D$1,""),'Sum of Captured Q'!$A$10)/GETPIVOTDATA(TEXT(D$1,""),'Sum of Q'!$A$10),IFERROR(GETPIVOTDATA(TEXT(D$1,""),'Sum of Captured Q'!$A$10,"Facility State",$A22)/GETPIVOTDATA(TEXT(D$1,""),'Sum of Q'!$A$10,"Facility State",$A22),0))) -> 0.997668794 | E22: =IF(D22="","",IF($A22="Grand Total",GETPIVOTDATA(TEXT(E$1,""),'Sum of Captured Q'!$A$10)/GETPIVOTDATA(TEXT(E$1,""),'Sum of Q'!$A$10),IFERROR(GETPIVOTDATA(TEXT(E$1,""),'Sum of Captured Q'!$A$10,"Facility State",$A22)/GETPIVOTDATA(TEXT(E$1,""),'Sum of Q'!$A$10,"Facility State",$A22),0))) -> 0.9443157389
A23: NV | B23: =IF(A23="","",IF($A23="Grand Total",GETPIVOTDATA(TEXT(B$1,""),'Sum of Captured Q'!$A$10)/GETPIVOTDATA(TEXT(B$1,""),'Sum of Q'!$A$10),IFERROR(GETPIVOTDATA(TEXT(B$1,""),'Sum of Captured Q'!$A$10,"Facility State",$A23)/GETPIVOTDATA(TEXT(B$1,""),'Sum of Q'!$A$10,"Facility State",$A23),0))) -> 0.9631861798 | C23: =IF(B23="","",IF($A23="Grand Total",GETPIVOTDATA(TEXT(C$1,""),'Sum of Captured Q'!$A$10)/GETPIVOTDATA(TEXT(C$1,""),'Sum of Q'!$A$10),IFERROR(GETPIVOTDATA(TEXT(C$1,""),'Sum of Captured Q'!$A$10,"Facility State",$A23)/GETPIVOTDATA(TEXT(C$1,""),'Sum of Q'!$A$10,"Facility State",$A23),0))) -> 0.9645259883 | D23: =IF(C23="","",IF($A23="Grand Total",GETPIVOTDATA(TEXT(D$1,""),'Sum of Captured Q'!$A$10)/GETPIVOTDATA(TEXT(D$1,""),'Sum of Q'!$A$10),IFERROR(GETPIVOTDATA(TEXT(D$1,""),'Sum of Captured Q'!$A$10,"Facility State",$A23)/GETPIVOTDATA(TEXT(D$1,""),'Sum of Q'!$A$10,"Facility State",$A23),0))) -> 0.9947550525 | E23: =IF(D23="","",IF($A23="Grand Total",GETPIVOTDATA(TEXT(E$1,""),'Sum of Captured Q'!$A$10)/GETPIVOTDATA(TEXT(E$1,""),'Sum of Q'!$A$10),IFERROR(GETPIVOTDATA(TEXT(E$1,""),'Sum of Captured Q'!$A$10,"Facility State",$A23)/GETPIVOTDATA(TEXT(E$1,""),'Sum of Q'!$A$10,"Facility State",$A23),0))) -> 0.8801631804
A24: OK | B24: =IF(A24="","",IF($A24="Grand Total",GETPIVOTDATA(TEXT(B$1,""),'Sum of Captured Q'!$A$10)/GETPIVOTDATA(TEXT(B$1,""),'Sum of Q'!$A$10),IFERROR(GETPIVOTDATA(TEXT(B$1,""),'Sum of Captured Q'!$A$10,"Facility State",$A24)/GETPIVOTDATA(TEXT(B$1,""),'Sum of Q'!$A$10,"Facility State",$A24),0))) -> 0.9326506109 | C24: =IF(B24="","",IF($A24="Grand Total",GETPIVOTDATA(TEXT(C$1,""),'Sum of Captured Q'!$A$10)/GETPIVOTDATA(TEXT(C$1,""),'Sum of Q'!$A$10),IFERROR(GETPIVOTDATA(TEXT(C$1,""),'Sum of Captured Q'!$A$10,"Facility State",$A24)/GETPIVOTDATA(TEXT(C$1,""),'Sum of Q'!$A$10,"Facility State",$A24),0))) -> 0.935158188 | D24: =IF(C24="","",IF($A24="Grand Total",GETPIVOTDATA(TEXT(D$1,""),'Sum of Captured Q'!$A$10)/GETPIVOTDATA(TEXT(D$1,""),'Sum of Q'!$A$10),IFERROR(GETPIVOTDATA(TEXT(D$1,""),'Sum of Captured Q'!$A$10,"Facility State",$A24)/GETPIVOTDATA(TEXT(D$1,""),'Sum of Q'!$A$10,"Facility State",$A24),0))) -> 0.3694124449 | E24: =IF(D24="","",IF($A24="Grand Total",GETPIVOTDATA(TEXT(E$1,""),'Sum of Captured Q'!$A$10)/GETPIVOTDATA(TEXT(E$1,""),'Sum of Q'!$A$10),IFERROR(GETPIVOTDATA(TEXT(E$1,""),'Sum of Captured Q'!$A$10,"Facility State",$A24)/GETPIVOTDATA(TEXT(E$1,""),'Sum of Q'!$A$10,"Facility State",$A24),0))) -> 0.8772415543
A25: OR | B25: =IF(A25="","",IF($A25="Grand Total",GETPIVOTDATA(TEXT(B$1,""),'Sum of Captured Q'!$A$10)/GETPIVOTDATA(TEXT(B$1,""),'Sum of Q'!$A$10),IFERROR(GETPIVOTDATA(TEXT(B$1,""),'Sum of Captured Q'!$A$10,"Facility State",$A25)/GETPIVOTDATA(TEXT(B$1,""),'Sum of Q'!$A$10,"Facility State",$A25),0))) -> 0.9813737241 | C25: =IF(B25="","",IF($A25="Grand Total",GETPIVOTDATA(TEXT(C$1,""),'Sum of Captured Q'!$A$10)/GETPIVOTDATA(TEXT(C$1,""),'Sum of Q'!$A$10),IFERROR(GETPIVOTDATA(TEXT(C$1,""),'Sum of Captured Q'!$A$10,"Facility State",$A25)/GETPIVOTDATA(TEXT(C$1,""),'Sum of Q'!$A$10,"Facility State",$A25),0))) -> 0.9793585364 | D25: =IF(C25="","",IF($A25="Grand Total",GETPIVOTDATA(TEXT(D$1,""),'Sum of Captured Q'!$A$10)/GETPIVOTDATA(TEXT(D$1,""),'Sum of Q'!$A$10),IFERROR(GETPIVOTDATA(TEXT(D$1,""),'Sum of Captured Q'!$A$10,"Facility State",$A25)/GETPIVOTDATA(TEXT(D$1,""),'Sum of Q'!$A$10,"Facility State",$A25),0))) -> 0.9964660366 | E25: =IF(D25="","",IF($A25="Grand Total",GETPIVOTDATA(TEXT(E$1,""),'Sum of Captured Q'!$A$10)/GETPIVOTDATA(TEXT(E$1,""),'Sum of Q'!$A$10),IFERROR(GETPIVOTDATA(TEXT(E$1,""),'Sum of Captured Q'!$A$10,"Facility State",$A25)/GETPIVOTDATA(TEXT(E$1,""),'Sum of Q'!$A$10,"Facility State",$A25),0))) -> 0.9648913498
A26: SD | B26: =IF(A26="","",IF($A26="Grand Total",GETPIVOTDATA(TEXT(B$1,""),'Sum of Captured Q'!$A$10)/GETPIVOTDATA(TEXT(B$1,""),'Sum of Q'!$A$10),IFERROR(GETPIVOTDATA(TEXT(B$1,""),'Sum of Captured Q'!$A$10,"Facility State",$A26)/GETPIVOTDATA(TEXT(B$1,""),'Sum of Q'!$A$10,"Facility State",$A26),0))) -> 0.9798594957 | C26: =IF(B26="","",IF($A26="Grand Total",GETPIVOTDATA(TEXT(C$1,""),'Sum of Captured Q'!$A$10)/GETPIVOTDATA(TEXT(C$1,""),'Sum of Q'!$A$10),IFERROR(GETPIVOTDATA(TEXT(C$1,""),'Sum of Captured Q'!$A$10,"Facility State",$A26)/GETPIVOTDATA(TEXT(C$1,""),'Sum of Q'!$A$10,"Facility State",$A26),0))) -> 0.9825938001 | D26: =IF(C26="","",IF($A26="Grand Total",GETPIVOTDATA(TEXT(D$1,""),'Sum of Captured Q'!$A$10)/GETPIVOTDATA(TEXT(D$1,""),'Sum of Q'!$A$10),IFERROR(GETPIVOTDATA(TEXT(D$1,""),'Sum of Captured Q'!$A$10,"Facility State",$A26)/GETPIVOTDATA(TEXT(D$1,""),'Sum of Q'!$A$10,"Facility State",$A26),0))) -> 0.9921918707 | E26: =IF(D26="","",IF($A26="Grand Total",GETPIVOTDATA(TEXT(E$1,""),'Sum of Captured Q'!$A$10)/GETPIVOTDATA(TEXT(E$1,""),'Sum of Q'!$A$10),IFERROR(GETPIVOTDATA(TEXT(E$1,""),'Sum of Captured Q'!$A$10,"Facility State",$A26)/GETPIVOTDATA(TEXT(E$1,""),'Sum of Q'!$A$10,"Facility State",$A26),0))) -> 0.9548481463
A27: TR | B27: =IF(A27="","",IF($A27="Grand Total",GETPIVOTDATA(TEXT(B$1,""),'Sum of Captured Q'!$A$10)/GETPIVOTDATA(TEXT(B$1,""),'Sum of Q'!$A$10),IFERROR(GETPIVOTDATA(TEXT(B$1,""),'Sum of Captured Q'!$A$10,"Facility State",$A27)/GETPIVOTDATA(TEXT(B$1,""),'Sum of Q'!$A$10,"Facility State",$A27),0))) -> 0.9969359916 | C27: =IF(B27="","",IF($A27="Grand Total",GETPIVOTDATA(TEXT(C$1,""),'Sum of Captured Q'!$A$10)/GETPIVOTDATA(TEXT(C$1,""),'Sum of Q'!$A$10),IFERROR(GETPIVOTDATA(TEXT(C$1,""),'Sum of Captured Q'!$A$10,"Facility State",$A27)/GETPIVOTDATA(TEXT(C$1,""),'Sum of Q'!$A$10,"Facility State",$A27),0))) -> 0.9974240171 | D27: =IF(C27="","",IF($A27="Grand Total",GETPIVOTDATA(TEXT(D$1,""),'Sum of Captured Q'!$A$10)/GETPIVOTDATA(TEXT(D$1,""),'Sum of Q'!$A$10),IFERROR(GETPIVOTDATA(TEXT(D$1,""),'Sum of Captured Q'!$A$10,"Facility State",$A27)/GETPIVOTDATA(TEXT(D$1,""),'Sum of Q'!$A$10,"Facility State",$A27),0))) -> 0.9996996584 | E27: =IF(D27="","",IF($A27="Grand Total",GETPIVOTDATA(TEXT(E$1,""),'Sum of Captured Q'!$A$10)/GETPIVOTDATA(TEXT(E$1,""),'Sum of Q'!$A$10),IFERROR(GETPIVOTDATA(TEXT(E$1,""),'Sum of Captured Q'!$A$10,"Facility State",$A27)/GETPIVOTDATA(TEXT(E$1,""),'Sum of Q'!$A$10,"Facility State",$A27),0))) -> 0.9903394988
A28: TX | B28: =IF(A28="","",IF($A28="Grand Total",GETPIVOTDATA(TEXT(B$1,""),'Sum of Captured Q'!$A$10)/GETPIVOTDATA(TEXT(B$1,""),'Sum of Q'!$A$10),IFERROR(GETPIVOTDATA(TEXT(B$1,""),'Sum of Captured Q'!$A$10,"Facility State",$A28)/GETPIVOTDATA(TEXT(B$1,""),'Sum of Q'!$A$10,"Facility State",$A28),0))) -> 0.9966069965 | C28: =IF(B28="","",IF($A28="Grand Total",GETPIVOTDATA(TEXT(C$1,""),'Sum of Captured Q'!$A$10)/GETPIVOTDATA(TEXT(C$1,""),'Sum of Q'!$A$10),IFERROR(GETPIVOTDATA(TEXT(C$1,""),'Sum of Captured Q'!$A$10,"Facility State",$A28)/GETPIVOTDATA(TEXT(C$1,""),'Sum of Q'!$A$10,"Facility State",$A28),0))) -> 0.9950026744 | D28: =IF(C28="","",IF($A28="Grand Total",GETPIVOTDATA(TEXT(D$1,""),'Sum of Captured Q'!$A$10)/GETPIVOTDATA(TEXT(D$1,""),'Sum of Q'!$A$10),IFERROR(GETPIVOTDATA(TEXT(D$1,""),'Sum of Captured Q'!$A$10,"Facility State",$A28)/GETPIVOTDATA(TEXT(D$1,""),'Sum of Q'!$A$10,"Facility State",$A28),0))) -> 0.999817384 | E28: =IF(D28="","",IF($A28="Grand Total",GETPIVOTDATA(TEXT(E$1,""),'Sum of Captured Q'!$A$10)/GETPIVOTDATA(TEXT(E$1,""),'Sum of Q'!$A$10),IFERROR(GETPIVOTDATA(TEXT(E$1,""),'Sum of Captured Q'!$A$10,"Facility State",$A28)/GETPIVOTDATA(TEXT(E$1,""),'Sum of Q'!$A$10,"Facility State",$A28),0))) -> 0.9817298943
A29: UT | B29: =IF(A29="","",IF($A29="Grand Total",GETPIVOTDATA(TEXT(B$1,""),'Sum of Captured Q'!$A$10)/GETPIVOTDATA(TEXT(B$1,""),'Sum of Q'!$A$10),IFERROR(GETPIVOTDATA(TEXT(B$1,""),'Sum of Captured Q'!$A$10,"Facility State",$A29)/GETPIVOTDATA(TEXT(B$1,""),'Sum of Q'!$A$10,"Facility State",$A29),0))) -> 0.9971681082 | C29: =IF(B29="","",IF($A29="Grand Total",GETPIVOTDATA(TEXT(C$1,""),'Sum of Captured Q'!$A$10)/GETPIVOTDATA(TEXT(C$1,""),'Sum of Q'!$A$10),IFERROR(GETPIVOTDATA(TEXT(C$1,""),'Sum of Captured Q'!$A$10,"Facility State",$A29)/GETPIVOTDATA(TEXT(C$1,""),'Sum of Q'!$A$10,"Facility State",$A29),0))) -> 0.9969877057 | D29: =IF(C29="","",IF($A29="Grand Total",GETPIVOTDATA(TEXT(D$1,""),'Sum of Captured Q'!$A$10)/GETPIVOTDATA(TEXT(D$1,""),'Sum of Q'!$A$10),IFERROR(GETPIVOTDATA(TEXT(D$1,""),'Sum of Captured Q'!$A$10,"Facility State",$A29)/GETPIVOTDATA(TEXT(D$1,""),'Sum of Q'!$A$10,"Facility State",$A29),0))) -> 0.9996968281 | E29: =IF(D29="","",IF($A29="Grand Total",GETPIVOTDATA(TEXT(E$1,""),'Sum of Captured Q'!$A$10)/GETPIVOTDATA(TEXT(E$1,""),'Sum of Q'!$A$10),IFERROR(GETPIVOTDATA(TEXT(E$1,""),'Sum of Captured Q'!$A$10,"Facility State",$A29)/GETPIVOTDATA(TEXT(E$1,""),'Sum of Q'!$A$10,"Facility State",$A29),0))) -> 0.990964448
A30: WA | B30: =IF(A30="","",IF($A30="Grand Total",GETPIVOTDATA(TEXT(B$1,""),'Sum of Captured Q'!$A$10)/GETPIVOTDATA(TEXT(B$1,""),'Sum of Q'!$A$10),IFERROR(GETPIVOTDATA(TEXT(B$1,""),'Sum of Captured Q'!$A$10,"Facility State",$A30)/GETPIVOTDATA(TEXT(B$1,""),'Sum of Q'!$A$10,"Facility State",$A30),0))) -> 0.9876941499 | C30: =IF(B30="","",IF($A30="Grand Total",GETPIVOTDATA(TEXT(C$1,""),'Sum of Captured Q'!$A$10)/GETPIVOTDATA(TEXT(C$1,""),'Sum of Q'!$A$10),IFERROR(GETPIVOTDATA(TEXT(C$1,""),'Sum of Captured Q'!$A$10,"Facility State",$A30)/GETPIVOTDATA(TEXT(C$1,""),'Sum of Q'!$A$10,"Facility State",$A30),0))) -> 0.9890969971 | D30: =IF(C30="","",IF($A30="Grand Total",GETPIVOTDATA(TEXT(D$1,""),'Sum of Captured Q'!$A$10)/GETPIVOTDATA(TEXT(D$1,""),'Sum of Q'!$A$10),IFERROR(GETPIVOTDATA(TEXT(D$1,""),'Sum of Captured Q'!$A$10,"Facility State",$A30)/GETPIVOTDATA(TEXT(D$1,""),'Sum of Q'!$A$10,"Facility State",$A30),0))) -> 0.9972915905 | E30: =IF(D30="","",IF($A30="Grand Total",GETPIVOTDATA(TEXT(E$1,""),'Sum of Captured Q'!$A$10)/GETPIVOTDATA(TEXT(E$1,""),'Sum of Q'!$A$10),IFERROR(GETPIVOTDATA(TEXT(E$1,""),'Sum of Captured Q'!$A$10,"Facility State",$A30)/GETPIVOTDATA(TEXT(E$1,""),'Sum of Q'!$A$10,"Facility State",$A30),0))) -> 0.9493866442
A31: WY | B31: =IF(A31="","",IF($A31="Grand Total",GETPIVOTDATA(TEXT(B$1,""),'Sum of Captured Q'!$A$10)/GETPIVOTDATA(TEXT(B$1,""),'Sum of Q'!$A$10),IFERROR(GETPIVOTDATA(TEXT(B$1,""),'Sum of Captured Q'!$A$10,"Facility State",$A31)/GETPIVOTDATA(TEXT(B$1,""),'Sum of Q'!$A$10,"Facility State",$A31),0))) -> 0.9869097551 | C31: =IF(B31="","",IF($A31="Grand Total",GETPIVOTDATA(TEXT(C$1,""),'Sum of Captured Q'!$A$10)/GETPIVOTDATA(TEXT(C$1,""),'Sum of Q'!$A$10),IFERROR(GETPIVOTDATA(TEXT(C$1,""),'Sum of Captured Q'!$A$10,"Facility State",$A31)/GETPIVOTDATA(TEXT(C$1,""),'Sum of Q'!$A$10,"Facility State",$A31),0))) -> 0.9781424667 | D31: =IF(C31="","",IF($A31="Grand Total",GETPIVOTDATA(TEXT(D$1,""),'Sum of Captured Q'!$A$10)/GETPIVOTDATA(TEXT(D$1,""),'Sum of Q'!$A$10),IFERROR(GETPIVOTDATA(TEXT(D$1,""),'Sum of Captured Q'!$A$10,"Facility State",$A31)/GETPIVOTDATA(TEXT(D$1,""),'Sum of Q'!$A$10,"Facility State",$A31),0))) -> 0.9992783722 | E31: =IF(D31="","",IF($A31="Grand Total",GETPIVOTDATA(TEXT(E$1,""),'Sum of Captured Q'!$A$10)/GETPIVOTDATA(TEXT(E$1,""),'Sum of Q'!$A$10),IFERROR(GETPIVOTDATA(TEXT(E$1,""),'Sum of Captured Q'!$A$10,"Facility State",$A31)/GETPIVOTDATA(TEXT(E$1,""),'Sum of Q'!$A$10,"Facility State",$A31),0))) -> 0.9854640997
A32: Grand Total | B32: =IF(A32="","",IF($A32="Grand Total",GETPIVOTDATA(TEXT(B$1,""),'Sum of Captured Q'!$A$10)/GETPIVOTDATA(TEXT(B$1,""),'Sum of Q'!$A$10),IFERROR(GETPIVOTDATA(TEXT(B$1,""),'Sum of Captured Q'!$A$10,"Facility State",$A32)/GETPIVOTDATA(TEXT(B$1,""),'Sum of Q'!$A$10,"Facility State",$A32),0))) -> 0.9719968294 | C32: =IF(B32="","",IF($A32="Grand Total",GETPIVOTDATA(TEXT(C$1,""),'Sum of Captured Q'!$A$10)/GETPIVOTDATA(TEXT(C$1,""),'Sum of Q'!$A$10),IFERROR(GETPIVOTDATA(TEXT(C$1,""),'Sum of Captured Q'!$A$10,"Facility State",$A32)/GETPIVOTDATA(TEXT(C$1,""),'Sum of Q'!$A$10,"Facility State",$A32),0))) -> 0.9692824953 | D32: =IF(C32="","",IF($A32="Grand Total",GETPIVOTDATA(TEXT(D$1,""),'Sum of Captured Q'!$A$10)/GETPIVOTDATA(TEXT(D$1,""),'Sum of Q'!$A$10),IFERROR(GETPIVOTDATA(TEXT(D$1,""),'Sum of Captured Q'!$A$10,"Facility State",$A32)/GETPIVOTDATA(TEXT(D$1,""),'Sum of Q'!$A$10,"Facility State",$A32),0))) -> 0.9961067011 | E32: =IF(D32="","",IF($A32="Grand Total",GETPIVOTDATA(TEXT(E$1,""),'Sum of Captured Q'!$A$10)/GETPIVOTDATA(TEXT(E$1,""),'Sum of Q'!$A$10),IFERROR(GETPIVOTDATA(TEXT(E$1,""),'Sum of Captured Q'!$A$10,"Facility State",$A32)/GETPIVOTDATA(TEXT(E$1,""),'Sum of Q'!$A$10,"Facility State",$A32),0))) -> 0.9185665888

Sheet Raw Data
Q1: Threshold: | R1: ='Facility Emissions'!P1 -> 25 | S1: ='Facility Emissions'!Q1 -> 25 | T1: ='Facility Emissions'!R1 -> 25 | U1: ='Facility Emissions'!S1 -> 25 | V1: 10 | W1: 10 | X1: 10 | Y1: 10
A2: Facility ID | B2: SCC | C2: Facility Name | D2: Facility State | E2: CIA Name | F2: CIA State | G2: d_km | H2: Q_all_tpy | I2: Q_NOx_tpy | J2: Q_SO2_tpy | K2: Q_PM10_tpy | L2: Q/d | M2: Q/d_NOx | N2: Q/d_SO2 | O2: Q/d_PM10 | P2: NH3_tpy | Q2: VOC_tpy | R2: AbvThresh_Q_NOX | S2: AbvThresh_Q_SO2 | T2: AbvThresh_Q_PM10 | U2: AbvThresh_Q_All | V2: AbvThresh_Q/d | W2: AbvThresh_Q/d_NOX | X2: AbvThresh_Q/d_SO2 | Y2: AbvThresh_Q/d_PM10
A3: 660911 | B3: 30201206 | C3: King Cove Facility | D3: AK | E3: Simeonof Wilderness | F3: AK | G3: 190.3672603 | H3: 242.16 | I3: 236.8 | J3: 0.17 | K3: 5.19 | L3: 1.272067474 | M3: 1.243911372 | N3: 0.0008930106979 | O3: 0.02726309131 | P3: 1.6 | Q3: 6.55 | R3: Yes | S3: No | T3: No | U3: Yes | V3: No | W3: No | X3: No | Y3: No
A4: 974811 | B4: 30201203 | C4: Sand Point Facility | D4: AK | E4: Simeonof Wilderness | F4: AK | G4: 85.3921583 | H4: 160.87 | I4: 154.71 | J4: 0.1 | K4: 6.06 | L4: 1.883896639 | M4: 1.811758867 | N4: 0.001171067719 | O4: 0.07096670374 | P4: 2.17 | Q4: 8.52 | R4: Yes | S4: No | T4: No | U4: Yes | V4: No | W4: No | X4: No | Y4: No
A5: 10606211 | B5: 2275060012 | C5: Sand Point | D5: AK | E5: Simeonof Wilderness | F5: AK | G5: 85.77241663 | H5: 1.956494627 | I5: 1.495759559 | J5: 0.242901994 | K5: 0.217833074 | L5: 0.02281030084 | M5: 0.01743870137 | N5: 0.002831935995 | O5: 0.002539663479 | P5: 0 | Q5: 2.84700719 | R5: No | S5: No | T5: No | U5: No | V5: No | W5: No | X5: No | Y5: No
A6: 10608011 | B6: 2275070000 | C6: Cold Bay | D6: AK | E6: Simeonof Wilderness | F6: AK | G6: 218.0663843 | H6: 19.91952338 | I6: 16.59140828 | J6: 1.831591954 | K6: 1.496523143 | L6: 0.09134614418 | M6: 0.07608420865 | N6: 0.008399240259 | O6: 0.006862695266 | P6: 0 | Q6: 8.994856263 | R6: No | S6: No | T6: No | U6: No | V6: No | W6: No | X6: No | Y6: No
A7: 10605011 | B7: 2275060012 | C7: St Paul Island | D7: AK | E7: Bering Sea Wilderness | F7: AK | G7: 367.9670946 | H7: 1.129344719 | I7: 0.91236796 | J7: 0.132087733 | K7: 0.084889027 | L7: 0.003069145953 | M7: 0.002479482469 | N7: 0.0003589661547 | O7: 0.000230697332 | P7: 0 | Q7: 1.33956828 | R7: No | S7: No | T7: No | U7: No | V7: No | W7: No | X7: No | Y7: No
A8: 10606111 | B8: 20100102 | C8: St. Paul Power Plant | D8: AK | E8: Bering Sea Wilderness | F8: AK | G8: 370.365445 | H8: 90.5 | I8: 88.7 | J8: 0 | K8: 1.8 | L8: 0.2443532495 | M8: 0.2394931849 | N8: 0 | O8: 0.004860064631 | P8: 0 | Q8: 2.7 | R8: Yes | S8: No | T8: No | U8: Yes | V8: No | W8: No | X8: No | Y8: No
A9: 662011 | B9: 39090003 | C9: George Sullivan Plant Two | D9: AK | E9: Denali NP | F9: AK | G9: 157.2047198 | H9: 918.26 | I9: 898.81 | J9: 0.79 | K9: 18.66 | L9: 5.841173223 | M9: 5.717449202 | N9: 0.005025294411 | O9: 0.1186987262 | P9: 0 | Q9: 6.03 | R9: Yes | S9: No | T9: No | U9: Yes | V9: No | W9: No | X9: No | Y9: No
A10: 662011 | B10: 39090003 | C10: George Sullivan Plant Two | D10: AK | E10: Tuxedni Wilderness | F10: AK | G10: 195.7740231 | H10: 918.26 | I10: 898.81 | J10: 0.79 | K10: 18.66 | L10: 4.690407775 | M10: 4.591058537 | N10: 0.004035264677 | O10: 0.09531397325 | P10: 0 | Q10: 6.03 | R10: Yes | S10: No | T10: No | U10: Yes | V10: No | W10: No | X10: No | Y10: No
A11: 662011 | B11: 39090003 | C11: George Sullivan Plant Two | D11: AK | E11: Denali NP and Wilderness | F11: AK | G11: 207.0663718 | H11: 918.26 | I11: 898.81 | J11: 0.79 | K11: 18.66 | L11: 4.434616746 | M11: 4.340685511 | N11: 0.003815201827 | O11: 0.09011603302 | P11: 0 | Q11: 6.03 | R11: Yes | S11: No | T11: No | U11: Yes | V11: No | W11: No | X11: No | Y11: No
A12: 662111 | B12: 20300101 | C12: Du-Jber-Electric, Gas, Drinking Water And Sanitary Services | D12: AK | E12: Denali NP | F12: AK | G12: 154.5730823 | H12: 68.38 | I12: 62.73 | J12: 3.33 | K12: 2.32 | L12: 0.4423797403 | M12: 0.4058274511 | N12: 0.02154320759 | O12: 0.01500908157 | P12: 0 | Q12: 87.28 | R12: Yes | S12: No | T12: No | U12: Yes | V12: No | W12: No | X12: No | Y12: No
A13: 662111 | B13: 20300101 | C13: Du-Jber-Electric, Gas, Drinking Water And Sanitary Services | D13: AK | E13: Denali NP and Wilderness | F13: AK | G13: 203.8734254 | H13: 68.38 | I13: 62.73 | J13: 3.33 | K13: 2.32 | L13: 0.3354041846 | M13: 0.3076909111 | N13: 0.01633366386 | O13: 0.01137960966 | P13: 0 | Q13: 87.28 | R13: Yes | S13: No | T13: No | U13: Yes | V13: No | W13: No | X13: No | Y13: No
A14: 662111 | B14: 20300101 | C14: Du-Jber-Electric, Gas, Drinking Water And Sanitary Services | D14: AK | E14: Tuxedni Wilderness | F14: AK | G14: 203.9519752 | H14: 68.38 | I14: 62.73 | J14: 3.33 | K14: 2.32 | L14: 0.3352750074 | M14: 0.3075724073 | N14: 0.01632737313 | O14: 0.01137522692 | P14: 0 | Q14: 87.28 | R14: Yes | S14: No | T14: No | U14: Yes | V14: No | W14: No | X14: No | Y14: No
A15: 662211 | B15: 28888801 | C15: Hank Nikkels Plant One | D15: AK | E15: Denali NP | F15: AK | G15: 154.6073417 | H15: 32.89 | I15: 31.16 | J15: 0.11 | K15: 1.62 | L15: 0.2127324591 | M15: 0.2015428223 | N15: 0.0007114797964 | O15: 0.010478157 | P15: 0 | Q15: 0.66 | R15: Yes | S15: No | T15: No | U15: Yes | V15: No | W15: No | X15: No | Y15: No
A16: 662211 | B16: 28888801 | C16: Hank Nikkels Plant One | D16: AK | E16: Tuxedni Wilderness | F16: AK | G16: 189.3026264 | H16: 32.89 | I16: 31.16 | J16: 0.11 | K16: 1.62 | L16: 0.1737429672 | M16: 0.164604161 | N16: 0.0005810801577 | O16: 0.008557725959 | P16: 0 | Q16: 0.66 | R16: Yes | S16: No | T16: No | U16: Yes | V16: No | W16: No | X16: No | Y16: No
A17: 662211 | B17: 28888801 | C17: Hank Nikkels Plant One | D17: AK | E17: Denali NP and Wilderness | F17: AK | G17: 204.6161127 | H17: 32.89 | I17: 31.16 | J17: 0.11 | K17: 1.62 | L17: 0.1607400295 | M17: 0.1522851724 | N17: 0.0005375920721 | O17: 0.007917265061 | P17: 0 | Q17: 0.66 | R17: Yes | S17: No | T17: No | U17: Yes | V17: No | W17: No | X17: No | Y17: No
A18: 1091611 | B18: 40288822 | C18: Elmendorf Afb - Flight Line (Sic 45) | D18: AK | E18: Denali NP | F18: AK | G18: 150.3172193 | H18: 18.72 | I18: 9.63 | J18: 0.87 | K18: 8.22 | L18: 0.1245366305 | M18: 0.06406451666 | N18: 0.005787760072 | O18: 0.05468435378 | P18: 0 | Q18: 2.14 | R18: No | S18: No | T18: No | U18: No | V18: No | W18: No | X18: No | Y18: No
A19: 1091611 | B19: 40288822 | C19: Elmendorf Afb - Flight Line (Sic 45) | D19: AK | E19: Tuxedni Wilderness | F19: AK | G19: 196.6147389 | H19: 18.72 | I19: 9.63 | J19: 0.87 | K19: 8.22 | L19: 0.09521158032 | M19: 0.0489790341 | N19: 0.004424897162 | O19: 0.04180764905 | P19: 0 | Q19: 2.14 | R19: No | S19: No | T19: No | U19: No | V19: No | W19: No | X19: No | Y19: No
A20: 1091611 | B20: 40288822 | C20: Elmendorf Afb - Flight Line (Sic 45) | D20: AK | E20: Denali NP and Wilderness | F20: AK | G20: 200.1993854 | H20: 18.72 | I20: 9.63 | J20: 0.87 | K20: 8.22 | L20: 0.09350678058 | M20: 0.04810204578 | N20: 0.004345667687 | O20: 0.04105906711 | P20: 0 | Q20: 2.14 | R20: No | S20: No | T20: No | U20: No | V20: No | W20: No | X20: No | Y20: No
A21: 10603611 | B21: 2275060012 | C21: Merrill Field | D21: AK | E21: Denali NP | F21: AK | G21: 155.5590646 | H21: 16.77618963 | I21: 6.962643497 | J21: 1.377962313 | K21: 8.435583817 | L21: 0.1078445006 | M21: 0.04475884138 | N21: 0.008858129332 | O21: 0.05422752984 | P21: 0 | Q21: 12.87532271 | R21: No | S21: No | T21: No | U21: No | V21: No | W21: No | X21: No | Y21: No
A22: 10603611 | B22: 2275060012 | C22: Merrill Field | D22: AK | E22: Tuxedni Wilderness | F22: AK | G22: 189.150836 | H22: 16.77618963 | I22: 6.962643497 | J22: 1.377962313 | K22: 8.435583817 | L22: 0.08869212521 | M22: 0.03681000647 | N22: 0.007284991926 | O22: 0.0445971268 | P22: 0 | Q22: 12.87532271 | R22: No | S22: No | T22: No | U22: No | V22: No | W22: No | X22: No | Y22: No
A23: 10603611 | B23: 2275060012 | C23: Merrill Field | D23: AK | E23: Denali NP and Wilderness | F23: AK | G23: 205.5679416 | H23: 16.77618963 | I23: 6.962643497 | J23: 1.377962313 | K23: 8.435583817 | L23: 0.08160897805 | M23: 0.03387027882 | N23: 0.006703196532 | O23: 0.04103550268 | P23: 0 | Q23: 12.87532271 | R23: No | S23: No | T23: No | U23: No | V23: No | W23: No | X23: No | Y23: No
A24: 10603711 | B24: 2275060012 | C24: Lake Hood | D24: AK | E24: Denali NP | F24: AK | G24: 156.2686628 | H24: 12.0998175 | I24: 5.905013 | J24: 0.9994685 | K24: 5.195336 | L24: 0.07742958367 | M24: 0.03778756979 | N24: 0.00639583447 | O24: 0.03324617942 | P24: 0 | Q24: 7.297159 | R24: No | S24: No | T24: No | U24: No | V24: No | W24: No | X24: No | Y24: No
A25: 10603711 | B25: 2275060012 | C25: Lake Hood | D25: AK | E25: Tuxedni Wilderness | F25: AK | G25: 181.4564748 | H25: 12.0998175 | I25: 5.905013 | J25: 0.9994685 | K25: 5.195336 | L25: 0.06668165197 | M25: 0.0325423108 | N25: 0.005508034371 | O25: 0.02863130679 | P25: 0 | Q25: 7.297159 | R25: No | S25: No | T25: No | U25: No | V25: No | W25: No | X25: No | Y25: No
A26: 10603711 | B26: 2275060012 | C26: Lake Hood | D26: AK | E26: Denali NP and Wilderness | F26: AK | G26: 206.0916202 | H26: 12.0998175 | I26: 5.905013 | J26: 0.9994685 | K26: 5.195336 | L26: 0.05871086602 | M26: 0.02865236828 | N26: 0.004849631922 | O26: 0.02520886582 | P26: 0 | Q26: 7.297159 | R26: No | S26: No | T26: No | U26: No | V26: No | W26: No | X26: No | Y26: No
A27: 10604511 | B27: 2275050012 | C27: Birchwood | D27: AK | E27: Denali NP | F27: AK | G27: 142.4370158 | H27: 7.6832079 | I27: 2.96217 | J27: 0.5387513 | K27: 4.1822866 | L27: 0.05394109007 | M27: 0.02079634976 | N27: 0.003782382668 | O27: 0.02936235764 | P27: 0 | Q27: 5.543279 | R27: No | S27: No | T27: No | U27: No | V27: No | W27: No | X27: No | Y27: No
A28: 10604511 | B28: 2275050012 | C28: Birchwood | D28: AK | E28: Denali NP and Wilderness | F28: AK | G28: 193.049082 | H28: 7.6832079 | I28: 2.96217 | J28: 0.5387513 | K28: 4.1822866 | L28: 0.03979924598 | M28: 0.01534412891 | N28: 0.002790747796 | O28: 0.02166436927 | P28: 0 | Q28: 5.543279 | R28: No | S28: No | T28: No | U28: No | V28: No | W28: No | X28: No | Y28: No
A29: 10604511 | B29: 2275050012 | C29: Birchwood | D29: AK | E29: Tuxedni Wilderness | F29: AK | G29: 217.3462981 | H29: 7.6832079 | I29: 2.96217 | J29: 0.5387513 | K29: 4.1822866 | L29: 0.03535007482 | M29: 0.01362880355 | N29: 0.002478769156 | O29: 0.01924250211 | P29: 0 | Q29: 5.543279 | R29: No | S29: No | T29: No | U29: No | V29: No | W29: No | X29: No | Y29: No
A30: 10604711 | B30: 2275070000 | C30: Ted Stevens Anchorage I | D30: AK | E30: Denali NP | F30: AK | G30: 153.3843504 | H30: 1912.894678 | I30: 1697.110293 | J30: 171.3980662 | K30: 44.38631846 | L30: 12.47125064 | M30: 11.06442925 | N30: 1.11744168 | O30: 0.2893797075 | P30: 0 | Q30: 296.5988679 | R30: Yes | S30: Yes | T30: Yes | U30: Yes | V30: Yes | W30: Yes | X30: No | Y30: No
A31: 10604711 | B31: 2275070000 | C31: Ted Stevens Anchorage I | D31: AK | E31: Tuxedni Wilderness | F31: AK | G31: 180.9926309 | H31: 1912.894678 | I31: 1697.110293 | J31: 171.3980662 | K31: 44.38631846 | L31: 10.56890918 | M31: 9.376681717 | N31: 0.9469891971 | O31: 0.2452382633 | P31: 0 | Q31: 296.5988679 | R31: Yes | S31: Yes | T31: Yes | U31: Yes | V31: Yes | W31: No | X31: No | Y31: No
A32: 10604711 | B32: 2275070000 | C32: Ted Stevens Anchorage I | D32: AK | E32: Denali NP and Wilderness | F32: AK | G32: 203.1434559 | H32: 1912.894678 | I32: 1697.110293 | J32: 171.3980662 | K32: 44.38631846 | L32: 9.416472066 | M32: 8.354245454 | N32: 0.8437292033 | O32: 0.2184974075 | P32: 0 | Q32: 296.5988679 | R32: Yes | S32: Yes | T32: Yes | U32: Yes | V32: No | W32: No | X32: No | Y32: No
A33: 10698111 | B33: 20100201 | C33: International Station Power Plant | D33: AK | E33: Denali NP | F33: AK | G33: 158.7925723 | H33: 128.6404 | I33: 90.67 | J33: 0 | K33: 37.9704 | L33: 0.8101159781 | M33: 0.5709964811 | N33: 0 | O33: 0.2391194969 | P33: 0 | Q33: 0.95 | R33: Yes | S33: No | T33: Yes | U33: Yes | V33: No | W33: No | X33: No | Y33: No
A34: 10698111 | B34: 20100201 | C34: International Station Power Plant | D34: AK | E34: Tuxedni Wilderness | F34: AK | G34: 183.5385037 | H34: 128.6404 | I34: 90.67 | J34: 0 | K34: 37.9704 | L34: 0.7008905348 | M34: 0.4940107835 | N34: 0 | O34: 0.2068797513 | P34: 0 | Q34: 0.95 | R34: Yes | S34: No | T34: Yes | U34: Yes | V34: No | W34: No | X34: No | Y34: No
A35: 10698111 | B35: 20100201 | C35: International Station Power Plant | D35: AK | E35: Denali NP and Wilderness | F35: AK | G35: 208.7274693 | H35: 128.6404 | I35: 90.67 | J35: 0 | K35: 37.9704 | L35: 0.6163079563 | M35: 0.4343941903 | N35: 0 | O35: 0.181913766 | P35: 0 | Q35: 0.95 | R35: Yes | S35: No | T35: Yes | U35: Yes | V35: No | W35: No | X35: No | Y35: No
A36: 11322711 | B36: 2275070000 | C36: Elmendorf Afb | D36: AK | E36: Denali NP | F36: AK | G36: 152.8168916 | H36: 507.8860667 | I36: 438.6021451 | J36: 41.4533636 | K36: 27.83055793 | L36: 3.32349429 | M36: 2.870115604 | N36: 0.2712616594 | O36: 0.1821170267 | P36: 0 | Q36: 214.0608459 | R36: Yes | S36: Yes | T36: Yes | U36: Yes | V36: No | W36: No | X36: No | Y36: No
A37: 11322711 | B37: 2275070000 | C37: Elmendorf Afb | D37: AK | E37: Tuxedni Wilderness | F37: AK | G37: 193.3528555 | H37: 507.8860667 | I37: 438.6021451 | J37: 41.4533636 | K37: 27.83055793 | L37: 2.626731658 | M37: 2.268402729 | N37: 0.214392301 | O37: 0.1439366275 | P37: 0 | Q37: 214.0608459 | R37: Yes | S37: Yes | T37: Yes | U37: Yes | V37: No | W37: No | X37: No | Y37: No
A38: 11322711 | B38: 2275070000 | C38: Elmendorf Afb | D38: AK | E38: Denali NP and Wilderness | F38: AK | G38: 202.7783847 | H38: 507.8860667 | I38: 438.6021451 | J38: 41.4533636 | K38: 27.83055793 | L38: 2.50463612 | M38: 2.162963008 | N38: 0.2044269346 | O38: 0.1372461762 | P38: 0 | Q38: 214.0608459 | R38: Yes | S38: Yes | T38: Yes | U38: Yes | V38: No | W38: No | X38: No | Y38: No
A39: 12660611 | B39: 50100402 | C39: Anchorage Regional Landfill | D39: AK | E39: Denali NP | F39: AK | G39: 154.0630426 | H39: 74.4 | I39: 0 | J39: 0 | K39: 74.4 | L39: 0.4829191918 | M39: 0 | N39: 0 | O39: 0.4829191918 | P39: 0 | Q39: 13.8 | R39: No | S39: No | T39: Yes | U39: Yes | V39: No | W39: No | X39: No | Y39: No
A40: 12660611 | B40: 50100402 | C40: Anchorage Regional Landfill | D40: AK | E40: Denali NP and Wilderness | F40: AK | G40: 203.2384357 | H40: 74.4 | I40: 0 | J40: 0 | K40: 74.4 | L40: 0.366072489 | M40: 0 | N40: 0 | O40: 0.366072489 | P40: 0 | Q40: 13.8 | R40: No | S40: No | T40: Yes | U40: Yes | V40: No | W40: No | X40: No | Y40: No
A41: 12660611 | B41: 50100402 | C41: Anchorage Regional Landfill | D41: AK | E41: Tuxedni Wilderness | F41: AK | G41: 205.2561289 | H41: 74.4 | I41: 0 | J41: 0 | K41: 74.4 | L41: 0.362473951 | M41: 0 | N41: 0 | O41: 0.362473951 | P41: 0 | Q41: 13.8 | R41: No | S41: No | T41: Yes | U41: Yes | V41: No | W41: No | X41: No | Y41: No
A42: 12660711 | B42: 30800803 | C42: Insulfoam Facility | D42: AK | E42: Denali NP | F42: AK | G42: 153.3395246 | H42: 1.24 | I42: 1.16 | J42: 0 | K42: 0.08 | L42: 0.008086630003 | M42: 0.007564911938 | N42: 0 | O42: 0.0005217180647 | P42: 0 | Q42: 92.39 | R42: No | S42: No | T42: No | U42: No | V42: No | W42: No | X42: No | Y42: No
A43: 12660711 | B43: 30800803 | C43: Insulfoam Facility | D43: AK | E43: Tuxedni Wilderness | F43: AK | G43: 188.0367835 | H43: 1.24 | I43: 1.16 | J43: 0 | K43: 0.08 | L43: 0.006594454429 | M43: 0.006169005757 | N43: 0 | O43: 0.0004254486729 | P43: 0 | Q43: 92.39 | R43: No | S43: No | T43: No | U43: No | V43: No | W43: No | X43: No | Y43: No
A44: 12660711 | B44: 30800803 | C44: Insulfoam Facility | D44: AK | E44: Denali NP and Wilderness | F44: AK | G44: 203.3400293 | H44: 1.24 | I44: 1.16 | J44: 0 | K44: 0.08 | L44: 0.006098159838 | M44: 0.005704730171 | N44: 0 | O44: 0.000393429667 | P44: 0 | Q44: 92.39 | R44: No | S44: No | T44: No | U44: No | V44: No | W44: No | X44: No | Y44: No
A45: 12663611 | B45: 40400250 | C45: Ocean Dock Terminal | D45: AK | E45: Denali NP | F45: AK | G45: 153.000003 | H45: 1.87 | I45: 1.77 | J45: 0.1 | K45: 0 | L45: 0.01222222198 | M45: 0.01156862723 | N45: 0.0006535947585 | O45: 0 | P45: 0 | Q45: 24.33 | R45: No | S45: No | T45: No | U45: No | V45: No | W45: No | X45: No | Y45: No
A46: 12663611 | B46: 40400250 | C46: Ocean Dock Terminal | D46: AK | E46: Tuxedni Wilderness | F46: AK | G46: 188.4310184 | H46: 1.87 | I46: 1.77 | J46: 0.1 | K46: 0 | L46: 0.009924056115 | M46: 0.009393357927 | N46: 0.0005306981879 | O46: 0 | P46: 0 | Q46: 24.33 | R46: No | S46: No | T46: No | U46: No | V46: No | W46: No | X46: No | Y46: No
A47: 12663611 | B47: 40400250 | C47: Ocean Dock Terminal | D47: AK | E47: Denali NP and Wilderness | F47: AK | G47: 203.0026106 | H47: 1.87 | I47: 1.77 | J47: 0.1 | K47: 0 | L47: 0.009211704198 | M47: 0.008719099695 | N47: 0.0004926045026 | O47: 0 | P47: 0 | Q47: 24.33 | R47: No | S47: No | T47: No | U47: No | V47: No | W47: No | X47: No | Y47: No
A48: 15544111 | B48: 20200401 | C48: Providence Alaska Medical Center | D48: AK | E48: Denali NP | F48: AK | G48: 158.6617405 | H48: 29.6 | I48: 21.61 | J48: 6.53 | K48: 1.46 | L48: 0.186560414 | M48: 0.1362017077 | N48: 0.04115673999 | O48: 0.009201966368 | P48: 0.57 | Q48: 1.08 | R48: No | S48: No | T48: No | U48: Yes | V48: No | W48: No | X48: No | Y48: No
A49: 15544111 | B49: 20200401 | C49: Providence Alaska Medical Center | D49: AK | E49: Tuxedni Wilderness | F49: AK | G49: 188.6225446 | H49: 29.6 | I49: 21.61 | J49: 6.53 | K49: 1.46 | L49: 0.1569271588 | M49: 0.1145674291 | N49: 0.03461940361 | O49: 0.007740326075 | P49: 0.57 | Q49: 1.08 | R49: No | S49: No | T49: No | U49: Yes | V49: No | W49: No | X49: No | Y49: No
A50: 15544111 | B50: 20200401 | C50: Providence Alaska Medical Center | D50: AK | E50: Denali NP and Wilderness | F50: AK | G50: 208.6707707 | H50: 29.6 | I50: 21.61 | J50: 6.53 | K50: 1.46 | L50: 0.1418502453 | M50: 0.1035602635 | N50: 0.03129331424 | O50: 0.006996667503 | P50: 0.57 | Q50: 1.08 | R50: No | S50: No | T50: No | U50: Yes | V50: No | W50: No | X50: No | Y50: No
A51: 10600311 | B51: 2275060012 | C51: Toksook Bay | D51: AK | E51: Bering Sea Wilderness | F51: AK | G51: 391.6053354 | H51: 1.008102473 | I51: 0.68348178 | J51: 0.163956691 | K51: 0.160664002 | L51: 0.002574281763 | M51: 0.001745333167 | N51: 0.0004186783892 | O51: 0.000410270207 | P51: 0 | Q51: 1.18063454 | R51: No | S51: No | T51: No | U51: No | V51: No | W51: No | X51: No | Y51: No
A52: 10603011 | B52: 2275070000 | C52: Aniak | D52: AK | E52: Denali NP | F52: AK | G52: 399.9371859 | H52: 4.601872335 | I52: 3.358255426 | J52: 0.693250497 | K52: 0.550366412 | L52: 0.01150648776 | M52: 0.008396957184 | N52: 0.001733398447 | O52: 0.001376132131 | P52: 0 | Q52: 7.234443406 | R52: No | S52: No | T52: No | U52: No | V52: No | W52: No | X52: No | Y52: No
A53: 10598211 | B53: 2275060012 | C53: South Naknek Nr 2 | D53: AK | E53: Tuxedni Wilderness | F53: AK | G53: 295.5417701 | H53: 1.103640514 | I53: 0.540402504 | J53: 0.111967384 | K53: 0.451270626 | L53: 0.003734296217 | M53: 0.001828514811 | N53: 0.0003788546843 | O53: 0.001526926721 | P53: 0 | Q53: 0.712766739 | R53: No | S53: No | T53: No | U53: No | V53: No | W53: No | X53: No | Y53: No
A54: 10598511 | B54: 2275070000 | C54: King Salmon | D54: AK | E54: Tuxedni Wilderness | F54: AK | G54: 280.0616078 | H54: 17.65715072 | I54: 13.2391284 | J54: 2.053895566 | K54: 2.364126751 | L54: 0.06304738038 | M54: 0.04727220022 | N54: 0.007333727682 | O54: 0.008441452469 | P54: 0 | Q54: 14.40386483 | R54: No | S54: No | T54: No | U54: No | V54: No | W54: No | X54: No | Y54: No
A55: 10598711 | B55: 40400316 | C55: Naknek Power Plant | D55: AK | E55: Tuxedni Wilderness | F55: AK | G55: 293.7431754 | H55: 369.37 | I55: 364.12 | J55: 1.78 | K55: 3.47 | L55: 1.257459002 | M55: 1.239586246 | N55: 0.006059715252 | O55: 0.01181304041 | P55: 0 | Q55: 6.77 | R55: Yes | S55: No | T55: No | U55: Yes | V55: No | W55: No | X55: No | Y55: No
A56: 1134011 | B56: 39090003 | C56: Clear Air Force Station | D56: AK | E56: Denali NP | F56: AK | G56: 35.01944559 | H56: 469.87 | I56: 254.06 | J56: 213.21 | K56: 2.6 | L56: 13.41740259 | M56: 7.254826445 | N56: 6.088331679 | O56: 0.07424446492 | P56: 0 | Q56: 1.96 | R56: Yes | S56: Yes | T56: No | U56: Yes | V56: Yes | W56: No | X56: No | Y56: No
A57: 1134011 | B57: 39090003 | C57: Clear Air Force Station | D57: AK | E57: Denali NP and Wilderness | F57: AK | G57: 56.64252005 | H57: 469.87 | I57: 254.06 | J57: 213.21 | K57: 2.6 | L57: 8.29535832 | M57: 4.485323036 | N57: 3.764133372 | O57: 0.04590191251 | P57: 0 | Q57: 1.96 | R57: Yes | S57: Yes | T57: No | U57: Yes | V57: No | W57: No | X57: No | Y57: No
A58: 10596111 | B58: 2275050012 | C58: Clear | D58: AK | E58: Denali NP | F58: AK | G58: 34.10238156 | H58: 3.38002544 | I58: 2.8430962 | J58: 0.27403374 | K58: 0.2628955 | L58: 0.09911405848 | M58: 0.08336943258 | N58: 0.008035618848 | O58: 0.007709007055 | P58: 0 | Q58: 1.471012 | R58: No | S58: No | T58: No | U58: No | V58: No | W58: No | X58: No | Y58: No
A59: 10596111 | B59: 2275050012 | C59: Clear | D59: AK | E59: Denali NP and Wilderness | F59: AK | G59: 55.66249415 | H59: 3.38002544 | I59: 2.8430962 | J59: 0.27403374 | K59: 0.2628955 | L59: 0.06072357144 | M59: 0.05107741296 | N59: 0.004923130812 | O59: 0.004723027669 | P59: 0 | Q59: 1.471012 | R59: No | S59: No | T59: No | U59: No | V59: No | W59: No | X59: No | Y59: No
A60: 12662311 | B60: 30510303 | C60: Healy Power Plant | D60: AK | E60: Denali NP and Wilderness | F60: AK | G60: 5.999848595 | H60: 821.9 | I60: 355.55 | J60: 444.94 | K60: 21.41 | L60: 136.9867901 | M60: 59.25982871 | N60: 74.158538 | O60: 3.56842338 | P60: 0 | Q60: 5.53 | R60: Yes | S60: Yes | T60: No | U60: Yes | V60: Yes | W60: Yes | X60: Yes | Y60: No
A61: 12662311 | B61: 30510303 | C61: Healy Power Plant | D61: AK | E61: Denali NP | F61: AK | G61: 6.015465491 | H61: 821.9 | I61: 355.55 | J61: 444.94 | K61: 21.41 | L61: 136.6311553 | M61: 59.10598282 | N61: 73.96601321 | O61: 3.559159309 | P61: 0 | Q61: 5.53 | R61: Yes | S61: Yes | T61: No | U61: Yes | V61: Yes | W61: Yes | X61: Yes | Y61: No
A62: 678611 | B62: 20100102 | C62: Dillingham Power Plant | D62: AK | E62: Tuxedni Wilderness | F62: AK | G62: 350.9567409 | H62: 325.49 | I62: 320.66 | J62: 0.06 | K62: 4.77 | L62: 0.9274362395 | M62: 0.9136738596 | N62: 0.0001709612411 | O62: 0.01359141867 | P62: 0 | Q62: 7.31 | R62: Yes | S62: No | T62: No | U62: Yes | V62: No | W62: No | X62: No | Y62: No
A63: 10595411 | B63: 2275070000 | C63: Dillingham | D63: AK | E63: Tuxedni Wilderness | F63: AK | G63: 352.8679566 | H63: 22.37357405 | I63: 14.33951204 | J63: 2.408662725 | K63: 5.625399286 | L63: 0.06340494689 | M63: 0.04063704785 | N63: 0.006825960475 | O63: 0.01594193856 | P63: 0 | Q63: 14.82641855 | R63: No | S63: No | T63: No | U63: No | V63: No | W63: No | X63: No | Y63: No
A64: 10595511 | B64: 2275060012 | C64: Clarks Point | D64: AK | E64: Tuxedni Wilderness | F64: AK | G64: 364.4952133 | H64: 1.480687576 | I64: 0.72261449 | J64: 0.141769927 | K64: 0.616303159 | L64: 0.004062296353 | M64: 0.001982507489 | N64: 0.000388948666 | O64: 0.001690840199 | P64: 0 | Q64: 0.870919726 | R64: No | S64: No | T64: No | U64: No | V64: No | W64: No | X64: No | Y64: No
A65: 10596011 | B65: 2275060012 | C65: Manokotak | D65: AK | E65: Tuxedni Wilderness | F65: AK | G65: 384.2541532 | H65: 1.286340516 | I65: 0.683227702 | J65: 0.131494879 | K65: 0.471617935 | L65: 0.003347629441 | M65: 0.001778061984 | N65: 0.0003422080878 | O65: 0.001227359369 | P65: 0 | Q65: 0.718864981 | R65: No | S65: No | T65: No | U65: No | V65: No | W65: No | X65: No | Y65: No
A66: 678711 | B66: 20100909 | C66: North Pole Power Plant | D66: AK | E66: Denali NP | F66: AK | G66: 121.7509856 | H66: 873.97 | I66: 644.85 | J66: 148.37 | K66: 80.75 | L66: 7.178340245 | M66: 5.296466362 | N66: 1.218634898 | O66: 0.6632389839 | P66: 0 | Q66: 0.56 | R66: Yes | S66: Yes | T66: Yes | U66: Yes | V66: No | W66: No | X66: No | Y66: No
A67: 678711 | B67: 20100909 | C67: North Pole Power Plant | D67: AK | E67: Denali NP and Wilderness | F67: AK | G67: 129.4634304 | H67: 873.97 | I67: 644.85 | J67: 148.37 | K67: 80.75 | L67: 6.750709425 | M67: 4.980943251 | N67: 1.146037916 | O67: 0.6237282585 | P67: 0 | Q67: 0.56 | R67: Yes | S67: Yes | T67: Yes | U67: Yes | V67: No | W67: No | X67: No | Y67: No
A68: 678911 | B68: 50200102 | C68: Fairbanks Campus Power Plant | D68: AK | E68: Denali NP | F68: AK | G68: 117.0959015 | H68: 532.14 | I68: 306.21 | J68: 202 | K68: 23.93 | L68: 4.544480149 | M68: 2.615036018 | N68: 1.725081727 | O68: 0.2043624046 | P68: 0 | Q68: 1.91 | R68: Yes | S68: Yes | T68: No | U68: Yes | V68: No | W68: No | X68: No | Y68: No
A69: 678911 | B69: 50200102 | C69: Fairbanks Campus Power Plant | D69: AK | E69: Denali NP and Wilderness | F69: AK | G69: 129.7584712 | H69: 532.14 | I69: 306.21 | J69: 202 | K69: 23.93 | L69: 4.101003928 | M69: 2.359845929 | N69: 1.55673844 | O69: 0.1844195587 | P69: 0 | Q69: 1.91 | R69: Yes | S69: Yes | T69: No | U69: Yes | V69: No | W69: No | X69: No | Y69: No
A70: 974411 | B70: 50100603 | C70: Eielson Air Force Base | D70: AK | E70: Denali NP | F70: AK | G70: 133.0764007 | H70: 1024.25 | I70: 739.76 | J70: 268.05 | K70: 16.44 | L70: 7.69670651 | M70: 5.558911992 | N70: 2.014256461 | O70: 0.1235380571 | P70: 0.08 | Q70: 29.45 | R70: Yes | S70: Yes | T70: No | U70: Yes | V70: No | W70: No | X70: No | Y70: No
A71: 974411 | B71: 50100603 | C71: Eielson Air Force Base | D71: AK | E71: Denali NP and Wilderness | F71: AK | G71: 138.8838959 | H71: 1024.25 | I71: 739.76 | J71: 268.05 | K71: 16.44 | L71: 7.374865124 | M71: 5.326463485 | N71: 1.930029384 | O71: 0.1183722554 | P71: 0.08 | Q71: 29.45 | R71: Yes | S71: Yes | T71: No | U71: Yes | V71: No | W71: No | X71: No | Y71: No
A72: 974511 | B72: 30510503 | C72: Chena Power Plant | D72: AK | E72: Denali NP | F72: AK | G72: 118.5822526 | H72: 1287.13 | I72: 613.6 | J72: 655 | K72: 18.53 | L72: 10.85432239 | M72: 5.174467396 | N72: 5.523592152 | O72: 0.1562628436 | P72: 0 | Q72: 2 | R72: Yes | S72: Yes | T72: No | U72: Yes | V72: Yes | W72: No | X72: No | Y72: No
A73: 974511 | B73: 30510503 | C73: Chena Power Plant | D73: AK | E73: Denali NP and Wilderness | F73: AK | G73: 130.4710651 | H73: 1287.13 | I73: 613.6 | J73: 655 | K73: 18.53 | L73: 9.865252494 | M73: 4.702958466 | N73: 5.020270201 | O73: 0.1420238272 | P73: 0 | Q73: 2 | R73: Yes | S73: Yes | T73: No | U73: Yes | V73: No | W73: No | X73: No | Y73: No
A74: 974611 | B74: 50410314 | C74: Fort Wainwright | D74: AK | E74: Denali NP | F74: AK | G74: 122.8798166 | H74: 1.43 | I74: 1.4 | J74: 0.03 | K74: 0 | L74: 0.01163738716 | M74: 0.01139324617 | N74: 0.0002441409894 | O74: 0 | P74: 0 | Q74: 10.93 | R74: No | S74: No | T74: No | U74: No | V74: No | W74: No | X74: No | Y74: No
A75: 974611 | B75: 50410314 | C75: Fort Wainwright | D75: AK | E75: Denali NP and Wilderness | F75: AK | G75: 133.8083491 | H75: 1.43 | I75: 1.4 | J75: 0.03 | K75: 0 | L75: 0.01068692656 | M75: 0.0104627253 | N75: 0.0002242012565 | O75: 0 | P75: 0 | Q75: 10.93 | R75: No | S75: No | T75: No | U75: No | V75: No | W75: No | X75: No | Y75: No
A76: 10593511 | B76: 2275060012 | C76: Wainwright Aaf | D76: AK | E76: Denali NP | F76: AK | G76: 121.1262339 | H76: 387.9872551 | I76: 335.1763882 | J76: 31.67218074 | K76: 21.13868618 | L76: 3.203164523 | M76: 2.767165935 | N76: 0.2614807687 | O76: 0.1745178192 | P76: 0 | Q76: 163.4430927 | R76: Yes | S76: Yes | T76: No | U76: Yes | V76: No | W76: No | X76: No | Y76: No
A77: 10593511 | B77: 2275060012 | C77: Wainwright Aaf | D77: AK | E77: Denali NP and Wilderness | F77: AK | G77: 132.0472662 | H77: 387.9872551 | I77: 335.1763882 | J77: 31.67218074 | K77: 21.13868618 | L77: 2.938245268 | M77: 2.538306152 | N77: 0.2398548766 | O77: 0.1600842394 | P77: 0 | Q77: 163.4430927 | R77: Yes | S77: Yes | T77: No | U77: Yes | V77: No | W77: No | X77: No | Y77: No
A78: 10593611 | B78: 2275070000 | C78: Fairbanks Intl | D78: AK | E78: Denali NP | F78: AK | G78: 110.4654834 | H78: 120.2085806 | I78: 98.07050929 | J78: 11.70478992 | K78: 10.4332814 | L78: 1.088200376 | M78: 0.8877932388 | N78: 0.1059587987 | O78: 0.09444833878 | P78: 0 | Q78: 52.3760831 | R78: Yes | S78: No | T78: No | U78: Yes | V78: No | W78: No | X78: No | Y78: No
A79: 10593611 | B79: 2275070000 | C79: Fairbanks Intl | D79: AK | E79: Denali NP and Wilderness | F79: AK | G79: 122.9609507 | H79: 120.2085806 | I79: 98.07050929 | J79: 11.70478992 | K79: 10.4332814 | L79: 0.9776159011 | M79: 0.797574423 | N79: 0.09519111437 | O79: 0.08485036381 | P79: 0 | Q79: 52.3760831 | R79: Yes | S79: No | T79: No | U79: Yes | V79: No | W79: No | X79: No | Y79: No
A80: 10593711 | B80: 2275070000 | C80: Eielson Afb Airport | D80: AK | E80: Denali NP | F80: AK | G80: 126.2066684 | H80: 116.3176079 | I80: 100.5535747 | J80: 9.494538128 | K80: 6.269495083 | L80: 0.9216439147 | M80: 0.7967374149 | N80: 0.07523008293 | O80: 0.04967641698 | P80: 0 | Q80: 48.89959664 | R80: Yes | S80: No | T80: No | U80: Yes | V80: No | W80: No | X80: No | Y80: No
A81: 10593711 | B81: 2275070000 | C81: Eielson Afb Airport | D81: AK | E81: Denali NP and Wilderness | F81: AK | G81: 131.2201372 | H81: 116.3176079 | I81: 100.5535747 | J81: 9.494538128 | K81: 6.269495083 | L81: 0.8864310794 | M81: 0.7662968261 | N81: 0.07235580092 | O81: 0.04777845241 | P81: 0 | Q81: 48.89959664 | R81: Yes | S81: No | T81: No | U81: Yes | V81: No | W81: No | X81: No | Y81: No
A82: 10593911 | B82: 2275050012 | C82: Blair Lakes Airport | D82: AK | E82: Denali NP | F82: AK | G82: 98.68228204 | H82: 1.301806989 | I82: 1.12008974 | J82: 0.106146449 | K82: 0.0755708 | L82: 0.01319190195 | M82: 0.01135046451 | N82: 0.00107563837 | O82: 0.0007657990719 | P82: 0 | Q82: 0.55079847 | R82: No | S82: No | T82: No | U82: No | V82: No | W82: No | X82: No | Y82: No
A83: 10593911 | B83: 2275050012 | C83: Blair Lakes Airport | D83: AK | E83: Denali NP and Wilderness | F83: AK | G83: 99.24248511 | H83: 1.301806989 | I83: 1.12008974 | J83: 0.106146449 | K83: 0.0755708 | L83: 0.01311743642 | M83: 0.01128639351 | N83: 0.001069566616 | O83: 0.0007614762963 | P83: 0 | Q83: 0.55079847 | R83: No | S83: No | T83: No | U83: No | V83: No | W83: No | X83: No | Y83: No
A84: 10594311 | B84: 20100907 | C84: Zehnder Facility | D84: AK | E84: Denali NP | F84: AK | G84: 119.4795575 | H84: 82.66 | I84: 74.07 | J84: 4.99 | K84: 3.6 | L84: 0.6918338313 | M84: 0.6199386872 | N84: 0.04176446671 | O84: 0.03013067739 | P84: 0 | Q84: 35.72 | R84: Yes | S84: No | T84: No | U84: Yes | V84: No | W84: No | X84: No | Y84: No
A85: 10594311 | B85: 20100907 | C85: Zehnder Facility | D85: AK | E85: Denali NP and Wilderness | F85: AK | G85: 131.3344616 | H85: 82.66 | I85: 74.07 | J85: 4.99 | K85: 3.6 | L85: 0.6293854558 | M85: 0.5639799263 | N85: 0.03799459744 | O85: 0.02741093202 | P85: 0 | Q85: 35.72 | R85: Yes | S85: No | T85: No | U85: Yes | V85: No | W85: No | X85: No | Y85: No
A86: 11702911 | B86: 2275060012 | C86: Bradley Sky-Ranch | D86: AK | E86: Denali NP | F86: AK | G86: 122.21117 | H86: 1.2472725 | I86: 0.468871 | J86: 0.094994 | K86: 0.6834075 | L86: 0.01020587971 | M86: 0.003836564203 | N86: 0.000777293925 | O86: 0.005592021581 | P86: 0 | Q86: 0.88282948 | R86: No | S86: No | T86: No | U86: No | V86: No | W86: No | X86: No | Y86: No
A87: 11702911 | B87: 2275060012 | C87: Bradley Sky-Ranch | D87: AK | E87: Denali NP and Wilderness | F87: AK | G87: 130.5255919 | H87: 1.2472725 | I87: 0.468871 | J87: 0.094994 | K87: 0.6834075 | L87: 0.009555769732 | M87: 0.003592176778 | N87: 0.0007277806493 | O87: 0.005235812305 | P87: 0 | Q87: 0.88282948 | R87: No | S87: No | T87: No | U87: No | V87: No | W87: No | X87: No | Y87: No
A88: 12416011 | B88: 2275060012 | C88: Metro Fld | D88: AK | E88: Denali NP | F88: AK | G88: 114.0294252 | H88: 4.64767755 | I88: 1.9515605 | J88: 0.39623405 | K88: 2.299883 | L88: 0.04075858088 | M88: 0.01711453422 | N88: 0.003474840369 | O88: 0.02016920629 | P88: 0 | Q88: 3.0438266 | R88: No | S88: No | T88: No | U88: No | V88: No | W88: No | X88: No | Y88: No
A89: 12416011 | B89: 2275060012 | C89: Metro Fld | D89: AK | E89: Denali NP and Wilderness | F89: AK | G89: 125.6841266 | H89: 4.64767755 | I89: 1.9515605 | J89: 0.39623405 | K89: 2.299883 | L89: 0.03697903368 | M89: 0.01552750179 | N89: 0.003152618082 | O89: 0.01829891381 | P89: 0 | Q89: 3.0438266 | R89: No | S89: No | T89: No | U89: No | V89: No | W89: No | X89: No | Y89: No
A90: 12660811 | B90: 30501011 | C90: Fort Wainwright (Privatized Emission Units) | D90: AK | E90: Denali NP | F90: AK | G90: 119.2150326 | H90: 1885.36 | I90: 1129.88 | J90: 654.74 | K90: 100.74 | L90: 15.81478408 | M90: 9.47766381 | N90: 5.492092614 | O90: 0.8450276598 | P90: 0.07 | Q90: 6.42 | R90: Yes | S90: Yes | T90: Yes | U90: Yes | V90: Yes | W90: No | X90: No | Y90: No
A91: 12660811 | B91: 30501011 | C91: Fort Wainwright (Privatized Emission Units) | D91: AK | E91: Denali NP and Wilderness | F91: AK | G91: 130.2171724 | H91: 1885.36 | I91: 1129.88 | J91: 654.74 | K91: 100.74 | L91: 14.47858194 | M91: 8.676889381 | N91: 5.028061877 | O91: 0.7736306831 | P91: 0.07 | Q91: 6.42 | R91: Yes | S91: Yes | T91: Yes | U91: Yes | V91: Yes | W91: No | X91: No | Y91: No
A92: 12681911 | B92: 40600199 | C92: North Pole Refinery | D92: AK | E92: Denali NP | F92: AK | G92: 123.8626081 | H92: 38.27 | I92: 33.13 | J92: 2.75 | K92: 2.39 | L92: 0.3089713723 | M92: 0.2674737801 | N92: 0.02220201917 | O92: 0.01929557303 | P92: 0 | Q92: 112.97 | R92: Yes | S92: No | T92: No | U92: Yes | V92: No | W92: No | X92: No | Y92: No
A93: 12681911 | B93: 40600199 | C93: North Pole Refinery | D93: AK | E93: Denali NP and Wilderness | F93: AK | G93: 131.9102855 | H93: 38.27 | I93: 33.13 | J93: 2.75 | K93: 2.39 | L93: 0.2901214251 | M93: 0.2511555478 | N93: 0.02084750246 | O93: 0.01811837486 | P93: 0 | Q93: 112.97 | R93: Yes | S93: No | T93: No | U93: Yes | V93: No | W93: No | X93: No | Y93: No
A94: 539711 | B94: 40400312 | C94: Granite Point Tank Farm | D94: AK | E94: Tuxedni Wilderness | F94: AK | G94: 113.8486871 | H94: 25.14 | I94: 24.14 | J94: 0.2 | K94: 0.8 | L94: 0.2208194108 | M94: 0.2120358225 | N94: 0.001756717668 | O94: 0.00702687067 | P94: 0 | Q94: 66.89 | R94: No | S94: No | T94: No | U94: Yes | V94: No | W94: No | X94: No | Y94: No
A95: 539711 | B95: 40400312 | C95: Granite Point Tank Farm | D95: AK | E95: Denali NP | F95: AK | G95: 161.3619029 | H95: 25.14 | I95: 24.14 | J95: 0.2 | K95: 0.8 | L95: 0.1557988568 | M95: 0.1496016071 | N95: 0.001239449935 | O95: 0.004957799739 | P95: 0 | Q95: 66.89 | R95: No | S95: No | T95: No | U95: Yes | V95: No | W95: No | X95: No | Y95: No
A96: 539711 | B96: 40400312 | C96: Granite Point Tank Farm | D96: AK | E96: Denali NP and Wilderness | F96: AK | G96: 199.8653587 | H96: 25.14 | I96: 24.14 | J96: 0.2 | K96: 0.8 | L96: 0.1257846791 | M96: 0.1207813108 | N96: 0.00100067366 | O96: 0.00400269464 | P96: 0 | Q96: 66.89 | R96: No | S96: No | T96: No | U96: Yes | V96: No | W96: No | X96: No | Y96: No
A97: 539811 | B97: 31000205 | C97: Monopod Platform | D97: AK | E97: Tuxedni Wilderness | F97: AK | G97: 97.86865757 | H97: 422.73 | I97: 246.47 | J97: 170 | K97: 6.26 | L97: 4.31936036 | M97: 2.518375199 | N97: 1.737021884 | O97: 0.06396327645 | P97: 0 | Q97: 9.54 | R97: Yes | S97: Yes | T97: No | U97: Yes | V97: No | W97: No | X97: No | Y97: No
A98: 539811 | B98: 31000205 | C98: Monopod Platform | D98: AK | E98: Denali NP | F98: AK | G98: 175.1754222 | H98: 422.73 | I98: 246.47 | J98: 170 | K98: 6.26 | L98: 2.413180997 | M98: 1.406989616 | N98: 0.9704557745 | O98: 0.03573560676 | P98: 0 | Q98: 9.54 | R98: Yes | S98: Yes | T98: No | U98: Yes | V98: No | W98: No | X98: No | Y98: No
A99: 539811 | B99: 31000205 | C99: Monopod Platform | D99: AK | E99: Denali NP and Wilderness | F99: AK | G99: 212.5558981 | H99: 422.73 | I99: 246.47 | J99: 170 | K99: 6.26 | L99: 1.988794494 | M99: 1.159553803 | N99: 0.7997896153 | O99: 0.02945107642 | P99: 0 | Q99: 9.54 | R99: Yes | S99: Yes | T99: No | U99: Yes | V99: No | W99: No | X99: No | Y99: No
A100: 539911 | B100: 31000404 | C100: Tyonek Platform | D100: AK | E100: Tuxedni Wilderness | F100: AK | G100: 135.0833432 | H100: 137.72 | I100: 133.62 | J100: 0.19 | K100: 3.91 | L100: 1.019518741 | M100: 0.9891671083 | N100: 0.00140653907 | O100: 0.0289450935 | P100: 0 | Q100: 16.16 | R100: Yes | S100: No | T100: No | U100: Yes | V100: No | W100: No | X100: No | Y100: No
A101: 539911 | B101: 31000404 | C101: Tyonek Platform | D101: AK | E101: Denali NP | F101: AK | G101: 155.2182421 | H101: 137.72 | I101: 133.62 | J101: 0.19 | K101: 3.91 | L101: 0.887266845 | M101: 0.860852424 | N101: 0.001224082926 | O101: 0.02519033811 | P101: 0 | Q101: 16.16 | R101: Yes | S101: No | T101: No | U101: Yes | V101: No | W101: No | X101: No | Y101: No
A102: 539911 | B102: 31000404 | C102: Tyonek Platform | D102: AK | E102: Denali NP and Wilderness | F102: AK | G102: 198.0677551 | H102: 137.72 | I102: 133.62 | J102: 0.19 | K102: 3.91 | L102: 0.6953176195 | M102: 0.6746176322 | N102: 0.0009592677004 | O102: 0.01974071952 | P102: 0 | Q102: 16.16 | R102: Yes | S102: No | T102: No | U102: Yes | V102: No | W102: No | X102: No | Y102: No
A103: 540111 | B103: 31000205 | C103: Grayling Platform | D103: AK | E103: Tuxedni Wilderness | F103: AK | G103: 91.62025638 | H103: 208.54 | I103: 173.87 | J103: 26.76 | K103: 7.91 | L103: 2.276134211 | M103: 1.897724443 | N103: 0.2920751486 | O103: 0.08633461979 | P103: 0 | Q103: 6.62 | R103: Yes | S103: Yes | T103: No | U103: Yes | V103: No | W103: No | X103: No | Y103: No
A104: 540111 | B104: 31000205 | C104: Grayling Platform | D104: AK | E104: Denali NP | F104: AK | G104: 181.6484458 | H104: 208.54 | I104: 173.87 | J104: 26.76 | K104: 7.91 | L104: 1.148041752 | M104: 0.9571785721 | N104: 0.147317528 | O104: 0.04354565196 | P104: 0 | Q104: 6.62 | R104: Yes | S104: Yes | T104: No | U104: Yes | V104: No | W104: No | X104: No | Y104: No
A105: 540111 | B105: 31000205 | C105: Grayling Platform | D105: AK | E105: Denali NP and Wilderness | F105: AK | G105: 218.7947315 | H105: 208.54 | I105: 173.87 | J105: 26.76 | K105: 7.91 | L105: 0.9531308117 | M105: 0.7946717859 | N105: 0.1223064185 | O105: 0.03615260727 | P105: 0 | Q105: 6.62 | R105: Yes | S105: Yes | T105: No | U105: Yes | V105: No | W105: No | X105: No | Y105: No
A106: 680611 | B106: 31000304 | C106: Steelhead Platform | D106: AK | E106: Tuxedni Wilderness | F106: AK | G106: 91.2250403 | H106: 254.48 | I106: 245.52 | J106: 0.55 | K106: 8.41 | L106: 2.789584956 | M106: 2.691366309 | N106: 0.006029046391 | O106: 0.09218960027 | P106: 0 | Q106: 7.16 | R106: Yes | S106: No | T106: No | U106: Yes | V106: No | W106: No | X106: No | Y106: No
A107: 680611 | B107: 31000304 | C107: Steelhead Platform | D107: AK | E107: Denali NP | F107: AK | G107: 182.6300293 | H107: 254.48 | I107: 245.52 | J107: 0.55 | K107: 8.41 | L107: 1.393418163 | M107: 1.344357228 | N107: 0.00301155293 | O107: 0.04604938208 | P107: 0 | Q107: 7.16 | R107: Yes | S107: No | T107: No | U107: Yes | V107: No | W107: No | X107: No | Y107: No
A108: 680611 | B108: 31000304 | C108: Steelhead Platform | D108: AK | E108: Denali NP and Wilderness | F108: AK | G108: 219.8630478 | H108: 254.48 | I108: 245.52 | J108: 0.55 | K108: 8.41 | L108: 1.157447795 | M108: 1.116695154 | N108: 0.002501557244 | O108: 0.03825108441 | P108: 0 | Q108: 7.16 | R108: Yes | S108: No | T108: No | U108: Yes | V108: No | W108: No | X108: No | Y108: No
A109: 680711 | B109: 31000205 | C109: King Salmon Platform | D109: AK | E109: Tuxedni Wilderness | F109: AK | G109: 94.14647548 | H109: 195.05 | I109: 121.11 | J109: 68.76 | K109: 5.18 | L109: 2.071771662 | M109: 1.286399723 | N109: 0.730351292 | O109: 0.05502064707 | P109: 0 | Q109: 5.36 | R109: Yes | S109: Yes | T109: No | U109: Yes | V109: No | W109: No | X109: No | Y109: No
A110: 680711 | B110: 31000205 | C110: King Salmon Platform | D110: AK | E110: Denali NP | F110: AK | G110: 178.7885917 | H110: 195.05 | I110: 121.11 | J110: 68.76 | K110: 5.18 | L110: 1.090953277 | M110: 0.677392214 | N110: 0.3845882969 | O110: 0.02897276582 | P110: 0 | Q110: 5.36 | R110: Yes | S110: Yes | T110: No | U110: Yes | V110: No | W110: No | X110: No | Y110: No
A111: 680711 | B111: 31000205 | C111: King Salmon Platform | D111: AK | E111: Denali NP and Wilderness | F111: AK | G111: 215.9842058 | H111: 195.05 | I111: 121.11 | J111: 68.76 | K111: 5.18 | L111: 0.9030752933 | M111: 0.5607354462 | N111: 0.318356612 | O111: 0.02398323517 | P111: 0 | Q111: 5.36 | R111: Yes | S111: Yes | T111: No | U111: Yes | V111: No | W111: No | X111: No | Y111: No
A112: 680811 | B112: 31000205 | C112: Granite Point Platform | D112: AK | E112: Tuxedni Wilderness | F112: AK | G112: 111.4361007 | H112: 101.66 | I112: 97.52 | J112: 1.56 | K112: 2.58 | L112: 0.9122716912 | M112: 0.8751203553 | N112: 0.01399905408 | O112: 0.02315228176 | P112: 0 | Q112: 1.49 | R112: Yes | S112: No | T112: No | U112: Yes | V112: No | W112: No | X112: No | Y112: No
A113: 680811 | B113: 31000205 | C113: Granite Point Platform | D113: AK | E113: Denali NP | F113: AK | G113: 168.0760398 | H113: 101.66 | I113: 97.52 | J113: 1.56 | K113: 2.58 | L113: 0.6048452839 | M113: 0.5802135755 | N113: 0.009281513307 | O113: 0.01535019508 | P113: 0 | Q113: 1.49 | R113: Yes | S113: No | T113: No | U113: Yes | V113: No | W113: No | X113: No | Y113: No
A114: 680811 | B114: 31000205 | C114: Granite Point Platform | D114: AK | E114: Denali NP and Wilderness | F114: AK | G114: 207.1533003 | H114: 101.66 | I114: 97.52 | J114: 1.56 | K114: 2.58 | L114: 0.4907476726 | M114: 0.4707624733 | N114: 0.007530654823 | O114: 0.01245454452 | P114: 0 | Q114: 1.49 | R114: Yes | S114: No | T114: No | U114: Yes | V114: No | W114: No | X114: No | Y114: No
A115: 680911 | B115: 50100102 | C115: Trading Bay | D115: AK | E115: Tuxedni Wilderness | F115: AK | G115: 84.03832769 | H115: 104.4 | I115: 59.51 | J115: 42.29 | K115: 2.6 | L115: 1.242290308 | M115: 0.7081292743 | N115: 0.5032227694 | O115: 0.03093826438 | P115: 0 | Q115: 2.31 | R115: Yes | S115: Yes | T115: No | U115: Yes | V115: No | W115: No | X115: No | Y115: No
A116: 680911 | B116: 50100102 | C116: Trading Bay | D116: AK | E116: Denali NP | F116: AK | G116: 185.0845338 | H116: 104.4 | I116: 59.51 | J116: 42.29 | K116: 2.6 | L116: 0.5640665802 | M116: 0.3215287566 | N116: 0.2284901885 | O116: 0.01404763514 | P116: 0 | Q116: 2.31 | R116: Yes | S116: Yes | T116: No | U116: Yes | V116: No | W116: No | X116: No | Y116: No
A117: 680911 | B117: 50100102 | C117: Trading Bay | D117: AK | E117: Denali NP and Wilderness | F117: AK | G117: 221.0195228 | H117: 104.4 | I117: 59.51 | J117: 42.29 | K117: 2.6 | L117: 0.4723564628 | M117: 0.2692522328 | N117: 0.1913405633 | O117: 0.0117636667 | P117: 0 | Q117: 2.31 | R117: Yes | S117: Yes | T117: No | U117: Yes | V117: No | W117: No | X117: No | Y117: No
A118: 681111 | B118: 31000205 | C118: Anna Platform | D118: AK | E118: Tuxedni Wilderness | F118: AK | G118: 113.6613426 | H118: 94.95 | I118: 92.09 | J118: 0.3 | K118: 2.56 | L118: 0.8353763717 | M118: 0.8102139028 | N118: 0.002639419816 | O118: 0.02252304909 | P118: 0 | Q118: 2.03 | R118: Yes | S118: No | T118: No | U118: Yes | V118: No | W118: No | X118: No | Y118: No
A119: 681111 | B119: 31000205 | C119: Anna Platform | D119: AK | E119: Denali NP | F119: AK | G119: 166.0034668 | H119: 94.95 | I119: 92.09 | J119: 0.3 | K119: 2.56 | L119: 0.5719760064 | M119: 0.5547474505 | N119: 0.001807191173 | O119: 0.01542136468 | P119: 0 | Q119: 2.03 | R119: Yes | S119: No | T119: No | U119: Yes | V119: No | W119: No | X119: No | Y119: No
A120: 681111 | B120: 31000205 | C120: Anna Platform | D120: AK | E120: Denali NP and Wilderness | F120: AK | G120: 205.2357197 | H120: 94.95 | I120: 92.09 | J120: 0.3 | K120: 2.56 | L120: 0.4626387655 | M120: 0.4487035694 | N120: 0.001461733856 | O120: 0.01247346224 | P120: 0 | Q120: 2.03 | R120: Yes | S120: No | T120: No | U120: Yes | V120: No | W120: No | X120: No | Y120: No
A121: 681211 | B121: 31000205 | C121: Bruce Platform | D121: AK | E121: Tuxedni Wilderness | F121: AK | G121: 100.573649 | H121: 107.38 | I121: 105.94 | J121: 0.11 | K121: 1.33 | L121: 1.067675292 | M121: 1.053357426 | N121: 0.001093725853 | O121: 0.01322413986 | P121: 0 | Q121: 1.7 | R121: Yes | S121: No | T121: No | U121: Yes | V121: No | W121: No | X121: No | Y121: No
A122: 681211 | B122: 31000205 | C122: Bruce Platform | D122: AK | E122: Denali NP | F122: AK | G122: 182.4724507 | H122: 107.38 | I122: 105.94 | J122: 0.11 | K122: 1.33 | L122: 0.5884723946 | M122: 0.5805807924 | N122: 0.0006028307265 | O122: 0.007288771511 | P122: 0 | Q122: 1.7 | R122: Yes | S122: No | T122: No | U122: Yes | V122: No | W122: No | X122: No | Y122: No
A123: 681211 | B123: 31000205 | C123: Bruce Platform | D123: AK | E123: Denali NP and Wilderness | F123: AK | G123: 221.4094527 | H123: 107.38 | I123: 105.94 | J123: 0.11 | K123: 1.33 | L123: 0.4849838102 | M123: 0.4784800228 | N123: 0.00049681709 | O123: 0.00600697027 | P123: 0 | Q123: 1.7 | R123: Yes | S123: No | T123: No | U123: Yes | V123: No | W123: No | X123: No | Y123: No
A124: 681311 | B124: 31000205 | C124: Dolly Varden Platform | D124: AK | E124: Tuxedni Wilderness | F124: AK | G124: 88.43368282 | H124: 400.78 | I124: 252.29 | J124: 140.95 | K124: 7.54 | L124: 4.531983597 | M124: 2.852872254 | N124: 1.593849713 | O124: 0.08526163063 | P124: 0 | Q124: 6.42 | R124: Yes | S124: Yes | T124: No | U124: Yes | V124: No | W124: No | X124: No | Y124: No
A125: 681311 | B125: 31000205 | C125: Dolly Varden Platform | D125: AK | E125: Denali NP | F125: AK | G125: 185.1810395 | H125: 400.78 | I125: 252.29 | J125: 140.95 | K125: 7.54 | L125: 2.164260451 | M125: 1.3623965 | N125: 0.7611470396 | O125: 0.04071691152 | P125: 0 | Q125: 6.42 | R125: Yes | S125: Yes | T125: No | U125: Yes | V125: No | W125: No | X125: No | Y125: No
A126: 681311 | B126: 31000205 | C126: Dolly Varden Platform | D126: AK | E126: Denali NP and Wilderness | F126: AK | G126: 222.2473111 | H126: 400.78 | I126: 252.29 | J126: 140.95 | K126: 7.54 | L126: 1.803306406 | M126: 1.135176838 | N126: 0.6342033983 | O126: 0.03392616973 | P126: 0 | Q126: 6.42 | R126: Yes | S126: Yes | T126: No | U126: Yes | V126: No | W126: No | X126: No | Y126: No
A127: 681411 | B127: 50100102 | C127: Swanson River Field | D127: AK | E127: Tuxedni Wilderness | F127: AK | G127: 112.9533404 | H127: 1725.61 | I127: 1704.55 | J127: 0.2 | K127: 20.86 | L127: 15.27719317 | M127: 15.0907445 | N127: 0.001770642633 | O127: 0.1846780266 | P127: 0 | Q127: 120.99 | R127: Yes | S127: No | T127: No | U127: Yes | V127: Yes | W127: Yes | X127: No | Y127: No
A128: 681411 | B128: 50100102 | C128: Swanson River Field | D128: AK | E128: Denali NP | F128: AK | G128: 194.2205979 | H128: 1725.61 | I128: 1704.55 | J128: 0.2 | K128: 20.86 | L128: 8.884793986 | M128: 8.776360585 | N128: 0.001029756896 | O128: 0.1074036442 | P128: 0 | Q128: 120.99 | R128: Yes | S128: No | T128: No | U128: Yes | V128: No | W128: No | X128: No | Y128: No
A129: 681411 | B129: 50100102 | C129: Swanson River Field | D129: AK | E129: Denali NP and Wilderness | F129: AK | G129: 236.8630026 | H129: 1725.61 | I129: 1704.55 | J129: 0.2 | K129: 20.86 | L129: 7.285266088 | M129: 7.196353933 | N129: 0.0008443699431 | O129: 0.08806778507 | P129: 0 | Q129: 120.99 | R129: Yes | S129: No | T129: No | U129: Yes | V129: No | W129: No | X129: No | Y129: No
A130: 863411 | B130: 40301198 | C130: Kenai Refinery | D130: AK | E130: Tuxedni Wilderness | F130: AK | G130: 88.41033568 | H130: 437.53 | I130: 399.9 | J130: 8.42 | K130: 29.21 | L130: 4.948855771 | M130: 4.523226803 | N130: 0.09523773363 | O130: 0.3303912351 | P130: 8.93 | Q130: 122.09 | R130: Yes | S130: No | T130: Yes | U130: Yes | V130: No | W130: No | X130: No | Y130: No
A131: 863411 | B131: 40301198 | C131: Kenai Refinery | D131: AK | E131: Denali NP | F131: AK | G131: 198.3170957 | H131: 437.53 | I131: 399.9 | J131: 8.42 | K131: 29.21 | L131: 2.206214238 | M131: 2.01646761 | N131: 0.04245725751 | O131: 0.1472893696 | P131: 8.93 | Q131: 122.09 | R131: Yes | S131: No | T131: Yes | U131: Yes | V131: No | W131: No | X131: No | Y131: No
A132: 863411 | B132: 40301198 | C132: Kenai Refinery | D132: AK | E132: Denali NP and Wilderness | F132: AK | G132: 236.9650755 | H132: 437.53 | I132: 399.9 | J132: 8.42 | K132: 29.21 | L132: 1.846390229 | M132: 1.687590457 | N132: 0.03553266228 | O132: 0.1232671099 | P132: 8.93 | Q132: 122.09 | R132: Yes | S132: No | T132: Yes | U132: Yes | V132: No | W132: No | X132: No | Y132: No
A133: 972911 | B133: 40301012 | C133: Drift River Terminal / Christy Lee Platform Aggregated Source | D133: AK | E133: Tuxedni Wilderness | F133: AK | G133: 54.07483984 | H133: 80.34 | I133: 72.13 | J133: 6.44 | K133: 1.77 | L133: 1.485718686 | M133: 1.333892069 | N133: 0.1190942039 | O133: 0.03273241318 | P133: 0 | Q133: 273.98 | R133: Yes | S133: No | T133: No | U133: Yes | V133: No | W133: No | X133: No | Y133: No
A134: 972911 | B134: 40301012 | C134: Drift River Terminal / Christy Lee Platform Aggregated Source | D134: AK | E134: Denali NP | F134: AK | G134: 211.3424208 | H134: 80.34 | I134: 72.13 | J134: 6.44 | K134: 1.77 | L134: 0.3801413825 | M134: 0.3412944725 | N134: 0.03047187582 | O134: 0.008375034192 | P134: 0 | Q134: 273.98 | R134: Yes | S134: No | T134: No | U134: Yes | V134: No | W134: No | X134: No | Y134: No
A135: 972911 | B135: 40301012 | C135: Drift River Terminal / Christy Lee Platform Aggregated Source | D135: AK | E135: Denali NP and Wilderness | F135: AK | G135: 245.1244663 | H135: 80.34 | I135: 72.13 | J135: 6.44 | K135: 1.77 | L135: 0.327751861 | M135: 0.2942586723 | N135: 0.02627236725 | O135: 0.007220821433 | P135: 0 | Q135: 273.98 | R135: Yes | S135: No | T135: No | U135: Yes | V135: No | W135: No | X135: No | Y135: No
A136: 1074811 | B136: 39090009 | C136: Beaver Creek Production Facility | D136: AK | E136: Tuxedni Wilderness | F136: AK | G136: 108.8816487 | H136: 108.42 | I136: 106.72 | J136: 0.05 | K136: 1.65 | L136: 0.9957600875 | M136: 0.9801468044 | N136: 0.0004592142075 | O136: 0.01515406885 | P136: 0 | Q136: 49.62 | R136: Yes | S136: No | T136: No | U136: Yes | V136: No | W136: No | X136: No | Y136: No
A137: 1074811 | B137: 39090009 | C137: Beaver Creek Production Facility | D137: AK | E137: Denali NP | F137: AK | G137: 188.8215343 | H137: 108.42 | I137: 106.72 | J137: 0.05 | K137: 1.65 | L137: 0.5741929828 | M137: 0.5651897725 | N137: 0.0002648003057 | O137: 0.008738410088 | P137: 0 | Q137: 49.62 | R137: Yes | S137: No | T137: No | U137: Yes | V137: No | W137: No | X137: No | Y137: No
A138: 1074811 | B138: 39090009 | C138: Beaver Creek Production Facility | D138: AK | E138: Denali NP and Wilderness | F138: AK | G138: 230.275913 | H138: 108.42 | I138: 106.72 | J138: 0.05 | K138: 1.65 | L138: 0.4708264907 | M138: 0.4634440425 | N138: 0.0002171308295 | O138: 0.007165317374 | P138: 0 | Q138: 49.62 | R138: Yes | S138: No | T138: No | U138: Yes | V138: No | W138: No | X138: No | Y138: No
A139: 1076311 | B139: 31000414 | C139: Kenai Liquefied Natural Gas (Lng) Plant | D139: AK | E139: Tuxedni Wilderness | F139: AK | G139: 87.12110955 | H139: 335.71 | I139: 324.38 | J139: 0.25 | K139: 11.08 | L139: 3.853371493 | M139: 3.723322645 | N139: 0.002869568596 | O139: 0.1271792802 | P139: 0 | Q139: 10.15 | R139: Yes | S139: No | T139: No | U139: Yes | V139: No | W139: No | X139: No | Y139: No
A140: 1076311 | B140: 31000414 | C140: Kenai Liquefied Natural Gas (Lng) Plant | D140: AK | E140: Denali NP | F140: AK | G140: 198.9856392 | H140: 335.71 | I140: 324.38 | J140: 0.25 | K140: 11.08 | L140: 1.687106674 | M140: 1.630167892 | N140: 0.001256372073 | O140: 0.05568241026 | P140: 0 | Q140: 10.15 | R140: Yes | S140: No | T140: No | U140: Yes | V140: No | W140: No | X140: No | Y140: No
A141: 1076311 | B141: 31000414 | C141: Kenai Liquefied Natural Gas (Lng) Plant | D141: AK | E141: Denali NP and Wilderness | F141: AK | G141: 237.5052732 | H141: 335.71 | I141: 324.38 | J141: 0.25 | K141: 11.08 | L141: 1.413484406 | M141: 1.365780202 | N141: 0.001052608208 | O141: 0.04665159578 | P141: 0 | Q141: 10.15 | R141: Yes | S141: No | T141: No | U141: Yes | V141: No | W141: No | X141: No | Y141: No
A142: 1090411 | B142: 31000227 | C142: Kenai Gas Field 14-6 Pad | D142: AK | E142: Tuxedni Wilderness | F142: AK | G142: 86.60003141 | H142: 132.27 | I142: 130.67 | J142: 0.02 | K142: 1.58 | L142: 1.527366652 | M142: 1.508890908 | N142: 0.0002309467985 | O142: 0.01824479708 | P142: 0 | Q142: 6.47 | R142: Yes | S142: No | T142: No | U142: Yes | V142: No | W142: No | X142: No | Y142: No
A143: 1090411 | B143: 31000227 | C143: Kenai Gas Field 14-6 Pad | D143: AK | E143: Denali NP | F143: AK | G143: 208.1334746 | H143: 132.27 | I143: 130.67 | J143: 0.02 | K143: 1.58 | L143: 0.6355056544 | M143: 0.6278182798 | N143: 9.609218333e-05 | O143: 0.007591282483 | P143: 0 | Q143: 6.47 | R143: Yes | S143: No | T143: No | U143: Yes | V143: No | W143: No | X143: No | Y143: No
A144: 1090411 | B144: 31000227 | C144: Kenai Gas Field 14-6 Pad | D144: AK | E144: Denali NP and Wilderness | F144: AK | G144: 247.3550153 | H144: 132.27 | I144: 130.67 | J144: 0.02 | K144: 1.58 | L144: 0.5347374898 | M144: 0.5282690542 | N144: 8.085544565e-05 | O144: 0.006387580207 | P144: 0 | Q144: 6.47 | R144: Yes | S144: No | T144: No | U144: Yes | V144: No | W144: No | X144: No | Y144: No
A145: 1133911 | B145: 31000203 | C145: Kenai Gas Field 34-31 Pad | D145: AK | E145: Tuxedni Wilderness | F145: AK | G145: 79.4687609 | H145: 72.82 | I145: 71.72 | J145: 0.02 | K145: 1.08 | L145: 0.9163349116 | M145: 0.9024929945 | N145: 0.0002516712199 | O145: 0.01359024587 | P145: 0.05 | Q145: 8.09 | R145: Yes | S145: No | T145: No | U145: Yes | V145: No | W145: No | X145: No | Y145: No
A146: 1133911 | B146: 31000203 | C146: Kenai Gas Field 34-31 Pad | D146: AK | E146: Denali NP | F146: AK | G146: 221.7825926 | H146: 72.82 | I146: 71.72 | J146: 0.02 | K146: 1.08 | L146: 0.3283395652 | M146: 0.323379753 | N146: 9.017840295e-05 | O146: 0.00486963376 | P146: 0.05 | Q146: 8.09 | R146: Yes | S146: No | T146: No | U146: Yes | V146: No | W146: No | X146: No | Y146: No
A147: 1133911 | B147: 31000203 | C147: Kenai Gas Field 34-31 Pad | D147: AK | E147: Denali NP and Wilderness | F147: AK | G147: 260.8688858 | H147: 72.82 | I147: 71.72 | J147: 0.02 | K147: 1.08 | L147: 0.2791440603 | M147: 0.2749273827 | N147: 7.666686633e-05 | O147: 0.004140010782 | P147: 0.05 | Q147: 8.09 | R147: Yes | S147: No | T147: No | U147: Yes | V147: No | W147: No | X147: No | Y147: No
A148: 10586611 | B148: 2275060012 | C148: Soldotna | D148: AK | E148: Tuxedni Wilderness | F148: AK | G148: 91.20289932 | H148: 2.569730759 | I148: 1.190055923 | J148: 0.210442733 | K148: 1.169232102 | L148: 0.02817597662 | M148: 0.01304844398 | N148: 0.002307412753 | O148: 0.01282011987 | P148: 0 | Q148: 1.706329153 | R148: No | S148: No | T148: No | U148: No | V148: No | W148: No | X148: No | Y148: No
A149: 10586611 | B149: 2275060012 | C149: Soldotna | D149: AK | E149: Denali NP | F149: AK | G149: 221.8915219 | H149: 2.569730759 | I149: 1.190055923 | J149: 0.210442733 | K149: 1.169232102 | L149: 0.01158102273 | M149: 0.005363232956 | N149: 0.0009484036668 | O149: 0.005269386103 | P149: 0 | Q149: 1.706329153 | R149: No | S149: No | T149: No | U149: No | V149: No | W149: No | X149: No | Y149: No
A150: 10586611 | B150: 2275060012 | C150: Soldotna | D150: AK | E150: Denali NP and Wilderness | F150: AK | G150: 262.7276468 | H150: 2.569730759 | I150: 1.190055923 | J150: 0.210442733 | K150: 1.169232102 | L150: 0.009780968203 | M150: 0.004529618172 | N150: 0.0008009919611 | O150: 0.004450358066 | P150: 0 | Q150: 1.706329153 | R150: No | S150: No | T150: No | U150: No | V150: No | W150: No | X150: No | Y150: No
A151: 10586711 | B151: 2275060012 | C151: Seward | D151: AK | E151: Tuxedni Wilderness | F151: AK | G151: 173.8541656 | H151: 2.213488449 | I151: 0.982910394 | J151: 0.193603605 | K151: 1.03697445 | L151: 0.01273186893 | M151: 0.005653648797 | N151: 0.001113597735 | O151: 0.005964622399 | P151: 0 | Q151: 1.405921874 | R151: No | S151: No | T151: No | U151: No | V151: No | W151: No | X151: No | Y151: No
A152: 10586711 | B152: 2275060012 | C152: Seward | D152: AK | E152: Denali NP | F152: AK | G152: 276.7368963 | H152: 2.213488449 | I152: 0.982910394 | J152: 0.193603605 | K152: 1.03697445 | L152: 0.007998530296 | M152: 0.003551786579 | N152: 0.0006995944798 | O152: 0.003747149238 | P152: 0 | Q152: 1.405921874 | R152: No | S152: No | T152: No | U152: No | V152: No | W152: No | X152: No | Y152: No
A153: 10586711 | B153: 2275060012 | C153: Seward | D153: AK | E153: Denali NP and Wilderness | F153: AK | G153: 325.3703611 | H153: 2.213488449 | I153: 0.982910394 | J153: 0.193603605 | K153: 1.03697445 | L153: 0.006802981198 | M153: 0.003020897142 | N153: 0.0005950253255 | O153: 0.003187058731 | P153: 0 | Q153: 1.405921874 | R153: No | S153: No | T153: No | U153: No | V153: No | W153: No | X153: No | Y153: No
A154: 10586811 | B154: 2275060012 | C154: Seldovia | D154: AK | E154: Tuxedni Wilderness | F154: AK | G154: 87.58858947 | H154: 1.542642076 | I154: 0.603393755 | J154: 0.213926814 | K154: 0.725321507 | L154: 0.0176123635 | M154: 0.0068889539 | N154: 0.002442405059 | O154: 0.008281004539 | P154: 0 | Q154: 2.510257724 | R154: No | S154: No | T154: No | U154: No | V154: No | W154: No | X154: No | Y154: No
A155: 10586811 | B155: 2275060012 | C155: Seldovia | D155: AK | E155: Denali NP | F155: AK | G155: 337.3731424 | H155: 1.542642076 | I155: 0.603393755 | J155: 0.213926814 | K155: 0.725321507 | L155: 0.004572510025 | M155: 0.001788505601 | N155: 0.0006340955669 | O155: 0.002149908857 | P155: 0 | Q155: 2.510257724 | R155: No | S155: No | T155: No | U155: No | V155: No | W155: No | X155: No | Y155: No
A156: 10586811 | B156: 2275060012 | C156: Seldovia | D156: AK | E156: Denali NP and Wilderness | F156: AK | G156: 374.1334432 | H156: 1.542642076 | I156: 0.603393755 | J156: 0.213926814 | K156: 0.725321507 | L156: 0.004123240261 | M156: 0.001612776847 | N156: 0.0005717928132 | O156: 0.001938670601 | P156: 0 | Q156: 2.510257724 | R156: No | S156: No | T156: No | U156: No | V156: No | W156: No | X156: No | Y156: No
A157: 10587111 | B157: 2275060012 | C157: English Bay | D157: AK | E157: Tuxedni Wilderness | F157: AK | G157: 90.47627864 | H157: 1.243825484 | I157: 0.553364708 | J157: 0.169880857 | K157: 0.520579919 | L157: 0.01374753143 | M157: 0.006116130286 | N157: 0.001877628695 | O157: 0.005753772445 | P157: 0 | Q157: 1.709825365 | R157: No | S157: No | T157: No | U157: No | V157: No | W157: No | X157: No | Y157: No
